Workbook

Sheet Sample Report (hidden)
A2: Date
A3: Hen
A4: Program
A5: Start at 999999
A6: Sequence component 1 | B6: Time 1 | C6: Seqeunce Component 2 | D6: Time 2 | E6: Seqeunce Component 3 | F6: Time 3 | G6: Correct 0 = No 1=Yes | J6: Seqeunce | K6: Time
A7: 12 | B7: 7 | C7: 12 | D7: 42 | E7: 13 | F7: 18 | G7: if 77 new line, if 31 or 41 = yes new line on 77, | J7: =string of Seqeunce compponent 1, 2 & 3 | K7: =time 3
A8: This continues until ther is a 1 on its own to indicate start of summary data
J9: 10-19 =1
A10: Summary Data | J10: 20-29 =2
A11: Correct | B11: Incorrect | C11: Rft | D11: total | E11: Av Correct | F11: Av Incorrect | G11: Percent correct | H11: Time | J11: in this example the seqeunce would be 111
A12: 40 | B12: 33 | C12: 40 | D12: 73 | E12: 23.95 | F12: 15 | G12: 54 | H12: 806

Sheet Summary
A2: Day | B2: Date | C2: Average Response Rate | D2: Target % | E2: RF for non correct sequence | F2: U Value | K2: Block 1 | L2: Block 2 | M2: Block 3 | N2: Block 4 | O2: Block 5 | P2: Block 6
A3: 1 | B3: ='!MC2194B.AXT'!B2:C2 -> <date> | C3: =('!MC2194B.AXT'!F19/60)/'!MC2194B.AXT'!Q3 -> 30.06153846 | D3: ='!MC2194B.AXT'!N20/'!MC2194B.AXT'!Q3 -> 0.07692307692 | E3: =SUM('!MC2194B.AXT'!L20:Q20)/'!MC2194B.AXT'!Q3 -> 0.3846153846 | F3: ='!MC2194B.AXT'!Q16 -> 0.5923636115 | J3: Average Response Rate | K3: =AVERAGE(C3:C7) -> 8.863694153 | L3: =AVERAGE(C8:C12) -> 6.907160722 | M3: =AVERAGE(C13:C17) -> 5.664319901 | N3: =AVERAGE(C18:C22) -> 3.164050006 | O3: =AVERAGE(C23:C27) -> 3.191926359 | P3: =AVERAGE(C28:C32) -> 2.839394903
A4: 2 | B4: ='!MC22A3B.AXT'!B2:C2 -> <date> | C4: =('!MC22A3B.AXT'!F21/60)/'!MC22A3B.AXT'!Q3 -> 2.816666667 | D4: ='!MC22A3B.AXT'!N20/'!MC22A3B.AXT'!Q3 -> 0.0625 | E4: =SUM('!MC22A3B.AXT'!L20:Q20)/'!MC22A3B.AXT'!Q3 -> 13.5625 | F4: ='!MC22A3B.AXT'!Q16 -> 0.522211687 | J4: Target % | K4: =AVERAGE(D3:D7) -> 0.3181027716 | L4: =AVERAGE(D8:D12) -> 0.4706819407 | M4: =AVERAGE(D13:D17) -> 0.4734540318 | N4: =AVERAGE(D18:D22) -> 0.6433318328 | O4: =AVERAGE(D23:D27) -> 0.8001305734 | P4: =AVERAGE(D28:D32) -> 0.8798602952
A5: 3 | B5: ='!MC2391B.AXT'!B2:C2 -> <date> | C5: =('!MC2391B.AXT'!F37/60)/'!MC2391B.AXT'!Q3 -> 4.421505376 | D5: ='!MC2391B.AXT'!N20/'!MC2391B.AXT'!Q3 -> 0 | E5: =SUM('!MC2391B.AXT'!L20:Q20)/'!MC2391B.AXT'!Q3 -> 4.225806452 | F5: ='!MC2391B.AXT'!Q16 -> 0.4841825968 | J5: CCRF | K5: =AVERAGE(E3:E7) -> 5.692782819 | L5: =AVERAGE(E8:E12) -> 7.015949686 | M5: =AVERAGE(E13:E17) -> 4.491363548 | N5: =AVERAGE(E18:E22) -> 5.169195694 | O5: =AVERAGE(E23:E27) -> 6.193904283 | P5: =AVERAGE(E28:E32) -> 6.168522342
A6: 4 | B6: ='!MC2493B.AXT'!B2:C2 -> <date> | C6: =('!MC2493B.AXT'!F64/60)/'!MC2493B.AXT'!Q3 -> 3.199712644 | D6: ='!MC2493B.AXT'!N20/'!MC2493B.AXT'!Q3 -> 0.6551724138 | E6: =SUM('!MC2493B.AXT'!L20:Q20)/'!MC2493B.AXT'!Q3 -> 4.637931034 | F6: ='!MC2493B.AXT'!Q16 -> 0.3108420518 | J6: U Value | K6: =AVERAGE(F3:F7) -> 0.4178172815 | L6: =AVERAGE(F8:F12) -> 0.4002741255 | M6: =AVERAGE(F13:F17) -> 0.4202679792 | N6: =AVERAGE(F18:F22) -> 0.2893736004 | O6: =AVERAGE(F23:F27) -> 0.1948560615 | P6: =AVERAGE(F28:F32) -> 0.1278060535
A7: 5 | B7: ='!MC2695B.AXT'!B2:C2 -> <date> | C7: =('!MC2695B.AXT'!F55/60)/'!MC2695B.AXT'!Q3 -> 3.819047619 | D7: ='!MC2695B.AXT'!N20/'!MC2695B.AXT'!Q3 -> 0.7959183673 | E7: =SUM('!MC2695B.AXT'!L20:Q20)/'!MC2695B.AXT'!Q3 -> 5.653061224 | F7: ='!MC2695B.AXT'!Q16 -> 0.1794864602
A8: 6 | B8: ='!MC2795B.AXT'!B2:C2 -> <date> | C8: =('!MC2795B.AXT'!F62/60)/'!MC2795B.AXT'!Q3 -> 3.463988095 | D8: ='!MC2795B.AXT'!N20/'!MC2795B.AXT'!Q3 -> 0.6964285714 | E8: =SUM('!MC2795B.AXT'!L20:Q20)/'!MC2795B.AXT'!Q3 -> 5 | F8: ='!MC2795B.AXT'!Q16 -> 0.2726678322
A9: 7 | B9: ='!MC28A1B.AXT'!B2:C2 -> <date> | C9: =('!MC28A1B.AXT'!F59/60)/'!MC28A1B.AXT'!Q3 -> 3.399371069 | D9: ='!MC28A1B.AXT'!N20/'!MC28A1B.AXT'!Q3 -> 0.7169811321 | E9: =SUM('!MC28A1B.AXT'!L20:Q20)/'!MC28A1B.AXT'!Q3 -> 5.226415094 | F9: ='!MC28A1B.AXT'!Q16 -> 0.2785063517 | G9: =K3 -> 8.863694153 | H9: =L3 -> 6.907160722 | I9: 5.664319901 | J9: 3.164050006 | K9: 3.191926359 | L9: 2.839394903 | M9: =K4 -> 0.3181027716 | N9: =L4 -> 0.4706819407 | O9: 0.4734540318 | P9: 0.6433318328 | Q9: 0.8001305734 | R9: 0.8798602952 | S9: =K6 -> 0.4178172815 | T9: =L6 -> 0.4002741255 | U9: 0.4202679792 | V9: 0.2893736004 | W9: 0.1948560615 | X9: 0.1278060535
A10: 8 | B10: ='!MC29A1B.AXT'!B2:C2 -> <date> | C10: =('!MC29A1B.AXT'!F56/60)/'!MC29A1B.AXT'!Q3 -> 3.179666667 | D10: ='!MC29A1B.AXT'!N20/'!MC29A1B.AXT'!Q3 -> 0.74 | E10: =SUM('!MC29A1B.AXT'!L20:Q20)/'!MC29A1B.AXT'!Q3 -> 5.52 | F10: ='!MC29A1B.AXT'!Q16 -> 0.2478208431
A11: 9 | B11: ='!MC3094B.AXT'!B2:C2 -> <date> | C11: =('!MC3094B.AXT'!F36/60)/'!MC3094B.AXT'!Q3 -> 7.151111111 | D11: ='!MC3094B.AXT'!N20/'!MC3094B.AXT'!Q3 -> 0.1 | E11: =SUM('!MC3094B.AXT'!L20:Q20)/'!MC3094B.AXT'!Q3 -> 7.833333333 | F11: ='!MC3094B.AXT'!Q16 -> 0.5525047774
A12: 10 | B12: ='!MC31A0B.AXT'!B2:C2 -> <date> | C12: =('!MC31A0B.AXT'!F26/60)/'!MC31A0B.AXT'!Q3 -> 17.34166667 | D12: ='!MC31A0B.AXT'!N20/'!MC31A0B.AXT'!Q3 -> 0.1 | E12: =SUM('!MC31A0B.AXT'!L20:Q20)/'!MC31A0B.AXT'!Q3 -> 11.5 | F12: ='!MC31A0B.AXT'!Q16 -> 0.6498708234
A13: 11 | B13: ='!N10293B.AXT'!B2:C2 -> <date> | C13: =('!N10293B.AXT'!F35/60)/'!N10293B.AXT'!Q3 -> 11.5137931 | D13: ='!N10293B.AXT'!N20/'!N10293B.AXT'!Q3 -> 0.3793103448 | E13: =SUM('!N10293B.AXT'!L20:Q20)/'!N10293B.AXT'!Q3 -> 8.379310345 | F13: ='!N10293B.AXT'!Q16 -> 0.5178353762
A14: 12 | B14: ='!N103A1B.AXT'!B2:C2 -> <date> | C14: =('!N103A1B.AXT'!F65/60)/'!N103A1B.AXT'!Q3 -> 4.348870056 | D14: ='!N103A1B.AXT'!N20/'!N103A1B.AXT'!Q3 -> 0.6271186441 | E14: =SUM('!N103A1B.AXT'!L20:Q20)/'!N103A1B.AXT'!Q3 -> 4.728813559 | F14: ='!N103A1B.AXT'!Q16 -> 0.3319352818
A15: 13 | B15: ='!N104B0B.AXT'!B2:C2 -> <date> | C15: =('!N104B0B.AXT'!F64/60)/'!N104B0B.AXT'!Q3 -> 4.616954023 | D15: ='!N104B0B.AXT'!N20/'!N104B0B.AXT'!Q3 -> 0.6206896552 | E15: =SUM('!N104B0B.AXT'!L20:Q20)/'!N104B0B.AXT'!Q3 -> 3.051724138 | F15: ='!N104B0B.AXT'!Q16 -> 0.3289685114
A16: 14 | B16: ='!N10583B.AXT'!B2:C2 -> <date> | C16: =('!N10583B.AXT'!F45/60)/'!N10583B.AXT'!Q3 -> 4.79375 | D16: ='!N10583B.AXT'!N20/'!N10583B.AXT'!Q3 -> 0.225 | E16: =SUM('!N10583B.AXT'!L20:Q20)/'!N10583B.AXT'!Q3 -> 3.6 | F16: ='!N10583B.AXT'!Q16 -> 0.5402520723
A17: 15 | B17: ='!N10690B.AXT'!B2:C2 -> <date> | C17: =('!N10690B.AXT'!F72/60)/'!N10690B.AXT'!Q3 -> 3.048232323 | D17: ='!N10690B.AXT'!N20/'!N10690B.AXT'!Q3 -> 0.5151515152 | E17: =SUM('!N10690B.AXT'!L20:Q20)/'!N10690B.AXT'!Q3 -> 2.696969697 | F17: ='!N10690B.AXT'!Q16 -> 0.3823486546
A18: 16 | B18: ='!N10795B.AXT'!B2:C2 -> <date> | C18: =('!N10795B.AXT'!F40/60)/'!N10795B.AXT'!Q3 -> 4.944117647 | D18: ='!N10795B.AXT'!N20/'!N10795B.AXT'!Q3 -> 0.1764705882 | E18: =SUM('!N10795B.AXT'!L20:Q20)/'!N10795B.AXT'!Q3 -> 4.058823529 | F18: ='!N10795B.AXT'!Q16 -> 0.5467310267
A19: 17 | B19: ='!N10894B.AXT'!B2:C2 -> <date> | C19: =('!N10894B.AXT'!F60/60)/'!N10894B.AXT'!Q3 -> 2.980555556 | D19: ='!N10894B.AXT'!N20/'!N10894B.AXT'!Q3 -> 0.7222222222 | E19: =SUM('!N10894B.AXT'!L20:Q20)/'!N10894B.AXT'!Q3 -> 5.166666667 | F19: ='!N10894B.AXT'!Q16 -> 0.2429941734
A20: 18 | B20: ='!N10995B.AXT'!B2:C2 -> <date> | C20: =('!N10995B.AXT'!F64/60)/'!N10995B.AXT'!Q3 -> 2.774425287 | D20: ='!N10995B.AXT'!N20/'!N10995B.AXT'!Q3 -> 0.6724137931 | E20: =SUM('!N10995B.AXT'!L20:Q20)/'!N10995B.AXT'!Q3 -> 4.827586207 | F20: ='!N10995B.AXT'!Q16 -> 0.2887967958
A21: 19 | B21: ='!N110A1B.AXT'!B2:C2 -> <date> | C21: =('!N110A1B.AXT'!F48/60)/'!N110A1B.AXT'!Q3 -> 2.483730159 | D21: ='!N110A1B.AXT'!N20/'!N110A1B.AXT'!Q3 -> 0.9285714286 | E21: =SUM('!N110A1B.AXT'!L20:Q20)/'!N110A1B.AXT'!Q3 -> 6.547619048 | F21: ='!N110A1B.AXT'!Q16 -> 0.08983965443
A22: 20 | B22: ='!N111A2B.AXT'!B2:C2 -> <date> | C22: =('!N111A2B.AXT'!F59/60)/'!N111A2B.AXT'!Q3 -> 2.637421384 | D22: ='!N111A2B.AXT'!N20/'!N111A2B.AXT'!Q3 -> 0.7169811321 | E22: =SUM('!N111A2B.AXT'!L20:Q20)/'!N111A2B.AXT'!Q3 -> 5.245283019 | F22: ='!N111A2B.AXT'!Q16 -> 0.2785063517
A23: 21 | B23: ='!N11292B.AXT'!B2:C2 -> <date> | C23: =('!N11292B.AXT'!F49/60)/'!N11292B.AXT'!Q3 -> 2.826744186 | D23: ='!N11292B.AXT'!N20/'!N11292B.AXT'!Q3 -> 0.9069767442 | E23: =SUM('!N11292B.AXT'!L20:Q20)/'!N11292B.AXT'!Q3 -> 6.395348837 | F23: ='!N11292B.AXT'!Q16 -> 0.09618938681
A24: 22 | B24: ='!N11394B.AXT'!B2:C2 -> <date> | C24: =('!N11394B.AXT'!F42/60)/'!N11394B.AXT'!Q3 -> 4.76712963 | D24: ='!N11394B.AXT'!N20/'!N11394B.AXT'!Q3 -> 0.6388888889 | E24: =SUM('!N11394B.AXT'!L20:Q20)/'!N11394B.AXT'!Q3 -> 7.138888889 | F24: ='!N11394B.AXT'!Q16 -> 0.3442741489
A25: 23 | B25: ='!N11491B.AXT'!B2:C2 -> <date> | C25: =('!N11491B.AXT'!F54/60)/'!N11491B.AXT'!Q3 -> 2.634722222 | D25: ='!N11491B.AXT'!N20/'!N11491B.AXT'!Q3 -> 0.8125 | E25: =SUM('!N11491B.AXT'!L20:Q20)/'!N11491B.AXT'!Q3 -> 5.770833333 | F25: ='!N11491B.AXT'!Q16 -> 0.1657640886
A26: 24 | B26: ='!N11595B.AXT'!B2:C2 -> <date> | C26: =('!N11595B.AXT'!F53/60)/'!N11595B.AXT'!Q3 -> 2.823049645 | D26: ='!N11595B.AXT'!N20/'!N11595B.AXT'!Q3 -> 0.829787234 | E26: =SUM('!N11595B.AXT'!L20:Q20)/'!N11595B.AXT'!Q3 -> 5.893617021 | F26: ='!N11595B.AXT'!Q16 -> 0.1845516528
A27: 25 | B27: ='!N11693B.AXT'!B2:C2 -> <date> | C27: =('!N11693B.AXT'!F54/60)/'!N11693B.AXT'!Q3 -> 2.907986111 | D27: ='!N11693B.AXT'!N20/'!N11693B.AXT'!Q3 -> 0.8125 | E27: =SUM('!N11693B.AXT'!L20:Q20)/'!N11693B.AXT'!Q3 -> 5.770833333 | F27: ='!N11693B.AXT'!Q16 -> 0.1835010306
A28: 26 | B28: ='!N117A0B.AXT'!B2:C2 -> <date> | C28: =('!N117A0B.AXT'!F52/60)/'!N117A0B.AXT'!Q3 -> 2.993115942 | D28: ='!N117A0B.AXT'!N20/'!N117A0B.AXT'!Q3 -> 0.847826087 | E28: =SUM('!N117A0B.AXT'!L20:Q20)/'!N117A0B.AXT'!Q3 -> 6 | F28: ='!N117A0B.AXT'!Q16 -> 0.16214441
A29: 27 | B29: ='!N11993B.AXT'!B2:C2 -> <date> | C29: =('!N11993B.AXT'!F56/60)/'!N11993B.AXT'!Q3 -> 3.422 | D29: ='!N11993B.AXT'!N20/'!N11993B.AXT'!Q3 -> 0.78 | E29: =SUM('!N11993B.AXT'!L20:Q20)/'!N11993B.AXT'!Q3 -> 5.56 | F29: ='!N11993B.AXT'!Q16 -> 0.2074905737
A30: 28 | B30: ='!N120A2B.AXT'!B2:C2 -> <date> | C30: =('!N120A2B.AXT'!F51/60)/'!N120A2B.AXT'!Q3 -> 2.216666667 | D30: ='!N120A2B.AXT'!N20/'!N120A2B.AXT'!Q3 -> 0.8888888889 | E30: =SUM('!N120A2B.AXT'!L20:Q20)/'!N120A2B.AXT'!Q3 -> 6.155555556 | F30: ='!N120A2B.AXT'!Q16 -> 0.1305216815
A31: 29 | B31: ='!N12193B.AXT'!B2:C2 -> <date> | C31: =('!N12193B.AXT'!F47/60)/'!N12193B.AXT'!Q3 -> 2.901626016 | D31: ='!N12193B.AXT'!N20/'!N12193B.AXT'!Q3 -> 0.9756097561 | E31: =SUM('!N12193B.AXT'!L20:Q20)/'!N12193B.AXT'!Q3 -> 6.731707317 | F31: ='!N12193B.AXT'!Q16 -> 0.03087735478
A32: 30 | B32: ='!N122A1B.AXT'!B2:C2 -> <date> | C32: =('!N122A1B.AXT'!F49/60)/'!N122A1B.AXT'!Q3 -> 2.663565891 | D32: ='!N122A1B.AXT'!N20/'!N122A1B.AXT'!Q3 -> 0.9069767442 | E32: =SUM('!N122A1B.AXT'!L20:Q20)/'!N122A1B.AXT'!Q3 -> 6.395348837 | F32: ='!N122A1B.AXT'!Q16 -> 0.1079962473

Sheet Start
F1: Use Folder 51 | H1: Auto Clean Up | J1: Correct sequence
F2: FALSE | H2: TRUE | J2: 222
A4: Working with Folder | G4: Process All/Or Pick A number: ALL or an integer
A5: F:\Possum Chapter\Raw Data\baxter\RRR\ | G5: ALL
A6: Filenames:
A7: !N11693B.AXT | G7: Paint Cells
A8: !N117A0B.AXT | G8: FALSE
A9: !N11993B.AXT
A10: !N120A2B.AXT
A11: !N12193B.AXT
A12: !N122A1B.AXT
A13: !MC2194B.AXT
A14: !MC22A3B.AXT
A15: !MC2391B.AXT
A16: !MC2493B.AXT
A17: !MC2695B.AXT
A18: !MC2795B.AXT
A19: !MC28A1B.AXT
A20: !MC29A1B.AXT
A21: !MC3094B.AXT
A22: !MC31A0B.AXT
A23: !N10293B.AXT
A24: !N103A1B.AXT
A25: !N104B0B.AXT
A26: !N10583B.AXT
A27: !N10690B.AXT
A28: !N10795B.AXT
A29: !N10894B.AXT
A30: !N10995B.AXT
A31: !N110A1B.AXT
A32: !N111A2B.AXT
A33: !N11292B.AXT
A34: !N11394B.AXT
A35: !N11491B.AXT
A36: !N11595B.AXT

Sheet !MC2194B.AXT
A1: Report for:!MC2194B.AXT
A2: Date: | B2: <date>
A3: Hen: | B3: <hen> | F3: Correct Sequence | G3: =Start!J2 -> 222 | P3: Total Sequences in Data | Q3: =4994-COUNTBLANK(L7:L5000) -> 13 | V3: Total Sequences in Block Data | W3: =COUNTA(L7:L8) -> 2 | AA3: Total Sequences in Block Data | AB3: =COUNTA(L9:L10) -> 2 | AF3: Total Sequences in Block Data | AG3: =COUNTA(L11:L13) -> 3 | AK3: Total Sequences in Block Data | AL3: =COUNTA(L14:L15) -> 2 | AP3: Total Sequences in Block Data | AQ3: =COUNTA(L16:L17) -> 2 | AU3: Total Sequences in Block Data | AV3: =COUNTA(L18:L19) -> 2
P4: Total Sequences in Summary | Q4: =SUM(O7:O14) -> 13 | V4: Total Sequences in Block Summary | W4: =SUM(U7:U14) -> 2 | AA4: Total Sequences in Block Summary | AB4: =SUM(Z7:Z14) -> 2 | AF4: Total Sequences in Block Summary | AG4: =SUM(AE7:AE14) -> 3 | AK4: Total Sequences in Block Summary | AL4: =SUM(AJ7:AJ14) -> 2 | AP4: Total Sequences in Block Summary | AQ4: =SUM(AO7:AO14) -> 2 | AU4: Total Sequences in Block Summary | AV4: =SUM(AT7:AT14) -> 2
T5: Block 1 | Y5: Block 2 | AD5: Block 3 | AI5: Block 4 | AN5: Block 5 | AS5: Block 6
A6: Sequence Component 1 | B6: Time 1 | C6: Sequence Component 2 | D6: Time 2 | E6: Sequence Component 3 | F6: Time 3 | G6: Sequence Component 4 | H6: Time 4 | I6: Sequence Component 5 | J6: Time 5 | K6: Correct? 0=No 1=Yes | L6: Sequence | N6: Frequency | P6: Relative Frequency | Q6: Variability | T6: Frequency | V6: Relative Frequency | W6: Variability | Y6: Frequency | AA6: Relative Frequency | AB6: Variability | AD6: Frequency | AF6: Relative Frequency | AG6: Variability | AI6: Frequency | AK6: Relative Frequency | AL6: Variability | AN6: Frequency | AP6: Relative Frequency | AQ6: Variability | AS6: Frequency | AU6: Relative Frequency | AV6: Variability
A7: 12 | B7: 13712 | C7: 14 | D7: 13749 | E7: 14 | F7: 13755 | K7: 0 | L7: 111 | N7: 111 | O7: =COUNTIF($L$7:$L$500,N7) -> 5 | P7: =O7/$Q$4 -> 0.3846153846 | Q7: =IF(P7=0,0,(P7*((LOG(P7))/LOG(2)))) -> -0.5301967782 | T7: =N7 -> 111 | U7: =COUNTIF(L7:L8,T7) -> 1 | V7: =U7/(W4-U14) -> 0.5 | W7: =IF(V7=0,0,(V7*((LOG(V7))/LOG(2)))) -> -0.5 | Y7: =N7 -> 111 | Z7: =COUNTIF(L9:L10,Y7) -> 0 | AA7: =Z7/(AB4-Z14) -> 0 | AB7: =IF(AA7=0,0,(AA7*((LOG(AA7))/LOG(2)))) -> 0 | AD7: =N7 -> 111 | AE7: =COUNTIF(L11:L13,AD7) -> 0 | AF7: =AE7/(AG4-AE14) -> 0 | AG7: =IF(AF7=0,0,(AF7*((LOG(AF7))/LOG(2)))) -> 0 | AI7: =N7 -> 111 | AJ7: =COUNTIF(L14:L15,AI7) -> 1 | AK7: =AJ7/(AL4-AJ14) -> 1 | AL7: =IF(AK7=0,0,(AK7*((LOG(AK7))/LOG(2)))) -> 0 | AN7: =N7 -> 111 | AO7: =COUNTIF(L16:L17,AN7) -> 1 | AP7: =AO7/(AQ4-AO14) -> 0.5 | AQ7: =IF(AP7=0,0,(AP7*((LOG(AP7))/LOG(2)))) -> -0.5 | AS7: =N7 -> 111 | AT7: =COUNTIF(L18:L19,AS7) -> 2 | AU7: =AT7/(AV4-AT14) -> 1 | AV7: =IF(AU7=0,0,(AU7*((LOG(AU7))/LOG(2)))) -> 0
A8: 12 | B8: 14224 | C8: 23 | D8: 14235 | E8: 14 | F8: 14246 | K8: 0 | L8: 121 | N8: 112 | O8: =COUNTIF($L$7:$L$500,N8) -> 1 | P8: =O8/$Q$4 -> 0.07692307692 | Q8: =IF(P8=0,0,(P8*((LOG(P8))/LOG(2)))) -> -0.2846492091 | T8: =N8 -> 112 | U8: =COUNTIF(L7:L8,T8) -> 0 | V8: =U8/(W4-U14) -> 0 | W8: =IF(V8=0,0,(V8*((LOG(V8))/LOG(2)))) -> 0 | Y8: =N8 -> 112 | Z8: =COUNTIF(L9:L10,Y8) -> 1 | AA8: =Z8/(AB4-Z14) -> 0.5 | AB8: =IF(AA8=0,0,(AA8*((LOG(AA8))/LOG(2)))) -> -0.5 | AD8: =N8 -> 112 | AE8: =COUNTIF(L11:L13,AD8) -> 0 | AF8: =AE8/(AG4-AE14) -> 0 | AG8: =IF(AF8=0,0,(AF8*((LOG(AF8))/LOG(2)))) -> 0 | AI8: =N8 -> 112 | AJ8: =COUNTIF(L14:L15,AI8) -> 0 | AK8: =AJ8/(AL4-AJ14) -> 0 | AL8: =IF(AK8=0,0,(AK8*((LOG(AK8))/LOG(2)))) -> 0 | AN8: =N8 -> 112 | AO8: =COUNTIF(L16:L17,AN8) -> 0 | AP8: =AO8/(AQ4-AO14) -> 0 | AQ8: =IF(AP8=0,0,(AP8*((LOG(AP8))/LOG(2)))) -> 0 | AS8: =N8 -> 112 | AT8: =COUNTIF(L18:L19,AS8) -> 0 | AU8: =AT8/(AV4-AT14) -> 0 | AV8: =IF(AU8=0,0,(AU8*((LOG(AU8))/LOG(2)))) -> 0
A9: 21 | B9: 14916 | C9: 12 | D9: 14924 | E9: 14 | F9: 14933 | K9: 0 | L9: 211 | N9: 121 | O9: =COUNTIF($L$7:$L$500,N9) -> 1 | P9: =O9/$Q$4 -> 0.07692307692 | Q9: =IF(P9=0,0,(P9*((LOG(P9))/LOG(2)))) -> -0.2846492091 | T9: =N9 -> 121 | U9: =COUNTIF(L7:L8,T9) -> 1 | V9: =U9/(W4-U14) -> 0.5 | W9: =IF(V9=0,0,(V9*((LOG(V9))/LOG(2)))) -> -0.5 | Y9: =N9 -> 121 | Z9: =COUNTIF(L9:L10,Y9) -> 0 | AA9: =Z9/(AB4-Z14) -> 0 | AB9: =IF(AA9=0,0,(AA9*((LOG(AA9))/LOG(2)))) -> 0 | AD9: =N9 -> 121 | AE9: =COUNTIF(L11:L13,AD9) -> 0 | AF9: =AE9/(AG4-AE14) -> 0 | AG9: =IF(AF9=0,0,(AF9*((LOG(AF9))/LOG(2)))) -> 0 | AI9: =N9 -> 121 | AJ9: =COUNTIF(L14:L15,AI9) -> 0 | AK9: =AJ9/(AL4-AJ14) -> 0 | AL9: =IF(AK9=0,0,(AK9*((LOG(AK9))/LOG(2)))) -> 0 | AN9: =N9 -> 121 | AO9: =COUNTIF(L16:L17,AN9) -> 0 | AP9: =AO9/(AQ4-AO14) -> 0 | AQ9: =IF(AP9=0,0,(AP9*((LOG(AP9))/LOG(2)))) -> 0 | AS9: =N9 -> 121 | AT9: =COUNTIF(L18:L19,AS9) -> 0 | AU9: =AT9/(AV4-AT14) -> 0 | AV9: =IF(AU9=0,0,(AU9*((LOG(AU9))/LOG(2)))) -> 0
A10: 12 | B10: 15185 | C10: 14 | D10: 17247 | E10: 23 | F10: 17263 | K10: 0 | L10: 112 | N10: 122 | O10: =COUNTIF($L$7:$L$500,N10) -> 0 | P10: =O10/$Q$4 -> 0 | Q10: =IF(P10=0,0,(P10*((LOG(P10))/LOG(2)))) -> 0 | T10: =N10 -> 122 | U10: =COUNTIF(L7:L8,T10) -> 0 | V10: =U10/(W4-U14) -> 0 | W10: =IF(V10=0,0,(V10*((LOG(V10))/LOG(2)))) -> 0 | Y10: =N10 -> 122 | Z10: =COUNTIF(L9:L10,Y10) -> 0 | AA10: =Z10/(AB4-Z14) -> 0 | AB10: =IF(AA10=0,0,(AA10*((LOG(AA10))/LOG(2)))) -> 0 | AD10: =N10 -> 122 | AE10: =COUNTIF(L11:L13,AD10) -> 0 | AF10: =AE10/(AG4-AE14) -> 0 | AG10: =IF(AF10=0,0,(AF10*((LOG(AF10))/LOG(2)))) -> 0 | AI10: =N10 -> 122 | AJ10: =COUNTIF(L14:L15,AI10) -> 0 | AK10: =AJ10/(AL4-AJ14) -> 0 | AL10: =IF(AK10=0,0,(AK10*((LOG(AK10))/LOG(2)))) -> 0 | AN10: =N10 -> 122 | AO10: =COUNTIF(L16:L17,AN10) -> 0 | AP10: =AO10/(AQ4-AO14) -> 0 | AQ10: =IF(AP10=0,0,(AP10*((LOG(AP10))/LOG(2)))) -> 0 | AS10: =N10 -> 122 | AT10: =COUNTIF(L18:L19,AS10) -> 0 | AU10: =AT10/(AV4-AT14) -> 0 | AV10: =IF(AU10=0,0,(AU10*((LOG(AU10))/LOG(2)))) -> 0
A11: 21 | B11: 20765 | C11: 12 | D11: 20776 | E11: 14 | F11: 20785 | K11: 0 | L11: 211 | N11: 211 | O11: =COUNTIF($L$7:$L$500,N11) -> 4 | P11: =O11/$Q$4 -> 0.3076923077 | Q11: =IF(P11=0,0,(P11*((LOG(P11))/LOG(2)))) -> -0.523212221 | T11: =N11 -> 211 | U11: =COUNTIF(L7:L8,T11) -> 0 | V11: =U11/(W4-U14) -> 0 | W11: =IF(V11=0,0,(V11*((LOG(V11))/LOG(2)))) -> 0 | Y11: =N11 -> 211 | Z11: =COUNTIF(L9:L10,Y11) -> 1 | AA11: =Z11/(AB4-Z14) -> 0.5 | AB11: =IF(AA11=0,0,(AA11*((LOG(AA11))/LOG(2)))) -> -0.5 | AD11: =N11 -> 211 | AE11: =COUNTIF(L11:L13,AD11) -> 3 | AF11: =AE11/(AG4-AE14) -> 1 | AG11: =IF(AF11=0,0,(AF11*((LOG(AF11))/LOG(2)))) -> 0 | AI11: =N11 -> 211 | AJ11: =COUNTIF(L14:L15,AI11) -> 0 | AK11: =AJ11/(AL4-AJ14) -> 0 | AL11: =IF(AK11=0,0,(AK11*((LOG(AK11))/LOG(2)))) -> 0 | AN11: =N11 -> 211 | AO11: =COUNTIF(L16:L17,AN11) -> 0 | AP11: =AO11/(AQ4-AO14) -> 0 | AQ11: =IF(AP11=0,0,(AP11*((LOG(AP11))/LOG(2)))) -> 0 | AS11: =N11 -> 211 | AT11: =COUNTIF(L18:L19,AS11) -> 0 | AU11: =AT11/(AV4-AT14) -> 0 | AV11: =IF(AU11=0,0,(AU11*((LOG(AU11))/LOG(2)))) -> 0
A12: 21 | B12: 20885 | C12: 12 | D12: 20899 | E12: 14 | F12: 20912 | K12: 0 | L12: 211 | N12: 212 | O12: =COUNTIF($L$7:$L$500,N12) -> 0 | P12: =O12/$Q$4 -> 0 | Q12: =IF(P12=0,0,(P12*((LOG(P12))/LOG(2)))) -> 0 | T12: =N12 -> 212 | U12: =COUNTIF(L7:L8,T12) -> 0 | V12: =U12/(W4-U14) -> 0 | W12: =IF(V12=0,0,(V12*((LOG(V12))/LOG(2)))) -> 0 | Y12: =N12 -> 212 | Z12: =COUNTIF(L9:L10,Y12) -> 0 | AA12: =Z12/(AB4-Z14) -> 0 | AB12: =IF(AA12=0,0,(AA12*((LOG(AA12))/LOG(2)))) -> 0 | AD12: =N12 -> 212 | AE12: =COUNTIF(L11:L13,AD12) -> 0 | AF12: =AE12/(AG4-AE14) -> 0 | AG12: =IF(AF12=0,0,(AF12*((LOG(AF12))/LOG(2)))) -> 0 | AI12: =N12 -> 212 | AJ12: =COUNTIF(L14:L15,AI12) -> 0 | AK12: =AJ12/(AL4-AJ14) -> 0 | AL12: =IF(AK12=0,0,(AK12*((LOG(AK12))/LOG(2)))) -> 0 | AN12: =N12 -> 212 | AO12: =COUNTIF(L16:L17,AN12) -> 0 | AP12: =AO12/(AQ4-AO14) -> 0 | AQ12: =IF(AP12=0,0,(AP12*((LOG(AP12))/LOG(2)))) -> 0 | AS12: =N12 -> 212 | AT12: =COUNTIF(L18:L19,AS12) -> 0 | AU12: =AT12/(AV4-AT14) -> 0 | AV12: =IF(AU12=0,0,(AU12*((LOG(AU12))/LOG(2)))) -> 0
A13: 21 | B13: 21005 | C13: 12 | D13: 21011 | E13: 14 | F13: 21019 | K13: 0 | L13: 211 | N13: 221 | O13: =COUNTIF($L$7:$L$500,N13) -> 1 | P13: =O13/$Q$4 -> 0.07692307692 | Q13: =IF(P13=0,0,(P13*((LOG(P13))/LOG(2)))) -> -0.2846492091 | T13: =N13 -> 221 | U13: =COUNTIF(L7:L8,T13) -> 0 | V13: =U13/(W4-U14) -> 0 | W13: =IF(V13=0,0,(V13*((LOG(V13))/LOG(2)))) -> 0 | Y13: =N13 -> 221 | Z13: =COUNTIF(L9:L10,Y13) -> 0 | AA13: =Z13/(AB4-Z14) -> 0 | AB13: =IF(AA13=0,0,(AA13*((LOG(AA13))/LOG(2)))) -> 0 | AD13: =N13 -> 221 | AE13: =COUNTIF(L11:L13,AD13) -> 0 | AF13: =AE13/(AG4-AE14) -> 0 | AG13: =IF(AF13=0,0,(AF13*((LOG(AF13))/LOG(2)))) -> 0 | AI13: =N13 -> 221 | AJ13: =COUNTIF(L14:L15,AI13) -> 0 | AK13: =AJ13/(AL4-AJ14) -> 0 | AL13: =IF(AK13=0,0,(AK13*((LOG(AK13))/LOG(2)))) -> 0 | AN13: =N13 -> 221 | AO13: =COUNTIF(L16:L17,AN13) -> 1 | AP13: =AO13/(AQ4-AO14) -> 0.5 | AQ13: =IF(AP13=0,0,(AP13*((LOG(AP13))/LOG(2)))) -> -0.5 | AS13: =N13 -> 221 | AT13: =COUNTIF(L18:L19,AS13) -> 0 | AU13: =AT13/(AV4-AT14) -> 0 | AV13: =IF(AU13=0,0,(AU13*((LOG(AU13))/LOG(2)))) -> 0
A14: 21 | B14: 21137 | C14: 21 | D14: 21142 | E14: 21 | F14: 21147 | K14: 0 | L14: 222 | N14: 222 | O14: =COUNTIF($L$7:$L$500,N14) -> 1 | P14: =O14/$Q$4 -> 0.07692307692 | Q14: =IF(P14=0,0,(P14*((LOG(P14))/LOG(2)))) -> -0.2846492091 | T14: =N14 -> 222 | U14: =COUNTIF(L7:L8,T14) -> 0 | Y14: =N14 -> 222 | Z14: =COUNTIF(L9:L10,Y14) -> 0 | AD14: =N14 -> 222 | AE14: =COUNTIF(L11:L13,AD14) -> 0 | AI14: =N14 -> 222 | AJ14: =COUNTIF(L14:L15,AI14) -> 1 | AN14: =N14 -> 222 | AO14: =COUNTIF(L16:L17,AN14) -> 0 | AS14: =N14 -> 222 | AT14: =COUNTIF(L18:L19,AS14) -> 0
A15: 12 | B15: 22714 | C15: 14 | D15: 22755 | E15: 14 | F15: 22790 | K15: 0 | L15: 111 | P15: =SUM(P7:P14) -> 1 | Q15: =-SUM(Q7:Q14) -> 2.192005835 | V15: =SUM(V7:V14) -> 1 | W15: =-SUM(W7:W14) -> 1 | AA15: =SUM(AA7:AA14) -> 1 | AB15: =-SUM(AB7:AB14) -> 1 | AF15: =SUM(AF7:AF14) -> 1 | AG15: =-SUM(AG7:AG14) -> 0 | AK15: =SUM(AK7:AK14) -> 1 | AL15: =-SUM(AL7:AL14) -> 0 | AP15: =SUM(AP7:AP14) -> 1 | AQ15: =-SUM(AQ7:AQ14) -> 1 | AU15: =SUM(AU7:AU14) -> 1 | AV15: =-SUM(AV7:AV14) -> 0
A16: 21 | B16: 22898 | C16: 21 | D16: 22902 | E16: 12 | F16: 22919 | K16: 0 | L16: 221 | P16: U= | Q16: =Q15/(LOG(Q4)/LOG(2)) -> 0.5923636115 | V16: U1= | W16: =W15/(LOG(W4)/LOG(2)) -> 1 | AA16: U2= | AB16: =AB15/(LOG(AB4)/LOG(2)) -> 1 | AF16: U3= | AG16: =AG15/(LOG(AG4)/LOG(2)) -> 0 | AK16: U4= | AL16: =AL15/(LOG(AL4)/LOG(2)) -> 0 | AP16: U5= | AQ16: =AQ15/(LOG(AQ4)/LOG(2)) -> 1 | AU16: U6= | AV16: =AV15/(LOG(AV4)/LOG(2)) -> 0
A17: 12 | B17: 23013 | C17: 14 | D17: 23020 | E17: 14 | F17: 23042 | K17: 0 | L17: 111
A18: 12 | B18: 23138 | C18: 14 | D18: 23159 | E18: 14 | F18: 23165 | K18: 0 | L18: 111
A19: 12 | B19: 23394 | C19: 14 | D19: 23425 | E19: 14 | F19: 23448 | K19: 0 | L19: 111 | N19: Total Target Seq
N20: =COUNTIF(L7:L19,G3) -> 1 | P20: 2 | Q20: 2 | R20: 3 | S20: 2 | T20: 2 | U20: 2
P21: % of reinforcement given in 6 equal intervals based on number of trials
P22: %_1 | Q22: %_2 | R22: %_3 | S22: %_4 | T22: %_5 | U22: %_6
O23: target sequence | P23: =$G$3 -> 222 | Q23: =$G$3 -> 222 | R23: =$G$3 -> 222 | S23: =$G$3 -> 222 | T23: =$G$3 -> 222 | U23: =$G$3 -> 222
O24: total reinforcement | P24: =U14 -> 0 | Q24: =Z14 -> 0 | R24: =AE14 -> 0 | S24: =AJ14 -> 1 | T24: =AO14 -> 0 | U24: =AT14 -> 0
O25: % target
O26: CCRF
O27: % CCRf
O28: average response rate | P28: =F8/P20 -> 7123 | Q28: =(F10-F8)/Q20 -> 1508.5 | R28: =(F13-F10)/R20 -> 1252 | S28: =(F15-F13)/S20 -> 885.5 | T28: =(F17-F15)/T20 -> 126 | U28: =(F19-F17)/U20 -> 203

Sheet !MC22A3B.AXT
A1: Report for:!MC22A3B.AXT
A2: Date: | B2: <date>
A3: Hen: | B3: <hen> | F3: Correct Sequence | G3: =Start!J2 -> 222 | P3: Total Sequences in Data | Q3: =4994-COUNTBLANK(L7:L5000) -> 16 | V3: Total Sequences in Block Data | W3: =COUNTA(L7:L9) -> 3 | AA3: Total Sequences in Block Data | AB3: =COUNTA(L10:L11) -> 2 | AF3: Total Sequences in Block Data | AG3: =COUNTA(L12:L14) -> 3 | AK3: Total Sequences in Block Data | AL3: =COUNTA(L15:L17) -> 3 | AP3: Total Sequences in Block Data | AQ3: =COUNTA(L18:L19) -> 2 | AU3: Total Sequences in Block Data | AV3: =COUNTA(L20:L22) -> 3
P4: Total Sequences in Summary | Q4: =SUM(O7:O14) -> 15 | V4: Total Sequences in Block Summary | W4: =SUM(U7:U14) -> 3 | AA4: Total Sequences in Block Summary | AB4: =SUM(Z7:Z14) -> 2 | AF4: Total Sequences in Block Summary | AG4: =SUM(AE7:AE14) -> 3 | AK4: Total Sequences in Block Summary | AL4: =SUM(AJ7:AJ14) -> 3 | AP4: Total Sequences in Block Summary | AQ4: =SUM(AO7:AO14) -> 2 | AU4: Total Sequences in Block Summary | AV4: =SUM(AT7:AT14) -> 2
T5: Block 1 | Y5: Block 2 | AD5: Block 3 | AI5: Block 4 | AN5: Block 5 | AS5: Block 6
A6: Sequence Component 1 | B6: Time 1 | C6: Sequence Component 2 | D6: Time 2 | E6: Sequence Component 3 | F6: Time 3 | G6: Sequence Component 4 | H6: Time 4 | I6: Sequence Component 5 | J6: Time 5 | K6: Correct? 0=No 1=Yes | L6: Sequence | N6: Frequency | P6: Relative Frequency | Q6: Variability | T6: Frequency | V6: Relative Frequency | W6: Variability | Y6: Frequency | AA6: Relative Frequency | AB6: Variability | AD6: Frequency | AF6: Relative Frequency | AG6: Variability | AI6: Frequency | AK6: Relative Frequency | AL6: Variability | AN6: Frequency | AP6: Relative Frequency | AQ6: Variability | AS6: Frequency | AU6: Relative Frequency | AV6: Variability
A7: 12 | B7: 154 | C7: 14 | D7: 168 | E7: 14 | F7: 184 | K7: 0 | L7: 111 | N7: 111 | O7: =COUNTIF($L$7:$L$500,N7) -> 8 | P7: =O7/$Q$4 -> 0.5333333333 | Q7: =IF(P7=0,0,(P7*((LOG(P7))/LOG(2)))) -> -0.4836749843 | T7: =N7 -> 111 | U7: =COUNTIF(L7:L9,T7) -> 2 | V7: =U7/(W4-U14) -> 0.6666666667 | W7: =IF(V7=0,0,(V7*((LOG(V7))/LOG(2)))) -> -0.3899750005 | Y7: =N7 -> 111 | Z7: =COUNTIF(L10:L11,Y7) -> 2 | AA7: =Z7/(AB4-Z14) -> 1 | AB7: =IF(AA7=0,0,(AA7*((LOG(AA7))/LOG(2)))) -> 0 | AD7: =N7 -> 111 | AE7: =COUNTIF(L12:L14,AD7) -> 3 | AF7: =AE7/(AG4-AE14) -> 1 | AG7: =IF(AF7=0,0,(AF7*((LOG(AF7))/LOG(2)))) -> 0 | AI7: =N7 -> 111 | AJ7: =COUNTIF(L15:L17,AI7) -> 1 | AK7: =AJ7/(AL4-AJ14) -> 0.3333333333 | AL7: =IF(AK7=0,0,(AK7*((LOG(AK7))/LOG(2)))) -> -0.5283208336 | AN7: =N7 -> 111 | AO7: =COUNTIF(L18:L19,AN7) -> 0 | AP7: =AO7/(AQ4-AO14) -> 0 | AQ7: =IF(AP7=0,0,(AP7*((LOG(AP7))/LOG(2)))) -> 0 | AS7: =N7 -> 111 | AT7: =COUNTIF(L20:L22,AS7) -> 0 | AU7: =AT7/(AV4-AT14) -> 0 | AV7: =IF(AU7=0,0,(AU7*((LOG(AU7))/LOG(2)))) -> 0
A8: 12 | B8: 292 | C8: 14 | D8: 297 | E8: 23 | F8: 317 | K8: 0 | L8: 112 | N8: 112 | O8: =COUNTIF($L$7:$L$500,N8) -> 2 | P8: =O8/$Q$4 -> 0.1333333333 | Q8: =IF(P8=0,0,(P8*((LOG(P8))/LOG(2)))) -> -0.3875854127 | T8: =N8 -> 112 | U8: =COUNTIF(L7:L9,T8) -> 1 | V8: =U8/(W4-U14) -> 0.3333333333 | W8: =IF(V8=0,0,(V8*((LOG(V8))/LOG(2)))) -> -0.5283208336 | Y8: =N8 -> 112 | Z8: =COUNTIF(L10:L11,Y8) -> 0 | AA8: =Z8/(AB4-Z14) -> 0 | AB8: =IF(AA8=0,0,(AA8*((LOG(AA8))/LOG(2)))) -> 0 | AD8: =N8 -> 112 | AE8: =COUNTIF(L12:L14,AD8) -> 0 | AF8: =AE8/(AG4-AE14) -> 0 | AG8: =IF(AF8=0,0,(AF8*((LOG(AF8))/LOG(2)))) -> 0 | AI8: =N8 -> 112 | AJ8: =COUNTIF(L15:L17,AI8) -> 1 | AK8: =AJ8/(AL4-AJ14) -> 0.3333333333 | AL8: =IF(AK8=0,0,(AK8*((LOG(AK8))/LOG(2)))) -> -0.5283208336 | AN8: =N8 -> 112 | AO8: =COUNTIF(L18:L19,AN8) -> 0 | AP8: =AO8/(AQ4-AO14) -> 0 | AQ8: =IF(AP8=0,0,(AP8*((LOG(AP8))/LOG(2)))) -> 0 | AS8: =N8 -> 112 | AT8: =COUNTIF(L20:L22,AS8) -> 0 | AU8: =AT8/(AV4-AT14) -> 0 | AV8: =IF(AU8=0,0,(AU8*((LOG(AU8))/LOG(2)))) -> 0
A9: 12 | B9: 464 | C9: 14 | D9: 470 | E9: 14 | F9: 481 | K9: 0 | L9: 111 | N9: 121 | O9: =COUNTIF($L$7:$L$500,N9) -> 2 | P9: =O9/$Q$4 -> 0.1333333333 | Q9: =IF(P9=0,0,(P9*((LOG(P9))/LOG(2)))) -> -0.3875854127 | T9: =N9 -> 121 | U9: =COUNTIF(L7:L9,T9) -> 0 | V9: =U9/(W4-U14) -> 0 | W9: =IF(V9=0,0,(V9*((LOG(V9))/LOG(2)))) -> 0 | Y9: =N9 -> 121 | Z9: =COUNTIF(L10:L11,Y9) -> 0 | AA9: =Z9/(AB4-Z14) -> 0 | AB9: =IF(AA9=0,0,(AA9*((LOG(AA9))/LOG(2)))) -> 0 | AD9: =N9 -> 121 | AE9: =COUNTIF(L12:L14,AD9) -> 0 | AF9: =AE9/(AG4-AE14) -> 0 | AG9: =IF(AF9=0,0,(AF9*((LOG(AF9))/LOG(2)))) -> 0 | AI9: =N9 -> 121 | AJ9: =COUNTIF(L15:L17,AI9) -> 0 | AK9: =AJ9/(AL4-AJ14) -> 0 | AL9: =IF(AK9=0,0,(AK9*((LOG(AK9))/LOG(2)))) -> 0 | AN9: =N9 -> 121 | AO9: =COUNTIF(L18:L19,AN9) -> 1 | AP9: =AO9/(AQ4-AO14) -> 1 | AQ9: =IF(AP9=0,0,(AP9*((LOG(AP9))/LOG(2)))) -> 0 | AS9: =N9 -> 121 | AT9: =COUNTIF(L20:L22,AS9) -> 1 | AU9: =AT9/(AV4-AT14) -> 0.5 | AV9: =IF(AU9=0,0,(AU9*((LOG(AU9))/LOG(2)))) -> -0.5
A10: 12 | B10: 581 | C10: 14 | D10: 588 | E10: 14 | F10: 620 | K10: 0 | L10: 111 | N10: 122 | O10: =COUNTIF($L$7:$L$500,N10) -> 0 | P10: =O10/$Q$4 -> 0 | Q10: =IF(P10=0,0,(P10*((LOG(P10))/LOG(2)))) -> 0 | T10: =N10 -> 122 | U10: =COUNTIF(L7:L9,T10) -> 0 | V10: =U10/(W4-U14) -> 0 | W10: =IF(V10=0,0,(V10*((LOG(V10))/LOG(2)))) -> 0 | Y10: =N10 -> 122 | Z10: =COUNTIF(L10:L11,Y10) -> 0 | AA10: =Z10/(AB4-Z14) -> 0 | AB10: =IF(AA10=0,0,(AA10*((LOG(AA10))/LOG(2)))) -> 0 | AD10: =N10 -> 122 | AE10: =COUNTIF(L12:L14,AD10) -> 0 | AF10: =AE10/(AG4-AE14) -> 0 | AG10: =IF(AF10=0,0,(AF10*((LOG(AF10))/LOG(2)))) -> 0 | AI10: =N10 -> 122 | AJ10: =COUNTIF(L15:L17,AI10) -> 0 | AK10: =AJ10/(AL4-AJ14) -> 0 | AL10: =IF(AK10=0,0,(AK10*((LOG(AK10))/LOG(2)))) -> 0 | AN10: =N10 -> 122 | AO10: =COUNTIF(L18:L19,AN10) -> 0 | AP10: =AO10/(AQ4-AO14) -> 0 | AQ10: =IF(AP10=0,0,(AP10*((LOG(AP10))/LOG(2)))) -> 0 | AS10: =N10 -> 122 | AT10: =COUNTIF(L20:L22,AS10) -> 0 | AU10: =AT10/(AV4-AT14) -> 0 | AV10: =IF(AU10=0,0,(AU10*((LOG(AU10))/LOG(2)))) -> 0
A11: 12 | B11: 775 | C11: 14 | D11: 819 | E11: 14 | F11: 827 | K11: 0 | L11: 111 | N11: 211 | O11: =COUNTIF($L$7:$L$500,N11) -> 1 | P11: =O11/$Q$4 -> 0.06666666667 | Q11: =IF(P11=0,0,(P11*((LOG(P11))/LOG(2)))) -> -0.260459373 | T11: =N11 -> 211 | U11: =COUNTIF(L7:L9,T11) -> 0 | V11: =U11/(W4-U14) -> 0 | W11: =IF(V11=0,0,(V11*((LOG(V11))/LOG(2)))) -> 0 | Y11: =N11 -> 211 | Z11: =COUNTIF(L10:L11,Y11) -> 0 | AA11: =Z11/(AB4-Z14) -> 0 | AB11: =IF(AA11=0,0,(AA11*((LOG(AA11))/LOG(2)))) -> 0 | AD11: =N11 -> 211 | AE11: =COUNTIF(L12:L14,AD11) -> 0 | AF11: =AE11/(AG4-AE14) -> 0 | AG11: =IF(AF11=0,0,(AF11*((LOG(AF11))/LOG(2)))) -> 0 | AI11: =N11 -> 211 | AJ11: =COUNTIF(L15:L17,AI11) -> 0 | AK11: =AJ11/(AL4-AJ14) -> 0 | AL11: =IF(AK11=0,0,(AK11*((LOG(AK11))/LOG(2)))) -> 0 | AN11: =N11 -> 211 | AO11: =COUNTIF(L18:L19,AN11) -> 0 | AP11: =AO11/(AQ4-AO14) -> 0 | AQ11: =IF(AP11=0,0,(AP11*((LOG(AP11))/LOG(2)))) -> 0 | AS11: =N11 -> 211 | AT11: =COUNTIF(L20:L22,AS11) -> 1 | AU11: =AT11/(AV4-AT14) -> 0.5 | AV11: =IF(AU11=0,0,(AU11*((LOG(AU11))/LOG(2)))) -> -0.5
A12: 12 | B12: 1355 | C12: 14 | D12: 1368 | E12: 14 | F12: 1378 | K12: 0 | L12: 111 | N12: 212 | O12: =COUNTIF($L$7:$L$500,N12) -> 1 | P12: =O12/$Q$4 -> 0.06666666667 | Q12: =IF(P12=0,0,(P12*((LOG(P12))/LOG(2)))) -> -0.260459373 | T12: =N12 -> 212 | U12: =COUNTIF(L7:L9,T12) -> 0 | V12: =U12/(W4-U14) -> 0 | W12: =IF(V12=0,0,(V12*((LOG(V12))/LOG(2)))) -> 0 | Y12: =N12 -> 212 | Z12: =COUNTIF(L10:L11,Y12) -> 0 | AA12: =Z12/(AB4-Z14) -> 0 | AB12: =IF(AA12=0,0,(AA12*((LOG(AA12))/LOG(2)))) -> 0 | AD12: =N12 -> 212 | AE12: =COUNTIF(L12:L14,AD12) -> 0 | AF12: =AE12/(AG4-AE14) -> 0 | AG12: =IF(AF12=0,0,(AF12*((LOG(AF12))/LOG(2)))) -> 0 | AI12: =N12 -> 212 | AJ12: =COUNTIF(L15:L17,AI12) -> 1 | AK12: =AJ12/(AL4-AJ14) -> 0.3333333333 | AL12: =IF(AK12=0,0,(AK12*((LOG(AK12))/LOG(2)))) -> -0.5283208336 | AN12: =N12 -> 212 | AO12: =COUNTIF(L18:L19,AN12) -> 0 | AP12: =AO12/(AQ4-AO14) -> 0 | AQ12: =IF(AP12=0,0,(AP12*((LOG(AP12))/LOG(2)))) -> 0 | AS12: =N12 -> 212 | AT12: =COUNTIF(L20:L22,AS12) -> 0 | AU12: =AT12/(AV4-AT14) -> 0 | AV12: =IF(AU12=0,0,(AU12*((LOG(AU12))/LOG(2)))) -> 0
A13: 12 | B13: 1474 | C13: 14 | D13: 1481 | E13: 14 | F13: 1494 | K13: 0 | L13: 111 | N13: 221 | O13: =COUNTIF($L$7:$L$500,N13) -> 0 | P13: =O13/$Q$4 -> 0 | Q13: =IF(P13=0,0,(P13*((LOG(P13))/LOG(2)))) -> 0 | T13: =N13 -> 221 | U13: =COUNTIF(L7:L9,T13) -> 0 | V13: =U13/(W4-U14) -> 0 | W13: =IF(V13=0,0,(V13*((LOG(V13))/LOG(2)))) -> 0 | Y13: =N13 -> 221 | Z13: =COUNTIF(L10:L11,Y13) -> 0 | AA13: =Z13/(AB4-Z14) -> 0 | AB13: =IF(AA13=0,0,(AA13*((LOG(AA13))/LOG(2)))) -> 0 | AD13: =N13 -> 221 | AE13: =COUNTIF(L12:L14,AD13) -> 0 | AF13: =AE13/(AG4-AE14) -> 0 | AG13: =IF(AF13=0,0,(AF13*((LOG(AF13))/LOG(2)))) -> 0 | AI13: =N13 -> 221 | AJ13: =COUNTIF(L15:L17,AI13) -> 0 | AK13: =AJ13/(AL4-AJ14) -> 0 | AL13: =IF(AK13=0,0,(AK13*((LOG(AK13))/LOG(2)))) -> 0 | AN13: =N13 -> 221 | AO13: =COUNTIF(L18:L19,AN13) -> 0 | AP13: =AO13/(AQ4-AO14) -> 0 | AQ13: =IF(AP13=0,0,(AP13*((LOG(AP13))/LOG(2)))) -> 0 | AS13: =N13 -> 221 | AT13: =COUNTIF(L20:L22,AS13) -> 0 | AU13: =AT13/(AV4-AT14) -> 0 | AV13: =IF(AU13=0,0,(AU13*((LOG(AU13))/LOG(2)))) -> 0
A14: 12 | B14: 1615 | C14: 14 | D14: 1635 | E14: 14 | F14: 1645 | K14: 0 | L14: 111 | N14: 222 | O14: =COUNTIF($L$7:$L$500,N14) -> 1 | P14: =O14/$Q$4 -> 0.06666666667 | Q14: =IF(P14=0,0,(P14*((LOG(P14))/LOG(2)))) -> -0.260459373 | T14: =N14 -> 222 | U14: =COUNTIF(L7:L9,T14) -> 0 | Y14: =N14 -> 222 | Z14: =COUNTIF(L10:L11,Y14) -> 0 | AD14: =N14 -> 222 | AE14: =COUNTIF(L12:L14,AD14) -> 0 | AI14: =N14 -> 222 | AJ14: =COUNTIF(L15:L17,AI14) -> 0 | AN14: =N14 -> 222 | AO14: =COUNTIF(L18:L19,AN14) -> 1 | AS14: =N14 -> 222 | AT14: =COUNTIF(L20:L22,AS14) -> 0
A15: 12 | B15: 1741 | C15: 14 | D15: 1759 | E15: 14 | F15: 1768 | K15: 0 | L15: 111 | P15: =SUM(P7:P14) -> 1 | Q15: =-SUM(Q7:Q14) -> 2.040223929 | V15: =SUM(V7:V14) -> 1 | W15: =-SUM(W7:W14) -> 0.9182958341 | AA15: =SUM(AA7:AA14) -> 1 | AB15: =-SUM(AB7:AB14) -> 0 | AF15: =SUM(AF7:AF14) -> 1 | AG15: =-SUM(AG7:AG14) -> 0 | AK15: =SUM(AK7:AK14) -> 1 | AL15: =-SUM(AL7:AL14) -> 1.584962501 | AP15: =SUM(AP7:AP14) -> 1 | AQ15: =-SUM(AQ7:AQ14) -> 0 | AU15: =SUM(AU7:AU14) -> 1 | AV15: =-SUM(AV7:AV14) -> 1
A16: 12 | B16: 1878 | C16: 14 | D16: 1885 | E16: 23 | F16: 1893 | K16: 0 | L16: 112 | P16: U= | Q16: =Q15/(LOG(Q4)/LOG(2)) -> 0.522211687 | V16: U1= | W16: =W15/(LOG(W4)/LOG(2)) -> 0.5793801643 | AA16: U2= | AB16: =AB15/(LOG(AB4)/LOG(2)) -> 0 | AF16: U3= | AG16: =AG15/(LOG(AG4)/LOG(2)) -> 0 | AK16: U4= | AL16: =AL15/(LOG(AL4)/LOG(2)) -> 1 | AP16: U5= | AQ16: =AQ15/(LOG(AQ4)/LOG(2)) -> 0 | AU16: U6= | AV16: =AV15/(LOG(AV4)/LOG(2)) -> 1
A17: 21 | B17: 1992 | C17: 12 | D17: 1996 | E17: 23 | F17: 2014 | K17: 0 | L17: 212
A18: 12 | B18: 2116 | C18: 23 | D18: 2125 | E18: 14 | F18: 2130 | K18: 0 | L18: 121
A19: 21 | B19: 2325 | C19: 21 | D19: 2327 | E19: 21 | F19: 2330 | K19: 0 | L19: 222 | N19: Total Target Seq
A20: 21 | B20: 2575 | C20: 12 | D20: 2584 | E20: 14 | F20: 2591 | K20: 0 | L20: 211 | N20: =COUNTIF(L7:L22,G3) -> 1 | P20: 3 | Q20: 2 | R20: 3 | S20: 3 | T20: 2 | U20: 3
A21: 12 | B21: 2685 | C21: 23 | D21: 2697 | E21: 14 | F21: 2704 | K21: 0 | L21: 121 | P21: % of reinforcement given in 6 equal intervals based on number of trials
A22: 21 | B22: 15387 | C22: 12 | D22: 18871 | L22: 21 | P22: %_1 | Q22: %_2 | R22: %_3 | S22: %_4 | T22: %_5 | U22: %_6
O23: target sequence | P23: =$G$3 -> 222 | Q23: =$G$3 -> 222 | R23: =$G$3 -> 222 | S23: =$G$3 -> 222 | T23: =$G$3 -> 222 | U23: =$G$3 -> 222
O24: total reinforcement | P24: =U14 -> 0 | Q24: =Z14 -> 0 | R24: =AE14 -> 0 | S24: =AJ14 -> 0 | T24: =AO14 -> 1 | U24: =AT14 -> 0
O25: % target
O26: CCRF
O27: % CCRf
O28: average response rate | P28: =F9/P20 -> 160.3333333 | Q28: =(F11-F9)/Q20 -> 173 | R28: =(F14-F11)/R20 -> 272.6666667 | S28: =(F17-F14)/S20 -> 123 | T28: =(F19-F17)/T20 -> 158 | U28: =(F22-F19)/U20 -> -776.6666667

Sheet !MC2391B.AXT
A1: Report for:!MC2391B.AXT
A2: Date: | B2: <date>
A3: Hen: | B3: <hen> | F3: Correct Sequence | G3: =Start!J2 -> 222 | P3: Total Sequences in Data | Q3: =4994-COUNTBLANK(L7:L5000) -> 31 | V3: Total Sequences in Block Data | W3: =COUNTA(L7:L11) -> 5 | AA3: Total Sequences in Block Data | AB3: =COUNTA(L12:L16) -> 5 | AF3: Total Sequences in Block Data | AG3: =COUNTA(L17:L22) -> 6 | AK3: Total Sequences in Block Data | AL3: =COUNTA(L23:L27) -> 5 | AP3: Total Sequences in Block Data | AQ3: =COUNTA(L28:L32) -> 5 | AU3: Total Sequences in Block Data | AV3: =COUNTA(L33:L37) -> 5
P4: Total Sequences in Summary | Q4: =SUM(O7:O14) -> 31 | V4: Total Sequences in Block Summary | W4: =SUM(U7:U14) -> 5 | AA4: Total Sequences in Block Summary | AB4: =SUM(Z7:Z14) -> 5 | AF4: Total Sequences in Block Summary | AG4: =SUM(AE7:AE14) -> 6 | AK4: Total Sequences in Block Summary | AL4: =SUM(AJ7:AJ14) -> 5 | AP4: Total Sequences in Block Summary | AQ4: =SUM(AO7:AO14) -> 5 | AU4: Total Sequences in Block Summary | AV4: =SUM(AT7:AT14) -> 5
T5: Block 1 | Y5: Block 2 | AD5: Block 3 | AI5: Block 4 | AN5: Block 5 | AS5: Block 6
A6: Sequence Component 1 | B6: Time 1 | C6: Sequence Component 2 | D6: Time 2 | E6: Sequence Component 3 | F6: Time 3 | G6: Sequence Component 4 | H6: Time 4 | I6: Sequence Component 5 | J6: Time 5 | K6: Correct? 0=No 1=Yes | L6: Sequence | N6: Frequency | P6: Relative Frequency | Q6: Variability | T6: Frequency | V6: Relative Frequency | W6: Variability | Y6: Frequency | AA6: Relative Frequency | AB6: Variability | AD6: Frequency | AF6: Relative Frequency | AG6: Variability | AI6: Frequency | AK6: Relative Frequency | AL6: Variability | AN6: Frequency | AP6: Relative Frequency | AQ6: Variability | AS6: Frequency | AU6: Relative Frequency | AV6: Variability
A7: 12 | B7: 79 | C7: 14 | D7: 123 | E7: 23 | F7: 133 | K7: 0 | L7: 112 | N7: 111 | O7: =COUNTIF($L$7:$L$500,N7) -> 8 | P7: =O7/$Q$4 -> 0.2580645161 | Q7: =IF(P7=0,0,(P7*((LOG(P7))/LOG(2)))) -> -0.5043087253 | T7: =N7 -> 111 | U7: =COUNTIF(L7:L11,T7) -> 2 | V7: =U7/(W4-U14) -> 0.4 | W7: =IF(V7=0,0,(V7*((LOG(V7))/LOG(2)))) -> -0.528771238 | Y7: =N7 -> 111 | Z7: =COUNTIF(L12:L16,Y7) -> 0 | AA7: =Z7/(AB4-Z14) -> 0 | AB7: =IF(AA7=0,0,(AA7*((LOG(AA7))/LOG(2)))) -> 0 | AD7: =N7 -> 111 | AE7: =COUNTIF(L17:L22,AD7) -> 3 | AF7: =AE7/(AG4-AE14) -> 0.5 | AG7: =IF(AF7=0,0,(AF7*((LOG(AF7))/LOG(2)))) -> -0.5 | AI7: =N7 -> 111 | AJ7: =COUNTIF(L23:L27,AI7) -> 2 | AK7: =AJ7/(AL4-AJ14) -> 0.4 | AL7: =IF(AK7=0,0,(AK7*((LOG(AK7))/LOG(2)))) -> -0.528771238 | AN7: =N7 -> 111 | AO7: =COUNTIF(L28:L32,AN7) -> 0 | AP7: =AO7/(AQ4-AO14) -> 0 | AQ7: =IF(AP7=0,0,(AP7*((LOG(AP7))/LOG(2)))) -> 0 | AS7: =N7 -> 111 | AT7: =COUNTIF(L33:L37,AS7) -> 1 | AU7: =AT7/(AV4-AT14) -> 0.2 | AV7: =IF(AU7=0,0,(AU7*((LOG(AU7))/LOG(2)))) -> -0.464385619
A8: 12 | B8: 303 | C8: 14 | D8: 334 | E8: 14 | F8: 340 | K8: 0 | L8: 111 | N8: 112 | O8: =COUNTIF($L$7:$L$500,N8) -> 5 | P8: =O8/$Q$4 -> 0.1612903226 | Q8: =IF(P8=0,0,(P8*((LOG(P8))/LOG(2)))) -> -0.4245593896 | T8: =N8 -> 112 | U8: =COUNTIF(L7:L11,T8) -> 2 | V8: =U8/(W4-U14) -> 0.4 | W8: =IF(V8=0,0,(V8*((LOG(V8))/LOG(2)))) -> -0.528771238 | Y8: =N8 -> 112 | Z8: =COUNTIF(L12:L16,Y8) -> 0 | AA8: =Z8/(AB4-Z14) -> 0 | AB8: =IF(AA8=0,0,(AA8*((LOG(AA8))/LOG(2)))) -> 0 | AD8: =N8 -> 112 | AE8: =COUNTIF(L17:L22,AD8) -> 0 | AF8: =AE8/(AG4-AE14) -> 0 | AG8: =IF(AF8=0,0,(AF8*((LOG(AF8))/LOG(2)))) -> 0 | AI8: =N8 -> 112 | AJ8: =COUNTIF(L23:L27,AI8) -> 0 | AK8: =AJ8/(AL4-AJ14) -> 0 | AL8: =IF(AK8=0,0,(AK8*((LOG(AK8))/LOG(2)))) -> 0 | AN8: =N8 -> 112 | AO8: =COUNTIF(L28:L32,AN8) -> 2 | AP8: =AO8/(AQ4-AO14) -> 0.4 | AQ8: =IF(AP8=0,0,(AP8*((LOG(AP8))/LOG(2)))) -> -0.528771238 | AS8: =N8 -> 112 | AT8: =COUNTIF(L33:L37,AS8) -> 1 | AU8: =AT8/(AV4-AT14) -> 0.2 | AV8: =IF(AU8=0,0,(AU8*((LOG(AU8))/LOG(2)))) -> -0.464385619
A9: 12 | B9: 435 | C9: 14 | D9: 450 | E9: 23 | F9: 455 | K9: 0 | L9: 112 | N9: 121 | O9: =COUNTIF($L$7:$L$500,N9) -> 8 | P9: =O9/$Q$4 -> 0.2580645161 | Q9: =IF(P9=0,0,(P9*((LOG(P9))/LOG(2)))) -> -0.5043087253 | T9: =N9 -> 121 | U9: =COUNTIF(L7:L11,T9) -> 0 | V9: =U9/(W4-U14) -> 0 | W9: =IF(V9=0,0,(V9*((LOG(V9))/LOG(2)))) -> 0 | Y9: =N9 -> 121 | Z9: =COUNTIF(L12:L16,Y9) -> 2 | AA9: =Z9/(AB4-Z14) -> 0.4 | AB9: =IF(AA9=0,0,(AA9*((LOG(AA9))/LOG(2)))) -> -0.528771238 | AD9: =N9 -> 121 | AE9: =COUNTIF(L17:L22,AD9) -> 2 | AF9: =AE9/(AG4-AE14) -> 0.3333333333 | AG9: =IF(AF9=0,0,(AF9*((LOG(AF9))/LOG(2)))) -> -0.5283208336 | AI9: =N9 -> 121 | AJ9: =COUNTIF(L23:L27,AI9) -> 1 | AK9: =AJ9/(AL4-AJ14) -> 0.2 | AL9: =IF(AK9=0,0,(AK9*((LOG(AK9))/LOG(2)))) -> -0.464385619 | AN9: =N9 -> 121 | AO9: =COUNTIF(L28:L32,AN9) -> 1 | AP9: =AO9/(AQ4-AO14) -> 0.2 | AQ9: =IF(AP9=0,0,(AP9*((LOG(AP9))/LOG(2)))) -> -0.464385619 | AS9: =N9 -> 121 | AT9: =COUNTIF(L33:L37,AS9) -> 2 | AU9: =AT9/(AV4-AT14) -> 0.4 | AV9: =IF(AU9=0,0,(AU9*((LOG(AU9))/LOG(2)))) -> -0.528771238
A10: 21 | B10: 556 | C10: 21 | D10: 562 | E10: 12 | F10: 569 | K10: 0 | L10: 221 | N10: 122 | O10: =COUNTIF($L$7:$L$500,N10) -> 1 | P10: =O10/$Q$4 -> 0.03225806452 | Q10: =IF(P10=0,0,(P10*((LOG(P10))/LOG(2)))) -> -0.1598127842 | T10: =N10 -> 122 | U10: =COUNTIF(L7:L11,T10) -> 0 | V10: =U10/(W4-U14) -> 0 | W10: =IF(V10=0,0,(V10*((LOG(V10))/LOG(2)))) -> 0 | Y10: =N10 -> 122 | Z10: =COUNTIF(L12:L16,Y10) -> 0 | AA10: =Z10/(AB4-Z14) -> 0 | AB10: =IF(AA10=0,0,(AA10*((LOG(AA10))/LOG(2)))) -> 0 | AD10: =N10 -> 122 | AE10: =COUNTIF(L17:L22,AD10) -> 0 | AF10: =AE10/(AG4-AE14) -> 0 | AG10: =IF(AF10=0,0,(AF10*((LOG(AF10))/LOG(2)))) -> 0 | AI10: =N10 -> 122 | AJ10: =COUNTIF(L23:L27,AI10) -> 1 | AK10: =AJ10/(AL4-AJ14) -> 0.2 | AL10: =IF(AK10=0,0,(AK10*((LOG(AK10))/LOG(2)))) -> -0.464385619 | AN10: =N10 -> 122 | AO10: =COUNTIF(L28:L32,AN10) -> 0 | AP10: =AO10/(AQ4-AO14) -> 0 | AQ10: =IF(AP10=0,0,(AP10*((LOG(AP10))/LOG(2)))) -> 0 | AS10: =N10 -> 122 | AT10: =COUNTIF(L33:L37,AS10) -> 0 | AU10: =AT10/(AV4-AT14) -> 0 | AV10: =IF(AU10=0,0,(AU10*((LOG(AU10))/LOG(2)))) -> 0
A11: 12 | B11: 684 | C11: 14 | D11: 690 | E11: 14 | F11: 705 | K11: 0 | L11: 111 | N11: 211 | O11: =COUNTIF($L$7:$L$500,N11) -> 4 | P11: =O11/$Q$4 -> 0.1290322581 | Q11: =IF(P11=0,0,(P11*((LOG(P11))/LOG(2)))) -> -0.3811866207 | T11: =N11 -> 211 | U11: =COUNTIF(L7:L11,T11) -> 0 | V11: =U11/(W4-U14) -> 0 | W11: =IF(V11=0,0,(V11*((LOG(V11))/LOG(2)))) -> 0 | Y11: =N11 -> 211 | Z11: =COUNTIF(L12:L16,Y11) -> 2 | AA11: =Z11/(AB4-Z14) -> 0.4 | AB11: =IF(AA11=0,0,(AA11*((LOG(AA11))/LOG(2)))) -> -0.528771238 | AD11: =N11 -> 211 | AE11: =COUNTIF(L17:L22,AD11) -> 0 | AF11: =AE11/(AG4-AE14) -> 0 | AG11: =IF(AF11=0,0,(AF11*((LOG(AF11))/LOG(2)))) -> 0 | AI11: =N11 -> 211 | AJ11: =COUNTIF(L23:L27,AI11) -> 0 | AK11: =AJ11/(AL4-AJ14) -> 0 | AL11: =IF(AK11=0,0,(AK11*((LOG(AK11))/LOG(2)))) -> 0 | AN11: =N11 -> 211 | AO11: =COUNTIF(L28:L32,AN11) -> 2 | AP11: =AO11/(AQ4-AO14) -> 0.4 | AQ11: =IF(AP11=0,0,(AP11*((LOG(AP11))/LOG(2)))) -> -0.528771238 | AS11: =N11 -> 211 | AT11: =COUNTIF(L33:L37,AS11) -> 0 | AU11: =AT11/(AV4-AT14) -> 0 | AV11: =IF(AU11=0,0,(AU11*((LOG(AU11))/LOG(2)))) -> 0
A12: 21 | B12: 802 | C12: 21 | D12: 805 | E12: 12 | F12: 814 | K12: 0 | L12: 221 | N12: 212 | O12: =COUNTIF($L$7:$L$500,N12) -> 0 | P12: =O12/$Q$4 -> 0 | Q12: =IF(P12=0,0,(P12*((LOG(P12))/LOG(2)))) -> 0 | T12: =N12 -> 212 | U12: =COUNTIF(L7:L11,T12) -> 0 | V12: =U12/(W4-U14) -> 0 | W12: =IF(V12=0,0,(V12*((LOG(V12))/LOG(2)))) -> 0 | Y12: =N12 -> 212 | Z12: =COUNTIF(L12:L16,Y12) -> 0 | AA12: =Z12/(AB4-Z14) -> 0 | AB12: =IF(AA12=0,0,(AA12*((LOG(AA12))/LOG(2)))) -> 0 | AD12: =N12 -> 212 | AE12: =COUNTIF(L17:L22,AD12) -> 0 | AF12: =AE12/(AG4-AE14) -> 0 | AG12: =IF(AF12=0,0,(AF12*((LOG(AF12))/LOG(2)))) -> 0 | AI12: =N12 -> 212 | AJ12: =COUNTIF(L23:L27,AI12) -> 0 | AK12: =AJ12/(AL4-AJ14) -> 0 | AL12: =IF(AK12=0,0,(AK12*((LOG(AK12))/LOG(2)))) -> 0 | AN12: =N12 -> 212 | AO12: =COUNTIF(L28:L32,AN12) -> 0 | AP12: =AO12/(AQ4-AO14) -> 0 | AQ12: =IF(AP12=0,0,(AP12*((LOG(AP12))/LOG(2)))) -> 0 | AS12: =N12 -> 212 | AT12: =COUNTIF(L33:L37,AS12) -> 0 | AU12: =AT12/(AV4-AT14) -> 0 | AV12: =IF(AU12=0,0,(AU12*((LOG(AU12))/LOG(2)))) -> 0
A13: 21 | B13: 1290 | C13: 12 | D13: 1305 | E13: 14 | F13: 1334 | K13: 0 | L13: 211 | N13: 221 | O13: =COUNTIF($L$7:$L$500,N13) -> 5 | P13: =O13/$Q$4 -> 0.1612903226 | Q13: =IF(P13=0,0,(P13*((LOG(P13))/LOG(2)))) -> -0.4245593896 | T13: =N13 -> 221 | U13: =COUNTIF(L7:L11,T13) -> 1 | V13: =U13/(W4-U14) -> 0.2 | W13: =IF(V13=0,0,(V13*((LOG(V13))/LOG(2)))) -> -0.464385619 | Y13: =N13 -> 221 | Z13: =COUNTIF(L12:L16,Y13) -> 1 | AA13: =Z13/(AB4-Z14) -> 0.2 | AB13: =IF(AA13=0,0,(AA13*((LOG(AA13))/LOG(2)))) -> -0.464385619 | AD13: =N13 -> 221 | AE13: =COUNTIF(L17:L22,AD13) -> 1 | AF13: =AE13/(AG4-AE14) -> 0.1666666667 | AG13: =IF(AF13=0,0,(AF13*((LOG(AF13))/LOG(2)))) -> -0.4308270835 | AI13: =N13 -> 221 | AJ13: =COUNTIF(L23:L27,AI13) -> 1 | AK13: =AJ13/(AL4-AJ14) -> 0.2 | AL13: =IF(AK13=0,0,(AK13*((LOG(AK13))/LOG(2)))) -> -0.464385619 | AN13: =N13 -> 221 | AO13: =COUNTIF(L28:L32,AN13) -> 0 | AP13: =AO13/(AQ4-AO14) -> 0 | AQ13: =IF(AP13=0,0,(AP13*((LOG(AP13))/LOG(2)))) -> 0 | AS13: =N13 -> 221 | AT13: =COUNTIF(L33:L37,AS13) -> 1 | AU13: =AT13/(AV4-AT14) -> 0.2 | AV13: =IF(AU13=0,0,(AU13*((LOG(AU13))/LOG(2)))) -> -0.464385619
A14: 12 | B14: 1432 | C14: 23 | D14: 1450 | E14: 14 | F14: 1456 | K14: 0 | L14: 121 | N14: 222 | O14: =COUNTIF($L$7:$L$500,N14) -> 0 | P14: =O14/$Q$4 -> 0 | Q14: =IF(P14=0,0,(P14*((LOG(P14))/LOG(2)))) -> 0 | T14: =N14 -> 222 | U14: =COUNTIF(L7:L11,T14) -> 0 | Y14: =N14 -> 222 | Z14: =COUNTIF(L12:L16,Y14) -> 0 | AD14: =N14 -> 222 | AE14: =COUNTIF(L17:L22,AD14) -> 0 | AI14: =N14 -> 222 | AJ14: =COUNTIF(L23:L27,AI14) -> 0 | AN14: =N14 -> 222 | AO14: =COUNTIF(L28:L32,AN14) -> 0 | AS14: =N14 -> 222 | AT14: =COUNTIF(L33:L37,AS14) -> 0
A15: 12 | B15: 1616 | C15: 23 | D15: 1627 | E15: 14 | F15: 1630 | K15: 0 | L15: 121 | P15: =SUM(P7:P14) -> 1 | Q15: =-SUM(Q7:Q14) -> 2.398735635 | V15: =SUM(V7:V14) -> 1 | W15: =-SUM(W7:W14) -> 1.521928095 | AA15: =SUM(AA7:AA14) -> 1 | AB15: =-SUM(AB7:AB14) -> 1.521928095 | AF15: =SUM(AF7:AF14) -> 1 | AG15: =-SUM(AG7:AG14) -> 1.459147917 | AK15: =SUM(AK7:AK14) -> 1 | AL15: =-SUM(AL7:AL14) -> 1.921928095 | AP15: =SUM(AP7:AP14) -> 1 | AQ15: =-SUM(AQ7:AQ14) -> 1.521928095 | AU15: =SUM(AU7:AU14) -> 1 | AV15: =-SUM(AV7:AV14) -> 1.921928095
A16: 21 | B16: 1736 | C16: 12 | D16: 1744 | E16: 14 | F16: 1763 | K16: 0 | L16: 211 | P16: U= | Q16: =Q15/(LOG(Q4)/LOG(2)) -> 0.4841825968 | V16: U1= | W16: =W15/(LOG(W4)/LOG(2)) -> 0.6554587535 | AA16: U2= | AB16: =AB15/(LOG(AB4)/LOG(2)) -> 0.6554587535 | AF16: U3= | AG16: =AG15/(LOG(AG4)/LOG(2)) -> 0.5644754679 | AK16: U4= | AL16: =AL15/(LOG(AL4)/LOG(2)) -> 0.8277293768 | AP16: U5= | AQ16: =AQ15/(LOG(AQ4)/LOG(2)) -> 0.6554587535 | AU16: U6= | AV16: =AV15/(LOG(AV4)/LOG(2)) -> 0.8277293768
A17: 12 | B17: 1902 | C17: 14 | D17: 1910 | E17: 14 | F17: 1930 | K17: 0 | L17: 111
A18: 21 | B18: 2287 | C18: 21 | D18: 2290 | E18: 12 | F18: 2306 | K18: 0 | L18: 221
A19: 12 | B19: 2415 | C19: 14 | D19: 2423 | E19: 14 | F19: 2425 | K19: 0 | L19: 111 | N19: Total Target Seq
A20: 12 | B20: 2536 | C20: 23 | D20: 2554 | E20: 14 | F20: 2571 | K20: 0 | L20: 121 | N20: =COUNTIF(L7:L37,G3) -> 0 | P20: 5 | Q20: 5 | R20: 6 | S20: 5 | T20: 5 | U20: 5
A21: 12 | B21: 2870 | C21: 14 | D21: 2888 | E21: 14 | F21: 2910 | K21: 0 | L21: 111 | P21: % of reinforcement given in 6 equal intervals based on number of trials
A22: 12 | B22: 3029 | C22: 23 | D22: 3038 | E22: 14 | F22: 3042 | K22: 0 | L22: 121 | P22: %_1 | Q22: %_2 | R22: %_3 | S22: %_4 | T22: %_5 | U22: %_6
A23: 12 | B23: 3143 | C23: 23 | D23: 3158 | E23: 14 | F23: 3163 | K23: 0 | L23: 121 | O23: target sequence | P23: =$G$3 -> 222 | Q23: =$G$3 -> 222 | R23: =$G$3 -> 222 | S23: =$G$3 -> 222 | T23: =$G$3 -> 222 | U23: =$G$3 -> 222
A24: 12 | B24: 3634 | C24: 14 | D24: 3647 | E24: 14 | F24: 3674 | K24: 0 | L24: 111 | O24: total reinforcement | P24: =U14 -> 0 | Q24: =Z14 -> 0 | R24: =AE14 -> 0 | S24: =AJ14 -> 0 | T24: =AO14 -> 0 | U24: =AT14 -> 0
A25: 21 | B25: 3998 | C25: 21 | D25: 4005 | E25: 12 | F25: 4029 | K25: 0 | L25: 221 | O25: % target
A26: 12 | B26: 4257 | C26: 14 | D26: 4282 | E26: 14 | F26: 4290 | K26: 0 | L26: 111 | O26: CCRF
A27: 12 | B27: 4442 | C27: 23 | D27: 4470 | E27: 23 | F27: 4479 | K27: 0 | L27: 122 | O27: % CCRf
A28: 12 | B28: 4567 | C28: 23 | D28: 4601 | E28: 14 | F28: 4604 | K28: 0 | L28: 121 | O28: average response rate | P28: =F11/P20 -> 141 | Q28: =(F16-F11)/Q20 -> 211.6 | R28: =(F22-F16)/R20 -> 213.1666667 | S28: =(F27-F22)/S20 -> 287.4 | T28: =(F32-F27)/T20 -> 202.4 | U28: =(F37-F32)/U20 -> 546.6
A29: 12 | B29: 4707 | C29: 14 | D29: 4712 | E29: 23 | F29: 4723 | K29: 0 | L29: 112
A30: 12 | B30: 5051 | C30: 14 | D30: 5083 | E30: 23 | F30: 5105 | K30: 0 | L30: 112
A31: 21 | B31: 5198 | C31: 12 | D31: 5202 | E31: 14 | F31: 5232 | K31: 0 | L31: 211
A32: 21 | B32: 5475 | C32: 12 | D32: 5483 | E32: 14 | F32: 5491 | K32: 0 | L32: 211
A33: 12 | B33: 5597 | C33: 14 | D33: 5607 | E33: 23 | F33: 5619 | K33: 0 | L33: 112
A34: 12 | B34: 5713 | C34: 23 | D34: 5730 | E34: 14 | F34: 5734 | K34: 0 | L34: 121
A35: 12 | B35: 5901 | C35: 23 | D35: 5913 | E35: 14 | F35: 5916 | K35: 0 | L35: 121
A36: 21 | B36: 8072 | C36: 21 | D36: 8074 | E36: 12 | F36: 8098 | K36: 0 | L36: 221
A37: 12 | B37: 8199 | C37: 14 | D37: 8213 | E37: 14 | F37: 8224 | K37: 0 | L37: 111

Sheet !MC2493B.AXT
A1: Report for:!MC2493B.AXT
A2: Date: | B2: <date>
A3: Hen: | B3: <hen> | F3: Correct Sequence | G3: =Start!J2 -> 222 | P3: Total Sequences in Data | Q3: =4994-COUNTBLANK(L7:L5000) -> 58 | V3: Total Sequences in Block Data | W3: =COUNTA(L7:L16) -> 10 | AA3: Total Sequences in Block Data | AB3: =COUNTA(L17:L25) -> 9 | AF3: Total Sequences in Block Data | AG3: =COUNTA(L26:L35) -> 10 | AK3: Total Sequences in Block Data | AL3: =COUNTA(L36:L45) -> 10 | AP3: Total Sequences in Block Data | AQ3: =COUNTA(L46:L54) -> 9 | AU3: Total Sequences in Block Data | AV3: =COUNTA(L55:L64) -> 10
P4: Total Sequences in Summary | Q4: =SUM(O7:O14) -> 58 | V4: Total Sequences in Block Summary | W4: =SUM(U7:U14) -> 10 | AA4: Total Sequences in Block Summary | AB4: =SUM(Z7:Z14) -> 9 | AF4: Total Sequences in Block Summary | AG4: =SUM(AE7:AE14) -> 10 | AK4: Total Sequences in Block Summary | AL4: =SUM(AJ7:AJ14) -> 10 | AP4: Total Sequences in Block Summary | AQ4: =SUM(AO7:AO14) -> 9 | AU4: Total Sequences in Block Summary | AV4: =SUM(AT7:AT14) -> 10
T5: Block 1 | Y5: Block 2 | AD5: Block 3 | AI5: Block 4 | AN5: Block 5 | AS5: Block 6
A6: Sequence Component 1 | B6: Time 1 | C6: Sequence Component 2 | D6: Time 2 | E6: Sequence Component 3 | F6: Time 3 | G6: Sequence Component 4 | H6: Time 4 | I6: Sequence Component 5 | J6: Time 5 | K6: Correct? 0=No 1=Yes | L6: Sequence | N6: Frequency | P6: Relative Frequency | Q6: Variability | T6: Frequency | V6: Relative Frequency | W6: Variability | Y6: Frequency | AA6: Relative Frequency | AB6: Variability | AD6: Frequency | AF6: Relative Frequency | AG6: Variability | AI6: Frequency | AK6: Relative Frequency | AL6: Variability | AN6: Frequency | AP6: Relative Frequency | AQ6: Variability | AS6: Frequency | AU6: Relative Frequency | AV6: Variability
A7: 12 | B7: 140 | C7: 23 | D7: 163 | E7: 14 | F7: 177 | K7: 0 | L7: 121 | N7: 111 | O7: =COUNTIF($L$7:$L$500,N7) -> 3 | P7: =O7/$Q$4 -> 0.05172413793 | Q7: =IF(P7=0,0,(P7*((LOG(P7))/LOG(2)))) -> -0.221018198 | T7: =N7 -> 111 | U7: =COUNTIF(L7:L16,T7) -> 1 | V7: =U7/(W4-U14) -> 0.125 | W7: =IF(V7=0,0,(V7*((LOG(V7))/LOG(2)))) -> -0.375 | Y7: =N7 -> 111 | Z7: =COUNTIF(L17:L25,Y7) -> 1 | AA7: =Z7/(AB4-Z14) -> 0.1666666667 | AB7: =IF(AA7=0,0,(AA7*((LOG(AA7))/LOG(2)))) -> -0.4308270835 | AD7: =N7 -> 111 | AE7: =COUNTIF(L26:L35,AD7) -> 1 | AF7: =AE7/(AG4-AE14) -> 0.3333333333 | AG7: =IF(AF7=0,0,(AF7*((LOG(AF7))/LOG(2)))) -> -0.5283208336 | AI7: =N7 -> 111 | AJ7: =COUNTIF(L36:L45,AI7) -> 0 | AK7: =AJ7/(AL4-AJ14) ->  | AL7: =IF(AK7=0,0,(AK7*((LOG(AK7))/LOG(2)))) ->  | AN7: =N7 -> 111 | AO7: =COUNTIF(L46:L54,AN7) -> 0 | AP7: =AO7/(AQ4-AO14) -> 0 | AQ7: =IF(AP7=0,0,(AP7*((LOG(AP7))/LOG(2)))) -> 0 | AS7: =N7 -> 111 | AT7: =COUNTIF(L55:L64,AS7) -> 0 | AU7: =AT7/(AV4-AT14) -> 0 | AV7: =IF(AU7=0,0,(AU7*((LOG(AU7))/LOG(2)))) -> 0
A8: 12 | B8: 272 | C8: 14 | D8: 290 | E8: 14 | F8: 308 | K8: 0 | L8: 111 | N8: 112 | O8: =COUNTIF($L$7:$L$500,N8) -> 1 | P8: =O8/$Q$4 -> 0.01724137931 | Q8: =IF(P8=0,0,(P8*((LOG(P8))/LOG(2)))) -> -0.1009996723 | T8: =N8 -> 112 | U8: =COUNTIF(L7:L16,T8) -> 1 | V8: =U8/(W4-U14) -> 0.125 | W8: =IF(V8=0,0,(V8*((LOG(V8))/LOG(2)))) -> -0.375 | Y8: =N8 -> 112 | Z8: =COUNTIF(L17:L25,Y8) -> 0 | AA8: =Z8/(AB4-Z14) -> 0 | AB8: =IF(AA8=0,0,(AA8*((LOG(AA8))/LOG(2)))) -> 0 | AD8: =N8 -> 112 | AE8: =COUNTIF(L26:L35,AD8) -> 0 | AF8: =AE8/(AG4-AE14) -> 0 | AG8: =IF(AF8=0,0,(AF8*((LOG(AF8))/LOG(2)))) -> 0 | AI8: =N8 -> 112 | AJ8: =COUNTIF(L36:L45,AI8) -> 0 | AK8: =AJ8/(AL4-AJ14) ->  | AL8: =IF(AK8=0,0,(AK8*((LOG(AK8))/LOG(2)))) ->  | AN8: =N8 -> 112 | AO8: =COUNTIF(L46:L54,AN8) -> 0 | AP8: =AO8/(AQ4-AO14) -> 0 | AQ8: =IF(AP8=0,0,(AP8*((LOG(AP8))/LOG(2)))) -> 0 | AS8: =N8 -> 112 | AT8: =COUNTIF(L55:L64,AS8) -> 0 | AU8: =AT8/(AV4-AT14) -> 0 | AV8: =IF(AU8=0,0,(AU8*((LOG(AU8))/LOG(2)))) -> 0
A9: 12 | B9: 569 | C9: 14 | D9: 575 | E9: 23 | F9: 586 | K9: 0 | L9: 112 | N9: 121 | O9: =COUNTIF($L$7:$L$500,N9) -> 1 | P9: =O9/$Q$4 -> 0.01724137931 | Q9: =IF(P9=0,0,(P9*((LOG(P9))/LOG(2)))) -> -0.1009996723 | T9: =N9 -> 121 | U9: =COUNTIF(L7:L16,T9) -> 1 | V9: =U9/(W4-U14) -> 0.125 | W9: =IF(V9=0,0,(V9*((LOG(V9))/LOG(2)))) -> -0.375 | Y9: =N9 -> 121 | Z9: =COUNTIF(L17:L25,Y9) -> 0 | AA9: =Z9/(AB4-Z14) -> 0 | AB9: =IF(AA9=0,0,(AA9*((LOG(AA9))/LOG(2)))) -> 0 | AD9: =N9 -> 121 | AE9: =COUNTIF(L26:L35,AD9) -> 0 | AF9: =AE9/(AG4-AE14) -> 0 | AG9: =IF(AF9=0,0,(AF9*((LOG(AF9))/LOG(2)))) -> 0 | AI9: =N9 -> 121 | AJ9: =COUNTIF(L36:L45,AI9) -> 0 | AK9: =AJ9/(AL4-AJ14) ->  | AL9: =IF(AK9=0,0,(AK9*((LOG(AK9))/LOG(2)))) ->  | AN9: =N9 -> 121 | AO9: =COUNTIF(L46:L54,AN9) -> 0 | AP9: =AO9/(AQ4-AO14) -> 0 | AQ9: =IF(AP9=0,0,(AP9*((LOG(AP9))/LOG(2)))) -> 0 | AS9: =N9 -> 121 | AT9: =COUNTIF(L55:L64,AS9) -> 0 | AU9: =AT9/(AV4-AT14) -> 0 | AV9: =IF(AU9=0,0,(AU9*((LOG(AU9))/LOG(2)))) -> 0
A10: 21 | B10: 845 | C10: 12 | D10: 854 | E10: 23 | F10: 872 | K10: 0 | L10: 212 | N10: 122 | O10: =COUNTIF($L$7:$L$500,N10) -> 2 | P10: =O10/$Q$4 -> 0.03448275862 | Q10: =IF(P10=0,0,(P10*((LOG(P10))/LOG(2)))) -> -0.167516586 | T10: =N10 -> 122 | U10: =COUNTIF(L7:L16,T10) -> 0 | V10: =U10/(W4-U14) -> 0 | W10: =IF(V10=0,0,(V10*((LOG(V10))/LOG(2)))) -> 0 | Y10: =N10 -> 122 | Z10: =COUNTIF(L17:L25,Y10) -> 1 | AA10: =Z10/(AB4-Z14) -> 0.1666666667 | AB10: =IF(AA10=0,0,(AA10*((LOG(AA10))/LOG(2)))) -> -0.4308270835 | AD10: =N10 -> 122 | AE10: =COUNTIF(L26:L35,AD10) -> 1 | AF10: =AE10/(AG4-AE14) -> 0.3333333333 | AG10: =IF(AF10=0,0,(AF10*((LOG(AF10))/LOG(2)))) -> -0.5283208336 | AI10: =N10 -> 122 | AJ10: =COUNTIF(L36:L45,AI10) -> 0 | AK10: =AJ10/(AL4-AJ14) ->  | AL10: =IF(AK10=0,0,(AK10*((LOG(AK10))/LOG(2)))) ->  | AN10: =N10 -> 122 | AO10: =COUNTIF(L46:L54,AN10) -> 0 | AP10: =AO10/(AQ4-AO14) -> 0 | AQ10: =IF(AP10=0,0,(AP10*((LOG(AP10))/LOG(2)))) -> 0 | AS10: =N10 -> 122 | AT10: =COUNTIF(L55:L64,AS10) -> 0 | AU10: =AT10/(AV4-AT14) -> 0 | AV10: =IF(AU10=0,0,(AU10*((LOG(AU10))/LOG(2)))) -> 0
A11: 21 | B11: 970 | C11: 12 | D11: 974 | E11: 14 | F11: 1001 | K11: 0 | L11: 211 | N11: 211 | O11: =COUNTIF($L$7:$L$500,N11) -> 5 | P11: =O11/$Q$4 -> 0.08620689655 | Q11: =IF(P11=0,0,(P11*((LOG(P11))/LOG(2)))) -> -0.3048321466 | T11: =N11 -> 211 | U11: =COUNTIF(L7:L16,T11) -> 3 | V11: =U11/(W4-U14) -> 0.375 | W11: =IF(V11=0,0,(V11*((LOG(V11))/LOG(2)))) -> -0.5306390622 | Y11: =N11 -> 211 | Z11: =COUNTIF(L17:L25,Y11) -> 2 | AA11: =Z11/(AB4-Z14) -> 0.3333333333 | AB11: =IF(AA11=0,0,(AA11*((LOG(AA11))/LOG(2)))) -> -0.5283208336 | AD11: =N11 -> 211 | AE11: =COUNTIF(L26:L35,AD11) -> 0 | AF11: =AE11/(AG4-AE14) -> 0 | AG11: =IF(AF11=0,0,(AF11*((LOG(AF11))/LOG(2)))) -> 0 | AI11: =N11 -> 211 | AJ11: =COUNTIF(L36:L45,AI11) -> 0 | AK11: =AJ11/(AL4-AJ14) ->  | AL11: =IF(AK11=0,0,(AK11*((LOG(AK11))/LOG(2)))) ->  | AN11: =N11 -> 211 | AO11: =COUNTIF(L46:L54,AN11) -> 0 | AP11: =AO11/(AQ4-AO14) -> 0 | AQ11: =IF(AP11=0,0,(AP11*((LOG(AP11))/LOG(2)))) -> 0 | AS11: =N11 -> 211 | AT11: =COUNTIF(L55:L64,AS11) -> 0 | AU11: =AT11/(AV4-AT14) -> 0 | AV11: =IF(AU11=0,0,(AU11*((LOG(AU11))/LOG(2)))) -> 0
A12: 21 | B12: 1116 | C12: 12 | D12: 1122 | E12: 14 | F12: 1137 | K12: 0 | L12: 211 | N12: 212 | O12: =COUNTIF($L$7:$L$500,N12) -> 3 | P12: =O12/$Q$4 -> 0.05172413793 | Q12: =IF(P12=0,0,(P12*((LOG(P12))/LOG(2)))) -> -0.221018198 | T12: =N12 -> 212 | U12: =COUNTIF(L7:L16,T12) -> 1 | V12: =U12/(W4-U14) -> 0.125 | W12: =IF(V12=0,0,(V12*((LOG(V12))/LOG(2)))) -> -0.375 | Y12: =N12 -> 212 | Z12: =COUNTIF(L17:L25,Y12) -> 1 | AA12: =Z12/(AB4-Z14) -> 0.1666666667 | AB12: =IF(AA12=0,0,(AA12*((LOG(AA12))/LOG(2)))) -> -0.4308270835 | AD12: =N12 -> 212 | AE12: =COUNTIF(L26:L35,AD12) -> 0 | AF12: =AE12/(AG4-AE14) -> 0 | AG12: =IF(AF12=0,0,(AF12*((LOG(AF12))/LOG(2)))) -> 0 | AI12: =N12 -> 212 | AJ12: =COUNTIF(L36:L45,AI12) -> 0 | AK12: =AJ12/(AL4-AJ14) ->  | AL12: =IF(AK12=0,0,(AK12*((LOG(AK12))/LOG(2)))) ->  | AN12: =N12 -> 212 | AO12: =COUNTIF(L46:L54,AN12) -> 0 | AP12: =AO12/(AQ4-AO14) -> 0 | AQ12: =IF(AP12=0,0,(AP12*((LOG(AP12))/LOG(2)))) -> 0 | AS12: =N12 -> 212 | AT12: =COUNTIF(L55:L64,AS12) -> 1 | AU12: =AT12/(AV4-AT14) -> 1 | AV12: =IF(AU12=0,0,(AU12*((LOG(AU12))/LOG(2)))) -> 0
A13: 21 | B13: 1245 | C13: 12 | D13: 1259 | E13: 14 | F13: 1268 | K13: 0 | L13: 211 | N13: 221 | O13: =COUNTIF($L$7:$L$500,N13) -> 5 | P13: =O13/$Q$4 -> 0.08620689655 | Q13: =IF(P13=0,0,(P13*((LOG(P13))/LOG(2)))) -> -0.3048321466 | T13: =N13 -> 221 | U13: =COUNTIF(L7:L16,T13) -> 1 | V13: =U13/(W4-U14) -> 0.125 | W13: =IF(V13=0,0,(V13*((LOG(V13))/LOG(2)))) -> -0.375 | Y13: =N13 -> 221 | Z13: =COUNTIF(L17:L25,Y13) -> 1 | AA13: =Z13/(AB4-Z14) -> 0.1666666667 | AB13: =IF(AA13=0,0,(AA13*((LOG(AA13))/LOG(2)))) -> -0.4308270835 | AD13: =N13 -> 221 | AE13: =COUNTIF(L26:L35,AD13) -> 1 | AF13: =AE13/(AG4-AE14) -> 0.3333333333 | AG13: =IF(AF13=0,0,(AF13*((LOG(AF13))/LOG(2)))) -> -0.5283208336 | AI13: =N13 -> 221 | AJ13: =COUNTIF(L36:L45,AI13) -> 0 | AK13: =AJ13/(AL4-AJ14) ->  | AL13: =IF(AK13=0,0,(AK13*((LOG(AK13))/LOG(2)))) ->  | AN13: =N13 -> 221 | AO13: =COUNTIF(L46:L54,AN13) -> 2 | AP13: =AO13/(AQ4-AO14) -> 1 | AQ13: =IF(AP13=0,0,(AP13*((LOG(AP13))/LOG(2)))) -> 0 | AS13: =N13 -> 221 | AT13: =COUNTIF(L55:L64,AS13) -> 0 | AU13: =AT13/(AV4-AT14) -> 0 | AV13: =IF(AU13=0,0,(AU13*((LOG(AU13))/LOG(2)))) -> 0
A14: 21 | B14: 1387 | C14: 21 | D14: 1389 | E14: 12 | F14: 1406 | K14: 0 | L14: 221 | N14: 222 | O14: =COUNTIF($L$7:$L$500,N14) -> 38 | P14: =O14/$Q$4 -> 0.6551724138 | Q14: =IF(P14=0,0,(P14*((LOG(P14))/LOG(2)))) -> -0.3996902121 | T14: =N14 -> 222 | U14: =COUNTIF(L7:L16,T14) -> 2 | Y14: =N14 -> 222 | Z14: =COUNTIF(L17:L25,Y14) -> 3 | AD14: =N14 -> 222 | AE14: =COUNTIF(L26:L35,AD14) -> 7 | AI14: =N14 -> 222 | AJ14: =COUNTIF(L36:L45,AI14) -> 10 | AN14: =N14 -> 222 | AO14: =COUNTIF(L46:L54,AN14) -> 7 | AS14: =N14 -> 222 | AT14: =COUNTIF(L55:L64,AS14) -> 9
A15: 21 | B15: 1636 | C15: 21 | D15: 1640 | E15: 21 | F15: 1647 | K15: 0 | L15: 222 | P15: =SUM(P7:P14) -> 1 | Q15: =-SUM(Q7:Q14) -> 1.820906832 | V15: =SUM(V7:V14) -> 1 | W15: =-SUM(W7:W14) -> 2.405639062 | AA15: =SUM(AA7:AA14) -> 1 | AB15: =-SUM(AB7:AB14) -> 2.251629167 | AF15: =SUM(AF7:AF14) -> 1 | AG15: =-SUM(AG7:AG14) -> 1.584962501 | AK15: =SUM(AK7:AK14) ->  | AL15: =-SUM(AL7:AL14) ->  | AP15: =SUM(AP7:AP14) -> 1 | AQ15: =-SUM(AQ7:AQ14) -> 0 | AU15: =SUM(AU7:AU14) -> 1 | AV15: =-SUM(AV7:AV14) -> 0
A16: 21 | B16: 1745 | C16: 21 | D16: 1748 | E16: 21 | F16: 1752 | K16: 0 | L16: 222 | P16: U= | Q16: =Q15/(LOG(Q4)/LOG(2)) -> 0.3108420518 | V16: U1= | W16: =W15/(LOG(W4)/LOG(2)) -> 0.7241695165 | AA16: U2= | AB16: =AB15/(LOG(AB4)/LOG(2)) -> 0.7103099179 | AF16: U3= | AG16: =AG15/(LOG(AG4)/LOG(2)) -> 0.4771212547 | AK16: U4= | AL16: =AL15/(LOG(AL4)/LOG(2)) ->  | AP16: U5= | AQ16: =AQ15/(LOG(AQ4)/LOG(2)) -> 0 | AU16: U6= | AV16: =AV15/(LOG(AV4)/LOG(2)) -> 0
A17: 21 | B17: 2038 | C17: 21 | D17: 2045 | E17: 21 | F17: 2047 | K17: 0 | L17: 222
A18: 21 | B18: 2229 | C18: 21 | D18: 2233 | E18: 21 | F18: 2241 | K18: 0 | L18: 222
A19: 21 | B19: 2431 | C19: 21 | D19: 2435 | E19: 12 | F19: 2459 | K19: 0 | L19: 221 | N19: Total Target Seq
A20: 21 | B20: 2551 | C20: 12 | D20: 2605 | E20: 23 | F20: 2642 | K20: 0 | L20: 212 | N20: =COUNTIF(L7:L64,G3) -> 38 | P20: 10 | Q20: 9 | R20: 10 | S20: 10 | T20: 9 | U20: 10
A21: 12 | B21: 2751 | C21: 23 | D21: 2770 | E21: 23 | F21: 2778 | K21: 0 | L21: 122 | P21: % of reinforcement given in 6 equal intervals based on number of trials
A22: 21 | B22: 2872 | C22: 12 | D22: 2878 | E22: 14 | F22: 2889 | K22: 0 | L22: 211 | P22: %_1 | Q22: %_2 | R22: %_3 | S22: %_4 | T22: %_5 | U22: %_6
A23: 12 | B23: 2986 | C23: 14 | D23: 2995 | E23: 14 | F23: 3011 | K23: 0 | L23: 111 | O23: target sequence | P23: =$G$3 -> 222 | Q23: =$G$3 -> 222 | R23: =$G$3 -> 222 | S23: =$G$3 -> 222 | T23: =$G$3 -> 222 | U23: =$G$3 -> 222
A24: 21 | B24: 3109 | C24: 21 | D24: 3112 | E24: 21 | F24: 3123 | K24: 0 | L24: 222 | O24: total reinforcement | P24: =U14 -> 2 | Q24: =Z14 -> 3 | R24: =AE14 -> 7 | S24: =AJ14 -> 10 | T24: =AO14 -> 7 | U24: =AT14 -> 9
A25: 21 | B25: 3381 | C25: 12 | D25: 3391 | E25: 14 | F25: 3399 | K25: 0 | L25: 211 | O25: % target
A26: 21 | B26: 3498 | C26: 21 | D26: 3501 | E26: 21 | F26: 3506 | K26: 0 | L26: 222 | O26: CCRF
A27: 21 | B27: 3839 | C27: 21 | D27: 3843 | E27: 21 | F27: 3846 | K27: 0 | L27: 222 | O27: % CCRf
A28: 21 | B28: 4027 | C28: 21 | D28: 4031 | E28: 21 | F28: 4036 | K28: 0 | L28: 222 | O28: average response rate | P28: =F16/P20 -> 175.2 | Q28: =(F25-F16)/Q20 -> 183 | R28: =(F35-F25)/R20 -> 214.2 | S28: =(F45-F35)/S20 -> 197.4 | T28: =(F54-F45)/T20 -> 234.8888889 | U28: =(F64-F54)/U20 -> 150.6
A29: 21 | B29: 4236 | C29: 21 | D29: 4240 | E29: 21 | F29: 4244 | K29: 0 | L29: 222
A30: 21 | B30: 4444 | C30: 21 | D30: 4448 | E30: 12 | F30: 4491 | K30: 0 | L30: 221
A31: 12 | B31: 4799 | C31: 14 | D31: 4824 | E31: 14 | F31: 4832 | K31: 0 | L31: 111
A32: 12 | B32: 4946 | C32: 23 | D32: 4964 | E32: 23 | F32: 4968 | K32: 0 | L32: 122
A33: 21 | B33: 5078 | C33: 21 | D33: 5082 | E33: 21 | F33: 5085 | K33: 0 | L33: 222
A34: 21 | B34: 5343 | C34: 21 | D34: 5349 | E34: 21 | F34: 5354 | K34: 0 | L34: 222
A35: 21 | B35: 5533 | C35: 21 | D35: 5537 | E35: 21 | F35: 5541 | K35: 0 | L35: 222
A36: 21 | B36: 5740 | C36: 21 | D36: 5745 | E36: 21 | F36: 5750 | K36: 0 | L36: 222
A37: 21 | B37: 5957 | C37: 21 | D37: 5961 | E37: 21 | F37: 5966 | K37: 0 | L37: 222
A38: 21 | B38: 6098 | C38: 21 | D38: 6103 | E38: 21 | F38: 6107 | K38: 0 | L38: 222
A39: 21 | B39: 6371 | C39: 21 | D39: 6373 | E39: 21 | F39: 6379 | K39: 0 | L39: 222
A40: 21 | B40: 6631 | C40: 21 | D40: 6636 | E40: 21 | F40: 6642 | K40: 0 | L40: 222
A41: 21 | B41: 6838 | C41: 21 | D41: 6843 | E41: 21 | F41: 6848 | K41: 0 | L41: 222
A42: 21 | B42: 7026 | C42: 21 | D42: 7031 | E42: 21 | F42: 7034 | K42: 0 | L42: 222
A43: 21 | B43: 7133 | C43: 21 | D43: 7139 | E43: 21 | F43: 7145 | K43: 0 | L43: 222
A44: 21 | B44: 7333 | C44: 21 | D44: 7339 | E44: 21 | F44: 7344 | K44: 0 | L44: 222
A45: 21 | B45: 7507 | C45: 21 | D45: 7512 | E45: 21 | F45: 7515 | K45: 0 | L45: 222
A46: 21 | B46: 7724 | C46: 21 | D46: 7732 | E46: 12 | F46: 7787 | K46: 0 | L46: 221
A47: 21 | B47: 8079 | C47: 21 | D47: 8083 | E47: 21 | F47: 8088 | K47: 0 | L47: 222
A48: 21 | B48: 8231 | C48: 21 | D48: 8236 | E48: 21 | F48: 8244 | K48: 0 | L48: 222
A49: 21 | B49: 8559 | C49: 21 | D49: 8563 | E49: 21 | F49: 8568 | K49: 0 | L49: 222
A50: 21 | B50: 8816 | C50: 21 | D50: 8821 | E50: 21 | F50: 8826 | K50: 0 | L50: 222
A51: 21 | B51: 8949 | C51: 21 | D51: 8953 | E51: 21 | F51: 8957 | K51: 0 | L51: 222
A52: 21 | B52: 9231 | C52: 21 | D52: 9234 | E52: 21 | F52: 9239 | K52: 0 | L52: 222
A53: 21 | B53: 9455 | C53: 21 | D53: 9459 | E53: 12 | F53: 9513 | K53: 0 | L53: 221
A54: 21 | B54: 9621 | C54: 21 | D54: 9625 | E54: 21 | F54: 9629 | K54: 0 | L54: 222
A55: 21 | B55: 9815 | C55: 21 | D55: 9819 | E55: 21 | F55: 9823 | K55: 0 | L55: 222
A56: 21 | B56: 9977 | C56: 21 | D56: 9982 | E56: 21 | F56: 9986 | K56: 0 | L56: 222
A57: 21 | B57: 10152 | C57: 21 | D57: 10156 | E57: 21 | F57: 10161 | K57: 0 | L57: 222
A58: 21 | B58: 10285 | C58: 21 | D58: 10288 | E58: 21 | F58: 10293 | K58: 0 | L58: 222
A59: 21 | B59: 10456 | C59: 21 | D59: 10461 | E59: 21 | F59: 10464 | K59: 0 | L59: 222
A60: 21 | B60: 10557 | C60: 21 | D60: 10560 | E60: 21 | F60: 10564 | K60: 0 | L60: 222
A61: 21 | B61: 10651 | C61: 12 | D61: 10669 | E61: 23 | F61: 10685 | K61: 0 | L61: 212
A62: 21 | B62: 10859 | C62: 21 | D62: 10863 | E62: 21 | F62: 10866 | K62: 0 | L62: 222
A63: 21 | B63: 10981 | C63: 21 | D63: 10984 | E63: 21 | F63: 10988 | K63: 0 | L63: 222
A64: 21 | B64: 11120 | C64: 21 | D64: 11133 | E64: 21 | F64: 11135 | K64: 1 | L64: 222

Sheet !MC2695B.AXT
A1: Report for:!MC2695B.AXT
A2: Date: | B2: <date>
A3: Hen: | B3: <hen> | F3: Correct Sequence | G3: =Start!J2 -> 222 | P3: Total Sequences in Data | Q3: =4994-COUNTBLANK(L7:L5000) -> 49 | V3: Total Sequences in Block Data | W3: =COUNTA(L7:L14) -> 8 | AA3: Total Sequences in Block Data | AB3: =COUNTA(L15:L22) -> 8 | AF3: Total Sequences in Block Data | AG3: =COUNTA(L23:L31) -> 9 | AK3: Total Sequences in Block Data | AL3: =COUNTA(L32:L39) -> 8 | AP3: Total Sequences in Block Data | AQ3: =COUNTA(L40:L47) -> 8 | AU3: Total Sequences in Block Data | AV3: =COUNTA(L48:L55) -> 8
P4: Total Sequences in Summary | Q4: =SUM(O7:O14) -> 49 | V4: Total Sequences in Block Summary | W4: =SUM(U7:U14) -> 8 | AA4: Total Sequences in Block Summary | AB4: =SUM(Z7:Z14) -> 8 | AF4: Total Sequences in Block Summary | AG4: =SUM(AE7:AE14) -> 9 | AK4: Total Sequences in Block Summary | AL4: =SUM(AJ7:AJ14) -> 8 | AP4: Total Sequences in Block Summary | AQ4: =SUM(AO7:AO14) -> 8 | AU4: Total Sequences in Block Summary | AV4: =SUM(AT7:AT14) -> 8
T5: Block 1 | Y5: Block 2 | AD5: Block 3 | AI5: Block 4 | AN5: Block 5 | AS5: Block 6
A6: Sequence Component 1 | B6: Time 1 | C6: Sequence Component 2 | D6: Time 2 | E6: Sequence Component 3 | F6: Time 3 | G6: Sequence Component 4 | H6: Time 4 | I6: Sequence Component 5 | J6: Time 5 | K6: Correct? 0=No 1=Yes | L6: Sequence | N6: Frequency | P6: Relative Frequency | Q6: Variability | T6: Frequency | V6: Relative Frequency | W6: Variability | Y6: Frequency | AA6: Relative Frequency | AB6: Variability | AD6: Frequency | AF6: Relative Frequency | AG6: Variability | AI6: Frequency | AK6: Relative Frequency | AL6: Variability | AN6: Frequency | AP6: Relative Frequency | AQ6: Variability | AS6: Frequency | AU6: Relative Frequency | AV6: Variability
A7: 21 | B7: 94 | C7: 12 | D7: 119 | E7: 14 | F7: 133 | K7: 0 | L7: 211 | N7: 111 | O7: =COUNTIF($L$7:$L$500,N7) -> 0 | P7: =O7/$Q$4 -> 0 | Q7: =IF(P7=0,0,(P7*((LOG(P7))/LOG(2)))) -> 0 | T7: =N7 -> 111 | U7: =COUNTIF(L7:L14,T7) -> 0 | V7: =U7/(W4-U14) -> 0 | W7: =IF(V7=0,0,(V7*((LOG(V7))/LOG(2)))) -> 0 | Y7: =N7 -> 111 | Z7: =COUNTIF(L15:L22,Y7) -> 0 | AA7: =Z7/(AB4-Z14) -> 0 | AB7: =IF(AA7=0,0,(AA7*((LOG(AA7))/LOG(2)))) -> 0 | AD7: =N7 -> 111 | AE7: =COUNTIF(L23:L31,AD7) -> 0 | AF7: =AE7/(AG4-AE14) -> 0 | AG7: =IF(AF7=0,0,(AF7*((LOG(AF7))/LOG(2)))) -> 0 | AI7: =N7 -> 111 | AJ7: =COUNTIF(L32:L39,AI7) -> 0 | AK7: =AJ7/(AL4-AJ14) -> 0 | AL7: =IF(AK7=0,0,(AK7*((LOG(AK7))/LOG(2)))) -> 0 | AN7: =N7 -> 111 | AO7: =COUNTIF(L40:L47,AN7) -> 0 | AP7: =AO7/(AQ4-AO14) -> 0 | AQ7: =IF(AP7=0,0,(AP7*((LOG(AP7))/LOG(2)))) -> 0 | AS7: =N7 -> 111 | AT7: =COUNTIF(L48:L55,AS7) -> 0 | AU7: =AT7/(AV4-AT14) -> 0 | AV7: =IF(AU7=0,0,(AU7*((LOG(AU7))/LOG(2)))) -> 0
A8: 21 | B8: 288 | C8: 21 | D8: 291 | E8: 21 | F8: 297 | K8: 0 | L8: 222 | N8: 112 | O8: =COUNTIF($L$7:$L$500,N8) -> 0 | P8: =O8/$Q$4 -> 0 | Q8: =IF(P8=0,0,(P8*((LOG(P8))/LOG(2)))) -> 0 | T8: =N8 -> 112 | U8: =COUNTIF(L7:L14,T8) -> 0 | V8: =U8/(W4-U14) -> 0 | W8: =IF(V8=0,0,(V8*((LOG(V8))/LOG(2)))) -> 0 | Y8: =N8 -> 112 | Z8: =COUNTIF(L15:L22,Y8) -> 0 | AA8: =Z8/(AB4-Z14) -> 0 | AB8: =IF(AA8=0,0,(AA8*((LOG(AA8))/LOG(2)))) -> 0 | AD8: =N8 -> 112 | AE8: =COUNTIF(L23:L31,AD8) -> 0 | AF8: =AE8/(AG4-AE14) -> 0 | AG8: =IF(AF8=0,0,(AF8*((LOG(AF8))/LOG(2)))) -> 0 | AI8: =N8 -> 112 | AJ8: =COUNTIF(L32:L39,AI8) -> 0 | AK8: =AJ8/(AL4-AJ14) -> 0 | AL8: =IF(AK8=0,0,(AK8*((LOG(AK8))/LOG(2)))) -> 0 | AN8: =N8 -> 112 | AO8: =COUNTIF(L40:L47,AN8) -> 0 | AP8: =AO8/(AQ4-AO14) -> 0 | AQ8: =IF(AP8=0,0,(AP8*((LOG(AP8))/LOG(2)))) -> 0 | AS8: =N8 -> 112 | AT8: =COUNTIF(L48:L55,AS8) -> 0 | AU8: =AT8/(AV4-AT14) -> 0 | AV8: =IF(AU8=0,0,(AU8*((LOG(AU8))/LOG(2)))) -> 0
A9: 12 | B9: 442 | C9: 23 | D9: 537 | E9: 23 | F9: 541 | K9: 0 | L9: 122 | N9: 121 | O9: =COUNTIF($L$7:$L$500,N9) -> 0 | P9: =O9/$Q$4 -> 0 | Q9: =IF(P9=0,0,(P9*((LOG(P9))/LOG(2)))) -> 0 | T9: =N9 -> 121 | U9: =COUNTIF(L7:L14,T9) -> 0 | V9: =U9/(W4-U14) -> 0 | W9: =IF(V9=0,0,(V9*((LOG(V9))/LOG(2)))) -> 0 | Y9: =N9 -> 121 | Z9: =COUNTIF(L15:L22,Y9) -> 0 | AA9: =Z9/(AB4-Z14) -> 0 | AB9: =IF(AA9=0,0,(AA9*((LOG(AA9))/LOG(2)))) -> 0 | AD9: =N9 -> 121 | AE9: =COUNTIF(L23:L31,AD9) -> 0 | AF9: =AE9/(AG4-AE14) -> 0 | AG9: =IF(AF9=0,0,(AF9*((LOG(AF9))/LOG(2)))) -> 0 | AI9: =N9 -> 121 | AJ9: =COUNTIF(L32:L39,AI9) -> 0 | AK9: =AJ9/(AL4-AJ14) -> 0 | AL9: =IF(AK9=0,0,(AK9*((LOG(AK9))/LOG(2)))) -> 0 | AN9: =N9 -> 121 | AO9: =COUNTIF(L40:L47,AN9) -> 0 | AP9: =AO9/(AQ4-AO14) -> 0 | AQ9: =IF(AP9=0,0,(AP9*((LOG(AP9))/LOG(2)))) -> 0 | AS9: =N9 -> 121 | AT9: =COUNTIF(L48:L55,AS9) -> 0 | AU9: =AT9/(AV4-AT14) -> 0 | AV9: =IF(AU9=0,0,(AU9*((LOG(AU9))/LOG(2)))) -> 0
A10: 21 | B10: 648 | C10: 21 | D10: 654 | E10: 21 | F10: 657 | K10: 0 | L10: 222 | N10: 122 | O10: =COUNTIF($L$7:$L$500,N10) -> 4 | P10: =O10/$Q$4 -> 0.08163265306 | Q10: =IF(P10=0,0,(P10*((LOG(P10))/LOG(2)))) -> -0.2950783546 | T10: =N10 -> 122 | U10: =COUNTIF(L7:L14,T10) -> 1 | V10: =U10/(W4-U14) -> 0.3333333333 | W10: =IF(V10=0,0,(V10*((LOG(V10))/LOG(2)))) -> -0.5283208336 | Y10: =N10 -> 122 | Z10: =COUNTIF(L15:L22,Y10) -> 1 | AA10: =Z10/(AB4-Z14) -> 0.5 | AB10: =IF(AA10=0,0,(AA10*((LOG(AA10))/LOG(2)))) -> -0.5 | AD10: =N10 -> 122 | AE10: =COUNTIF(L23:L31,AD10) -> 2 | AF10: =AE10/(AG4-AE14) -> 1 | AG10: =IF(AF10=0,0,(AF10*((LOG(AF10))/LOG(2)))) -> 0 | AI10: =N10 -> 122 | AJ10: =COUNTIF(L32:L39,AI10) -> 0 | AK10: =AJ10/(AL4-AJ14) -> 0 | AL10: =IF(AK10=0,0,(AK10*((LOG(AK10))/LOG(2)))) -> 0 | AN10: =N10 -> 122 | AO10: =COUNTIF(L40:L47,AN10) -> 0 | AP10: =AO10/(AQ4-AO14) -> 0 | AQ10: =IF(AP10=0,0,(AP10*((LOG(AP10))/LOG(2)))) -> 0 | AS10: =N10 -> 122 | AT10: =COUNTIF(L48:L55,AS10) -> 0 | AU10: =AT10/(AV4-AT14) -> 0 | AV10: =IF(AU10=0,0,(AU10*((LOG(AU10))/LOG(2)))) -> 0
A11: 21 | B11: 826 | C11: 21 | D11: 834 | E11: 21 | F11: 841 | K11: 0 | L11: 222 | N11: 211 | O11: =COUNTIF($L$7:$L$500,N11) -> 1 | P11: =O11/$Q$4 -> 0.02040816327 | Q11: =IF(P11=0,0,(P11*((LOG(P11))/LOG(2)))) -> -0.1145859152 | T11: =N11 -> 211 | U11: =COUNTIF(L7:L14,T11) -> 1 | V11: =U11/(W4-U14) -> 0.3333333333 | W11: =IF(V11=0,0,(V11*((LOG(V11))/LOG(2)))) -> -0.5283208336 | Y11: =N11 -> 211 | Z11: =COUNTIF(L15:L22,Y11) -> 0 | AA11: =Z11/(AB4-Z14) -> 0 | AB11: =IF(AA11=0,0,(AA11*((LOG(AA11))/LOG(2)))) -> 0 | AD11: =N11 -> 211 | AE11: =COUNTIF(L23:L31,AD11) -> 0 | AF11: =AE11/(AG4-AE14) -> 0 | AG11: =IF(AF11=0,0,(AF11*((LOG(AF11))/LOG(2)))) -> 0 | AI11: =N11 -> 211 | AJ11: =COUNTIF(L32:L39,AI11) -> 0 | AK11: =AJ11/(AL4-AJ14) -> 0 | AL11: =IF(AK11=0,0,(AK11*((LOG(AK11))/LOG(2)))) -> 0 | AN11: =N11 -> 211 | AO11: =COUNTIF(L40:L47,AN11) -> 0 | AP11: =AO11/(AQ4-AO14) -> 0 | AQ11: =IF(AP11=0,0,(AP11*((LOG(AP11))/LOG(2)))) -> 0 | AS11: =N11 -> 211 | AT11: =COUNTIF(L48:L55,AS11) -> 0 | AU11: =AT11/(AV4-AT14) -> 0 | AV11: =IF(AU11=0,0,(AU11*((LOG(AU11))/LOG(2)))) -> 0
A12: 21 | B12: 962 | C12: 21 | D12: 967 | E12: 21 | F12: 970 | K12: 0 | L12: 222 | N12: 212 | O12: =COUNTIF($L$7:$L$500,N12) -> 0 | P12: =O12/$Q$4 -> 0 | Q12: =IF(P12=0,0,(P12*((LOG(P12))/LOG(2)))) -> 0 | T12: =N12 -> 212 | U12: =COUNTIF(L7:L14,T12) -> 0 | V12: =U12/(W4-U14) -> 0 | W12: =IF(V12=0,0,(V12*((LOG(V12))/LOG(2)))) -> 0 | Y12: =N12 -> 212 | Z12: =COUNTIF(L15:L22,Y12) -> 0 | AA12: =Z12/(AB4-Z14) -> 0 | AB12: =IF(AA12=0,0,(AA12*((LOG(AA12))/LOG(2)))) -> 0 | AD12: =N12 -> 212 | AE12: =COUNTIF(L23:L31,AD12) -> 0 | AF12: =AE12/(AG4-AE14) -> 0 | AG12: =IF(AF12=0,0,(AF12*((LOG(AF12))/LOG(2)))) -> 0 | AI12: =N12 -> 212 | AJ12: =COUNTIF(L32:L39,AI12) -> 0 | AK12: =AJ12/(AL4-AJ14) -> 0 | AL12: =IF(AK12=0,0,(AK12*((LOG(AK12))/LOG(2)))) -> 0 | AN12: =N12 -> 212 | AO12: =COUNTIF(L40:L47,AN12) -> 0 | AP12: =AO12/(AQ4-AO14) -> 0 | AQ12: =IF(AP12=0,0,(AP12*((LOG(AP12))/LOG(2)))) -> 0 | AS12: =N12 -> 212 | AT12: =COUNTIF(L48:L55,AS12) -> 0 | AU12: =AT12/(AV4-AT14) -> 0 | AV12: =IF(AU12=0,0,(AU12*((LOG(AU12))/LOG(2)))) -> 0
A13: 21 | B13: 1227 | C13: 21 | D13: 1235 | E13: 12 | F13: 1253 | K13: 0 | L13: 221 | N13: 221 | O13: =COUNTIF($L$7:$L$500,N13) -> 5 | P13: =O13/$Q$4 -> 0.1020408163 | Q13: =IF(P13=0,0,(P13*((LOG(P13))/LOG(2)))) -> -0.3359981377 | T13: =N13 -> 221 | U13: =COUNTIF(L7:L14,T13) -> 1 | V13: =U13/(W4-U14) -> 0.3333333333 | W13: =IF(V13=0,0,(V13*((LOG(V13))/LOG(2)))) -> -0.5283208336 | Y13: =N13 -> 221 | Z13: =COUNTIF(L15:L22,Y13) -> 1 | AA13: =Z13/(AB4-Z14) -> 0.5 | AB13: =IF(AA13=0,0,(AA13*((LOG(AA13))/LOG(2)))) -> -0.5 | AD13: =N13 -> 221 | AE13: =COUNTIF(L23:L31,AD13) -> 0 | AF13: =AE13/(AG4-AE14) -> 0 | AG13: =IF(AF13=0,0,(AF13*((LOG(AF13))/LOG(2)))) -> 0 | AI13: =N13 -> 221 | AJ13: =COUNTIF(L32:L39,AI13) -> 1 | AK13: =AJ13/(AL4-AJ14) -> 1 | AL13: =IF(AK13=0,0,(AK13*((LOG(AK13))/LOG(2)))) -> 0 | AN13: =N13 -> 221 | AO13: =COUNTIF(L40:L47,AN13) -> 1 | AP13: =AO13/(AQ4-AO14) -> 1 | AQ13: =IF(AP13=0,0,(AP13*((LOG(AP13))/LOG(2)))) -> 0 | AS13: =N13 -> 221 | AT13: =COUNTIF(L48:L55,AS13) -> 1 | AU13: =AT13/(AV4-AT14) -> 1 | AV13: =IF(AU13=0,0,(AU13*((LOG(AU13))/LOG(2)))) -> 0
A14: 21 | B14: 1394 | C14: 21 | D14: 1400 | E14: 21 | F14: 1403 | K14: 0 | L14: 222 | N14: 222 | O14: =COUNTIF($L$7:$L$500,N14) -> 39 | P14: =O14/$Q$4 -> 0.7959183673 | Q14: =IF(P14=0,0,(P14*((LOG(P14))/LOG(2)))) -> -0.2621019874 | T14: =N14 -> 222 | U14: =COUNTIF(L7:L14,T14) -> 5 | Y14: =N14 -> 222 | Z14: =COUNTIF(L15:L22,Y14) -> 6 | AD14: =N14 -> 222 | AE14: =COUNTIF(L23:L31,AD14) -> 7 | AI14: =N14 -> 222 | AJ14: =COUNTIF(L32:L39,AI14) -> 7 | AN14: =N14 -> 222 | AO14: =COUNTIF(L40:L47,AN14) -> 7 | AS14: =N14 -> 222 | AT14: =COUNTIF(L48:L55,AS14) -> 7
A15: 21 | B15: 1924 | C15: 21 | D15: 1974 | E15: 21 | F15: 1977 | K15: 0 | L15: 222 | P15: =SUM(P7:P14) -> 1 | Q15: =-SUM(Q7:Q14) -> 1.007764395 | V15: =SUM(V7:V14) -> 1 | W15: =-SUM(W7:W14) -> 1.584962501 | AA15: =SUM(AA7:AA14) -> 1 | AB15: =-SUM(AB7:AB14) -> 1 | AF15: =SUM(AF7:AF14) -> 1 | AG15: =-SUM(AG7:AG14) -> 0 | AK15: =SUM(AK7:AK14) -> 1 | AL15: =-SUM(AL7:AL14) -> 0 | AP15: =SUM(AP7:AP14) -> 1 | AQ15: =-SUM(AQ7:AQ14) -> 0 | AU15: =SUM(AU7:AU14) -> 1 | AV15: =-SUM(AV7:AV14) -> 0
A16: 21 | B16: 2147 | C16: 21 | D16: 2151 | E16: 21 | F16: 2157 | K16: 0 | L16: 222 | P16: U= | Q16: =Q15/(LOG(Q4)/LOG(2)) -> 0.1794864602 | V16: U1= | W16: =W15/(LOG(W4)/LOG(2)) -> 0.5283208336 | AA16: U2= | AB16: =AB15/(LOG(AB4)/LOG(2)) -> 0.3333333333 | AF16: U3= | AG16: =AG15/(LOG(AG4)/LOG(2)) -> 0 | AK16: U4= | AL16: =AL15/(LOG(AL4)/LOG(2)) -> 0 | AP16: U5= | AQ16: =AQ15/(LOG(AQ4)/LOG(2)) -> 0 | AU16: U6= | AV16: =AV15/(LOG(AV4)/LOG(2)) -> 0
A17: 21 | B17: 2317 | C17: 21 | D17: 2322 | E17: 21 | F17: 2327 | K17: 0 | L17: 222
A18: 21 | B18: 2445 | C18: 21 | D18: 2451 | E18: 21 | F18: 2460 | K18: 0 | L18: 222
A19: 21 | B19: 2621 | C19: 21 | D19: 2625 | E19: 12 | F19: 2707 | K19: 0 | L19: 221 | N19: Total Target Seq
A20: 21 | B20: 3026 | C20: 21 | D20: 3029 | E20: 21 | F20: 3031 | K20: 0 | L20: 222 | N20: =COUNTIF(L7:L55,G3) -> 39 | P20: 8 | Q20: 8 | R20: 9 | S20: 8 | T20: 8 | U20: 8
A21: 21 | B21: 3145 | C21: 21 | D21: 3152 | E21: 21 | F21: 3156 | K21: 0 | L21: 222 | P21: % of reinforcement given in 6 equal intervals based on number of trials
A22: 12 | B22: 3261 | C22: 23 | D22: 3275 | E22: 23 | F22: 3279 | K22: 0 | L22: 122 | P22: %_1 | Q22: %_2 | R22: %_3 | S22: %_4 | T22: %_5 | U22: %_6
A23: 21 | B23: 3418 | C23: 21 | D23: 3428 | E23: 21 | F23: 3431 | K23: 0 | L23: 222 | O23: target sequence | P23: =$G$3 -> 222 | Q23: =$G$3 -> 222 | R23: =$G$3 -> 222 | S23: =$G$3 -> 222 | T23: =$G$3 -> 222 | U23: =$G$3 -> 222
A24: 21 | B24: 3577 | C24: 21 | D24: 3581 | E24: 21 | F24: 3596 | K24: 0 | L24: 222 | O24: total reinforcement | P24: =U14 -> 5 | Q24: =Z14 -> 6 | R24: =AE14 -> 7 | S24: =AJ14 -> 7 | T24: =AO14 -> 7 | U24: =AT14 -> 7
A25: 21 | B25: 3810 | C25: 21 | D25: 3814 | E25: 21 | F25: 3820 | K25: 0 | L25: 222 | O25: % target
A26: 21 | B26: 4485 | C26: 21 | D26: 4488 | E26: 21 | F26: 4493 | K26: 0 | L26: 222 | O26: CCRF
A27: 12 | B27: 4612 | C27: 23 | D27: 4620 | E27: 23 | F27: 4625 | K27: 0 | L27: 122 | O27: % CCRf
A28: 21 | B28: 4726 | C28: 21 | D28: 4730 | E28: 21 | F28: 4735 | K28: 0 | L28: 222 | O28: average response rate | P28: =F14/P20 -> 175.375 | Q28: =(F22-F14)/Q20 -> 234.5 | R28: =(F31-F22)/R20 -> 240.3333333 | S28: =(F39-F31)/S20 -> 172.625 | T28: =(F47-F39)/T20 -> 303.375 | U28: =(F55-F47)/U20 -> 247.25
A29: 21 | B29: 4942 | C29: 21 | D29: 4946 | E29: 21 | F29: 4951 | K29: 0 | L29: 222
A30: 21 | B30: 5294 | C30: 21 | D30: 5297 | E30: 21 | F30: 5301 | K30: 0 | L30: 222
A31: 12 | B31: 5419 | C31: 23 | D31: 5439 | E31: 23 | F31: 5442 | K31: 0 | L31: 122
A32: 21 | B32: 5540 | C32: 21 | D32: 5544 | E32: 21 | F32: 5548 | K32: 0 | L32: 222
A33: 21 | B33: 5642 | C33: 21 | D33: 5649 | E33: 21 | F33: 5653 | K33: 0 | L33: 222
A34: 21 | B34: 5800 | C34: 21 | D34: 5806 | E34: 21 | F34: 5811 | K34: 0 | L34: 222
A35: 21 | B35: 6167 | C35: 21 | D35: 6173 | E35: 21 | F35: 6180 | K35: 0 | L35: 222
A36: 21 | B36: 6289 | C36: 21 | D36: 6294 | E36: 21 | F36: 6299 | K36: 0 | L36: 222
A37: 21 | B37: 6417 | C37: 21 | D37: 6421 | E37: 12 | F37: 6442 | K37: 0 | L37: 221
A38: 21 | B38: 6685 | C38: 21 | D38: 6691 | E38: 21 | F38: 6694 | K38: 0 | L38: 222
A39: 21 | B39: 6816 | C39: 21 | D39: 6820 | E39: 21 | F39: 6823 | K39: 0 | L39: 222
A40: 21 | B40: 6943 | C40: 21 | D40: 6951 | E40: 21 | F40: 6955 | K40: 0 | L40: 222
A41: 21 | B41: 7553 | C41: 21 | D41: 7559 | E41: 21 | F41: 7565 | K41: 0 | L41: 222
A42: 21 | B42: 7710 | C42: 21 | D42: 7733 | E42: 21 | F42: 7736 | K42: 0 | L42: 222
A43: 21 | B43: 7904 | C43: 21 | D43: 7906 | E43: 21 | F43: 7912 | K43: 0 | L43: 222
A44: 21 | B44: 8006 | C44: 21 | D44: 8014 | E44: 21 | F44: 8018 | K44: 0 | L44: 222
A45: 21 | B45: 8189 | C45: 21 | D45: 8194 | E45: 21 | F45: 8201 | K45: 0 | L45: 222
A46: 21 | B46: 8420 | C46: 21 | D46: 8429 | E46: 21 | F46: 8485 | K46: 0 | L46: 222
A47: 21 | B47: 9198 | C47: 21 | D47: 9201 | E47: 12 | F47: 9250 | K47: 0 | L47: 221
A48: 21 | B48: 9366 | C48: 21 | D48: 9369 | E48: 21 | F48: 9438 | K48: 0 | L48: 222
A49: 21 | B49: 9671 | C49: 21 | D49: 9674 | E49: 21 | F49: 9678 | K49: 0 | L49: 222
A50: 21 | B50: 9920 | C50: 21 | D50: 9923 | E50: 21 | F50: 9927 | K50: 0 | L50: 222
A51: 21 | B51: 10071 | C51: 21 | D51: 10080 | E51: 12 | F51: 10102 | K51: 0 | L51: 221
A52: 21 | B52: 10267 | C52: 21 | D52: 10276 | E52: 21 | F52: 10279 | K52: 0 | L52: 222
A53: 21 | B53: 10649 | C53: 21 | D53: 10652 | E53: 21 | F53: 10656 | K53: 0 | L53: 222
A54: 21 | B54: 10917 | C54: 21 | D54: 10921 | E54: 21 | F54: 10927 | K54: 0 | L54: 222
A55: 21 | B55: 11220 | C55: 21 | D55: 11224 | E55: 21 | F55: 11228 | K55: 1 | L55: 222

Sheet !MC2795B.AXT
A1: Report for:!MC2795B.AXT
A2: Date: | B2: <date>
A3: Hen: | B3: <hen> | F3: Correct Sequence | G3: =Start!J2 -> 222 | P3: Total Sequences in Data | Q3: =4994-COUNTBLANK(L7:L5000) -> 56 | V3: Total Sequences in Block Data | W3: =COUNTA(L7:L15) -> 9 | AA3: Total Sequences in Block Data | AB3: =COUNTA(L16:L25) -> 10 | AF3: Total Sequences in Block Data | AG3: =COUNTA(L26:L34) -> 9 | AK3: Total Sequences in Block Data | AL3: =COUNTA(L35:L43) -> 9 | AP3: Total Sequences in Block Data | AQ3: =COUNTA(L44:L53) -> 10 | AU3: Total Sequences in Block Data | AV3: =COUNTA(L54:L62) -> 9
P4: Total Sequences in Summary | Q4: =SUM(O7:O14) -> 56 | V4: Total Sequences in Block Summary | W4: =SUM(U7:U14) -> 9 | AA4: Total Sequences in Block Summary | AB4: =SUM(Z7:Z14) -> 10 | AF4: Total Sequences in Block Summary | AG4: =SUM(AE7:AE14) -> 9 | AK4: Total Sequences in Block Summary | AL4: =SUM(AJ7:AJ14) -> 9 | AP4: Total Sequences in Block Summary | AQ4: =SUM(AO7:AO14) -> 10 | AU4: Total Sequences in Block Summary | AV4: =SUM(AT7:AT14) -> 9
T5: Block 1 | Y5: Block 2 | AD5: Block 3 | AI5: Block 4 | AN5: Block 5 | AS5: Block 6
A6: Sequence Component 1 | B6: Time 1 | C6: Sequence Component 2 | D6: Time 2 | E6: Sequence Component 3 | F6: Time 3 | G6: Sequence Component 4 | H6: Time 4 | I6: Sequence Component 5 | J6: Time 5 | K6: Correct? 0=No 1=Yes | L6: Sequence | N6: Frequency | P6: Relative Frequency | Q6: Variability | T6: Frequency | V6: Relative Frequency | W6: Variability | Y6: Frequency | AA6: Relative Frequency | AB6: Variability | AD6: Frequency | AF6: Relative Frequency | AG6: Variability | AI6: Frequency | AK6: Relative Frequency | AL6: Variability | AN6: Frequency | AP6: Relative Frequency | AQ6: Variability | AS6: Frequency | AU6: Relative Frequency | AV6: Variability
A7: 12 | B7: 88 | C7: 14 | D7: 91 | E7: 23 | F7: 104 | K7: 0 | L7: 112 | N7: 111 | O7: =COUNTIF($L$7:$L$500,N7) -> 2 | P7: =O7/$Q$4 -> 0.03571428571 | Q7: =IF(P7=0,0,(P7*((LOG(P7))/LOG(2)))) -> -0.1716912472 | T7: =N7 -> 111 | U7: =COUNTIF(L7:L15,T7) -> 2 | V7: =U7/(W4-U14) -> 0.2222222222 | W7: =IF(V7=0,0,(V7*((LOG(V7))/LOG(2)))) -> -0.4822055559 | Y7: =N7 -> 111 | Z7: =COUNTIF(L16:L25,Y7) -> 0 | AA7: =Z7/(AB4-Z14) -> 0 | AB7: =IF(AA7=0,0,(AA7*((LOG(AA7))/LOG(2)))) -> 0 | AD7: =N7 -> 111 | AE7: =COUNTIF(L26:L34,AD7) -> 0 | AF7: =AE7/(AG4-AE14) ->  | AG7: =IF(AF7=0,0,(AF7*((LOG(AF7))/LOG(2)))) ->  | AI7: =N7 -> 111 | AJ7: =COUNTIF(L35:L43,AI7) -> 0 | AK7: =AJ7/(AL4-AJ14) ->  | AL7: =IF(AK7=0,0,(AK7*((LOG(AK7))/LOG(2)))) ->  | AN7: =N7 -> 111 | AO7: =COUNTIF(L44:L53,AN7) -> 0 | AP7: =AO7/(AQ4-AO14) -> 0 | AQ7: =IF(AP7=0,0,(AP7*((LOG(AP7))/LOG(2)))) -> 0 | AS7: =N7 -> 111 | AT7: =COUNTIF(L54:L62,AS7) -> 0 | AU7: =AT7/(AV4-AT14) ->  | AV7: =IF(AU7=0,0,(AU7*((LOG(AU7))/LOG(2)))) -> 
A8: 21 | B8: 204 | C8: 12 | D8: 211 | E8: 23 | F8: 226 | K8: 0 | L8: 212 | N8: 112 | O8: =COUNTIF($L$7:$L$500,N8) -> 3 | P8: =O8/$Q$4 -> 0.05357142857 | Q8: =IF(P8=0,0,(P8*((LOG(P8))/LOG(2)))) -> -0.226199594 | T8: =N8 -> 112 | U8: =COUNTIF(L7:L15,T8) -> 3 | V8: =U8/(W4-U14) -> 0.3333333333 | W8: =IF(V8=0,0,(V8*((LOG(V8))/LOG(2)))) -> -0.5283208336 | Y8: =N8 -> 112 | Z8: =COUNTIF(L16:L25,Y8) -> 0 | AA8: =Z8/(AB4-Z14) -> 0 | AB8: =IF(AA8=0,0,(AA8*((LOG(AA8))/LOG(2)))) -> 0 | AD8: =N8 -> 112 | AE8: =COUNTIF(L26:L34,AD8) -> 0 | AF8: =AE8/(AG4-AE14) ->  | AG8: =IF(AF8=0,0,(AF8*((LOG(AF8))/LOG(2)))) ->  | AI8: =N8 -> 112 | AJ8: =COUNTIF(L35:L43,AI8) -> 0 | AK8: =AJ8/(AL4-AJ14) ->  | AL8: =IF(AK8=0,0,(AK8*((LOG(AK8))/LOG(2)))) ->  | AN8: =N8 -> 112 | AO8: =COUNTIF(L44:L53,AN8) -> 0 | AP8: =AO8/(AQ4-AO14) -> 0 | AQ8: =IF(AP8=0,0,(AP8*((LOG(AP8))/LOG(2)))) -> 0 | AS8: =N8 -> 112 | AT8: =COUNTIF(L54:L62,AS8) -> 0 | AU8: =AT8/(AV4-AT14) ->  | AV8: =IF(AU8=0,0,(AU8*((LOG(AU8))/LOG(2)))) -> 
A9: 12 | B9: 319 | C9: 14 | D9: 324 | E9: 23 | F9: 336 | K9: 0 | L9: 112 | N9: 121 | O9: =COUNTIF($L$7:$L$500,N9) -> 1 | P9: =O9/$Q$4 -> 0.01785714286 | Q9: =IF(P9=0,0,(P9*((LOG(P9))/LOG(2)))) -> -0.1037027665 | T9: =N9 -> 121 | U9: =COUNTIF(L7:L15,T9) -> 1 | V9: =U9/(W4-U14) -> 0.1111111111 | W9: =IF(V9=0,0,(V9*((LOG(V9))/LOG(2)))) -> -0.352213889 | Y9: =N9 -> 121 | Z9: =COUNTIF(L16:L25,Y9) -> 0 | AA9: =Z9/(AB4-Z14) -> 0 | AB9: =IF(AA9=0,0,(AA9*((LOG(AA9))/LOG(2)))) -> 0 | AD9: =N9 -> 121 | AE9: =COUNTIF(L26:L34,AD9) -> 0 | AF9: =AE9/(AG4-AE14) ->  | AG9: =IF(AF9=0,0,(AF9*((LOG(AF9))/LOG(2)))) ->  | AI9: =N9 -> 121 | AJ9: =COUNTIF(L35:L43,AI9) -> 0 | AK9: =AJ9/(AL4-AJ14) ->  | AL9: =IF(AK9=0,0,(AK9*((LOG(AK9))/LOG(2)))) ->  | AN9: =N9 -> 121 | AO9: =COUNTIF(L44:L53,AN9) -> 0 | AP9: =AO9/(AQ4-AO14) -> 0 | AQ9: =IF(AP9=0,0,(AP9*((LOG(AP9))/LOG(2)))) -> 0 | AS9: =N9 -> 121 | AT9: =COUNTIF(L54:L62,AS9) -> 0 | AU9: =AT9/(AV4-AT14) ->  | AV9: =IF(AU9=0,0,(AU9*((LOG(AU9))/LOG(2)))) -> 
A10: 21 | B10: 432 | C10: 21 | D10: 435 | E10: 12 | F10: 440 | K10: 0 | L10: 221 | N10: 122 | O10: =COUNTIF($L$7:$L$500,N10) -> 2 | P10: =O10/$Q$4 -> 0.03571428571 | Q10: =IF(P10=0,0,(P10*((LOG(P10))/LOG(2)))) -> -0.1716912472 | T10: =N10 -> 122 | U10: =COUNTIF(L7:L15,T10) -> 0 | V10: =U10/(W4-U14) -> 0 | W10: =IF(V10=0,0,(V10*((LOG(V10))/LOG(2)))) -> 0 | Y10: =N10 -> 122 | Z10: =COUNTIF(L16:L25,Y10) -> 2 | AA10: =Z10/(AB4-Z14) -> 0.6666666667 | AB10: =IF(AA10=0,0,(AA10*((LOG(AA10))/LOG(2)))) -> -0.3899750005 | AD10: =N10 -> 122 | AE10: =COUNTIF(L26:L34,AD10) -> 0 | AF10: =AE10/(AG4-AE14) ->  | AG10: =IF(AF10=0,0,(AF10*((LOG(AF10))/LOG(2)))) ->  | AI10: =N10 -> 122 | AJ10: =COUNTIF(L35:L43,AI10) -> 0 | AK10: =AJ10/(AL4-AJ14) ->  | AL10: =IF(AK10=0,0,(AK10*((LOG(AK10))/LOG(2)))) ->  | AN10: =N10 -> 122 | AO10: =COUNTIF(L44:L53,AN10) -> 0 | AP10: =AO10/(AQ4-AO14) -> 0 | AQ10: =IF(AP10=0,0,(AP10*((LOG(AP10))/LOG(2)))) -> 0 | AS10: =N10 -> 122 | AT10: =COUNTIF(L54:L62,AS10) -> 0 | AU10: =AT10/(AV4-AT14) ->  | AV10: =IF(AU10=0,0,(AU10*((LOG(AU10))/LOG(2)))) -> 
A11: 12 | B11: 541 | C11: 14 | D11: 549 | E11: 14 | F11: 561 | K11: 0 | L11: 111 | N11: 211 | O11: =COUNTIF($L$7:$L$500,N11) -> 0 | P11: =O11/$Q$4 -> 0 | Q11: =IF(P11=0,0,(P11*((LOG(P11))/LOG(2)))) -> 0 | T11: =N11 -> 211 | U11: =COUNTIF(L7:L15,T11) -> 0 | V11: =U11/(W4-U14) -> 0 | W11: =IF(V11=0,0,(V11*((LOG(V11))/LOG(2)))) -> 0 | Y11: =N11 -> 211 | Z11: =COUNTIF(L16:L25,Y11) -> 0 | AA11: =Z11/(AB4-Z14) -> 0 | AB11: =IF(AA11=0,0,(AA11*((LOG(AA11))/LOG(2)))) -> 0 | AD11: =N11 -> 211 | AE11: =COUNTIF(L26:L34,AD11) -> 0 | AF11: =AE11/(AG4-AE14) ->  | AG11: =IF(AF11=0,0,(AF11*((LOG(AF11))/LOG(2)))) ->  | AI11: =N11 -> 211 | AJ11: =COUNTIF(L35:L43,AI11) -> 0 | AK11: =AJ11/(AL4-AJ14) ->  | AL11: =IF(AK11=0,0,(AK11*((LOG(AK11))/LOG(2)))) ->  | AN11: =N11 -> 211 | AO11: =COUNTIF(L44:L53,AN11) -> 0 | AP11: =AO11/(AQ4-AO14) -> 0 | AQ11: =IF(AP11=0,0,(AP11*((LOG(AP11))/LOG(2)))) -> 0 | AS11: =N11 -> 211 | AT11: =COUNTIF(L54:L62,AS11) -> 0 | AU11: =AT11/(AV4-AT14) ->  | AV11: =IF(AU11=0,0,(AU11*((LOG(AU11))/LOG(2)))) -> 
A12: 12 | B12: 674 | C12: 23 | D12: 686 | E12: 14 | F12: 690 | K12: 0 | L12: 121 | N12: 212 | O12: =COUNTIF($L$7:$L$500,N12) -> 2 | P12: =O12/$Q$4 -> 0.03571428571 | Q12: =IF(P12=0,0,(P12*((LOG(P12))/LOG(2)))) -> -0.1716912472 | T12: =N12 -> 212 | U12: =COUNTIF(L7:L15,T12) -> 1 | V12: =U12/(W4-U14) -> 0.1111111111 | W12: =IF(V12=0,0,(V12*((LOG(V12))/LOG(2)))) -> -0.352213889 | Y12: =N12 -> 212 | Z12: =COUNTIF(L16:L25,Y12) -> 1 | AA12: =Z12/(AB4-Z14) -> 0.3333333333 | AB12: =IF(AA12=0,0,(AA12*((LOG(AA12))/LOG(2)))) -> -0.5283208336 | AD12: =N12 -> 212 | AE12: =COUNTIF(L26:L34,AD12) -> 0 | AF12: =AE12/(AG4-AE14) ->  | AG12: =IF(AF12=0,0,(AF12*((LOG(AF12))/LOG(2)))) ->  | AI12: =N12 -> 212 | AJ12: =COUNTIF(L35:L43,AI12) -> 0 | AK12: =AJ12/(AL4-AJ14) ->  | AL12: =IF(AK12=0,0,(AK12*((LOG(AK12))/LOG(2)))) ->  | AN12: =N12 -> 212 | AO12: =COUNTIF(L44:L53,AN12) -> 0 | AP12: =AO12/(AQ4-AO14) -> 0 | AQ12: =IF(AP12=0,0,(AP12*((LOG(AP12))/LOG(2)))) -> 0 | AS12: =N12 -> 212 | AT12: =COUNTIF(L54:L62,AS12) -> 0 | AU12: =AT12/(AV4-AT14) ->  | AV12: =IF(AU12=0,0,(AU12*((LOG(AU12))/LOG(2)))) -> 
A13: 12 | B13: 788 | C13: 14 | D13: 790 | E13: 23 | F13: 792 | K13: 0 | L13: 112 | N13: 221 | O13: =COUNTIF($L$7:$L$500,N13) -> 7 | P13: =O13/$Q$4 -> 0.125 | Q13: =IF(P13=0,0,(P13*((LOG(P13))/LOG(2)))) -> -0.375 | T13: =N13 -> 221 | U13: =COUNTIF(L7:L15,T13) -> 2 | V13: =U13/(W4-U14) -> 0.2222222222 | W13: =IF(V13=0,0,(V13*((LOG(V13))/LOG(2)))) -> -0.4822055559 | Y13: =N13 -> 221 | Z13: =COUNTIF(L16:L25,Y13) -> 0 | AA13: =Z13/(AB4-Z14) -> 0 | AB13: =IF(AA13=0,0,(AA13*((LOG(AA13))/LOG(2)))) -> 0 | AD13: =N13 -> 221 | AE13: =COUNTIF(L26:L34,AD13) -> 0 | AF13: =AE13/(AG4-AE14) ->  | AG13: =IF(AF13=0,0,(AF13*((LOG(AF13))/LOG(2)))) ->  | AI13: =N13 -> 221 | AJ13: =COUNTIF(L35:L43,AI13) -> 0 | AK13: =AJ13/(AL4-AJ14) ->  | AL13: =IF(AK13=0,0,(AK13*((LOG(AK13))/LOG(2)))) ->  | AN13: =N13 -> 221 | AO13: =COUNTIF(L44:L53,AN13) -> 5 | AP13: =AO13/(AQ4-AO14) -> 1 | AQ13: =IF(AP13=0,0,(AP13*((LOG(AP13))/LOG(2)))) -> 0 | AS13: =N13 -> 221 | AT13: =COUNTIF(L54:L62,AS13) -> 0 | AU13: =AT13/(AV4-AT14) ->  | AV13: =IF(AU13=0,0,(AU13*((LOG(AU13))/LOG(2)))) -> 
A14: 21 | B14: 992 | C14: 21 | D14: 998 | E14: 12 | F14: 1007 | K14: 0 | L14: 221 | N14: 222 | O14: =COUNTIF($L$7:$L$500,N14) -> 39 | P14: =O14/$Q$4 -> 0.6964285714 | Q14: =IF(P14=0,0,(P14*((LOG(P14))/LOG(2)))) -> -0.3635027754 | T14: =N14 -> 222 | U14: =COUNTIF(L7:L15,T14) -> 0 | Y14: =N14 -> 222 | Z14: =COUNTIF(L16:L25,Y14) -> 7 | AD14: =N14 -> 222 | AE14: =COUNTIF(L26:L34,AD14) -> 9 | AI14: =N14 -> 222 | AJ14: =COUNTIF(L35:L43,AI14) -> 9 | AN14: =N14 -> 222 | AO14: =COUNTIF(L44:L53,AN14) -> 5 | AS14: =N14 -> 222 | AT14: =COUNTIF(L54:L62,AS14) -> 9
A15: 12 | B15: 1103 | C15: 14 | D15: 1111 | E15: 14 | F15: 1114 | K15: 0 | L15: 111 | P15: =SUM(P7:P14) -> 1 | Q15: =-SUM(Q7:Q14) -> 1.583478878 | V15: =SUM(V7:V14) -> 1 | W15: =-SUM(W7:W14) -> 2.197159723 | AA15: =SUM(AA7:AA14) -> 1 | AB15: =-SUM(AB7:AB14) -> 0.9182958341 | AF15: =SUM(AF7:AF14) ->  | AG15: =-SUM(AG7:AG14) ->  | AK15: =SUM(AK7:AK14) ->  | AL15: =-SUM(AL7:AL14) ->  | AP15: =SUM(AP7:AP14) -> 1 | AQ15: =-SUM(AQ7:AQ14) -> 0 | AU15: =SUM(AU7:AU14) ->  | AV15: =-SUM(AV7:AV14) -> 
A16: 21 | B16: 1368 | C16: 21 | D16: 1370 | E16: 21 | F16: 1373 | K16: 0 | L16: 222 | P16: U= | Q16: =Q15/(LOG(Q4)/LOG(2)) -> 0.2726678322 | V16: U1= | W16: =W15/(LOG(W4)/LOG(2)) -> 0.6931267214 | AA16: U2= | AB16: =AB15/(LOG(AB4)/LOG(2)) -> 0.2764345909 | AF16: U3= | AG16: =AG15/(LOG(AG4)/LOG(2)) ->  | AK16: U4= | AL16: =AL15/(LOG(AL4)/LOG(2)) ->  | AP16: U5= | AQ16: =AQ15/(LOG(AQ4)/LOG(2)) -> 0 | AU16: U6= | AV16: =AV15/(LOG(AV4)/LOG(2)) -> 
A17: 21 | B17: 1564 | C17: 21 | D17: 1567 | E17: 21 | F17: 1572 | K17: 0 | L17: 222
A18: 21 | B18: 1707 | C18: 21 | D18: 1711 | E18: 21 | F18: 1715 | K18: 0 | L18: 222
A19: 21 | B19: 1803 | C19: 12 | D19: 1818 | E19: 23 | F19: 1827 | K19: 0 | L19: 212 | N19: Total Target Seq
A20: 21 | B20: 1967 | C20: 21 | D20: 1971 | E20: 21 | F20: 1983 | K20: 0 | L20: 222 | N20: =COUNTIF(L7:L62,G3) -> 39 | P20: 9 | Q20: 10 | R20: 9 | S20: 9 | T20: 10 | U20: 9
A21: 21 | B21: 2156 | C21: 21 | D21: 2158 | E21: 21 | F21: 2162 | K21: 0 | L21: 222 | P21: % of reinforcement given in 6 equal intervals based on number of trials
A22: 12 | B22: 2268 | C22: 23 | D22: 2287 | E22: 23 | F22: 2291 | K22: 0 | L22: 122 | P22: %_1 | Q22: %_2 | R22: %_3 | S22: %_4 | T22: %_5 | U22: %_6
A23: 12 | B23: 2386 | C23: 23 | D23: 2407 | E23: 23 | F23: 2410 | K23: 0 | L23: 122 | O23: target sequence | P23: =$G$3 -> 222 | Q23: =$G$3 -> 222 | R23: =$G$3 -> 222 | S23: =$G$3 -> 222 | T23: =$G$3 -> 222 | U23: =$G$3 -> 222
A24: 21 | B24: 2734 | C24: 21 | D24: 2736 | E24: 21 | F24: 2739 | K24: 0 | L24: 222 | O24: total reinforcement | P24: =U14 -> 0 | Q24: =Z14 -> 7 | R24: =AE14 -> 9 | S24: =AJ14 -> 9 | T24: =AO14 -> 5 | U24: =AT14 -> 9
A25: 21 | B25: 2845 | C25: 21 | D25: 2849 | E25: 21 | F25: 2858 | K25: 0 | L25: 222 | O25: % target
A26: 21 | B26: 3176 | C26: 21 | D26: 3179 | E26: 21 | F26: 3182 | K26: 0 | L26: 222 | O26: CCRF
A27: 21 | B27: 3313 | C27: 21 | D27: 3318 | E27: 21 | F27: 3323 | K27: 0 | L27: 222 | O27: % CCRf
A28: 21 | B28: 3531 | C28: 21 | D28: 3534 | E28: 21 | F28: 3538 | K28: 0 | L28: 222 | O28: average response rate | P28: =F15/P20 -> 123.7777778 | Q28: =(F25-F15)/Q20 -> 174.4 | R28: =(F34-F25)/R20 -> 229.1111111 | S28: =(F43-F34)/S20 -> 200 | T28: =(F53-F43)/T20 -> 227.4 | U28: =(F62-F53)/U20 -> 293.8888889
A29: 21 | B29: 3656 | C29: 21 | D29: 3661 | E29: 21 | F29: 3665 | K29: 0 | L29: 222
A30: 21 | B30: 3823 | C30: 21 | D30: 3827 | E30: 21 | F30: 3833 | K30: 0 | L30: 222
A31: 21 | B31: 3921 | C31: 21 | D31: 3923 | E31: 21 | F31: 3926 | K31: 0 | L31: 222
A32: 21 | B32: 4414 | C32: 21 | D32: 4416 | E32: 21 | F32: 4419 | K32: 0 | L32: 222
A33: 21 | B33: 4657 | C33: 21 | D33: 4661 | E33: 21 | F33: 4665 | K33: 0 | L33: 222
A34: 21 | B34: 4912 | C34: 21 | D34: 4916 | E34: 21 | F34: 4920 | K34: 0 | L34: 222
A35: 21 | B35: 5181 | C35: 21 | D35: 5189 | E35: 21 | F35: 5191 | K35: 0 | L35: 222
A36: 21 | B36: 5383 | C36: 21 | D36: 5386 | E36: 21 | F36: 5392 | K36: 0 | L36: 222
A37: 21 | B37: 5497 | C37: 21 | D37: 5501 | E37: 21 | F37: 5506 | K37: 0 | L37: 222
A38: 21 | B38: 5624 | C38: 21 | D38: 5628 | E38: 21 | F38: 5690 | K38: 0 | L38: 222
A39: 21 | B39: 5789 | C39: 21 | D39: 5794 | E39: 21 | F39: 5799 | K39: 0 | L39: 222
A40: 21 | B40: 5916 | C40: 21 | D40: 5924 | E40: 21 | F40: 5932 | K40: 0 | L40: 222
A41: 21 | B41: 6122 | C41: 21 | D41: 6131 | E41: 21 | F41: 6136 | K41: 0 | L41: 222
A42: 21 | B42: 6492 | C42: 21 | D42: 6497 | E42: 21 | F42: 6506 | K42: 0 | L42: 222
A43: 21 | B43: 6693 | C43: 21 | D43: 6717 | E43: 21 | F43: 6720 | K43: 0 | L43: 222
A44: 21 | B44: 6919 | C44: 21 | D44: 6923 | E44: 21 | F44: 6927 | K44: 0 | L44: 222
A45: 21 | B45: 7220 | C45: 21 | D45: 7223 | E45: 21 | F45: 7226 | K45: 0 | L45: 222
A46: 21 | B46: 7612 | C46: 21 | D46: 7618 | E46: 12 | F46: 7674 | K46: 0 | L46: 221
A47: 21 | B47: 7861 | C47: 21 | D47: 7866 | E47: 12 | F47: 7901 | K47: 0 | L47: 221
A48: 21 | B48: 8018 | C48: 21 | D48: 8022 | E48: 21 | F48: 8024 | K48: 0 | L48: 222
A49: 21 | B49: 8336 | C49: 21 | D49: 8339 | E49: 12 | F49: 8367 | K49: 0 | L49: 221
A50: 21 | B50: 8466 | C50: 21 | D50: 8472 | E50: 21 | F50: 8474 | K50: 0 | L50: 222
A51: 21 | B51: 8652 | C51: 21 | D51: 8656 | E51: 21 | F51: 8708 | K51: 0 | L51: 222
A52: 21 | B52: 8796 | C52: 21 | D52: 8810 | E52: 12 | F52: 8835 | K52: 0 | L52: 221
A53: 21 | B53: 8947 | C53: 21 | D53: 8955 | E53: 12 | F53: 8994 | K53: 0 | L53: 221
A54: 21 | B54: 9115 | C54: 21 | D54: 9119 | E54: 21 | F54: 9123 | K54: 0 | L54: 222
A55: 21 | B55: 9477 | C55: 21 | D55: 9480 | E55: 21 | F55: 9484 | K55: 0 | L55: 222
A56: 21 | B56: 9785 | C56: 21 | D56: 9787 | E56: 21 | F56: 9791 | K56: 0 | L56: 222
A57: 21 | B57: 10191 | C57: 21 | D57: 10201 | E57: 21 | F57: 10204 | K57: 0 | L57: 222
A58: 21 | B58: 10465 | C58: 21 | D58: 10472 | E58: 21 | F58: 10504 | K58: 0 | L58: 222
A59: 21 | B59: 10667 | C59: 21 | D59: 10670 | E59: 21 | F59: 10675 | K59: 0 | L59: 222
A60: 21 | B60: 11069 | C60: 21 | D60: 11071 | E60: 21 | F60: 11075 | K60: 0 | L60: 222
A61: 21 | B61: 11369 | C61: 21 | D61: 11372 | E61: 21 | F61: 11377 | K61: 0 | L61: 222
A62: 21 | B62: 11597 | C62: 21 | D62: 11603 | E62: 21 | F62: 11639 | K62: 1 | L62: 222

Sheet !MC28A1B.AXT
A1: Report for:!MC28A1B.AXT
A2: Date: | B2: <date>
A3: Hen: | B3: <hen> | F3: Correct Sequence | G3: =Start!J2 -> 222 | P3: Total Sequences in Data | Q3: =4994-COUNTBLANK(L7:L5000) -> 53 | V3: Total Sequences in Block Data | W3: =COUNTA(L7:L15) -> 9 | AA3: Total Sequences in Block Data | AB3: =COUNTA(L16:L24) -> 9 | AF3: Total Sequences in Block Data | AG3: =COUNTA(L25:L32) -> 8 | AK3: Total Sequences in Block Data | AL3: =COUNTA(L33:L41) -> 9 | AP3: Total Sequences in Block Data | AQ3: =COUNTA(L42:L50) -> 9 | AU3: Total Sequences in Block Data | AV3: =COUNTA(L51:L59) -> 9
P4: Total Sequences in Summary | Q4: =SUM(O7:O14) -> 53 | V4: Total Sequences in Block Summary | W4: =SUM(U7:U14) -> 9 | AA4: Total Sequences in Block Summary | AB4: =SUM(Z7:Z14) -> 9 | AF4: Total Sequences in Block Summary | AG4: =SUM(AE7:AE14) -> 8 | AK4: Total Sequences in Block Summary | AL4: =SUM(AJ7:AJ14) -> 9 | AP4: Total Sequences in Block Summary | AQ4: =SUM(AO7:AO14) -> 9 | AU4: Total Sequences in Block Summary | AV4: =SUM(AT7:AT14) -> 9
T5: Block 1 | Y5: Block 2 | AD5: Block 3 | AI5: Block 4 | AN5: Block 5 | AS5: Block 6
A6: Sequence Component 1 | B6: Time 1 | C6: Sequence Component 2 | D6: Time 2 | E6: Sequence Component 3 | F6: Time 3 | G6: Sequence Component 4 | H6: Time 4 | I6: Sequence Component 5 | J6: Time 5 | K6: Correct? 0=No 1=Yes | L6: Sequence | N6: Frequency | P6: Relative Frequency | Q6: Variability | T6: Frequency | V6: Relative Frequency | W6: Variability | Y6: Frequency | AA6: Relative Frequency | AB6: Variability | AD6: Frequency | AF6: Relative Frequency | AG6: Variability | AI6: Frequency | AK6: Relative Frequency | AL6: Variability | AN6: Frequency | AP6: Relative Frequency | AQ6: Variability | AS6: Frequency | AU6: Relative Frequency | AV6: Variability
A7: 21 | B7: 42 | C7: 21 | D7: 49 | E7: 21 | F7: 79 | K7: 0 | L7: 222 | N7: 111 | O7: =COUNTIF($L$7:$L$500,N7) -> 2 | P7: =O7/$Q$4 -> 0.03773584906 | Q7: =IF(P7=0,0,(P7*((LOG(P7))/LOG(2)))) -> -0.1784120926 | T7: =N7 -> 111 | U7: =COUNTIF(L7:L15,T7) -> 0 | V7: =U7/(W4-U14) ->  | W7: =IF(V7=0,0,(V7*((LOG(V7))/LOG(2)))) ->  | Y7: =N7 -> 111 | Z7: =COUNTIF(L16:L24,Y7) -> 0 | AA7: =Z7/(AB4-Z14) -> 0 | AB7: =IF(AA7=0,0,(AA7*((LOG(AA7))/LOG(2)))) -> 0 | AD7: =N7 -> 111 | AE7: =COUNTIF(L25:L32,AD7) -> 1 | AF7: =AE7/(AG4-AE14) -> 0.5 | AG7: =IF(AF7=0,0,(AF7*((LOG(AF7))/LOG(2)))) -> -0.5 | AI7: =N7 -> 111 | AJ7: =COUNTIF(L33:L41,AI7) -> 0 | AK7: =AJ7/(AL4-AJ14) -> 0 | AL7: =IF(AK7=0,0,(AK7*((LOG(AK7))/LOG(2)))) -> 0 | AN7: =N7 -> 111 | AO7: =COUNTIF(L42:L50,AN7) -> 0 | AP7: =AO7/(AQ4-AO14) -> 0 | AQ7: =IF(AP7=0,0,(AP7*((LOG(AP7))/LOG(2)))) -> 0 | AS7: =N7 -> 111 | AT7: =COUNTIF(L51:L59,AS7) -> 1 | AU7: =AT7/(AV4-AT14) -> 0.2 | AV7: =IF(AU7=0,0,(AU7*((LOG(AU7))/LOG(2)))) -> -0.464385619
A8: 21 | B8: 680 | C8: 21 | D8: 692 | E8: 21 | F8: 695 | K8: 0 | L8: 222 | N8: 112 | O8: =COUNTIF($L$7:$L$500,N8) -> 1 | P8: =O8/$Q$4 -> 0.01886792453 | Q8: =IF(P8=0,0,(P8*((LOG(P8))/LOG(2)))) -> -0.1080739708 | T8: =N8 -> 112 | U8: =COUNTIF(L7:L15,T8) -> 0 | V8: =U8/(W4-U14) ->  | W8: =IF(V8=0,0,(V8*((LOG(V8))/LOG(2)))) ->  | Y8: =N8 -> 112 | Z8: =COUNTIF(L16:L24,Y8) -> 0 | AA8: =Z8/(AB4-Z14) -> 0 | AB8: =IF(AA8=0,0,(AA8*((LOG(AA8))/LOG(2)))) -> 0 | AD8: =N8 -> 112 | AE8: =COUNTIF(L25:L32,AD8) -> 0 | AF8: =AE8/(AG4-AE14) -> 0 | AG8: =IF(AF8=0,0,(AF8*((LOG(AF8))/LOG(2)))) -> 0 | AI8: =N8 -> 112 | AJ8: =COUNTIF(L33:L41,AI8) -> 0 | AK8: =AJ8/(AL4-AJ14) -> 0 | AL8: =IF(AK8=0,0,(AK8*((LOG(AK8))/LOG(2)))) -> 0 | AN8: =N8 -> 112 | AO8: =COUNTIF(L42:L50,AN8) -> 0 | AP8: =AO8/(AQ4-AO14) -> 0 | AQ8: =IF(AP8=0,0,(AP8*((LOG(AP8))/LOG(2)))) -> 0 | AS8: =N8 -> 112 | AT8: =COUNTIF(L51:L59,AS8) -> 1 | AU8: =AT8/(AV4-AT14) -> 0.2 | AV8: =IF(AU8=0,0,(AU8*((LOG(AU8))/LOG(2)))) -> -0.464385619
A9: 21 | B9: 849 | C9: 21 | D9: 853 | E9: 21 | F9: 858 | K9: 0 | L9: 222 | N9: 121 | O9: =COUNTIF($L$7:$L$500,N9) -> 1 | P9: =O9/$Q$4 -> 0.01886792453 | Q9: =IF(P9=0,0,(P9*((LOG(P9))/LOG(2)))) -> -0.1080739708 | T9: =N9 -> 121 | U9: =COUNTIF(L7:L15,T9) -> 0 | V9: =U9/(W4-U14) ->  | W9: =IF(V9=0,0,(V9*((LOG(V9))/LOG(2)))) ->  | Y9: =N9 -> 121 | Z9: =COUNTIF(L16:L24,Y9) -> 0 | AA9: =Z9/(AB4-Z14) -> 0 | AB9: =IF(AA9=0,0,(AA9*((LOG(AA9))/LOG(2)))) -> 0 | AD9: =N9 -> 121 | AE9: =COUNTIF(L25:L32,AD9) -> 0 | AF9: =AE9/(AG4-AE14) -> 0 | AG9: =IF(AF9=0,0,(AF9*((LOG(AF9))/LOG(2)))) -> 0 | AI9: =N9 -> 121 | AJ9: =COUNTIF(L33:L41,AI9) -> 1 | AK9: =AJ9/(AL4-AJ14) -> 0.2 | AL9: =IF(AK9=0,0,(AK9*((LOG(AK9))/LOG(2)))) -> -0.464385619 | AN9: =N9 -> 121 | AO9: =COUNTIF(L42:L50,AN9) -> 0 | AP9: =AO9/(AQ4-AO14) -> 0 | AQ9: =IF(AP9=0,0,(AP9*((LOG(AP9))/LOG(2)))) -> 0 | AS9: =N9 -> 121 | AT9: =COUNTIF(L51:L59,AS9) -> 0 | AU9: =AT9/(AV4-AT14) -> 0 | AV9: =IF(AU9=0,0,(AU9*((LOG(AU9))/LOG(2)))) -> 0
A10: 21 | B10: 1136 | C10: 21 | D10: 1138 | E10: 21 | F10: 1143 | K10: 0 | L10: 222 | N10: 122 | O10: =COUNTIF($L$7:$L$500,N10) -> 2 | P10: =O10/$Q$4 -> 0.03773584906 | Q10: =IF(P10=0,0,(P10*((LOG(P10))/LOG(2)))) -> -0.1784120926 | T10: =N10 -> 122 | U10: =COUNTIF(L7:L15,T10) -> 0 | V10: =U10/(W4-U14) ->  | W10: =IF(V10=0,0,(V10*((LOG(V10))/LOG(2)))) ->  | Y10: =N10 -> 122 | Z10: =COUNTIF(L16:L24,Y10) -> 0 | AA10: =Z10/(AB4-Z14) -> 0 | AB10: =IF(AA10=0,0,(AA10*((LOG(AA10))/LOG(2)))) -> 0 | AD10: =N10 -> 122 | AE10: =COUNTIF(L25:L32,AD10) -> 1 | AF10: =AE10/(AG4-AE14) -> 0.5 | AG10: =IF(AF10=0,0,(AF10*((LOG(AF10))/LOG(2)))) -> -0.5 | AI10: =N10 -> 122 | AJ10: =COUNTIF(L33:L41,AI10) -> 0 | AK10: =AJ10/(AL4-AJ14) -> 0 | AL10: =IF(AK10=0,0,(AK10*((LOG(AK10))/LOG(2)))) -> 0 | AN10: =N10 -> 122 | AO10: =COUNTIF(L42:L50,AN10) -> 0 | AP10: =AO10/(AQ4-AO14) -> 0 | AQ10: =IF(AP10=0,0,(AP10*((LOG(AP10))/LOG(2)))) -> 0 | AS10: =N10 -> 122 | AT10: =COUNTIF(L51:L59,AS10) -> 1 | AU10: =AT10/(AV4-AT14) -> 0.2 | AV10: =IF(AU10=0,0,(AU10*((LOG(AU10))/LOG(2)))) -> -0.464385619
A11: 21 | B11: 1268 | C11: 21 | D11: 1272 | E11: 21 | F11: 1285 | K11: 0 | L11: 222 | N11: 211 | O11: =COUNTIF($L$7:$L$500,N11) -> 2 | P11: =O11/$Q$4 -> 0.03773584906 | Q11: =IF(P11=0,0,(P11*((LOG(P11))/LOG(2)))) -> -0.1784120926 | T11: =N11 -> 211 | U11: =COUNTIF(L7:L15,T11) -> 0 | V11: =U11/(W4-U14) ->  | W11: =IF(V11=0,0,(V11*((LOG(V11))/LOG(2)))) ->  | Y11: =N11 -> 211 | Z11: =COUNTIF(L16:L24,Y11) -> 0 | AA11: =Z11/(AB4-Z14) -> 0 | AB11: =IF(AA11=0,0,(AA11*((LOG(AA11))/LOG(2)))) -> 0 | AD11: =N11 -> 211 | AE11: =COUNTIF(L25:L32,AD11) -> 0 | AF11: =AE11/(AG4-AE14) -> 0 | AG11: =IF(AF11=0,0,(AF11*((LOG(AF11))/LOG(2)))) -> 0 | AI11: =N11 -> 211 | AJ11: =COUNTIF(L33:L41,AI11) -> 2 | AK11: =AJ11/(AL4-AJ14) -> 0.4 | AL11: =IF(AK11=0,0,(AK11*((LOG(AK11))/LOG(2)))) -> -0.528771238 | AN11: =N11 -> 211 | AO11: =COUNTIF(L42:L50,AN11) -> 0 | AP11: =AO11/(AQ4-AO14) -> 0 | AQ11: =IF(AP11=0,0,(AP11*((LOG(AP11))/LOG(2)))) -> 0 | AS11: =N11 -> 211 | AT11: =COUNTIF(L51:L59,AS11) -> 0 | AU11: =AT11/(AV4-AT14) -> 0 | AV11: =IF(AU11=0,0,(AU11*((LOG(AU11))/LOG(2)))) -> 0
A12: 21 | B12: 1550 | C12: 21 | D12: 1553 | E12: 21 | F12: 1557 | K12: 0 | L12: 222 | N12: 212 | O12: =COUNTIF($L$7:$L$500,N12) -> 2 | P12: =O12/$Q$4 -> 0.03773584906 | Q12: =IF(P12=0,0,(P12*((LOG(P12))/LOG(2)))) -> -0.1784120926 | T12: =N12 -> 212 | U12: =COUNTIF(L7:L15,T12) -> 0 | V12: =U12/(W4-U14) ->  | W12: =IF(V12=0,0,(V12*((LOG(V12))/LOG(2)))) ->  | Y12: =N12 -> 212 | Z12: =COUNTIF(L16:L24,Y12) -> 0 | AA12: =Z12/(AB4-Z14) -> 0 | AB12: =IF(AA12=0,0,(AA12*((LOG(AA12))/LOG(2)))) -> 0 | AD12: =N12 -> 212 | AE12: =COUNTIF(L25:L32,AD12) -> 0 | AF12: =AE12/(AG4-AE14) -> 0 | AG12: =IF(AF12=0,0,(AF12*((LOG(AF12))/LOG(2)))) -> 0 | AI12: =N12 -> 212 | AJ12: =COUNTIF(L33:L41,AI12) -> 1 | AK12: =AJ12/(AL4-AJ14) -> 0.2 | AL12: =IF(AK12=0,0,(AK12*((LOG(AK12))/LOG(2)))) -> -0.464385619 | AN12: =N12 -> 212 | AO12: =COUNTIF(L42:L50,AN12) -> 0 | AP12: =AO12/(AQ4-AO14) -> 0 | AQ12: =IF(AP12=0,0,(AP12*((LOG(AP12))/LOG(2)))) -> 0 | AS12: =N12 -> 212 | AT12: =COUNTIF(L51:L59,AS12) -> 1 | AU12: =AT12/(AV4-AT14) -> 0.2 | AV12: =IF(AU12=0,0,(AU12*((LOG(AU12))/LOG(2)))) -> -0.464385619
A13: 21 | B13: 1776 | C13: 21 | D13: 1784 | E13: 21 | F13: 1787 | K13: 0 | L13: 222 | N13: 221 | O13: =COUNTIF($L$7:$L$500,N13) -> 5 | P13: =O13/$Q$4 -> 0.09433962264 | Q13: =IF(P13=0,0,(P13*((LOG(P13))/LOG(2)))) -> -0.3213200339 | T13: =N13 -> 221 | U13: =COUNTIF(L7:L15,T13) -> 0 | V13: =U13/(W4-U14) ->  | W13: =IF(V13=0,0,(V13*((LOG(V13))/LOG(2)))) ->  | Y13: =N13 -> 221 | Z13: =COUNTIF(L16:L24,Y13) -> 1 | AA13: =Z13/(AB4-Z14) -> 1 | AB13: =IF(AA13=0,0,(AA13*((LOG(AA13))/LOG(2)))) -> 0 | AD13: =N13 -> 221 | AE13: =COUNTIF(L25:L32,AD13) -> 0 | AF13: =AE13/(AG4-AE14) -> 0 | AG13: =IF(AF13=0,0,(AF13*((LOG(AF13))/LOG(2)))) -> 0 | AI13: =N13 -> 221 | AJ13: =COUNTIF(L33:L41,AI13) -> 1 | AK13: =AJ13/(AL4-AJ14) -> 0.2 | AL13: =IF(AK13=0,0,(AK13*((LOG(AK13))/LOG(2)))) -> -0.464385619 | AN13: =N13 -> 221 | AO13: =COUNTIF(L42:L50,AN13) -> 2 | AP13: =AO13/(AQ4-AO14) -> 1 | AQ13: =IF(AP13=0,0,(AP13*((LOG(AP13))/LOG(2)))) -> 0 | AS13: =N13 -> 221 | AT13: =COUNTIF(L51:L59,AS13) -> 1 | AU13: =AT13/(AV4-AT14) -> 0.2 | AV13: =IF(AU13=0,0,(AU13*((LOG(AU13))/LOG(2)))) -> -0.464385619
A14: 21 | B14: 1910 | C14: 21 | D14: 1916 | E14: 21 | F14: 1919 | K14: 0 | L14: 222 | N14: 222 | O14: =COUNTIF($L$7:$L$500,N14) -> 38 | P14: =O14/$Q$4 -> 0.7169811321 | Q14: =IF(P14=0,0,(P14*((LOG(P14))/LOG(2)))) -> -0.3441458823 | T14: =N14 -> 222 | U14: =COUNTIF(L7:L15,T14) -> 9 | Y14: =N14 -> 222 | Z14: =COUNTIF(L16:L24,Y14) -> 8 | AD14: =N14 -> 222 | AE14: =COUNTIF(L25:L32,AD14) -> 6 | AI14: =N14 -> 222 | AJ14: =COUNTIF(L33:L41,AI14) -> 4 | AN14: =N14 -> 222 | AO14: =COUNTIF(L42:L50,AN14) -> 7 | AS14: =N14 -> 222 | AT14: =COUNTIF(L51:L59,AS14) -> 4
A15: 21 | B15: 2097 | C15: 21 | D15: 2100 | E15: 21 | F15: 2109 | K15: 0 | L15: 222 | P15: =SUM(P7:P14) -> 1 | Q15: =-SUM(Q7:Q14) -> 1.595262228 | V15: =SUM(V7:V14) ->  | W15: =-SUM(W7:W14) ->  | AA15: =SUM(AA7:AA14) -> 1 | AB15: =-SUM(AB7:AB14) -> 0 | AF15: =SUM(AF7:AF14) -> 1 | AG15: =-SUM(AG7:AG14) -> 1 | AK15: =SUM(AK7:AK14) -> 1 | AL15: =-SUM(AL7:AL14) -> 1.921928095 | AP15: =SUM(AP7:AP14) -> 1 | AQ15: =-SUM(AQ7:AQ14) -> 0 | AU15: =SUM(AU7:AU14) -> 1 | AV15: =-SUM(AV7:AV14) -> 2.321928095
A16: 21 | B16: 2200 | C16: 21 | D16: 2209 | E16: 21 | F16: 2211 | K16: 0 | L16: 222 | P16: U= | Q16: =Q15/(LOG(Q4)/LOG(2)) -> 0.2785063517 | V16: U1= | W16: =W15/(LOG(W4)/LOG(2)) ->  | AA16: U2= | AB16: =AB15/(LOG(AB4)/LOG(2)) -> 0 | AF16: U3= | AG16: =AG15/(LOG(AG4)/LOG(2)) -> 0.3333333333 | AK16: U4= | AL16: =AL15/(LOG(AL4)/LOG(2)) -> 0.6063008096 | AP16: U5= | AQ16: =AQ15/(LOG(AQ4)/LOG(2)) -> 0 | AU16: U6= | AV16: =AV15/(LOG(AV4)/LOG(2)) -> 0.7324867604
A17: 21 | B17: 2506 | C17: 21 | D17: 2509 | E17: 21 | F17: 2516 | K17: 0 | L17: 222
A18: 21 | B18: 2788 | C18: 21 | D18: 2796 | E18: 21 | F18: 2799 | K18: 0 | L18: 222
A19: 21 | B19: 3141 | C19: 21 | D19: 3143 | E19: 21 | F19: 3148 | K19: 0 | L19: 222 | N19: Total Target Seq
A20: 21 | B20: 3235 | C20: 21 | D20: 3245 | E20: 12 | F20: 3256 | K20: 0 | L20: 221 | N20: =COUNTIF(L7:L59,G3) -> 38 | P20: 9 | Q20: 9 | R20: 8 | S20: 9 | T20: 9 | U20: 9
A21: 21 | B21: 3402 | C21: 21 | D21: 3410 | E21: 21 | F21: 3414 | K21: 0 | L21: 222 | P21: % of reinforcement given in 6 equal intervals based on number of trials
A22: 21 | B22: 3549 | C22: 21 | D22: 3556 | E22: 21 | F22: 3562 | K22: 0 | L22: 222 | P22: %_1 | Q22: %_2 | R22: %_3 | S22: %_4 | T22: %_5 | U22: %_6
A23: 21 | B23: 3802 | C23: 21 | D23: 3810 | E23: 21 | F23: 3813 | K23: 0 | L23: 222 | O23: target sequence | P23: =$G$3 -> 222 | Q23: =$G$3 -> 222 | R23: =$G$3 -> 222 | S23: =$G$3 -> 222 | T23: =$G$3 -> 222 | U23: =$G$3 -> 222
A24: 21 | B24: 3978 | C24: 21 | D24: 3983 | E24: 21 | F24: 3990 | K24: 0 | L24: 222 | O24: total reinforcement | P24: =U14 -> 9 | Q24: =Z14 -> 8 | R24: =AE14 -> 6 | S24: =AJ14 -> 4 | T24: =AO14 -> 7 | U24: =AT14 -> 4
A25: 21 | B25: 4284 | C25: 21 | D25: 4286 | E25: 21 | F25: 4289 | K25: 0 | L25: 222 | O25: % target
A26: 21 | B26: 4402 | C26: 21 | D26: 4410 | E26: 21 | F26: 4414 | K26: 0 | L26: 222 | O26: CCRF
A27: 21 | B27: 4736 | C27: 21 | D27: 4739 | E27: 21 | F27: 4744 | K27: 0 | L27: 222 | O27: % CCRf
A28: 21 | B28: 4964 | C28: 21 | D28: 4966 | E28: 21 | F28: 5015 | K28: 0 | L28: 222 | O28: average response rate | P28: =F15/P20 -> 234.3333333 | Q28: =(F24-F15)/Q20 -> 209 | R28: =(F32-F24)/R20 -> 214.75 | S28: =(F41-F32)/S20 -> 169.5555556 | T28: =(F50-F41)/T20 -> 227.6666667 | U28: =(F59-F50)/U20 -> 169.6666667
A29: 12 | B29: 5135 | C29: 23 | D29: 5185 | E29: 23 | F29: 5189 | K29: 0 | L29: 122
A30: 12 | B30: 5345 | C30: 14 | D30: 5374 | E30: 14 | F30: 5387 | K30: 0 | L30: 111
A31: 21 | B31: 5551 | C31: 21 | D31: 5557 | E31: 21 | F31: 5559 | K31: 0 | L31: 222
A32: 21 | B32: 5700 | C32: 21 | D32: 5704 | E32: 21 | F32: 5708 | K32: 0 | L32: 222
A33: 21 | B33: 5915 | C33: 21 | D33: 5919 | E33: 21 | F33: 5922 | K33: 0 | L33: 222
A34: 21 | B34: 6143 | C34: 21 | D34: 6147 | E34: 21 | F34: 6154 | K34: 0 | L34: 222
A35: 21 | B35: 6345 | C35: 21 | D35: 6350 | E35: 21 | F35: 6352 | K35: 0 | L35: 222
A36: 21 | B36: 6541 | C36: 21 | D36: 6546 | E36: 21 | F36: 6607 | K36: 0 | L36: 222
A37: 12 | B37: 6711 | C37: 23 | D37: 6735 | E37: 14 | F37: 6746 | K37: 0 | L37: 121
A38: 21 | B38: 6838 | C38: 21 | D38: 6842 | E38: 12 | F38: 6848 | K38: 0 | L38: 221
A39: 21 | B39: 6956 | C39: 12 | D39: 6977 | E39: 14 | F39: 6981 | K39: 0 | L39: 211
A40: 21 | B40: 7082 | C40: 12 | D40: 7084 | E40: 14 | F40: 7108 | K40: 0 | L40: 211
A41: 21 | B41: 7201 | C41: 12 | D41: 7205 | E41: 23 | F41: 7234 | K41: 0 | L41: 212
A42: 21 | B42: 7344 | C42: 21 | D42: 7350 | E42: 21 | F42: 7356 | K42: 0 | L42: 222
A43: 21 | B43: 7640 | C43: 21 | D43: 7644 | E43: 21 | F43: 7648 | K43: 0 | L43: 222
A44: 21 | B44: 7892 | C44: 21 | D44: 7895 | E44: 12 | F44: 7918 | K44: 0 | L44: 221
A45: 21 | B45: 8024 | C45: 21 | D45: 8033 | E45: 21 | F45: 8037 | K45: 0 | L45: 222
A46: 21 | B46: 8278 | C46: 21 | D46: 8282 | E46: 21 | F46: 8288 | K46: 0 | L46: 222
A47: 21 | B47: 8589 | C47: 21 | D47: 8592 | E47: 21 | F47: 8598 | K47: 0 | L47: 222
A48: 21 | B48: 8762 | C48: 21 | D48: 8767 | E48: 21 | F48: 8773 | K48: 0 | L48: 222
A49: 21 | B49: 8964 | C49: 21 | D49: 8968 | E49: 21 | F49: 8975 | K49: 0 | L49: 222
A50: 21 | B50: 9217 | C50: 21 | D50: 9223 | E50: 12 | F50: 9283 | K50: 0 | L50: 221
A51: 12 | B51: 9389 | C51: 14 | D51: 9414 | E51: 23 | F51: 9433 | K51: 0 | L51: 112
A52: 21 | B52: 9543 | C52: 12 | D52: 9554 | E52: 23 | F52: 9565 | K52: 0 | L52: 212
A53: 12 | B53: 9665 | C53: 23 | D53: 9666 | E53: 23 | F53: 9672 | K53: 0 | L53: 122
A54: 21 | B54: 9887 | C54: 21 | D54: 9890 | E54: 21 | F54: 9895 | K54: 0 | L54: 222
A55: 21 | B55: 9991 | C55: 21 | D55: 9996 | E55: 21 | F55: 10001 | K55: 0 | L55: 222
A56: 21 | B56: 10207 | C56: 21 | D56: 10211 | E56: 21 | F56: 10217 | K56: 0 | L56: 222
A57: 21 | B57: 10477 | C57: 21 | D57: 10481 | E57: 12 | F57: 10509 | K57: 0 | L57: 221
A58: 12 | B58: 10609 | C58: 14 | D58: 10612 | E58: 14 | F58: 10619 | K58: 0 | L58: 111
A59: 21 | B59: 10804 | C59: 21 | D59: 10808 | E59: 21 | F59: 10810 | K59: 1 | L59: 222

Sheet !MC29A1B.AXT
A1: Report for:!MC29A1B.AXT
A2: Date: | B2: <date>
A3: Hen: | B3: <hen> | F3: Correct Sequence | G3: =Start!J2 -> 222 | P3: Total Sequences in Data | Q3: =4994-COUNTBLANK(L7:L5000) -> 50 | V3: Total Sequences in Block Data | W3: =COUNTA(L7:L14) -> 8 | AA3: Total Sequences in Block Data | AB3: =COUNTA(L15:L23) -> 9 | AF3: Total Sequences in Block Data | AG3: =COUNTA(L24:L31) -> 8 | AK3: Total Sequences in Block Data | AL3: =COUNTA(L32:L39) -> 8 | AP3: Total Sequences in Block Data | AQ3: =COUNTA(L40:L48) -> 9 | AU3: Total Sequences in Block Data | AV3: =COUNTA(L49:L56) -> 8
P4: Total Sequences in Summary | Q4: =SUM(O7:O14) -> 50 | V4: Total Sequences in Block Summary | W4: =SUM(U7:U14) -> 8 | AA4: Total Sequences in Block Summary | AB4: =SUM(Z7:Z14) -> 9 | AF4: Total Sequences in Block Summary | AG4: =SUM(AE7:AE14) -> 8 | AK4: Total Sequences in Block Summary | AL4: =SUM(AJ7:AJ14) -> 8 | AP4: Total Sequences in Block Summary | AQ4: =SUM(AO7:AO14) -> 9 | AU4: Total Sequences in Block Summary | AV4: =SUM(AT7:AT14) -> 8
T5: Block 1 | Y5: Block 2 | AD5: Block 3 | AI5: Block 4 | AN5: Block 5 | AS5: Block 6
A6: Sequence Component 1 | B6: Time 1 | C6: Sequence Component 2 | D6: Time 2 | E6: Sequence Component 3 | F6: Time 3 | G6: Sequence Component 4 | H6: Time 4 | I6: Sequence Component 5 | J6: Time 5 | K6: Correct? 0=No 1=Yes | L6: Sequence | N6: Frequency | P6: Relative Frequency | Q6: Variability | T6: Frequency | V6: Relative Frequency | W6: Variability | Y6: Frequency | AA6: Relative Frequency | AB6: Variability | AD6: Frequency | AF6: Relative Frequency | AG6: Variability | AI6: Frequency | AK6: Relative Frequency | AL6: Variability | AN6: Frequency | AP6: Relative Frequency | AQ6: Variability | AS6: Frequency | AU6: Relative Frequency | AV6: Variability
A7: 21 | B7: 77 | C7: 21 | D7: 109 | E7: 21 | F7: 116 | K7: 0 | L7: 222 | N7: 111 | O7: =COUNTIF($L$7:$L$500,N7) -> 2 | P7: =O7/$Q$4 -> 0.04 | Q7: =IF(P7=0,0,(P7*((LOG(P7))/LOG(2)))) -> -0.1857542476 | T7: =N7 -> 111 | U7: =COUNTIF(L7:L14,T7) -> 0 | V7: =U7/(W4-U14) -> 0 | W7: =IF(V7=0,0,(V7*((LOG(V7))/LOG(2)))) -> 0 | Y7: =N7 -> 111 | Z7: =COUNTIF(L15:L23,Y7) -> 0 | AA7: =Z7/(AB4-Z14) ->  | AB7: =IF(AA7=0,0,(AA7*((LOG(AA7))/LOG(2)))) ->  | AD7: =N7 -> 111 | AE7: =COUNTIF(L24:L31,AD7) -> 0 | AF7: =AE7/(AG4-AE14) ->  | AG7: =IF(AF7=0,0,(AF7*((LOG(AF7))/LOG(2)))) ->  | AI7: =N7 -> 111 | AJ7: =COUNTIF(L32:L39,AI7) -> 0 | AK7: =AJ7/(AL4-AJ14) ->  | AL7: =IF(AK7=0,0,(AK7*((LOG(AK7))/LOG(2)))) ->  | AN7: =N7 -> 111 | AO7: =COUNTIF(L40:L48,AN7) -> 0 | AP7: =AO7/(AQ4-AO14) -> 0 | AQ7: =IF(AP7=0,0,(AP7*((LOG(AP7))/LOG(2)))) -> 0 | AS7: =N7 -> 111 | AT7: =COUNTIF(L49:L56,AS7) -> 2 | AU7: =AT7/(AV4-AT14) -> 0.2857142857 | AV7: =IF(AU7=0,0,(AU7*((LOG(AU7))/LOG(2)))) -> -0.5163871206
A8: 21 | B8: 224 | C8: 21 | D8: 229 | E8: 21 | F8: 232 | K8: 0 | L8: 222 | N8: 112 | O8: =COUNTIF($L$7:$L$500,N8) -> 0 | P8: =O8/$Q$4 -> 0 | Q8: =IF(P8=0,0,(P8*((LOG(P8))/LOG(2)))) -> 0 | T8: =N8 -> 112 | U8: =COUNTIF(L7:L14,T8) -> 0 | V8: =U8/(W4-U14) -> 0 | W8: =IF(V8=0,0,(V8*((LOG(V8))/LOG(2)))) -> 0 | Y8: =N8 -> 112 | Z8: =COUNTIF(L15:L23,Y8) -> 0 | AA8: =Z8/(AB4-Z14) ->  | AB8: =IF(AA8=0,0,(AA8*((LOG(AA8))/LOG(2)))) ->  | AD8: =N8 -> 112 | AE8: =COUNTIF(L24:L31,AD8) -> 0 | AF8: =AE8/(AG4-AE14) ->  | AG8: =IF(AF8=0,0,(AF8*((LOG(AF8))/LOG(2)))) ->  | AI8: =N8 -> 112 | AJ8: =COUNTIF(L32:L39,AI8) -> 0 | AK8: =AJ8/(AL4-AJ14) ->  | AL8: =IF(AK8=0,0,(AK8*((LOG(AK8))/LOG(2)))) ->  | AN8: =N8 -> 112 | AO8: =COUNTIF(L40:L48,AN8) -> 0 | AP8: =AO8/(AQ4-AO14) -> 0 | AQ8: =IF(AP8=0,0,(AP8*((LOG(AP8))/LOG(2)))) -> 0 | AS8: =N8 -> 112 | AT8: =COUNTIF(L49:L56,AS8) -> 0 | AU8: =AT8/(AV4-AT14) -> 0 | AV8: =IF(AU8=0,0,(AU8*((LOG(AU8))/LOG(2)))) -> 0
A9: 21 | B9: 445 | C9: 21 | D9: 448 | E9: 21 | F9: 455 | K9: 0 | L9: 222 | N9: 121 | O9: =COUNTIF($L$7:$L$500,N9) -> 1 | P9: =O9/$Q$4 -> 0.02 | Q9: =IF(P9=0,0,(P9*((LOG(P9))/LOG(2)))) -> -0.1128771238 | T9: =N9 -> 121 | U9: =COUNTIF(L7:L14,T9) -> 0 | V9: =U9/(W4-U14) -> 0 | W9: =IF(V9=0,0,(V9*((LOG(V9))/LOG(2)))) -> 0 | Y9: =N9 -> 121 | Z9: =COUNTIF(L15:L23,Y9) -> 0 | AA9: =Z9/(AB4-Z14) ->  | AB9: =IF(AA9=0,0,(AA9*((LOG(AA9))/LOG(2)))) ->  | AD9: =N9 -> 121 | AE9: =COUNTIF(L24:L31,AD9) -> 0 | AF9: =AE9/(AG4-AE14) ->  | AG9: =IF(AF9=0,0,(AF9*((LOG(AF9))/LOG(2)))) ->  | AI9: =N9 -> 121 | AJ9: =COUNTIF(L32:L39,AI9) -> 0 | AK9: =AJ9/(AL4-AJ14) ->  | AL9: =IF(AK9=0,0,(AK9*((LOG(AK9))/LOG(2)))) ->  | AN9: =N9 -> 121 | AO9: =COUNTIF(L40:L48,AN9) -> 0 | AP9: =AO9/(AQ4-AO14) -> 0 | AQ9: =IF(AP9=0,0,(AP9*((LOG(AP9))/LOG(2)))) -> 0 | AS9: =N9 -> 121 | AT9: =COUNTIF(L49:L56,AS9) -> 1 | AU9: =AT9/(AV4-AT14) -> 0.1428571429 | AV9: =IF(AU9=0,0,(AU9*((LOG(AU9))/LOG(2)))) -> -0.4010507032
A10: 21 | B10: 801 | C10: 21 | D10: 804 | E10: 21 | F10: 807 | K10: 0 | L10: 222 | N10: 122 | O10: =COUNTIF($L$7:$L$500,N10) -> 4 | P10: =O10/$Q$4 -> 0.08 | Q10: =IF(P10=0,0,(P10*((LOG(P10))/LOG(2)))) -> -0.2915084952 | T10: =N10 -> 122 | U10: =COUNTIF(L7:L14,T10) -> 1 | V10: =U10/(W4-U14) -> 0.5 | W10: =IF(V10=0,0,(V10*((LOG(V10))/LOG(2)))) -> -0.5 | Y10: =N10 -> 122 | Z10: =COUNTIF(L15:L23,Y10) -> 0 | AA10: =Z10/(AB4-Z14) ->  | AB10: =IF(AA10=0,0,(AA10*((LOG(AA10))/LOG(2)))) ->  | AD10: =N10 -> 122 | AE10: =COUNTIF(L24:L31,AD10) -> 0 | AF10: =AE10/(AG4-AE14) ->  | AG10: =IF(AF10=0,0,(AF10*((LOG(AF10))/LOG(2)))) ->  | AI10: =N10 -> 122 | AJ10: =COUNTIF(L32:L39,AI10) -> 0 | AK10: =AJ10/(AL4-AJ14) ->  | AL10: =IF(AK10=0,0,(AK10*((LOG(AK10))/LOG(2)))) ->  | AN10: =N10 -> 122 | AO10: =COUNTIF(L40:L48,AN10) -> 2 | AP10: =AO10/(AQ4-AO14) -> 0.5 | AQ10: =IF(AP10=0,0,(AP10*((LOG(AP10))/LOG(2)))) -> -0.5 | AS10: =N10 -> 122 | AT10: =COUNTIF(L49:L56,AS10) -> 1 | AU10: =AT10/(AV4-AT14) -> 0.1428571429 | AV10: =IF(AU10=0,0,(AU10*((LOG(AU10))/LOG(2)))) -> -0.4010507032
A11: 21 | B11: 926 | C11: 21 | D11: 928 | E11: 21 | F11: 931 | K11: 0 | L11: 222 | N11: 211 | O11: =COUNTIF($L$7:$L$500,N11) -> 0 | P11: =O11/$Q$4 -> 0 | Q11: =IF(P11=0,0,(P11*((LOG(P11))/LOG(2)))) -> 0 | T11: =N11 -> 211 | U11: =COUNTIF(L7:L14,T11) -> 0 | V11: =U11/(W4-U14) -> 0 | W11: =IF(V11=0,0,(V11*((LOG(V11))/LOG(2)))) -> 0 | Y11: =N11 -> 211 | Z11: =COUNTIF(L15:L23,Y11) -> 0 | AA11: =Z11/(AB4-Z14) ->  | AB11: =IF(AA11=0,0,(AA11*((LOG(AA11))/LOG(2)))) ->  | AD11: =N11 -> 211 | AE11: =COUNTIF(L24:L31,AD11) -> 0 | AF11: =AE11/(AG4-AE14) ->  | AG11: =IF(AF11=0,0,(AF11*((LOG(AF11))/LOG(2)))) ->  | AI11: =N11 -> 211 | AJ11: =COUNTIF(L32:L39,AI11) -> 0 | AK11: =AJ11/(AL4-AJ14) ->  | AL11: =IF(AK11=0,0,(AK11*((LOG(AK11))/LOG(2)))) ->  | AN11: =N11 -> 211 | AO11: =COUNTIF(L40:L48,AN11) -> 0 | AP11: =AO11/(AQ4-AO14) -> 0 | AQ11: =IF(AP11=0,0,(AP11*((LOG(AP11))/LOG(2)))) -> 0 | AS11: =N11 -> 211 | AT11: =COUNTIF(L49:L56,AS11) -> 0 | AU11: =AT11/(AV4-AT14) -> 0 | AV11: =IF(AU11=0,0,(AU11*((LOG(AU11))/LOG(2)))) -> 0
A12: 12 | B12: 1039 | C12: 23 | D12: 1063 | E12: 23 | F12: 1066 | K12: 0 | L12: 122 | N12: 212 | O12: =COUNTIF($L$7:$L$500,N12) -> 3 | P12: =O12/$Q$4 -> 0.06 | Q12: =IF(P12=0,0,(P12*((LOG(P12))/LOG(2)))) -> -0.2435336213 | T12: =N12 -> 212 | U12: =COUNTIF(L7:L14,T12) -> 1 | V12: =U12/(W4-U14) -> 0.5 | W12: =IF(V12=0,0,(V12*((LOG(V12))/LOG(2)))) -> -0.5 | Y12: =N12 -> 212 | Z12: =COUNTIF(L15:L23,Y12) -> 0 | AA12: =Z12/(AB4-Z14) ->  | AB12: =IF(AA12=0,0,(AA12*((LOG(AA12))/LOG(2)))) ->  | AD12: =N12 -> 212 | AE12: =COUNTIF(L24:L31,AD12) -> 0 | AF12: =AE12/(AG4-AE14) ->  | AG12: =IF(AF12=0,0,(AF12*((LOG(AF12))/LOG(2)))) ->  | AI12: =N12 -> 212 | AJ12: =COUNTIF(L32:L39,AI12) -> 0 | AK12: =AJ12/(AL4-AJ14) ->  | AL12: =IF(AK12=0,0,(AK12*((LOG(AK12))/LOG(2)))) ->  | AN12: =N12 -> 212 | AO12: =COUNTIF(L40:L48,AN12) -> 1 | AP12: =AO12/(AQ4-AO14) -> 0.25 | AQ12: =IF(AP12=0,0,(AP12*((LOG(AP12))/LOG(2)))) -> -0.5 | AS12: =N12 -> 212 | AT12: =COUNTIF(L49:L56,AS12) -> 1 | AU12: =AT12/(AV4-AT14) -> 0.1428571429 | AV12: =IF(AU12=0,0,(AU12*((LOG(AU12))/LOG(2)))) -> -0.4010507032
A13: 21 | B13: 1218 | C13: 21 | D13: 1223 | E13: 21 | F13: 1226 | K13: 0 | L13: 222 | N13: 221 | O13: =COUNTIF($L$7:$L$500,N13) -> 3 | P13: =O13/$Q$4 -> 0.06 | Q13: =IF(P13=0,0,(P13*((LOG(P13))/LOG(2)))) -> -0.2435336213 | T13: =N13 -> 221 | U13: =COUNTIF(L7:L14,T13) -> 0 | V13: =U13/(W4-U14) -> 0 | W13: =IF(V13=0,0,(V13*((LOG(V13))/LOG(2)))) -> 0 | Y13: =N13 -> 221 | Z13: =COUNTIF(L15:L23,Y13) -> 0 | AA13: =Z13/(AB4-Z14) ->  | AB13: =IF(AA13=0,0,(AA13*((LOG(AA13))/LOG(2)))) ->  | AD13: =N13 -> 221 | AE13: =COUNTIF(L24:L31,AD13) -> 0 | AF13: =AE13/(AG4-AE14) ->  | AG13: =IF(AF13=0,0,(AF13*((LOG(AF13))/LOG(2)))) ->  | AI13: =N13 -> 221 | AJ13: =COUNTIF(L32:L39,AI13) -> 0 | AK13: =AJ13/(AL4-AJ14) ->  | AL13: =IF(AK13=0,0,(AK13*((LOG(AK13))/LOG(2)))) ->  | AN13: =N13 -> 221 | AO13: =COUNTIF(L40:L48,AN13) -> 1 | AP13: =AO13/(AQ4-AO14) -> 0.25 | AQ13: =IF(AP13=0,0,(AP13*((LOG(AP13))/LOG(2)))) -> -0.5 | AS13: =N13 -> 221 | AT13: =COUNTIF(L49:L56,AS13) -> 2 | AU13: =AT13/(AV4-AT14) -> 0.2857142857 | AV13: =IF(AU13=0,0,(AU13*((LOG(AU13))/LOG(2)))) -> -0.5163871206
A14: 21 | B14: 1333 | C14: 12 | D14: 1350 | E14: 23 | F14: 1358 | K14: 0 | L14: 212 | N14: 222 | O14: =COUNTIF($L$7:$L$500,N14) -> 37 | P14: =O14/$Q$4 -> 0.74 | Q14: =IF(P14=0,0,(P14*((LOG(P14))/LOG(2)))) -> -0.3214580899 | T14: =N14 -> 222 | U14: =COUNTIF(L7:L14,T14) -> 6 | Y14: =N14 -> 222 | Z14: =COUNTIF(L15:L23,Y14) -> 9 | AD14: =N14 -> 222 | AE14: =COUNTIF(L24:L31,AD14) -> 8 | AI14: =N14 -> 222 | AJ14: =COUNTIF(L32:L39,AI14) -> 8 | AN14: =N14 -> 222 | AO14: =COUNTIF(L40:L48,AN14) -> 5 | AS14: =N14 -> 222 | AT14: =COUNTIF(L49:L56,AS14) -> 1
A15: 21 | B15: 1450 | C15: 21 | D15: 1455 | E15: 21 | F15: 1459 | K15: 0 | L15: 222 | P15: =SUM(P7:P14) -> 1 | Q15: =-SUM(Q7:Q14) -> 1.398665199 | V15: =SUM(V7:V14) -> 1 | W15: =-SUM(W7:W14) -> 1 | AA15: =SUM(AA7:AA14) ->  | AB15: =-SUM(AB7:AB14) ->  | AF15: =SUM(AF7:AF14) ->  | AG15: =-SUM(AG7:AG14) ->  | AK15: =SUM(AK7:AK14) ->  | AL15: =-SUM(AL7:AL14) ->  | AP15: =SUM(AP7:AP14) -> 1 | AQ15: =-SUM(AQ7:AQ14) -> 1.5 | AU15: =SUM(AU7:AU14) -> 1 | AV15: =-SUM(AV7:AV14) -> 2.235926351
A16: 21 | B16: 1583 | C16: 21 | D16: 1588 | E16: 21 | F16: 1591 | K16: 0 | L16: 222 | P16: U= | Q16: =Q15/(LOG(Q4)/LOG(2)) -> 0.2478208431 | V16: U1= | W16: =W15/(LOG(W4)/LOG(2)) -> 0.3333333333 | AA16: U2= | AB16: =AB15/(LOG(AB4)/LOG(2)) ->  | AF16: U3= | AG16: =AG15/(LOG(AG4)/LOG(2)) ->  | AK16: U4= | AL16: =AL15/(LOG(AL4)/LOG(2)) ->  | AP16: U5= | AQ16: =AQ15/(LOG(AQ4)/LOG(2)) -> 0.4731973152 | AU16: U6= | AV16: =AV15/(LOG(AV4)/LOG(2)) -> 0.7453087835
A17: 21 | B17: 1719 | C17: 21 | D17: 1725 | E17: 21 | F17: 1728 | K17: 0 | L17: 222
A18: 21 | B18: 1897 | C18: 21 | D18: 1903 | E18: 21 | F18: 1907 | K18: 0 | L18: 222
A19: 21 | B19: 2120 | C19: 21 | D19: 2122 | E19: 21 | F19: 2128 | K19: 0 | L19: 222 | N19: Total Target Seq
A20: 21 | B20: 2264 | C20: 21 | D20: 2267 | E20: 21 | F20: 2271 | K20: 0 | L20: 222 | N20: =COUNTIF(L7:L56,G3) -> 37 | P20: 8 | Q20: 9 | R20: 8 | S20: 8 | T20: 9 | U20: 8
A21: 21 | B21: 2377 | C21: 21 | D21: 2383 | E21: 21 | F21: 2387 | K21: 0 | L21: 222 | P21: % of reinforcement given in 6 equal intervals based on number of trials
A22: 21 | B22: 2571 | C22: 21 | D22: 2577 | E22: 21 | F22: 2582 | K22: 0 | L22: 222 | P22: %_1 | Q22: %_2 | R22: %_3 | S22: %_4 | T22: %_5 | U22: %_6
A23: 21 | B23: 2786 | C23: 21 | D23: 2788 | E23: 21 | F23: 2792 | K23: 0 | L23: 222 | O23: target sequence | P23: =$G$3 -> 222 | Q23: =$G$3 -> 222 | R23: =$G$3 -> 222 | S23: =$G$3 -> 222 | T23: =$G$3 -> 222 | U23: =$G$3 -> 222
A24: 21 | B24: 2917 | C24: 21 | D24: 2921 | E24: 21 | F24: 2927 | K24: 0 | L24: 222 | O24: total reinforcement | P24: =U14 -> 6 | Q24: =Z14 -> 9 | R24: =AE14 -> 8 | S24: =AJ14 -> 8 | T24: =AO14 -> 5 | U24: =AT14 -> 1
A25: 21 | B25: 3210 | C25: 21 | D25: 3216 | E25: 21 | F25: 3220 | K25: 0 | L25: 222 | O25: % target
A26: 21 | B26: 3488 | C26: 21 | D26: 3493 | E26: 21 | F26: 3497 | K26: 0 | L26: 222 | O26: CCRF
A27: 21 | B27: 3679 | C27: 21 | D27: 3684 | E27: 21 | F27: 3688 | K27: 0 | L27: 222 | O27: % CCRf
A28: 21 | B28: 3887 | C28: 21 | D28: 3894 | E28: 21 | F28: 3899 | K28: 0 | L28: 222 | O28: average response rate | P28: =F14/P20 -> 169.75 | Q28: =(F23-F14)/Q20 -> 159.3333333 | R28: =(F31-F23)/R20 -> 204 | S28: =(F39-F31)/S20 -> 232.125 | T28: =(F48-F39)/T20 -> 201.3333333 | U28: =(F56-F48)/U20 -> 180.75
A29: 21 | B29: 4145 | C29: 21 | D29: 4151 | E29: 21 | F29: 4156 | K29: 0 | L29: 222
A30: 21 | B30: 4293 | C30: 21 | D30: 4298 | E30: 21 | F30: 4300 | K30: 0 | L30: 222
A31: 21 | B31: 4416 | C31: 21 | D31: 4420 | E31: 21 | F31: 4424 | K31: 0 | L31: 222
A32: 21 | B32: 4754 | C32: 21 | D32: 4759 | E32: 21 | F32: 4763 | K32: 0 | L32: 222
A33: 21 | B33: 4969 | C33: 21 | D33: 4974 | E33: 21 | F33: 4977 | K33: 0 | L33: 222
A34: 21 | B34: 5207 | C34: 21 | D34: 5211 | E34: 21 | F34: 5214 | K34: 0 | L34: 222
A35: 21 | B35: 5324 | C35: 21 | D35: 5326 | E35: 21 | F35: 5330 | K35: 0 | L35: 222
A36: 21 | B36: 5429 | C36: 21 | D36: 5434 | E36: 21 | F36: 5440 | K36: 0 | L36: 222
A37: 21 | B37: 5755 | C37: 21 | D37: 5762 | E37: 21 | F37: 5765 | K37: 0 | L37: 222
A38: 21 | B38: 6040 | C38: 21 | D38: 6085 | E38: 21 | F38: 6088 | K38: 0 | L38: 222
A39: 21 | B39: 6272 | C39: 21 | D39: 6277 | E39: 21 | F39: 6281 | K39: 0 | L39: 222
A40: 21 | B40: 6374 | C40: 21 | D40: 6377 | E40: 21 | F40: 6471 | K40: 0 | L40: 222
A41: 21 | B41: 6602 | C41: 12 | D41: 6613 | E41: 23 | F41: 6623 | K41: 0 | L41: 212
A42: 21 | B42: 6742 | C42: 21 | D42: 6745 | E42: 21 | F42: 6747 | K42: 0 | L42: 222
A43: 21 | B43: 7015 | C43: 21 | D43: 7024 | E43: 21 | F43: 7139 | K43: 0 | L43: 222
A44: 21 | B44: 7299 | C44: 21 | D44: 7304 | E44: 21 | F44: 7307 | K44: 0 | L44: 222
A45: 21 | B45: 7566 | C45: 21 | D45: 7568 | E45: 21 | F45: 7573 | K45: 0 | L45: 222
A46: 21 | B46: 7811 | C46: 21 | D46: 7815 | E46: 12 | F46: 7853 | K46: 0 | L46: 221
A47: 12 | B47: 7947 | C47: 23 | D47: 7961 | E47: 23 | F47: 7969 | K47: 0 | L47: 122
A48: 12 | B48: 8076 | C48: 23 | D48: 8091 | E48: 23 | F48: 8093 | K48: 0 | L48: 122
A49: 12 | B49: 8250 | C49: 23 | D49: 8257 | E49: 14 | F49: 8267 | K49: 0 | L49: 121
A50: 12 | B50: 8359 | C50: 14 | D50: 8369 | E50: 14 | F50: 8377 | K50: 0 | L50: 111
A51: 12 | B51: 8472 | C51: 14 | D51: 8487 | E51: 14 | F51: 8498 | K51: 0 | L51: 111
A52: 21 | B52: 8674 | C52: 21 | D52: 8677 | E52: 12 | F52: 8702 | K52: 0 | L52: 221
A53: 21 | B53: 8965 | C53: 12 | D53: 8980 | E53: 23 | F53: 8986 | K53: 0 | L53: 212
A54: 12 | B54: 9084 | C54: 23 | D54: 9103 | E54: 23 | F54: 9106 | K54: 0 | L54: 122
A55: 21 | B55: 9388 | C55: 21 | D55: 9407 | E55: 12 | F55: 9408 | K55: 0 | L55: 221
A56: 21 | B56: 9521 | C56: 21 | D56: 9535 | E56: 21 | F56: 9539 | K56: 1 | L56: 222

Sheet !MC3094B.AXT
A1: Report for:!MC3094B.AXT
A2: Date: | B2: <date>
A3: Hen: | B3: <hen> | F3: Correct Sequence | G3: =Start!J2 -> 222 | P3: Total Sequences in Data | Q3: =4994-COUNTBLANK(L7:L5000) -> 30 | V3: Total Sequences in Block Data | W3: =COUNTA(L7:L11) -> 5 | AA3: Total Sequences in Block Data | AB3: =COUNTA(L12:L16) -> 5 | AF3: Total Sequences in Block Data | AG3: =COUNTA(L17:L21) -> 5 | AK3: Total Sequences in Block Data | AL3: =COUNTA(L22:L26) -> 5 | AP3: Total Sequences in Block Data | AQ3: =COUNTA(L27:L31) -> 5 | AU3: Total Sequences in Block Data | AV3: =COUNTA(L32:L36) -> 5
P4: Total Sequences in Summary | Q4: =SUM(O7:O14) -> 30 | V4: Total Sequences in Block Summary | W4: =SUM(U7:U14) -> 5 | AA4: Total Sequences in Block Summary | AB4: =SUM(Z7:Z14) -> 5 | AF4: Total Sequences in Block Summary | AG4: =SUM(AE7:AE14) -> 5 | AK4: Total Sequences in Block Summary | AL4: =SUM(AJ7:AJ14) -> 5 | AP4: Total Sequences in Block Summary | AQ4: =SUM(AO7:AO14) -> 5 | AU4: Total Sequences in Block Summary | AV4: =SUM(AT7:AT14) -> 5
T5: Block 1 | Y5: Block 2 | AD5: Block 3 | AI5: Block 4 | AN5: Block 5 | AS5: Block 6
A6: Sequence Component 1 | B6: Time 1 | C6: Sequence Component 2 | D6: Time 2 | E6: Sequence Component 3 | F6: Time 3 | G6: Sequence Component 4 | H6: Time 4 | I6: Sequence Component 5 | J6: Time 5 | K6: Correct? 0=No 1=Yes | L6: Sequence | N6: Frequency | P6: Relative Frequency | Q6: Variability | T6: Frequency | V6: Relative Frequency | W6: Variability | Y6: Frequency | AA6: Relative Frequency | AB6: Variability | AD6: Frequency | AF6: Relative Frequency | AG6: Variability | AI6: Frequency | AK6: Relative Frequency | AL6: Variability | AN6: Frequency | AP6: Relative Frequency | AQ6: Variability | AS6: Frequency | AU6: Relative Frequency | AV6: Variability
A7: 21 | B7: 11 | C7: 21 | D7: 14 | E7: 12 | F7: 17 | K7: 0 | L7: 221 | N7: 111 | O7: =COUNTIF($L$7:$L$500,N7) -> 4 | P7: =O7/$Q$4 -> 0.1333333333 | Q7: =IF(P7=0,0,(P7*((LOG(P7))/LOG(2)))) -> -0.3875854127 | T7: =N7 -> 111 | U7: =COUNTIF(L7:L11,T7) -> 2 | V7: =U7/(W4-U14) -> 0.4 | W7: =IF(V7=0,0,(V7*((LOG(V7))/LOG(2)))) -> -0.528771238 | Y7: =N7 -> 111 | Z7: =COUNTIF(L12:L16,Y7) -> 0 | AA7: =Z7/(AB4-Z14) -> 0 | AB7: =IF(AA7=0,0,(AA7*((LOG(AA7))/LOG(2)))) -> 0 | AD7: =N7 -> 111 | AE7: =COUNTIF(L17:L21,AD7) -> 1 | AF7: =AE7/(AG4-AE14) -> 0.3333333333 | AG7: =IF(AF7=0,0,(AF7*((LOG(AF7))/LOG(2)))) -> -0.5283208336 | AI7: =N7 -> 111 | AJ7: =COUNTIF(L22:L26,AI7) -> 0 | AK7: =AJ7/(AL4-AJ14) -> 0 | AL7: =IF(AK7=0,0,(AK7*((LOG(AK7))/LOG(2)))) -> 0 | AN7: =N7 -> 111 | AO7: =COUNTIF(L27:L31,AN7) -> 1 | AP7: =AO7/(AQ4-AO14) -> 0.2 | AQ7: =IF(AP7=0,0,(AP7*((LOG(AP7))/LOG(2)))) -> -0.464385619 | AS7: =N7 -> 111 | AT7: =COUNTIF(L32:L36,AS7) -> 0 | AU7: =AT7/(AV4-AT14) -> 0 | AV7: =IF(AU7=0,0,(AU7*((LOG(AU7))/LOG(2)))) -> 0
A8: 21 | B8: 120 | C8: 12 | D8: 122 | E8: 23 | F8: 127 | K8: 0 | L8: 212 | N8: 112 | O8: =COUNTIF($L$7:$L$500,N8) -> 2 | P8: =O8/$Q$4 -> 0.06666666667 | Q8: =IF(P8=0,0,(P8*((LOG(P8))/LOG(2)))) -> -0.260459373 | T8: =N8 -> 112 | U8: =COUNTIF(L7:L11,T8) -> 0 | V8: =U8/(W4-U14) -> 0 | W8: =IF(V8=0,0,(V8*((LOG(V8))/LOG(2)))) -> 0 | Y8: =N8 -> 112 | Z8: =COUNTIF(L12:L16,Y8) -> 0 | AA8: =Z8/(AB4-Z14) -> 0 | AB8: =IF(AA8=0,0,(AA8*((LOG(AA8))/LOG(2)))) -> 0 | AD8: =N8 -> 112 | AE8: =COUNTIF(L17:L21,AD8) -> 0 | AF8: =AE8/(AG4-AE14) -> 0 | AG8: =IF(AF8=0,0,(AF8*((LOG(AF8))/LOG(2)))) -> 0 | AI8: =N8 -> 112 | AJ8: =COUNTIF(L22:L26,AI8) -> 0 | AK8: =AJ8/(AL4-AJ14) -> 0 | AL8: =IF(AK8=0,0,(AK8*((LOG(AK8))/LOG(2)))) -> 0 | AN8: =N8 -> 112 | AO8: =COUNTIF(L27:L31,AN8) -> 1 | AP8: =AO8/(AQ4-AO14) -> 0.2 | AQ8: =IF(AP8=0,0,(AP8*((LOG(AP8))/LOG(2)))) -> -0.464385619 | AS8: =N8 -> 112 | AT8: =COUNTIF(L32:L36,AS8) -> 1 | AU8: =AT8/(AV4-AT14) -> 0.2 | AV8: =IF(AU8=0,0,(AU8*((LOG(AU8))/LOG(2)))) -> -0.464385619
A9: 12 | B9: 224 | C9: 14 | D9: 233 | E9: 14 | F9: 245 | K9: 0 | L9: 111 | N9: 121 | O9: =COUNTIF($L$7:$L$500,N9) -> 5 | P9: =O9/$Q$4 -> 0.1666666667 | Q9: =IF(P9=0,0,(P9*((LOG(P9))/LOG(2)))) -> -0.4308270835 | T9: =N9 -> 121 | U9: =COUNTIF(L7:L11,T9) -> 0 | V9: =U9/(W4-U14) -> 0 | W9: =IF(V9=0,0,(V9*((LOG(V9))/LOG(2)))) -> 0 | Y9: =N9 -> 121 | Z9: =COUNTIF(L12:L16,Y9) -> 3 | AA9: =Z9/(AB4-Z14) -> 0.6 | AB9: =IF(AA9=0,0,(AA9*((LOG(AA9))/LOG(2)))) -> -0.4421793565 | AD9: =N9 -> 121 | AE9: =COUNTIF(L17:L21,AD9) -> 0 | AF9: =AE9/(AG4-AE14) -> 0 | AG9: =IF(AF9=0,0,(AF9*((LOG(AF9))/LOG(2)))) -> 0 | AI9: =N9 -> 121 | AJ9: =COUNTIF(L22:L26,AI9) -> 1 | AK9: =AJ9/(AL4-AJ14) -> 0.25 | AL9: =IF(AK9=0,0,(AK9*((LOG(AK9))/LOG(2)))) -> -0.5 | AN9: =N9 -> 121 | AO9: =COUNTIF(L27:L31,AN9) -> 0 | AP9: =AO9/(AQ4-AO14) -> 0 | AQ9: =IF(AP9=0,0,(AP9*((LOG(AP9))/LOG(2)))) -> 0 | AS9: =N9 -> 121 | AT9: =COUNTIF(L32:L36,AS9) -> 1 | AU9: =AT9/(AV4-AT14) -> 0.2 | AV9: =IF(AU9=0,0,(AU9*((LOG(AU9))/LOG(2)))) -> -0.464385619
A10: 12 | B10: 373 | C10: 14 | D10: 375 | E10: 14 | F10: 378 | K10: 0 | L10: 111 | N10: 122 | O10: =COUNTIF($L$7:$L$500,N10) -> 1 | P10: =O10/$Q$4 -> 0.03333333333 | Q10: =IF(P10=0,0,(P10*((LOG(P10))/LOG(2)))) -> -0.1635630199 | T10: =N10 -> 122 | U10: =COUNTIF(L7:L11,T10) -> 0 | V10: =U10/(W4-U14) -> 0 | W10: =IF(V10=0,0,(V10*((LOG(V10))/LOG(2)))) -> 0 | Y10: =N10 -> 122 | Z10: =COUNTIF(L12:L16,Y10) -> 0 | AA10: =Z10/(AB4-Z14) -> 0 | AB10: =IF(AA10=0,0,(AA10*((LOG(AA10))/LOG(2)))) -> 0 | AD10: =N10 -> 122 | AE10: =COUNTIF(L17:L21,AD10) -> 1 | AF10: =AE10/(AG4-AE14) -> 0.3333333333 | AG10: =IF(AF10=0,0,(AF10*((LOG(AF10))/LOG(2)))) -> -0.5283208336 | AI10: =N10 -> 122 | AJ10: =COUNTIF(L22:L26,AI10) -> 0 | AK10: =AJ10/(AL4-AJ14) -> 0 | AL10: =IF(AK10=0,0,(AK10*((LOG(AK10))/LOG(2)))) -> 0 | AN10: =N10 -> 122 | AO10: =COUNTIF(L27:L31,AN10) -> 0 | AP10: =AO10/(AQ4-AO14) -> 0 | AQ10: =IF(AP10=0,0,(AP10*((LOG(AP10))/LOG(2)))) -> 0 | AS10: =N10 -> 122 | AT10: =COUNTIF(L32:L36,AS10) -> 0 | AU10: =AT10/(AV4-AT14) -> 0 | AV10: =IF(AU10=0,0,(AU10*((LOG(AU10))/LOG(2)))) -> 0
A11: 21 | B11: 478 | C11: 21 | D11: 491 | E11: 12 | F11: 495 | K11: 0 | L11: 221 | N11: 211 | O11: =COUNTIF($L$7:$L$500,N11) -> 8 | P11: =O11/$Q$4 -> 0.2666666667 | Q11: =IF(P11=0,0,(P11*((LOG(P11))/LOG(2)))) -> -0.5085041588 | T11: =N11 -> 211 | U11: =COUNTIF(L7:L11,T11) -> 0 | V11: =U11/(W4-U14) -> 0 | W11: =IF(V11=0,0,(V11*((LOG(V11))/LOG(2)))) -> 0 | Y11: =N11 -> 211 | Z11: =COUNTIF(L12:L16,Y11) -> 1 | AA11: =Z11/(AB4-Z14) -> 0.2 | AB11: =IF(AA11=0,0,(AA11*((LOG(AA11))/LOG(2)))) -> -0.464385619 | AD11: =N11 -> 211 | AE11: =COUNTIF(L17:L21,AD11) -> 1 | AF11: =AE11/(AG4-AE14) -> 0.3333333333 | AG11: =IF(AF11=0,0,(AF11*((LOG(AF11))/LOG(2)))) -> -0.5283208336 | AI11: =N11 -> 211 | AJ11: =COUNTIF(L22:L26,AI11) -> 3 | AK11: =AJ11/(AL4-AJ14) -> 0.75 | AL11: =IF(AK11=0,0,(AK11*((LOG(AK11))/LOG(2)))) -> -0.3112781245 | AN11: =N11 -> 211 | AO11: =COUNTIF(L27:L31,AN11) -> 2 | AP11: =AO11/(AQ4-AO14) -> 0.4 | AQ11: =IF(AP11=0,0,(AP11*((LOG(AP11))/LOG(2)))) -> -0.528771238 | AS11: =N11 -> 211 | AT11: =COUNTIF(L32:L36,AS11) -> 1 | AU11: =AT11/(AV4-AT14) -> 0.2 | AV11: =IF(AU11=0,0,(AU11*((LOG(AU11))/LOG(2)))) -> -0.464385619
A12: 21 | B12: 586 | C12: 21 | D12: 590 | E12: 12 | F12: 604 | K12: 0 | L12: 221 | N12: 212 | O12: =COUNTIF($L$7:$L$500,N12) -> 1 | P12: =O12/$Q$4 -> 0.03333333333 | Q12: =IF(P12=0,0,(P12*((LOG(P12))/LOG(2)))) -> -0.1635630199 | T12: =N12 -> 212 | U12: =COUNTIF(L7:L11,T12) -> 1 | V12: =U12/(W4-U14) -> 0.2 | W12: =IF(V12=0,0,(V12*((LOG(V12))/LOG(2)))) -> -0.464385619 | Y12: =N12 -> 212 | Z12: =COUNTIF(L12:L16,Y12) -> 0 | AA12: =Z12/(AB4-Z14) -> 0 | AB12: =IF(AA12=0,0,(AA12*((LOG(AA12))/LOG(2)))) -> 0 | AD12: =N12 -> 212 | AE12: =COUNTIF(L17:L21,AD12) -> 0 | AF12: =AE12/(AG4-AE14) -> 0 | AG12: =IF(AF12=0,0,(AF12*((LOG(AF12))/LOG(2)))) -> 0 | AI12: =N12 -> 212 | AJ12: =COUNTIF(L22:L26,AI12) -> 0 | AK12: =AJ12/(AL4-AJ14) -> 0 | AL12: =IF(AK12=0,0,(AK12*((LOG(AK12))/LOG(2)))) -> 0 | AN12: =N12 -> 212 | AO12: =COUNTIF(L27:L31,AN12) -> 0 | AP12: =AO12/(AQ4-AO14) -> 0 | AQ12: =IF(AP12=0,0,(AP12*((LOG(AP12))/LOG(2)))) -> 0 | AS12: =N12 -> 212 | AT12: =COUNTIF(L32:L36,AS12) -> 0 | AU12: =AT12/(AV4-AT14) -> 0 | AV12: =IF(AU12=0,0,(AU12*((LOG(AU12))/LOG(2)))) -> 0
A13: 12 | B13: 842 | C13: 23 | D13: 855 | E13: 14 | F13: 860 | K13: 0 | L13: 121 | N13: 221 | O13: =COUNTIF($L$7:$L$500,N13) -> 6 | P13: =O13/$Q$4 -> 0.2 | Q13: =IF(P13=0,0,(P13*((LOG(P13))/LOG(2)))) -> -0.464385619 | T13: =N13 -> 221 | U13: =COUNTIF(L7:L11,T13) -> 2 | V13: =U13/(W4-U14) -> 0.4 | W13: =IF(V13=0,0,(V13*((LOG(V13))/LOG(2)))) -> -0.528771238 | Y13: =N13 -> 221 | Z13: =COUNTIF(L12:L16,Y13) -> 1 | AA13: =Z13/(AB4-Z14) -> 0.2 | AB13: =IF(AA13=0,0,(AA13*((LOG(AA13))/LOG(2)))) -> -0.464385619 | AD13: =N13 -> 221 | AE13: =COUNTIF(L17:L21,AD13) -> 0 | AF13: =AE13/(AG4-AE14) -> 0 | AG13: =IF(AF13=0,0,(AF13*((LOG(AF13))/LOG(2)))) -> 0 | AI13: =N13 -> 221 | AJ13: =COUNTIF(L22:L26,AI13) -> 0 | AK13: =AJ13/(AL4-AJ14) -> 0 | AL13: =IF(AK13=0,0,(AK13*((LOG(AK13))/LOG(2)))) -> 0 | AN13: =N13 -> 221 | AO13: =COUNTIF(L27:L31,AN13) -> 1 | AP13: =AO13/(AQ4-AO14) -> 0.2 | AQ13: =IF(AP13=0,0,(AP13*((LOG(AP13))/LOG(2)))) -> -0.464385619 | AS13: =N13 -> 221 | AT13: =COUNTIF(L32:L36,AS13) -> 2 | AU13: =AT13/(AV4-AT14) -> 0.4 | AV13: =IF(AU13=0,0,(AU13*((LOG(AU13))/LOG(2)))) -> -0.528771238
A14: 21 | B14: 961 | C14: 12 | D14: 964 | E14: 14 | F14: 969 | K14: 0 | L14: 211 | N14: 222 | O14: =COUNTIF($L$7:$L$500,N14) -> 3 | P14: =O14/$Q$4 -> 0.1 | Q14: =IF(P14=0,0,(P14*((LOG(P14))/LOG(2)))) -> -0.3321928095 | T14: =N14 -> 222 | U14: =COUNTIF(L7:L11,T14) -> 0 | Y14: =N14 -> 222 | Z14: =COUNTIF(L12:L16,Y14) -> 0 | AD14: =N14 -> 222 | AE14: =COUNTIF(L17:L21,AD14) -> 2 | AI14: =N14 -> 222 | AJ14: =COUNTIF(L22:L26,AI14) -> 1 | AN14: =N14 -> 222 | AO14: =COUNTIF(L27:L31,AN14) -> 0 | AS14: =N14 -> 222 | AT14: =COUNTIF(L32:L36,AS14) -> 0
A15: 12 | B15: 1086 | C15: 23 | D15: 1090 | E15: 14 | F15: 1094 | K15: 0 | L15: 121 | P15: =SUM(P7:P14) -> 1 | Q15: =-SUM(Q7:Q14) -> 2.711080496 | V15: =SUM(V7:V14) -> 1 | W15: =-SUM(W7:W14) -> 1.521928095 | AA15: =SUM(AA7:AA14) -> 1 | AB15: =-SUM(AB7:AB14) -> 1.370950594 | AF15: =SUM(AF7:AF14) -> 1 | AG15: =-SUM(AG7:AG14) -> 1.584962501 | AK15: =SUM(AK7:AK14) -> 1 | AL15: =-SUM(AL7:AL14) -> 0.8112781245 | AP15: =SUM(AP7:AP14) -> 1 | AQ15: =-SUM(AQ7:AQ14) -> 1.921928095 | AU15: =SUM(AU7:AU14) -> 1 | AV15: =-SUM(AV7:AV14) -> 1.921928095
A16: 12 | B16: 1294 | C16: 23 | D16: 1300 | E16: 14 | F16: 1308 | K16: 0 | L16: 121 | P16: U= | Q16: =Q15/(LOG(Q4)/LOG(2)) -> 0.5525047774 | V16: U1= | W16: =W15/(LOG(W4)/LOG(2)) -> 0.6554587535 | AA16: U2= | AB16: =AB15/(LOG(AB4)/LOG(2)) -> 0.5904362833 | AF16: U3= | AG16: =AG15/(LOG(AG4)/LOG(2)) -> 0.6826061945 | AK16: U4= | AL16: =AL15/(LOG(AL4)/LOG(2)) -> 0.3493984703 | AP16: U5= | AQ16: =AQ15/(LOG(AQ4)/LOG(2)) -> 0.8277293768 | AU16: U6= | AV16: =AV15/(LOG(AV4)/LOG(2)) -> 0.8277293768
A17: 12 | B17: 1667 | C17: 14 | D17: 1673 | E17: 14 | F17: 1695 | K17: 0 | L17: 111
A18: 12 | B18: 1855 | C18: 23 | D18: 1858 | E18: 23 | F18: 1860 | K18: 0 | L18: 122
A19: 21 | B19: 1959 | C19: 21 | D19: 1962 | E19: 21 | F19: 1965 | K19: 0 | L19: 222 | N19: Total Target Seq
A20: 21 | B20: 2087 | C20: 21 | D20: 2089 | E20: 21 | F20: 2092 | K20: 0 | L20: 222 | N20: =COUNTIF(L7:L36,G3) -> 3 | P20: 5 | Q20: 5 | R20: 5 | S20: 5 | T20: 5 | U20: 5
A21: 21 | B21: 2207 | C21: 12 | D21: 2212 | E21: 14 | F21: 2217 | K21: 0 | L21: 211 | P21: % of reinforcement given in 6 equal intervals based on number of trials
A22: 21 | B22: 2351 | C22: 12 | D22: 2356 | E22: 14 | F22: 2365 | K22: 0 | L22: 211 | P22: %_1 | Q22: %_2 | R22: %_3 | S22: %_4 | T22: %_5 | U22: %_6
A23: 21 | B23: 2475 | C23: 21 | D23: 2486 | E23: 21 | F23: 2511 | K23: 0 | L23: 222 | O23: target sequence | P23: =$G$3 -> 222 | Q23: =$G$3 -> 222 | R23: =$G$3 -> 222 | S23: =$G$3 -> 222 | T23: =$G$3 -> 222 | U23: =$G$3 -> 222
A24: 21 | B24: 2626 | C24: 12 | D24: 2638 | E24: 14 | F24: 2645 | K24: 0 | L24: 211 | O24: total reinforcement | P24: =U14 -> 0 | Q24: =Z14 -> 0 | R24: =AE14 -> 2 | S24: =AJ14 -> 1 | T24: =AO14 -> 0 | U24: =AT14 -> 0
A25: 21 | B25: 2775 | C25: 12 | D25: 2779 | E25: 14 | F25: 2783 | K25: 0 | L25: 211 | O25: % target
A26: 12 | B26: 2881 | C26: 23 | D26: 2884 | E26: 14 | F26: 2890 | K26: 0 | L26: 121 | O26: CCRF
A27: 12 | B27: 2982 | C27: 14 | D27: 3001 | E27: 14 | F27: 3011 | K27: 0 | L27: 111 | O27: % CCRf
A28: 21 | B28: 3159 | C28: 12 | D28: 3164 | E28: 14 | F28: 3167 | K28: 0 | L28: 211 | O28: average response rate | P28: =F11/P20 -> 99 | Q28: =(F16-F11)/Q20 -> 162.6 | R28: =(F21-F16)/R20 -> 181.8 | S28: =(F26-F21)/S20 -> 134.6 | T28: =(F31-F26)/T20 -> 121.4 | U28: =(F36-F31)/U20 -> 1875
A29: 21 | B29: 3264 | C29: 12 | D29: 3270 | E29: 14 | F29: 3279 | K29: 0 | L29: 211
A30: 12 | B30: 3385 | C30: 14 | D30: 3391 | E30: 23 | F30: 3399 | K30: 0 | L30: 112
A31: 21 | B31: 3486 | C31: 21 | D31: 3491 | E31: 12 | F31: 3497 | K31: 0 | L31: 221
A32: 21 | B32: 8069 | C32: 21 | D32: 8076 | E32: 12 | F32: 8085 | K32: 0 | L32: 221
A33: 12 | B33: 8458 | C33: 14 | D33: 8463 | E33: 23 | F33: 8477 | K33: 0 | L33: 112
A34: 21 | B34: 10468 | C34: 12 | D34: 10488 | E34: 14 | F34: 10501 | K34: 0 | L34: 211
A35: 21 | B35: 12697 | C35: 21 | D35: 12709 | E35: 12 | F35: 12719 | K35: 0 | L35: 221
A36: 12 | B36: 12852 | C36: 23 | D36: 12869 | E36: 14 | F36: 12872 | K36: 0 | L36: 121

Sheet !MC31A0B.AXT
A1: Report for:!MC31A0B.AXT
A2: Date: | B2: <date>
A3: Hen: | B3: <hen> | F3: Correct Sequence | G3: =Start!J2 -> 222 | P3: Total Sequences in Data | Q3: =4994-COUNTBLANK(L7:L5000) -> 20 | V3: Total Sequences in Block Data | W3: =COUNTA(L7:L9) -> 3 | AA3: Total Sequences in Block Data | AB3: =COUNTA(L10:L13) -> 4 | AF3: Total Sequences in Block Data | AG3: =COUNTA(L14:L16) -> 3 | AK3: Total Sequences in Block Data | AL3: =COUNTA(L17:L19) -> 3 | AP3: Total Sequences in Block Data | AQ3: =COUNTA(L20:L23) -> 4 | AU3: Total Sequences in Block Data | AV3: =COUNTA(L24:L26) -> 3
P4: Total Sequences in Summary | Q4: =SUM(O7:O14) -> 20 | V4: Total Sequences in Block Summary | W4: =SUM(U7:U14) -> 3 | AA4: Total Sequences in Block Summary | AB4: =SUM(Z7:Z14) -> 4 | AF4: Total Sequences in Block Summary | AG4: =SUM(AE7:AE14) -> 3 | AK4: Total Sequences in Block Summary | AL4: =SUM(AJ7:AJ14) -> 3 | AP4: Total Sequences in Block Summary | AQ4: =SUM(AO7:AO14) -> 4 | AU4: Total Sequences in Block Summary | AV4: =SUM(AT7:AT14) -> 3
T5: Block 1 | Y5: Block 2 | AD5: Block 3 | AI5: Block 4 | AN5: Block 5 | AS5: Block 6
A6: Sequence Component 1 | B6: Time 1 | C6: Sequence Component 2 | D6: Time 2 | E6: Sequence Component 3 | F6: Time 3 | G6: Sequence Component 4 | H6: Time 4 | I6: Sequence Component 5 | J6: Time 5 | K6: Correct? 0=No 1=Yes | L6: Sequence | N6: Frequency | P6: Relative Frequency | Q6: Variability | T6: Frequency | V6: Relative Frequency | W6: Variability | Y6: Frequency | AA6: Relative Frequency | AB6: Variability | AD6: Frequency | AF6: Relative Frequency | AG6: Variability | AI6: Frequency | AK6: Relative Frequency | AL6: Variability | AN6: Frequency | AP6: Relative Frequency | AQ6: Variability | AS6: Frequency | AU6: Relative Frequency | AV6: Variability
A7: 12 | B7: 1655 | C7: 23 | D7: 1677 | E7: 23 | F7: 1683 | K7: 0 | L7: 122 | N7: 111 | O7: =COUNTIF($L$7:$L$500,N7) -> 6 | P7: =O7/$Q$4 -> 0.3 | Q7: =IF(P7=0,0,(P7*((LOG(P7))/LOG(2)))) -> -0.5210896782 | T7: =N7 -> 111 | U7: =COUNTIF(L7:L9,T7) -> 0 | V7: =U7/(W4-U14) -> 0 | W7: =IF(V7=0,0,(V7*((LOG(V7))/LOG(2)))) -> 0 | Y7: =N7 -> 111 | Z7: =COUNTIF(L10:L13,Y7) -> 1 | AA7: =Z7/(AB4-Z14) -> 0.5 | AB7: =IF(AA7=0,0,(AA7*((LOG(AA7))/LOG(2)))) -> -0.5 | AD7: =N7 -> 111 | AE7: =COUNTIF(L14:L16,AD7) -> 0 | AF7: =AE7/(AG4-AE14) -> 0 | AG7: =IF(AF7=0,0,(AF7*((LOG(AF7))/LOG(2)))) -> 0 | AI7: =N7 -> 111 | AJ7: =COUNTIF(L17:L19,AI7) -> 3 | AK7: =AJ7/(AL4-AJ14) -> 1 | AL7: =IF(AK7=0,0,(AK7*((LOG(AK7))/LOG(2)))) -> 0 | AN7: =N7 -> 111 | AO7: =COUNTIF(L20:L23,AN7) -> 1 | AP7: =AO7/(AQ4-AO14) -> 0.25 | AQ7: =IF(AP7=0,0,(AP7*((LOG(AP7))/LOG(2)))) -> -0.5 | AS7: =N7 -> 111 | AT7: =COUNTIF(L24:L26,AS7) -> 1 | AU7: =AT7/(AV4-AT14) -> 0.3333333333 | AV7: =IF(AU7=0,0,(AU7*((LOG(AU7))/LOG(2)))) -> -0.5283208336
A8: 12 | B8: 1787 | C8: 14 | D8: 1794 | E8: 23 | F8: 1807 | K8: 0 | L8: 112 | N8: 112 | O8: =COUNTIF($L$7:$L$500,N8) -> 2 | P8: =O8/$Q$4 -> 0.1 | Q8: =IF(P8=0,0,(P8*((LOG(P8))/LOG(2)))) -> -0.3321928095 | T8: =N8 -> 112 | U8: =COUNTIF(L7:L9,T8) -> 1 | V8: =U8/(W4-U14) -> 0.3333333333 | W8: =IF(V8=0,0,(V8*((LOG(V8))/LOG(2)))) -> -0.5283208336 | Y8: =N8 -> 112 | Z8: =COUNTIF(L10:L13,Y8) -> 0 | AA8: =Z8/(AB4-Z14) -> 0 | AB8: =IF(AA8=0,0,(AA8*((LOG(AA8))/LOG(2)))) -> 0 | AD8: =N8 -> 112 | AE8: =COUNTIF(L14:L16,AD8) -> 0 | AF8: =AE8/(AG4-AE14) -> 0 | AG8: =IF(AF8=0,0,(AF8*((LOG(AF8))/LOG(2)))) -> 0 | AI8: =N8 -> 112 | AJ8: =COUNTIF(L17:L19,AI8) -> 0 | AK8: =AJ8/(AL4-AJ14) -> 0 | AL8: =IF(AK8=0,0,(AK8*((LOG(AK8))/LOG(2)))) -> 0 | AN8: =N8 -> 112 | AO8: =COUNTIF(L20:L23,AN8) -> 0 | AP8: =AO8/(AQ4-AO14) -> 0 | AQ8: =IF(AP8=0,0,(AP8*((LOG(AP8))/LOG(2)))) -> 0 | AS8: =N8 -> 112 | AT8: =COUNTIF(L24:L26,AS8) -> 1 | AU8: =AT8/(AV4-AT14) -> 0.3333333333 | AV8: =IF(AU8=0,0,(AU8*((LOG(AU8))/LOG(2)))) -> -0.5283208336
A9: 21 | B9: 1894 | C9: 12 | D9: 1899 | E9: 23 | F9: 1917 | K9: 0 | L9: 212 | N9: 121 | O9: =COUNTIF($L$7:$L$500,N9) -> 3 | P9: =O9/$Q$4 -> 0.15 | Q9: =IF(P9=0,0,(P9*((LOG(P9))/LOG(2)))) -> -0.4105448391 | T9: =N9 -> 121 | U9: =COUNTIF(L7:L9,T9) -> 0 | V9: =U9/(W4-U14) -> 0 | W9: =IF(V9=0,0,(V9*((LOG(V9))/LOG(2)))) -> 0 | Y9: =N9 -> 121 | Z9: =COUNTIF(L10:L13,Y9) -> 1 | AA9: =Z9/(AB4-Z14) -> 0.5 | AB9: =IF(AA9=0,0,(AA9*((LOG(AA9))/LOG(2)))) -> -0.5 | AD9: =N9 -> 121 | AE9: =COUNTIF(L14:L16,AD9) -> 1 | AF9: =AE9/(AG4-AE14) -> 0.3333333333 | AG9: =IF(AF9=0,0,(AF9*((LOG(AF9))/LOG(2)))) -> -0.5283208336 | AI9: =N9 -> 121 | AJ9: =COUNTIF(L17:L19,AI9) -> 0 | AK9: =AJ9/(AL4-AJ14) -> 0 | AL9: =IF(AK9=0,0,(AK9*((LOG(AK9))/LOG(2)))) -> 0 | AN9: =N9 -> 121 | AO9: =COUNTIF(L20:L23,AN9) -> 1 | AP9: =AO9/(AQ4-AO14) -> 0.25 | AQ9: =IF(AP9=0,0,(AP9*((LOG(AP9))/LOG(2)))) -> -0.5 | AS9: =N9 -> 121 | AT9: =COUNTIF(L24:L26,AS9) -> 0 | AU9: =AT9/(AV4-AT14) -> 0 | AV9: =IF(AU9=0,0,(AU9*((LOG(AU9))/LOG(2)))) -> 0
A10: 21 | B10: 2160 | C10: 21 | D10: 2163 | E10: 21 | F10: 2166 | K10: 0 | L10: 222 | N10: 122 | O10: =COUNTIF($L$7:$L$500,N10) -> 1 | P10: =O10/$Q$4 -> 0.05 | Q10: =IF(P10=0,0,(P10*((LOG(P10))/LOG(2)))) -> -0.2160964047 | T10: =N10 -> 122 | U10: =COUNTIF(L7:L9,T10) -> 1 | V10: =U10/(W4-U14) -> 0.3333333333 | W10: =IF(V10=0,0,(V10*((LOG(V10))/LOG(2)))) -> -0.5283208336 | Y10: =N10 -> 122 | Z10: =COUNTIF(L10:L13,Y10) -> 0 | AA10: =Z10/(AB4-Z14) -> 0 | AB10: =IF(AA10=0,0,(AA10*((LOG(AA10))/LOG(2)))) -> 0 | AD10: =N10 -> 122 | AE10: =COUNTIF(L14:L16,AD10) -> 0 | AF10: =AE10/(AG4-AE14) -> 0 | AG10: =IF(AF10=0,0,(AF10*((LOG(AF10))/LOG(2)))) -> 0 | AI10: =N10 -> 122 | AJ10: =COUNTIF(L17:L19,AI10) -> 0 | AK10: =AJ10/(AL4-AJ14) -> 0 | AL10: =IF(AK10=0,0,(AK10*((LOG(AK10))/LOG(2)))) -> 0 | AN10: =N10 -> 122 | AO10: =COUNTIF(L20:L23,AN10) -> 0 | AP10: =AO10/(AQ4-AO14) -> 0 | AQ10: =IF(AP10=0,0,(AP10*((LOG(AP10))/LOG(2)))) -> 0 | AS10: =N10 -> 122 | AT10: =COUNTIF(L24:L26,AS10) -> 0 | AU10: =AT10/(AV4-AT14) -> 0 | AV10: =IF(AU10=0,0,(AU10*((LOG(AU10))/LOG(2)))) -> 0
A11: 12 | B11: 2256 | C11: 14 | D11: 2283 | E11: 14 | F11: 2292 | K11: 0 | L11: 111 | N11: 211 | O11: =COUNTIF($L$7:$L$500,N11) -> 2 | P11: =O11/$Q$4 -> 0.1 | Q11: =IF(P11=0,0,(P11*((LOG(P11))/LOG(2)))) -> -0.3321928095 | T11: =N11 -> 211 | U11: =COUNTIF(L7:L9,T11) -> 0 | V11: =U11/(W4-U14) -> 0 | W11: =IF(V11=0,0,(V11*((LOG(V11))/LOG(2)))) -> 0 | Y11: =N11 -> 211 | Z11: =COUNTIF(L10:L13,Y11) -> 0 | AA11: =Z11/(AB4-Z14) -> 0 | AB11: =IF(AA11=0,0,(AA11*((LOG(AA11))/LOG(2)))) -> 0 | AD11: =N11 -> 211 | AE11: =COUNTIF(L14:L16,AD11) -> 0 | AF11: =AE11/(AG4-AE14) -> 0 | AG11: =IF(AF11=0,0,(AF11*((LOG(AF11))/LOG(2)))) -> 0 | AI11: =N11 -> 211 | AJ11: =COUNTIF(L17:L19,AI11) -> 0 | AK11: =AJ11/(AL4-AJ14) -> 0 | AL11: =IF(AK11=0,0,(AK11*((LOG(AK11))/LOG(2)))) -> 0 | AN11: =N11 -> 211 | AO11: =COUNTIF(L20:L23,AN11) -> 1 | AP11: =AO11/(AQ4-AO14) -> 0.25 | AQ11: =IF(AP11=0,0,(AP11*((LOG(AP11))/LOG(2)))) -> -0.5 | AS11: =N11 -> 211 | AT11: =COUNTIF(L24:L26,AS11) -> 1 | AU11: =AT11/(AV4-AT14) -> 0.3333333333 | AV11: =IF(AU11=0,0,(AU11*((LOG(AU11))/LOG(2)))) -> -0.5283208336
A12: 21 | B12: 2393 | C12: 21 | D12: 2397 | E12: 21 | F12: 2407 | K12: 0 | L12: 222 | N12: 212 | O12: =COUNTIF($L$7:$L$500,N12) -> 2 | P12: =O12/$Q$4 -> 0.1 | Q12: =IF(P12=0,0,(P12*((LOG(P12))/LOG(2)))) -> -0.3321928095 | T12: =N12 -> 212 | U12: =COUNTIF(L7:L9,T12) -> 1 | V12: =U12/(W4-U14) -> 0.3333333333 | W12: =IF(V12=0,0,(V12*((LOG(V12))/LOG(2)))) -> -0.5283208336 | Y12: =N12 -> 212 | Z12: =COUNTIF(L10:L13,Y12) -> 0 | AA12: =Z12/(AB4-Z14) -> 0 | AB12: =IF(AA12=0,0,(AA12*((LOG(AA12))/LOG(2)))) -> 0 | AD12: =N12 -> 212 | AE12: =COUNTIF(L14:L16,AD12) -> 1 | AF12: =AE12/(AG4-AE14) -> 0.3333333333 | AG12: =IF(AF12=0,0,(AF12*((LOG(AF12))/LOG(2)))) -> -0.5283208336 | AI12: =N12 -> 212 | AJ12: =COUNTIF(L17:L19,AI12) -> 0 | AK12: =AJ12/(AL4-AJ14) -> 0 | AL12: =IF(AK12=0,0,(AK12*((LOG(AK12))/LOG(2)))) -> 0 | AN12: =N12 -> 212 | AO12: =COUNTIF(L20:L23,AN12) -> 0 | AP12: =AO12/(AQ4-AO14) -> 0 | AQ12: =IF(AP12=0,0,(AP12*((LOG(AP12))/LOG(2)))) -> 0 | AS12: =N12 -> 212 | AT12: =COUNTIF(L24:L26,AS12) -> 0 | AU12: =AT12/(AV4-AT14) -> 0 | AV12: =IF(AU12=0,0,(AU12*((LOG(AU12))/LOG(2)))) -> 0
A13: 12 | B13: 2520 | C13: 23 | D13: 2535 | E13: 14 | F13: 2550 | K13: 0 | L13: 121 | N13: 221 | O13: =COUNTIF($L$7:$L$500,N13) -> 2 | P13: =O13/$Q$4 -> 0.1 | Q13: =IF(P13=0,0,(P13*((LOG(P13))/LOG(2)))) -> -0.3321928095 | T13: =N13 -> 221 | U13: =COUNTIF(L7:L9,T13) -> 0 | V13: =U13/(W4-U14) -> 0 | W13: =IF(V13=0,0,(V13*((LOG(V13))/LOG(2)))) -> 0 | Y13: =N13 -> 221 | Z13: =COUNTIF(L10:L13,Y13) -> 0 | AA13: =Z13/(AB4-Z14) -> 0 | AB13: =IF(AA13=0,0,(AA13*((LOG(AA13))/LOG(2)))) -> 0 | AD13: =N13 -> 221 | AE13: =COUNTIF(L14:L16,AD13) -> 1 | AF13: =AE13/(AG4-AE14) -> 0.3333333333 | AG13: =IF(AF13=0,0,(AF13*((LOG(AF13))/LOG(2)))) -> -0.5283208336 | AI13: =N13 -> 221 | AJ13: =COUNTIF(L17:L19,AI13) -> 0 | AK13: =AJ13/(AL4-AJ14) -> 0 | AL13: =IF(AK13=0,0,(AK13*((LOG(AK13))/LOG(2)))) -> 0 | AN13: =N13 -> 221 | AO13: =COUNTIF(L20:L23,AN13) -> 1 | AP13: =AO13/(AQ4-AO14) -> 0.25 | AQ13: =IF(AP13=0,0,(AP13*((LOG(AP13))/LOG(2)))) -> -0.5 | AS13: =N13 -> 221 | AT13: =COUNTIF(L24:L26,AS13) -> 0 | AU13: =AT13/(AV4-AT14) -> 0 | AV13: =IF(AU13=0,0,(AU13*((LOG(AU13))/LOG(2)))) -> 0
A14: 12 | B14: 2868 | C14: 23 | D14: 2881 | E14: 14 | F14: 2899 | K14: 0 | L14: 121 | N14: 222 | O14: =COUNTIF($L$7:$L$500,N14) -> 2 | P14: =O14/$Q$4 -> 0.1 | Q14: =IF(P14=0,0,(P14*((LOG(P14))/LOG(2)))) -> -0.3321928095 | T14: =N14 -> 222 | U14: =COUNTIF(L7:L9,T14) -> 0 | Y14: =N14 -> 222 | Z14: =COUNTIF(L10:L13,Y14) -> 2 | AD14: =N14 -> 222 | AE14: =COUNTIF(L14:L16,AD14) -> 0 | AI14: =N14 -> 222 | AJ14: =COUNTIF(L17:L19,AI14) -> 0 | AN14: =N14 -> 222 | AO14: =COUNTIF(L20:L23,AN14) -> 0 | AS14: =N14 -> 222 | AT14: =COUNTIF(L24:L26,AS14) -> 0
A15: 21 | B15: 4331 | C15: 21 | D15: 4347 | E15: 12 | F15: 4356 | K15: 0 | L15: 221 | P15: =SUM(P7:P14) -> 1 | Q15: =-SUM(Q7:Q14) -> 2.80869497 | V15: =SUM(V7:V14) -> 1 | W15: =-SUM(W7:W14) -> 1.584962501 | AA15: =SUM(AA7:AA14) -> 1 | AB15: =-SUM(AB7:AB14) -> 1 | AF15: =SUM(AF7:AF14) -> 1 | AG15: =-SUM(AG7:AG14) -> 1.584962501 | AK15: =SUM(AK7:AK14) -> 1 | AL15: =-SUM(AL7:AL14) -> 0 | AP15: =SUM(AP7:AP14) -> 1 | AQ15: =-SUM(AQ7:AQ14) -> 2 | AU15: =SUM(AU7:AU14) -> 1 | AV15: =-SUM(AV7:AV14) -> 1.584962501
A16: 21 | B16: 4500 | C16: 12 | D16: 4513 | E16: 23 | F16: 4529 | K16: 0 | L16: 212 | P16: U= | Q16: =Q15/(LOG(Q4)/LOG(2)) -> 0.6498708234 | V16: U1= | W16: =W15/(LOG(W4)/LOG(2)) -> 1 | AA16: U2= | AB16: =AB15/(LOG(AB4)/LOG(2)) -> 0.5 | AF16: U3= | AG16: =AG15/(LOG(AG4)/LOG(2)) -> 1 | AK16: U4= | AL16: =AL15/(LOG(AL4)/LOG(2)) -> 0 | AP16: U5= | AQ16: =AQ15/(LOG(AQ4)/LOG(2)) -> 1 | AU16: U6= | AV16: =AV15/(LOG(AV4)/LOG(2)) -> 1
A17: 12 | B17: 4632 | C17: 14 | D17: 4649 | E17: 14 | F17: 4677 | K17: 0 | L17: 111
A18: 12 | B18: 6452 | C18: 14 | D18: 6460 | E18: 14 | F18: 6464 | K18: 0 | L18: 111
A19: 12 | B19: 6902 | C19: 14 | D19: 6914 | E19: 14 | F19: 6921 | K19: 0 | L19: 111 | N19: Total Target Seq
A20: 21 | B20: 7520 | C20: 21 | D20: 7523 | E20: 12 | F20: 7533 | K20: 0 | L20: 221 | N20: =COUNTIF(L7:L26,G3) -> 2 | P20: 3 | Q20: 4 | R20: 3 | S20: 3 | T20: 4 | U20: 3
A21: 21 | B21: 7626 | C21: 12 | D21: 7632 | E21: 14 | F21: 7639 | K21: 0 | L21: 211 | P21: % of reinforcement given in 6 equal intervals based on number of trials
A22: 12 | B22: 8056 | C22: 23 | D22: 8072 | E22: 14 | F22: 8075 | K22: 0 | L22: 121 | P22: %_1 | Q22: %_2 | R22: %_3 | S22: %_4 | T22: %_5 | U22: %_6
A23: 12 | B23: 16429 | C23: 14 | D23: 16446 | E23: 14 | F23: 16449 | K23: 0 | L23: 111 | O23: target sequence | P23: =$G$3 -> 222 | Q23: =$G$3 -> 222 | R23: =$G$3 -> 222 | S23: =$G$3 -> 222 | T23: =$G$3 -> 222 | U23: =$G$3 -> 222
A24: 21 | B24: 16546 | C24: 12 | D24: 16568 | E24: 14 | F24: 16597 | K24: 0 | L24: 211 | O24: total reinforcement | P24: =U14 -> 0 | Q24: =Z14 -> 2 | R24: =AE14 -> 0 | S24: =AJ14 -> 0 | T24: =AO14 -> 0 | U24: =AT14 -> 0
A25: 12 | B25: 20627 | C25: 14 | D25: 20629 | E25: 23 | F25: 20654 | K25: 0 | L25: 112 | O25: % target
A26: 12 | B26: 20789 | C26: 14 | D26: 20803 | E26: 14 | F26: 20810 | K26: 0 | L26: 111 | O26: CCRF
O27: % CCRf
O28: average response rate | P28: =F9/P20 -> 639 | Q28: =(F13-F9)/Q20 -> 158.25 | R28: =(F16-F13)/R20 -> 659.6666667 | S28: =(F19-F16)/S20 -> 797.3333333 | T28: =(F23-F19)/T20 -> 2382 | U28: =(F26-F23)/U20 -> 1453.666667

Sheet !N10293B.AXT
A1: Report for:!N10293B.AXT
A2: Date: | B2: <date>
A3: Hen: | B3: <hen> | F3: Correct Sequence | G3: =Start!J2 -> 222 | P3: Total Sequences in Data | Q3: =4994-COUNTBLANK(L7:L5000) -> 29 | V3: Total Sequences in Block Data | W3: =COUNTA(L7:L11) -> 5 | AA3: Total Sequences in Block Data | AB3: =COUNTA(L12:L16) -> 5 | AF3: Total Sequences in Block Data | AG3: =COUNTA(L17:L20) -> 4 | AK3: Total Sequences in Block Data | AL3: =COUNTA(L21:L25) -> 5 | AP3: Total Sequences in Block Data | AQ3: =COUNTA(L26:L30) -> 5 | AU3: Total Sequences in Block Data | AV3: =COUNTA(L31:L35) -> 5
P4: Total Sequences in Summary | Q4: =SUM(O7:O14) -> 29 | V4: Total Sequences in Block Summary | W4: =SUM(U7:U14) -> 5 | AA4: Total Sequences in Block Summary | AB4: =SUM(Z7:Z14) -> 5 | AF4: Total Sequences in Block Summary | AG4: =SUM(AE7:AE14) -> 4 | AK4: Total Sequences in Block Summary | AL4: =SUM(AJ7:AJ14) -> 5 | AP4: Total Sequences in Block Summary | AQ4: =SUM(AO7:AO14) -> 5 | AU4: Total Sequences in Block Summary | AV4: =SUM(AT7:AT14) -> 5
T5: Block 1 | Y5: Block 2 | AD5: Block 3 | AI5: Block 4 | AN5: Block 5 | AS5: Block 6
A6: Sequence Component 1 | B6: Time 1 | C6: Sequence Component 2 | D6: Time 2 | E6: Sequence Component 3 | F6: Time 3 | G6: Sequence Component 4 | H6: Time 4 | I6: Sequence Component 5 | J6: Time 5 | K6: Correct? 0=No 1=Yes | L6: Sequence | N6: Frequency | P6: Relative Frequency | Q6: Variability | T6: Frequency | V6: Relative Frequency | W6: Variability | Y6: Frequency | AA6: Relative Frequency | AB6: Variability | AD6: Frequency | AF6: Relative Frequency | AG6: Variability | AI6: Frequency | AK6: Relative Frequency | AL6: Variability | AN6: Frequency | AP6: Relative Frequency | AQ6: Variability | AS6: Frequency | AU6: Relative Frequency | AV6: Variability
A7: 12 | B7: 1221 | C7: 23 | D7: 1232 | E7: 23 | F7: 1235 | K7: 0 | L7: 122 | N7: 111 | O7: =COUNTIF($L$7:$L$500,N7) -> 5 | P7: =O7/$Q$4 -> 0.1724137931 | Q7: =IF(P7=0,0,(P7*((LOG(P7))/LOG(2)))) -> -0.4372505 | T7: =N7 -> 111 | U7: =COUNTIF(L7:L11,T7) -> 0 | V7: =U7/(W4-U14) -> 0 | W7: =IF(V7=0,0,(V7*((LOG(V7))/LOG(2)))) -> 0 | Y7: =N7 -> 111 | Z7: =COUNTIF(L12:L16,Y7) -> 0 | AA7: =Z7/(AB4-Z14) -> 0 | AB7: =IF(AA7=0,0,(AA7*((LOG(AA7))/LOG(2)))) -> 0 | AD7: =N7 -> 111 | AE7: =COUNTIF(L17:L20,AD7) -> 2 | AF7: =AE7/(AG4-AE14) -> 1 | AG7: =IF(AF7=0,0,(AF7*((LOG(AF7))/LOG(2)))) -> 0 | AI7: =N7 -> 111 | AJ7: =COUNTIF(L21:L25,AI7) -> 0 | AK7: =AJ7/(AL4-AJ14) -> 0 | AL7: =IF(AK7=0,0,(AK7*((LOG(AK7))/LOG(2)))) -> 0 | AN7: =N7 -> 111 | AO7: =COUNTIF(L26:L30,AN7) -> 2 | AP7: =AO7/(AQ4-AO14) -> 0.5 | AQ7: =IF(AP7=0,0,(AP7*((LOG(AP7))/LOG(2)))) -> -0.5 | AS7: =N7 -> 111 | AT7: =COUNTIF(L31:L35,AS7) -> 1 | AU7: =AT7/(AV4-AT14) -> 0.3333333333 | AV7: =IF(AU7=0,0,(AU7*((LOG(AU7))/LOG(2)))) -> -0.5283208336
A8: 12 | B8: 1356 | C8: 23 | D8: 1367 | E8: 23 | F8: 1370 | K8: 0 | L8: 122 | N8: 112 | O8: =COUNTIF($L$7:$L$500,N8) -> 2 | P8: =O8/$Q$4 -> 0.06896551724 | Q8: =IF(P8=0,0,(P8*((LOG(P8))/LOG(2)))) -> -0.2660676548 | T8: =N8 -> 112 | U8: =COUNTIF(L7:L11,T8) -> 0 | V8: =U8/(W4-U14) -> 0 | W8: =IF(V8=0,0,(V8*((LOG(V8))/LOG(2)))) -> 0 | Y8: =N8 -> 112 | Z8: =COUNTIF(L12:L16,Y8) -> 1 | AA8: =Z8/(AB4-Z14) -> 0.5 | AB8: =IF(AA8=0,0,(AA8*((LOG(AA8))/LOG(2)))) -> -0.5 | AD8: =N8 -> 112 | AE8: =COUNTIF(L17:L20,AD8) -> 0 | AF8: =AE8/(AG4-AE14) -> 0 | AG8: =IF(AF8=0,0,(AF8*((LOG(AF8))/LOG(2)))) -> 0 | AI8: =N8 -> 112 | AJ8: =COUNTIF(L21:L25,AI8) -> 1 | AK8: =AJ8/(AL4-AJ14) -> 0.3333333333 | AL8: =IF(AK8=0,0,(AK8*((LOG(AK8))/LOG(2)))) -> -0.5283208336 | AN8: =N8 -> 112 | AO8: =COUNTIF(L26:L30,AN8) -> 0 | AP8: =AO8/(AQ4-AO14) -> 0 | AQ8: =IF(AP8=0,0,(AP8*((LOG(AP8))/LOG(2)))) -> 0 | AS8: =N8 -> 112 | AT8: =COUNTIF(L31:L35,AS8) -> 0 | AU8: =AT8/(AV4-AT14) -> 0 | AV8: =IF(AU8=0,0,(AU8*((LOG(AU8))/LOG(2)))) -> 0
A9: 21 | B9: 1465 | C9: 12 | D9: 1469 | E9: 23 | F9: 1494 | K9: 0 | L9: 212 | N9: 121 | O9: =COUNTIF($L$7:$L$500,N9) -> 0 | P9: =O9/$Q$4 -> 0 | Q9: =IF(P9=0,0,(P9*((LOG(P9))/LOG(2)))) -> 0 | T9: =N9 -> 121 | U9: =COUNTIF(L7:L11,T9) -> 0 | V9: =U9/(W4-U14) -> 0 | W9: =IF(V9=0,0,(V9*((LOG(V9))/LOG(2)))) -> 0 | Y9: =N9 -> 121 | Z9: =COUNTIF(L12:L16,Y9) -> 0 | AA9: =Z9/(AB4-Z14) -> 0 | AB9: =IF(AA9=0,0,(AA9*((LOG(AA9))/LOG(2)))) -> 0 | AD9: =N9 -> 121 | AE9: =COUNTIF(L17:L20,AD9) -> 0 | AF9: =AE9/(AG4-AE14) -> 0 | AG9: =IF(AF9=0,0,(AF9*((LOG(AF9))/LOG(2)))) -> 0 | AI9: =N9 -> 121 | AJ9: =COUNTIF(L21:L25,AI9) -> 0 | AK9: =AJ9/(AL4-AJ14) -> 0 | AL9: =IF(AK9=0,0,(AK9*((LOG(AK9))/LOG(2)))) -> 0 | AN9: =N9 -> 121 | AO9: =COUNTIF(L26:L30,AN9) -> 0 | AP9: =AO9/(AQ4-AO14) -> 0 | AQ9: =IF(AP9=0,0,(AP9*((LOG(AP9))/LOG(2)))) -> 0 | AS9: =N9 -> 121 | AT9: =COUNTIF(L31:L35,AS9) -> 0 | AU9: =AT9/(AV4-AT14) -> 0 | AV9: =IF(AU9=0,0,(AU9*((LOG(AU9))/LOG(2)))) -> 0
A10: 21 | B10: 1610 | C10: 12 | D10: 1621 | E10: 14 | F10: 1629 | K10: 0 | L10: 211 | N10: 122 | O10: =COUNTIF($L$7:$L$500,N10) -> 3 | P10: =O10/$Q$4 -> 0.1034482759 | Q10: =IF(P10=0,0,(P10*((LOG(P10))/LOG(2)))) -> -0.3385881201 | T10: =N10 -> 122 | U10: =COUNTIF(L7:L11,T10) -> 2 | V10: =U10/(W4-U14) -> 0.5 | W10: =IF(V10=0,0,(V10*((LOG(V10))/LOG(2)))) -> -0.5 | Y10: =N10 -> 122 | Z10: =COUNTIF(L12:L16,Y10) -> 0 | AA10: =Z10/(AB4-Z14) -> 0 | AB10: =IF(AA10=0,0,(AA10*((LOG(AA10))/LOG(2)))) -> 0 | AD10: =N10 -> 122 | AE10: =COUNTIF(L17:L20,AD10) -> 0 | AF10: =AE10/(AG4-AE14) -> 0 | AG10: =IF(AF10=0,0,(AF10*((LOG(AF10))/LOG(2)))) -> 0 | AI10: =N10 -> 122 | AJ10: =COUNTIF(L21:L25,AI10) -> 1 | AK10: =AJ10/(AL4-AJ14) -> 0.3333333333 | AL10: =IF(AK10=0,0,(AK10*((LOG(AK10))/LOG(2)))) -> -0.5283208336 | AN10: =N10 -> 122 | AO10: =COUNTIF(L26:L30,AN10) -> 0 | AP10: =AO10/(AQ4-AO14) -> 0 | AQ10: =IF(AP10=0,0,(AP10*((LOG(AP10))/LOG(2)))) -> 0 | AS10: =N10 -> 122 | AT10: =COUNTIF(L31:L35,AS10) -> 0 | AU10: =AT10/(AV4-AT14) -> 0 | AV10: =IF(AU10=0,0,(AU10*((LOG(AU10))/LOG(2)))) -> 0
A11: 21 | B11: 1749 | C11: 21 | D11: 1756 | E11: 21 | F11: 1759 | K11: 0 | L11: 222 | N11: 211 | O11: =COUNTIF($L$7:$L$500,N11) -> 3 | P11: =O11/$Q$4 -> 0.1034482759 | Q11: =IF(P11=0,0,(P11*((LOG(P11))/LOG(2)))) -> -0.3385881201 | T11: =N11 -> 211 | U11: =COUNTIF(L7:L11,T11) -> 1 | V11: =U11/(W4-U14) -> 0.25 | W11: =IF(V11=0,0,(V11*((LOG(V11))/LOG(2)))) -> -0.5 | Y11: =N11 -> 211 | Z11: =COUNTIF(L12:L16,Y11) -> 0 | AA11: =Z11/(AB4-Z14) -> 0 | AB11: =IF(AA11=0,0,(AA11*((LOG(AA11))/LOG(2)))) -> 0 | AD11: =N11 -> 211 | AE11: =COUNTIF(L17:L20,AD11) -> 0 | AF11: =AE11/(AG4-AE14) -> 0 | AG11: =IF(AF11=0,0,(AF11*((LOG(AF11))/LOG(2)))) -> 0 | AI11: =N11 -> 211 | AJ11: =COUNTIF(L21:L25,AI11) -> 1 | AK11: =AJ11/(AL4-AJ14) -> 0.3333333333 | AL11: =IF(AK11=0,0,(AK11*((LOG(AK11))/LOG(2)))) -> -0.5283208336 | AN11: =N11 -> 211 | AO11: =COUNTIF(L26:L30,AN11) -> 1 | AP11: =AO11/(AQ4-AO14) -> 0.25 | AQ11: =IF(AP11=0,0,(AP11*((LOG(AP11))/LOG(2)))) -> -0.5 | AS11: =N11 -> 211 | AT11: =COUNTIF(L31:L35,AS11) -> 0 | AU11: =AT11/(AV4-AT14) -> 0 | AV11: =IF(AU11=0,0,(AU11*((LOG(AU11))/LOG(2)))) -> 0
A12: 21 | B12: 1886 | C12: 21 | D12: 1893 | E12: 21 | F12: 1895 | K12: 0 | L12: 222 | N12: 212 | O12: =COUNTIF($L$7:$L$500,N12) -> 2 | P12: =O12/$Q$4 -> 0.06896551724 | Q12: =IF(P12=0,0,(P12*((LOG(P12))/LOG(2)))) -> -0.2660676548 | T12: =N12 -> 212 | U12: =COUNTIF(L7:L11,T12) -> 1 | V12: =U12/(W4-U14) -> 0.25 | W12: =IF(V12=0,0,(V12*((LOG(V12))/LOG(2)))) -> -0.5 | Y12: =N12 -> 212 | Z12: =COUNTIF(L12:L16,Y12) -> 1 | AA12: =Z12/(AB4-Z14) -> 0.5 | AB12: =IF(AA12=0,0,(AA12*((LOG(AA12))/LOG(2)))) -> -0.5 | AD12: =N12 -> 212 | AE12: =COUNTIF(L17:L20,AD12) -> 0 | AF12: =AE12/(AG4-AE14) -> 0 | AG12: =IF(AF12=0,0,(AF12*((LOG(AF12))/LOG(2)))) -> 0 | AI12: =N12 -> 212 | AJ12: =COUNTIF(L21:L25,AI12) -> 0 | AK12: =AJ12/(AL4-AJ14) -> 0 | AL12: =IF(AK12=0,0,(AK12*((LOG(AK12))/LOG(2)))) -> 0 | AN12: =N12 -> 212 | AO12: =COUNTIF(L26:L30,AN12) -> 0 | AP12: =AO12/(AQ4-AO14) -> 0 | AQ12: =IF(AP12=0,0,(AP12*((LOG(AP12))/LOG(2)))) -> 0 | AS12: =N12 -> 212 | AT12: =COUNTIF(L31:L35,AS12) -> 0 | AU12: =AT12/(AV4-AT14) -> 0 | AV12: =IF(AU12=0,0,(AU12*((LOG(AU12))/LOG(2)))) -> 0
A13: 21 | B13: 1992 | C13: 12 | D13: 2003 | E13: 23 | F13: 2018 | K13: 0 | L13: 212 | N13: 221 | O13: =COUNTIF($L$7:$L$500,N13) -> 3 | P13: =O13/$Q$4 -> 0.1034482759 | Q13: =IF(P13=0,0,(P13*((LOG(P13))/LOG(2)))) -> -0.3385881201 | T13: =N13 -> 221 | U13: =COUNTIF(L7:L11,T13) -> 0 | V13: =U13/(W4-U14) -> 0 | W13: =IF(V13=0,0,(V13*((LOG(V13))/LOG(2)))) -> 0 | Y13: =N13 -> 221 | Z13: =COUNTIF(L12:L16,Y13) -> 0 | AA13: =Z13/(AB4-Z14) -> 0 | AB13: =IF(AA13=0,0,(AA13*((LOG(AA13))/LOG(2)))) -> 0 | AD13: =N13 -> 221 | AE13: =COUNTIF(L17:L20,AD13) -> 0 | AF13: =AE13/(AG4-AE14) -> 0 | AG13: =IF(AF13=0,0,(AF13*((LOG(AF13))/LOG(2)))) -> 0 | AI13: =N13 -> 221 | AJ13: =COUNTIF(L21:L25,AI13) -> 0 | AK13: =AJ13/(AL4-AJ14) -> 0 | AL13: =IF(AK13=0,0,(AK13*((LOG(AK13))/LOG(2)))) -> 0 | AN13: =N13 -> 221 | AO13: =COUNTIF(L26:L30,AN13) -> 1 | AP13: =AO13/(AQ4-AO14) -> 0.25 | AQ13: =IF(AP13=0,0,(AP13*((LOG(AP13))/LOG(2)))) -> -0.5 | AS13: =N13 -> 221 | AT13: =COUNTIF(L31:L35,AS13) -> 2 | AU13: =AT13/(AV4-AT14) -> 0.6666666667 | AV13: =IF(AU13=0,0,(AU13*((LOG(AU13))/LOG(2)))) -> -0.3899750005
A14: 12 | B14: 2113 | C14: 14 | D14: 2115 | E14: 23 | F14: 2119 | K14: 0 | L14: 112 | N14: 222 | O14: =COUNTIF($L$7:$L$500,N14) -> 11 | P14: =O14/$Q$4 -> 0.3793103448 | Q14: =IF(P14=0,0,(P14*((LOG(P14))/LOG(2)))) -> -0.5304842463 | T14: =N14 -> 222 | U14: =COUNTIF(L7:L11,T14) -> 1 | Y14: =N14 -> 222 | Z14: =COUNTIF(L12:L16,Y14) -> 3 | AD14: =N14 -> 222 | AE14: =COUNTIF(L17:L20,AD14) -> 2 | AI14: =N14 -> 222 | AJ14: =COUNTIF(L21:L25,AI14) -> 2 | AN14: =N14 -> 222 | AO14: =COUNTIF(L26:L30,AN14) -> 1 | AS14: =N14 -> 222 | AT14: =COUNTIF(L31:L35,AS14) -> 2
A15: 21 | B15: 2255 | C15: 21 | D15: 2263 | E15: 21 | F15: 2272 | K15: 0 | L15: 222 | P15: =SUM(P7:P14) -> 1 | Q15: =-SUM(Q7:Q14) -> 2.515634416 | V15: =SUM(V7:V14) -> 1 | W15: =-SUM(W7:W14) -> 1.5 | AA15: =SUM(AA7:AA14) -> 1 | AB15: =-SUM(AB7:AB14) -> 1 | AF15: =SUM(AF7:AF14) -> 1 | AG15: =-SUM(AG7:AG14) -> 0 | AK15: =SUM(AK7:AK14) -> 1 | AL15: =-SUM(AL7:AL14) -> 1.584962501 | AP15: =SUM(AP7:AP14) -> 1 | AQ15: =-SUM(AQ7:AQ14) -> 1.5 | AU15: =SUM(AU7:AU14) -> 1 | AV15: =-SUM(AV7:AV14) -> 0.9182958341
A16: 21 | B16: 2387 | C16: 21 | D16: 2391 | E16: 21 | F16: 2394 | K16: 0 | L16: 222 | P16: U= | Q16: =Q15/(LOG(Q4)/LOG(2)) -> 0.5178353762 | V16: U1= | W16: =W15/(LOG(W4)/LOG(2)) -> 0.6460148371 | AA16: U2= | AB16: =AB15/(LOG(AB4)/LOG(2)) -> 0.4306765581 | AF16: U3= | AG16: =AG15/(LOG(AG4)/LOG(2)) -> 0 | AK16: U4= | AL16: =AL15/(LOG(AL4)/LOG(2)) -> 0.6826061945 | AP16: U5= | AQ16: =AQ15/(LOG(AQ4)/LOG(2)) -> 0.6460148371 | AU16: U6= | AV16: =AV15/(LOG(AV4)/LOG(2)) -> 0.3954884891
A17: 12 | B17: 2484 | C17: 14 | D17: 2488 | E17: 14 | F17: 2494 | K17: 0 | L17: 111
A18: 21 | B18: 2635 | C18: 21 | D18: 2641 | E18: 21 | F18: 2643 | K18: 0 | L18: 222
A19: 12 | B19: 2740 | C19: 14 | D19: 2743 | E19: 14 | F19: 2761 | K19: 0 | L19: 111 | N19: Total Target Seq
A20: 21 | B20: 2936 | C20: 21 | D20: 2941 | E20: 21 | F20: 2951 | K20: 0 | L20: 222 | N20: =COUNTIF(L7:L35,G3) -> 11 | P20: 5 | Q20: 5 | R20: 4 | S20: 5 | T20: 5 | U20: 5
A21: 21 | B21: 3059 | C21: 21 | D21: 3062 | E21: 21 | F21: 3067 | K21: 0 | L21: 222 | P21: % of reinforcement given in 6 equal intervals based on number of trials
A22: 12 | B22: 3159 | C22: 23 | D22: 3163 | E22: 23 | F22: 3179 | K22: 0 | L22: 122 | P22: %_1 | Q22: %_2 | R22: %_3 | S22: %_4 | T22: %_5 | U22: %_6
A23: 21 | B23: 3272 | C23: 12 | D23: 3292 | E23: 14 | F23: 3300 | K23: 0 | L23: 211 | O23: target sequence | P23: =$G$3 -> 222 | Q23: =$G$3 -> 222 | R23: =$G$3 -> 222 | S23: =$G$3 -> 222 | T23: =$G$3 -> 222 | U23: =$G$3 -> 222
A24: 12 | B24: 3417 | C24: 14 | D24: 3424 | E24: 23 | F24: 3428 | K24: 0 | L24: 112 | O24: total reinforcement | P24: =U14 -> 1 | Q24: =Z14 -> 3 | R24: =AE14 -> 2 | S24: =AJ14 -> 2 | T24: =AO14 -> 1 | U24: =AT14 -> 2
A25: 21 | B25: 3770 | C25: 21 | D25: 3774 | E25: 21 | F25: 3806 | K25: 0 | L25: 222 | O25: % target
A26: 12 | B26: 3913 | C26: 14 | D26: 3918 | E26: 14 | F26: 3923 | K26: 0 | L26: 111 | O26: CCRF
A27: 21 | B27: 4079 | C27: 21 | D27: 4082 | E27: 21 | F27: 4089 | K27: 0 | L27: 222 | O27: % CCRf
A28: 12 | B28: 4180 | C28: 14 | D28: 4201 | E28: 14 | F28: 4204 | K28: 0 | L28: 111 | O28: average response rate | P28: =F11/P20 -> 351.8 | Q28: =(F16-F11)/Q20 -> 127 | R28: =(F20-F16)/R20 -> 139.25 | S28: =(F25-F20)/S20 -> 171 | T28: =(F30-F25)/T20 -> 155.2 | U28: =(F35-F30)/U20 -> 3090.4
A29: 21 | B29: 4301 | C29: 21 | D29: 4320 | E29: 12 | F29: 4346 | K29: 0 | L29: 221
A30: 21 | B30: 4565 | C30: 12 | D30: 4577 | E30: 14 | F30: 4582 | K30: 0 | L30: 211
A31: 21 | B31: 6155 | C31: 21 | D31: 6204 | E31: 21 | F31: 6209 | K31: 0 | L31: 222
A32: 21 | B32: 11599 | C32: 21 | D32: 11604 | E32: 12 | F32: 11625 | K32: 0 | L32: 221
A33: 12 | B33: 11735 | C33: 14 | D33: 11742 | E33: 14 | F33: 11757 | K33: 0 | L33: 111
A34: 21 | B34: 19902 | C34: 21 | D34: 19914 | E34: 21 | F34: 19923 | K34: 0 | L34: 222
A35: 21 | B35: 20017 | C35: 21 | D35: 20023 | E35: 12 | F35: 20034 | K35: 0 | L35: 221

Sheet !N103A1B.AXT
A1: Report for:!N103A1B.AXT
A2: Date: | B2: <date>
A3: Hen: | B3: <hen> | F3: Correct Sequence | G3: =Start!J2 -> 222 | P3: Total Sequences in Data | Q3: =4994-COUNTBLANK(L7:L5000) -> 59 | V3: Total Sequences in Block Data | W3: =COUNTA(L7:L16) -> 10 | AA3: Total Sequences in Block Data | AB3: =COUNTA(L17:L26) -> 10 | AF3: Total Sequences in Block Data | AG3: =COUNTA(L27:L35) -> 9 | AK3: Total Sequences in Block Data | AL3: =COUNTA(L36:L45) -> 10 | AP3: Total Sequences in Block Data | AQ3: =COUNTA(L46:L55) -> 10 | AU3: Total Sequences in Block Data | AV3: =COUNTA(L56:L65) -> 10
P4: Total Sequences in Summary | Q4: =SUM(O7:O14) -> 59 | V4: Total Sequences in Block Summary | W4: =SUM(U7:U14) -> 10 | AA4: Total Sequences in Block Summary | AB4: =SUM(Z7:Z14) -> 10 | AF4: Total Sequences in Block Summary | AG4: =SUM(AE7:AE14) -> 9 | AK4: Total Sequences in Block Summary | AL4: =SUM(AJ7:AJ14) -> 10 | AP4: Total Sequences in Block Summary | AQ4: =SUM(AO7:AO14) -> 10 | AU4: Total Sequences in Block Summary | AV4: =SUM(AT7:AT14) -> 10
T5: Block 1 | Y5: Block 2 | AD5: Block 3 | AI5: Block 4 | AN5: Block 5 | AS5: Block 6
A6: Sequence Component 1 | B6: Time 1 | C6: Sequence Component 2 | D6: Time 2 | E6: Sequence Component 3 | F6: Time 3 | G6: Sequence Component 4 | H6: Time 4 | I6: Sequence Component 5 | J6: Time 5 | K6: Correct? 0=No 1=Yes | L6: Sequence | N6: Frequency | P6: Relative Frequency | Q6: Variability | T6: Frequency | V6: Relative Frequency | W6: Variability | Y6: Frequency | AA6: Relative Frequency | AB6: Variability | AD6: Frequency | AF6: Relative Frequency | AG6: Variability | AI6: Frequency | AK6: Relative Frequency | AL6: Variability | AN6: Frequency | AP6: Relative Frequency | AQ6: Variability | AS6: Frequency | AU6: Relative Frequency | AV6: Variability
A7: 21 | B7: 11 | C7: 21 | D7: 13 | E7: 21 | F7: 23 | K7: 0 | L7: 222 | N7: 111 | O7: =COUNTIF($L$7:$L$500,N7) -> 3 | P7: =O7/$Q$4 -> 0.05084745763 | Q7: =IF(P7=0,0,(P7*((LOG(P7))/LOG(2)))) -> -0.2185261296 | T7: =N7 -> 111 | U7: =COUNTIF(L7:L16,T7) -> 1 | V7: =U7/(W4-U14) -> 0.2 | W7: =IF(V7=0,0,(V7*((LOG(V7))/LOG(2)))) -> -0.464385619 | Y7: =N7 -> 111 | Z7: =COUNTIF(L17:L26,Y7) -> 0 | AA7: =Z7/(AB4-Z14) -> 0 | AB7: =IF(AA7=0,0,(AA7*((LOG(AA7))/LOG(2)))) -> 0 | AD7: =N7 -> 111 | AE7: =COUNTIF(L27:L35,AD7) -> 0 | AF7: =AE7/(AG4-AE14) -> 0 | AG7: =IF(AF7=0,0,(AF7*((LOG(AF7))/LOG(2)))) -> 0 | AI7: =N7 -> 111 | AJ7: =COUNTIF(L36:L45,AI7) -> 2 | AK7: =AJ7/(AL4-AJ14) -> 0.5 | AL7: =IF(AK7=0,0,(AK7*((LOG(AK7))/LOG(2)))) -> -0.5 | AN7: =N7 -> 111 | AO7: =COUNTIF(L46:L55,AN7) -> 0 | AP7: =AO7/(AQ4-AO14) ->  | AQ7: =IF(AP7=0,0,(AP7*((LOG(AP7))/LOG(2)))) ->  | AS7: =N7 -> 111 | AT7: =COUNTIF(L56:L65,AS7) -> 0 | AU7: =AT7/(AV4-AT14) -> 0 | AV7: =IF(AU7=0,0,(AU7*((LOG(AU7))/LOG(2)))) -> 0
A8: 21 | B8: 112 | C8: 12 | D8: 124 | E8: 23 | F8: 140 | K8: 0 | L8: 212 | N8: 112 | O8: =COUNTIF($L$7:$L$500,N8) -> 2 | P8: =O8/$Q$4 -> 0.03389830508 | Q8: =IF(P8=0,0,(P8*((LOG(P8))/LOG(2)))) -> -0.1655133237 | T8: =N8 -> 112 | U8: =COUNTIF(L7:L16,T8) -> 0 | V8: =U8/(W4-U14) -> 0 | W8: =IF(V8=0,0,(V8*((LOG(V8))/LOG(2)))) -> 0 | Y8: =N8 -> 112 | Z8: =COUNTIF(L17:L26,Y8) -> 0 | AA8: =Z8/(AB4-Z14) -> 0 | AB8: =IF(AA8=0,0,(AA8*((LOG(AA8))/LOG(2)))) -> 0 | AD8: =N8 -> 112 | AE8: =COUNTIF(L27:L35,AD8) -> 2 | AF8: =AE8/(AG4-AE14) -> 0.3333333333 | AG8: =IF(AF8=0,0,(AF8*((LOG(AF8))/LOG(2)))) -> -0.5283208336 | AI8: =N8 -> 112 | AJ8: =COUNTIF(L36:L45,AI8) -> 0 | AK8: =AJ8/(AL4-AJ14) -> 0 | AL8: =IF(AK8=0,0,(AK8*((LOG(AK8))/LOG(2)))) -> 0 | AN8: =N8 -> 112 | AO8: =COUNTIF(L46:L55,AN8) -> 0 | AP8: =AO8/(AQ4-AO14) ->  | AQ8: =IF(AP8=0,0,(AP8*((LOG(AP8))/LOG(2)))) ->  | AS8: =N8 -> 112 | AT8: =COUNTIF(L56:L65,AS8) -> 0 | AU8: =AT8/(AV4-AT14) -> 0 | AV8: =IF(AU8=0,0,(AU8*((LOG(AU8))/LOG(2)))) -> 0
A9: 12 | B9: 236 | C9: 14 | D9: 245 | E9: 14 | F9: 253 | K9: 0 | L9: 111 | N9: 121 | O9: =COUNTIF($L$7:$L$500,N9) -> 1 | P9: =O9/$Q$4 -> 0.01694915254 | Q9: =IF(P9=0,0,(P9*((LOG(P9))/LOG(2)))) -> -0.0997058144 | T9: =N9 -> 121 | U9: =COUNTIF(L7:L16,T9) -> 0 | V9: =U9/(W4-U14) -> 0 | W9: =IF(V9=0,0,(V9*((LOG(V9))/LOG(2)))) -> 0 | Y9: =N9 -> 121 | Z9: =COUNTIF(L17:L26,Y9) -> 0 | AA9: =Z9/(AB4-Z14) -> 0 | AB9: =IF(AA9=0,0,(AA9*((LOG(AA9))/LOG(2)))) -> 0 | AD9: =N9 -> 121 | AE9: =COUNTIF(L27:L35,AD9) -> 0 | AF9: =AE9/(AG4-AE14) -> 0 | AG9: =IF(AF9=0,0,(AF9*((LOG(AF9))/LOG(2)))) -> 0 | AI9: =N9 -> 121 | AJ9: =COUNTIF(L36:L45,AI9) -> 1 | AK9: =AJ9/(AL4-AJ14) -> 0.25 | AL9: =IF(AK9=0,0,(AK9*((LOG(AK9))/LOG(2)))) -> -0.5 | AN9: =N9 -> 121 | AO9: =COUNTIF(L46:L55,AN9) -> 0 | AP9: =AO9/(AQ4-AO14) ->  | AQ9: =IF(AP9=0,0,(AP9*((LOG(AP9))/LOG(2)))) ->  | AS9: =N9 -> 121 | AT9: =COUNTIF(L56:L65,AS9) -> 0 | AU9: =AT9/(AV4-AT14) -> 0 | AV9: =IF(AU9=0,0,(AU9*((LOG(AU9))/LOG(2)))) -> 0
A10: 21 | B10: 599 | C10: 21 | D10: 602 | E10: 21 | F10: 606 | K10: 0 | L10: 222 | N10: 122 | O10: =COUNTIF($L$7:$L$500,N10) -> 4 | P10: =O10/$Q$4 -> 0.06779661017 | Q10: =IF(P10=0,0,(P10*((LOG(P10))/LOG(2)))) -> -0.2632300372 | T10: =N10 -> 122 | U10: =COUNTIF(L7:L16,T10) -> 0 | V10: =U10/(W4-U14) -> 0 | W10: =IF(V10=0,0,(V10*((LOG(V10))/LOG(2)))) -> 0 | Y10: =N10 -> 122 | Z10: =COUNTIF(L17:L26,Y10) -> 2 | AA10: =Z10/(AB4-Z14) -> 0.5 | AB10: =IF(AA10=0,0,(AA10*((LOG(AA10))/LOG(2)))) -> -0.5 | AD10: =N10 -> 122 | AE10: =COUNTIF(L27:L35,AD10) -> 1 | AF10: =AE10/(AG4-AE14) -> 0.1666666667 | AG10: =IF(AF10=0,0,(AF10*((LOG(AF10))/LOG(2)))) -> -0.4308270835 | AI10: =N10 -> 122 | AJ10: =COUNTIF(L36:L45,AI10) -> 1 | AK10: =AJ10/(AL4-AJ14) -> 0.25 | AL10: =IF(AK10=0,0,(AK10*((LOG(AK10))/LOG(2)))) -> -0.5 | AN10: =N10 -> 122 | AO10: =COUNTIF(L46:L55,AN10) -> 0 | AP10: =AO10/(AQ4-AO14) ->  | AQ10: =IF(AP10=0,0,(AP10*((LOG(AP10))/LOG(2)))) ->  | AS10: =N10 -> 122 | AT10: =COUNTIF(L56:L65,AS10) -> 0 | AU10: =AT10/(AV4-AT14) -> 0 | AV10: =IF(AU10=0,0,(AU10*((LOG(AU10))/LOG(2)))) -> 0
A11: 21 | B11: 703 | C11: 12 | D11: 706 | E11: 23 | F11: 716 | K11: 0 | L11: 212 | N11: 211 | O11: =COUNTIF($L$7:$L$500,N11) -> 3 | P11: =O11/$Q$4 -> 0.05084745763 | Q11: =IF(P11=0,0,(P11*((LOG(P11))/LOG(2)))) -> -0.2185261296 | T11: =N11 -> 211 | U11: =COUNTIF(L7:L16,T11) -> 0 | V11: =U11/(W4-U14) -> 0 | W11: =IF(V11=0,0,(V11*((LOG(V11))/LOG(2)))) -> 0 | Y11: =N11 -> 211 | Z11: =COUNTIF(L17:L26,Y11) -> 1 | AA11: =Z11/(AB4-Z14) -> 0.25 | AB11: =IF(AA11=0,0,(AA11*((LOG(AA11))/LOG(2)))) -> -0.5 | AD11: =N11 -> 211 | AE11: =COUNTIF(L27:L35,AD11) -> 2 | AF11: =AE11/(AG4-AE14) -> 0.3333333333 | AG11: =IF(AF11=0,0,(AF11*((LOG(AF11))/LOG(2)))) -> -0.5283208336 | AI11: =N11 -> 211 | AJ11: =COUNTIF(L36:L45,AI11) -> 0 | AK11: =AJ11/(AL4-AJ14) -> 0 | AL11: =IF(AK11=0,0,(AK11*((LOG(AK11))/LOG(2)))) -> 0 | AN11: =N11 -> 211 | AO11: =COUNTIF(L46:L55,AN11) -> 0 | AP11: =AO11/(AQ4-AO14) ->  | AQ11: =IF(AP11=0,0,(AP11*((LOG(AP11))/LOG(2)))) ->  | AS11: =N11 -> 211 | AT11: =COUNTIF(L56:L65,AS11) -> 0 | AU11: =AT11/(AV4-AT14) -> 0 | AV11: =IF(AU11=0,0,(AU11*((LOG(AU11))/LOG(2)))) -> 0
A12: 21 | B12: 863 | C12: 12 | D12: 876 | E12: 23 | F12: 889 | K12: 0 | L12: 212 | N12: 212 | O12: =COUNTIF($L$7:$L$500,N12) -> 5 | P12: =O12/$Q$4 -> 0.08474576271 | Q12: =IF(P12=0,0,(P12*((LOG(P12))/LOG(2)))) -> -0.3017555046 | T12: =N12 -> 212 | U12: =COUNTIF(L7:L16,T12) -> 3 | V12: =U12/(W4-U14) -> 0.6 | W12: =IF(V12=0,0,(V12*((LOG(V12))/LOG(2)))) -> -0.4421793565 | Y12: =N12 -> 212 | Z12: =COUNTIF(L17:L26,Y12) -> 0 | AA12: =Z12/(AB4-Z14) -> 0 | AB12: =IF(AA12=0,0,(AA12*((LOG(AA12))/LOG(2)))) -> 0 | AD12: =N12 -> 212 | AE12: =COUNTIF(L27:L35,AD12) -> 1 | AF12: =AE12/(AG4-AE14) -> 0.1666666667 | AG12: =IF(AF12=0,0,(AF12*((LOG(AF12))/LOG(2)))) -> -0.4308270835 | AI12: =N12 -> 212 | AJ12: =COUNTIF(L36:L45,AI12) -> 0 | AK12: =AJ12/(AL4-AJ14) -> 0 | AL12: =IF(AK12=0,0,(AK12*((LOG(AK12))/LOG(2)))) -> 0 | AN12: =N12 -> 212 | AO12: =COUNTIF(L46:L55,AN12) -> 0 | AP12: =AO12/(AQ4-AO14) ->  | AQ12: =IF(AP12=0,0,(AP12*((LOG(AP12))/LOG(2)))) ->  | AS12: =N12 -> 212 | AT12: =COUNTIF(L56:L65,AS12) -> 1 | AU12: =AT12/(AV4-AT14) -> 0.3333333333 | AV12: =IF(AU12=0,0,(AU12*((LOG(AU12))/LOG(2)))) -> -0.5283208336
A13: 21 | B13: 985 | C13: 21 | D13: 996 | E13: 12 | F13: 1012 | K13: 0 | L13: 221 | N13: 221 | O13: =COUNTIF($L$7:$L$500,N13) -> 4 | P13: =O13/$Q$4 -> 0.06779661017 | Q13: =IF(P13=0,0,(P13*((LOG(P13))/LOG(2)))) -> -0.2632300372 | T13: =N13 -> 221 | U13: =COUNTIF(L7:L16,T13) -> 1 | V13: =U13/(W4-U14) -> 0.2 | W13: =IF(V13=0,0,(V13*((LOG(V13))/LOG(2)))) -> -0.464385619 | Y13: =N13 -> 221 | Z13: =COUNTIF(L17:L26,Y13) -> 1 | AA13: =Z13/(AB4-Z14) -> 0.25 | AB13: =IF(AA13=0,0,(AA13*((LOG(AA13))/LOG(2)))) -> -0.5 | AD13: =N13 -> 221 | AE13: =COUNTIF(L27:L35,AD13) -> 0 | AF13: =AE13/(AG4-AE14) -> 0 | AG13: =IF(AF13=0,0,(AF13*((LOG(AF13))/LOG(2)))) -> 0 | AI13: =N13 -> 221 | AJ13: =COUNTIF(L36:L45,AI13) -> 0 | AK13: =AJ13/(AL4-AJ14) -> 0 | AL13: =IF(AK13=0,0,(AK13*((LOG(AK13))/LOG(2)))) -> 0 | AN13: =N13 -> 221 | AO13: =COUNTIF(L46:L55,AN13) -> 0 | AP13: =AO13/(AQ4-AO14) ->  | AQ13: =IF(AP13=0,0,(AP13*((LOG(AP13))/LOG(2)))) ->  | AS13: =N13 -> 221 | AT13: =COUNTIF(L56:L65,AS13) -> 2 | AU13: =AT13/(AV4-AT14) -> 0.6666666667 | AV13: =IF(AU13=0,0,(AU13*((LOG(AU13))/LOG(2)))) -> -0.3899750005
A14: 21 | B14: 1182 | C14: 21 | D14: 1194 | E14: 21 | F14: 1215 | K14: 0 | L14: 222 | N14: 222 | O14: =COUNTIF($L$7:$L$500,N14) -> 37 | P14: =O14/$Q$4 -> 0.6271186441 | Q14: =IF(P14=0,0,(P14*((LOG(P14))/LOG(2)))) -> -0.4221698017 | T14: =N14 -> 222 | U14: =COUNTIF(L7:L16,T14) -> 5 | Y14: =N14 -> 222 | Z14: =COUNTIF(L17:L26,Y14) -> 6 | AD14: =N14 -> 222 | AE14: =COUNTIF(L27:L35,AD14) -> 3 | AI14: =N14 -> 222 | AJ14: =COUNTIF(L36:L45,AI14) -> 6 | AN14: =N14 -> 222 | AO14: =COUNTIF(L46:L55,AN14) -> 10 | AS14: =N14 -> 222 | AT14: =COUNTIF(L56:L65,AS14) -> 7
A15: 21 | B15: 1385 | C15: 21 | D15: 1389 | E15: 21 | F15: 1393 | K15: 0 | L15: 222 | P15: =SUM(P7:P14) -> 1 | Q15: =-SUM(Q7:Q14) -> 1.952656778 | V15: =SUM(V7:V14) -> 1 | W15: =-SUM(W7:W14) -> 1.370950594 | AA15: =SUM(AA7:AA14) -> 1 | AB15: =-SUM(AB7:AB14) -> 1.5 | AF15: =SUM(AF7:AF14) -> 1 | AG15: =-SUM(AG7:AG14) -> 1.918295834 | AK15: =SUM(AK7:AK14) -> 1 | AL15: =-SUM(AL7:AL14) -> 1.5 | AP15: =SUM(AP7:AP14) ->  | AQ15: =-SUM(AQ7:AQ14) ->  | AU15: =SUM(AU7:AU14) -> 1 | AV15: =-SUM(AV7:AV14) -> 0.9182958341
A16: 21 | B16: 1601 | C16: 21 | D16: 1605 | E16: 21 | F16: 1609 | K16: 0 | L16: 222 | P16: U= | Q16: =Q15/(LOG(Q4)/LOG(2)) -> 0.3319352818 | V16: U1= | W16: =W15/(LOG(W4)/LOG(2)) -> 0.4126972515 | AA16: U2= | AB16: =AB15/(LOG(AB4)/LOG(2)) -> 0.4515449935 | AF16: U3= | AG16: =AG15/(LOG(AG4)/LOG(2)) -> 0.6051549589 | AK16: U4= | AL16: =AL15/(LOG(AL4)/LOG(2)) -> 0.4515449935 | AP16: U5= | AQ16: =AQ15/(LOG(AQ4)/LOG(2)) ->  | AU16: U6= | AV16: =AV15/(LOG(AV4)/LOG(2)) -> 0.2764345909
A17: 21 | B17: 1719 | C17: 21 | D17: 1724 | E17: 21 | F17: 1730 | K17: 0 | L17: 222
A18: 21 | B18: 1963 | C18: 21 | D18: 1968 | E18: 21 | F18: 1973 | K18: 0 | L18: 222
A19: 21 | B19: 2150 | C19: 21 | D19: 2156 | E19: 21 | F19: 2159 | K19: 0 | L19: 222 | N19: Total Target Seq
A20: 21 | B20: 2254 | C20: 21 | D20: 2260 | E20: 21 | F20: 2265 | K20: 0 | L20: 222 | N20: =COUNTIF(L7:L65,G3) -> 37 | P20: 10 | Q20: 10 | R20: 9 | S20: 10 | T20: 10 | U20: 10
A21: 21 | B21: 2498 | C21: 21 | D21: 2503 | E21: 21 | F21: 2508 | K21: 0 | L21: 222 | P21: % of reinforcement given in 6 equal intervals based on number of trials
A22: 21 | B22: 2644 | C22: 21 | D22: 2650 | E22: 21 | F22: 2654 | K22: 0 | L22: 222 | P22: %_1 | Q22: %_2 | R22: %_3 | S22: %_4 | T22: %_5 | U22: %_6
A23: 12 | B23: 2759 | C23: 23 | D23: 2770 | E23: 23 | F23: 2774 | K23: 0 | L23: 122 | O23: target sequence | P23: =$G$3 -> 222 | Q23: =$G$3 -> 222 | R23: =$G$3 -> 222 | S23: =$G$3 -> 222 | T23: =$G$3 -> 222 | U23: =$G$3 -> 222
A24: 21 | B24: 2869 | C24: 21 | D24: 2875 | E24: 12 | F24: 2881 | K24: 0 | L24: 221 | O24: total reinforcement | P24: =U14 -> 5 | Q24: =Z14 -> 6 | R24: =AE14 -> 3 | S24: =AJ14 -> 6 | T24: =AO14 -> 10 | U24: =AT14 -> 7
A25: 21 | B25: 2979 | C25: 12 | D25: 2995 | E25: 14 | F25: 3027 | K25: 0 | L25: 211 | O25: % target
A26: 12 | B26: 3129 | C26: 23 | D26: 3156 | E26: 23 | F26: 3160 | K26: 0 | L26: 122 | O26: CCRF
A27: 21 | B27: 3457 | C27: 21 | D27: 3460 | E27: 21 | F27: 3464 | K27: 0 | L27: 222 | O27: % CCRf
A28: 21 | B28: 3558 | C28: 12 | D28: 3570 | E28: 14 | F28: 3577 | K28: 0 | L28: 211 | O28: average response rate | P28: =F16/P20 -> 160.9 | Q28: =(F26-F16)/Q20 -> 155.1 | R28: =(F35-F26)/R20 -> 814.1111111 | S28: =(F45-F35)/S20 -> 141.1 | T28: =(F55-F45)/T20 -> 188.8 | U28: =(F65-F55)/U20 -> 160.9
A29: 21 | B29: 3678 | C29: 21 | D29: 3682 | E29: 21 | F29: 3687 | K29: 0 | L29: 222
A30: 21 | B30: 3778 | C30: 12 | D30: 3785 | E30: 23 | F30: 3805 | K30: 0 | L30: 212
A31: 12 | B31: 3899 | C31: 23 | D31: 3910 | E31: 23 | F31: 3921 | K31: 0 | L31: 122
A32: 21 | B32: 4096 | C32: 21 | D32: 4102 | E32: 21 | F32: 4106 | K32: 0 | L32: 222
A33: 12 | B33: 4340 | C33: 14 | D33: 4349 | E33: 23 | F33: 4351 | K33: 0 | L33: 112
A34: 12 | B34: 4453 | C34: 14 | D34: 4457 | E34: 23 | F34: 4469 | K34: 0 | L34: 112
A35: 21 | B35: 10461 | C35: 12 | D35: 10474 | E35: 14 | F35: 10487 | K35: 0 | L35: 211
A36: 12 | B36: 10617 | C36: 23 | D36: 10624 | E36: 23 | F36: 10630 | K36: 0 | L36: 122
A37: 12 | B37: 10812 | C37: 14 | D37: 10825 | E37: 14 | F37: 10840 | K37: 0 | L37: 111
A38: 12 | B38: 10951 | C38: 23 | D38: 10967 | E38: 14 | F38: 10971 | K38: 0 | L38: 121
A39: 12 | B39: 11070 | C39: 14 | D39: 11074 | E39: 14 | F39: 11078 | K39: 0 | L39: 111
A40: 21 | B40: 11173 | C40: 21 | D40: 11179 | E40: 21 | F40: 11185 | K40: 0 | L40: 222
A41: 21 | B41: 11272 | C41: 21 | D41: 11275 | E41: 21 | F41: 11284 | K41: 0 | L41: 222
A42: 21 | B42: 11408 | C42: 21 | D42: 11412 | E42: 21 | F42: 11418 | K42: 0 | L42: 222
A43: 21 | B43: 11530 | C43: 21 | D43: 11535 | E43: 21 | F43: 11546 | K43: 0 | L43: 222
A44: 21 | B44: 11744 | C44: 21 | D44: 11750 | E44: 21 | F44: 11753 | K44: 0 | L44: 222
A45: 21 | B45: 11892 | C45: 21 | D45: 11894 | E45: 21 | F45: 11898 | K45: 0 | L45: 222
A46: 21 | B46: 12038 | C46: 21 | D46: 12043 | E46: 21 | F46: 12048 | K46: 0 | L46: 222
A47: 21 | B47: 12260 | C47: 21 | D47: 12264 | E47: 21 | F47: 12307 | K47: 0 | L47: 222
A48: 21 | B48: 12489 | C48: 21 | D48: 12493 | E48: 21 | F48: 12498 | K48: 0 | L48: 222
A49: 21 | B49: 12691 | C49: 21 | D49: 12695 | E49: 21 | F49: 12699 | K49: 0 | L49: 222
A50: 21 | B50: 12928 | C50: 21 | D50: 12935 | E50: 21 | F50: 12939 | K50: 0 | L50: 222
A51: 21 | B51: 13138 | C51: 21 | D51: 13142 | E51: 21 | F51: 13146 | K51: 0 | L51: 222
A52: 21 | B52: 13298 | C52: 21 | D52: 13303 | E52: 21 | F52: 13352 | K52: 0 | L52: 222
A53: 21 | B53: 13481 | C53: 21 | D53: 13486 | E53: 21 | F53: 13493 | K53: 0 | L53: 222
A54: 21 | B54: 13614 | C54: 21 | D54: 13617 | E54: 21 | F54: 13622 | K54: 0 | L54: 222
A55: 21 | B55: 13781 | C55: 21 | D55: 13783 | E55: 21 | F55: 13786 | K55: 0 | L55: 222
A56: 21 | B56: 13879 | C56: 21 | D56: 13882 | E56: 21 | F56: 13889 | K56: 0 | L56: 222
A57: 21 | B57: 14090 | C57: 21 | D57: 14093 | E57: 21 | F57: 14095 | K57: 0 | L57: 222
A58: 21 | B58: 14279 | C58: 21 | D58: 14283 | E58: 21 | F58: 14287 | K58: 0 | L58: 222
A59: 21 | B59: 14431 | C59: 21 | D59: 14435 | E59: 21 | F59: 14479 | K59: 0 | L59: 222
A60: 21 | B60: 14566 | C60: 21 | D60: 14638 | E60: 21 | F60: 14640 | K60: 0 | L60: 222
A61: 21 | B61: 14757 | C61: 12 | D61: 14783 | E61: 23 | F61: 14798 | K61: 0 | L61: 212
A62: 21 | B62: 14896 | C62: 21 | D62: 14899 | E62: 21 | F62: 14902 | K62: 0 | L62: 222
A63: 21 | B63: 15131 | C63: 21 | D63: 15133 | E63: 12 | F63: 15163 | K63: 0 | L63: 221
A64: 21 | B64: 15257 | C64: 21 | D64: 15266 | E64: 12 | F64: 15271 | K64: 0 | L64: 221
A65: 21 | B65: 15376 | C65: 21 | D65: 15391 | E65: 21 | F65: 15395 | K65: 1 | L65: 222

Sheet !N104B0B.AXT
A1: Report for:!N104B0B.AXT
A2: Date: | B2: <date>
A3: Hen: | B3: <hen> | F3: Correct Sequence | G3: =Start!J2 -> 222 | P3: Total Sequences in Data | Q3: =4994-COUNTBLANK(L7:L5000) -> 58 | V3: Total Sequences in Block Data | W3: =COUNTA(L7:L16) -> 10 | AA3: Total Sequences in Block Data | AB3: =COUNTA(L17:L25) -> 9 | AF3: Total Sequences in Block Data | AG3: =COUNTA(L26:L35) -> 10 | AK3: Total Sequences in Block Data | AL3: =COUNTA(L36:L45) -> 10 | AP3: Total Sequences in Block Data | AQ3: =COUNTA(L46:L54) -> 9 | AU3: Total Sequences in Block Data | AV3: =COUNTA(L55:L64) -> 10
P4: Total Sequences in Summary | Q4: =SUM(O7:O14) -> 58 | V4: Total Sequences in Block Summary | W4: =SUM(U7:U14) -> 10 | AA4: Total Sequences in Block Summary | AB4: =SUM(Z7:Z14) -> 9 | AF4: Total Sequences in Block Summary | AG4: =SUM(AE7:AE14) -> 10 | AK4: Total Sequences in Block Summary | AL4: =SUM(AJ7:AJ14) -> 10 | AP4: Total Sequences in Block Summary | AQ4: =SUM(AO7:AO14) -> 9 | AU4: Total Sequences in Block Summary | AV4: =SUM(AT7:AT14) -> 10
T5: Block 1 | Y5: Block 2 | AD5: Block 3 | AI5: Block 4 | AN5: Block 5 | AS5: Block 6
A6: Sequence Component 1 | B6: Time 1 | C6: Sequence Component 2 | D6: Time 2 | E6: Sequence Component 3 | F6: Time 3 | G6: Sequence Component 4 | H6: Time 4 | I6: Sequence Component 5 | J6: Time 5 | K6: Correct? 0=No 1=Yes | L6: Sequence | N6: Frequency | P6: Relative Frequency | Q6: Variability | T6: Frequency | V6: Relative Frequency | W6: Variability | Y6: Frequency | AA6: Relative Frequency | AB6: Variability | AD6: Frequency | AF6: Relative Frequency | AG6: Variability | AI6: Frequency | AK6: Relative Frequency | AL6: Variability | AN6: Frequency | AP6: Relative Frequency | AQ6: Variability | AS6: Frequency | AU6: Relative Frequency | AV6: Variability
A7: 21 | B7: 63 | C7: 21 | D7: 67 | E7: 21 | F7: 73 | K7: 0 | L7: 222 | N7: 111 | O7: =COUNTIF($L$7:$L$500,N7) -> 1 | P7: =O7/$Q$4 -> 0.01724137931 | Q7: =IF(P7=0,0,(P7*((LOG(P7))/LOG(2)))) -> -0.1009996723 | T7: =N7 -> 111 | U7: =COUNTIF(L7:L16,T7) -> 0 | V7: =U7/(W4-U14) -> 0 | W7: =IF(V7=0,0,(V7*((LOG(V7))/LOG(2)))) -> 0 | Y7: =N7 -> 111 | Z7: =COUNTIF(L17:L25,Y7) -> 0 | AA7: =Z7/(AB4-Z14) -> 0 | AB7: =IF(AA7=0,0,(AA7*((LOG(AA7))/LOG(2)))) -> 0 | AD7: =N7 -> 111 | AE7: =COUNTIF(L26:L35,AD7) -> 1 | AF7: =AE7/(AG4-AE14) -> 0.1111111111 | AG7: =IF(AF7=0,0,(AF7*((LOG(AF7))/LOG(2)))) -> -0.352213889 | AI7: =N7 -> 111 | AJ7: =COUNTIF(L36:L45,AI7) -> 0 | AK7: =AJ7/(AL4-AJ14) -> 0 | AL7: =IF(AK7=0,0,(AK7*((LOG(AK7))/LOG(2)))) -> 0 | AN7: =N7 -> 111 | AO7: =COUNTIF(L46:L54,AN7) -> 0 | AP7: =AO7/(AQ4-AO14) ->  | AQ7: =IF(AP7=0,0,(AP7*((LOG(AP7))/LOG(2)))) ->  | AS7: =N7 -> 111 | AT7: =COUNTIF(L55:L64,AS7) -> 0 | AU7: =AT7/(AV4-AT14) -> 0 | AV7: =IF(AU7=0,0,(AU7*((LOG(AU7))/LOG(2)))) -> 0
A8: 21 | B8: 194 | C8: 21 | D8: 201 | E8: 21 | F8: 207 | K8: 0 | L8: 222 | N8: 112 | O8: =COUNTIF($L$7:$L$500,N8) -> 1 | P8: =O8/$Q$4 -> 0.01724137931 | Q8: =IF(P8=0,0,(P8*((LOG(P8))/LOG(2)))) -> -0.1009996723 | T8: =N8 -> 112 | U8: =COUNTIF(L7:L16,T8) -> 0 | V8: =U8/(W4-U14) -> 0 | W8: =IF(V8=0,0,(V8*((LOG(V8))/LOG(2)))) -> 0 | Y8: =N8 -> 112 | Z8: =COUNTIF(L17:L25,Y8) -> 1 | AA8: =Z8/(AB4-Z14) -> 0.1428571429 | AB8: =IF(AA8=0,0,(AA8*((LOG(AA8))/LOG(2)))) -> -0.4010507032 | AD8: =N8 -> 112 | AE8: =COUNTIF(L26:L35,AD8) -> 0 | AF8: =AE8/(AG4-AE14) -> 0 | AG8: =IF(AF8=0,0,(AF8*((LOG(AF8))/LOG(2)))) -> 0 | AI8: =N8 -> 112 | AJ8: =COUNTIF(L36:L45,AI8) -> 0 | AK8: =AJ8/(AL4-AJ14) -> 0 | AL8: =IF(AK8=0,0,(AK8*((LOG(AK8))/LOG(2)))) -> 0 | AN8: =N8 -> 112 | AO8: =COUNTIF(L46:L54,AN8) -> 0 | AP8: =AO8/(AQ4-AO14) ->  | AQ8: =IF(AP8=0,0,(AP8*((LOG(AP8))/LOG(2)))) ->  | AS8: =N8 -> 112 | AT8: =COUNTIF(L55:L64,AS8) -> 0 | AU8: =AT8/(AV4-AT14) -> 0 | AV8: =IF(AU8=0,0,(AU8*((LOG(AU8))/LOG(2)))) -> 0
A9: 21 | B9: 324 | C9: 21 | D9: 329 | E9: 21 | F9: 333 | K9: 0 | L9: 222 | N9: 121 | O9: =COUNTIF($L$7:$L$500,N9) -> 2 | P9: =O9/$Q$4 -> 0.03448275862 | Q9: =IF(P9=0,0,(P9*((LOG(P9))/LOG(2)))) -> -0.167516586 | T9: =N9 -> 121 | U9: =COUNTIF(L7:L16,T9) -> 0 | V9: =U9/(W4-U14) -> 0 | W9: =IF(V9=0,0,(V9*((LOG(V9))/LOG(2)))) -> 0 | Y9: =N9 -> 121 | Z9: =COUNTIF(L17:L25,Y9) -> 0 | AA9: =Z9/(AB4-Z14) -> 0 | AB9: =IF(AA9=0,0,(AA9*((LOG(AA9))/LOG(2)))) -> 0 | AD9: =N9 -> 121 | AE9: =COUNTIF(L26:L35,AD9) -> 1 | AF9: =AE9/(AG4-AE14) -> 0.1111111111 | AG9: =IF(AF9=0,0,(AF9*((LOG(AF9))/LOG(2)))) -> -0.352213889 | AI9: =N9 -> 121 | AJ9: =COUNTIF(L36:L45,AI9) -> 1 | AK9: =AJ9/(AL4-AJ14) -> 1 | AL9: =IF(AK9=0,0,(AK9*((LOG(AK9))/LOG(2)))) -> 0 | AN9: =N9 -> 121 | AO9: =COUNTIF(L46:L54,AN9) -> 0 | AP9: =AO9/(AQ4-AO14) ->  | AQ9: =IF(AP9=0,0,(AP9*((LOG(AP9))/LOG(2)))) ->  | AS9: =N9 -> 121 | AT9: =COUNTIF(L55:L64,AS9) -> 0 | AU9: =AT9/(AV4-AT14) -> 0 | AV9: =IF(AU9=0,0,(AU9*((LOG(AU9))/LOG(2)))) -> 0
A10: 21 | B10: 420 | C10: 21 | D10: 422 | E10: 12 | F10: 445 | K10: 0 | L10: 221 | N10: 122 | O10: =COUNTIF($L$7:$L$500,N10) -> 3 | P10: =O10/$Q$4 -> 0.05172413793 | Q10: =IF(P10=0,0,(P10*((LOG(P10))/LOG(2)))) -> -0.221018198 | T10: =N10 -> 122 | U10: =COUNTIF(L7:L16,T10) -> 0 | V10: =U10/(W4-U14) -> 0 | W10: =IF(V10=0,0,(V10*((LOG(V10))/LOG(2)))) -> 0 | Y10: =N10 -> 122 | Z10: =COUNTIF(L17:L25,Y10) -> 2 | AA10: =Z10/(AB4-Z14) -> 0.2857142857 | AB10: =IF(AA10=0,0,(AA10*((LOG(AA10))/LOG(2)))) -> -0.5163871206 | AD10: =N10 -> 122 | AE10: =COUNTIF(L26:L35,AD10) -> 1 | AF10: =AE10/(AG4-AE14) -> 0.1111111111 | AG10: =IF(AF10=0,0,(AF10*((LOG(AF10))/LOG(2)))) -> -0.352213889 | AI10: =N10 -> 122 | AJ10: =COUNTIF(L36:L45,AI10) -> 0 | AK10: =AJ10/(AL4-AJ14) -> 0 | AL10: =IF(AK10=0,0,(AK10*((LOG(AK10))/LOG(2)))) -> 0 | AN10: =N10 -> 122 | AO10: =COUNTIF(L46:L54,AN10) -> 0 | AP10: =AO10/(AQ4-AO14) ->  | AQ10: =IF(AP10=0,0,(AP10*((LOG(AP10))/LOG(2)))) ->  | AS10: =N10 -> 122 | AT10: =COUNTIF(L55:L64,AS10) -> 0 | AU10: =AT10/(AV4-AT14) -> 0 | AV10: =IF(AU10=0,0,(AU10*((LOG(AU10))/LOG(2)))) -> 0
A11: 21 | B11: 540 | C11: 21 | D11: 551 | E11: 12 | F11: 561 | K11: 0 | L11: 221 | N11: 211 | O11: =COUNTIF($L$7:$L$500,N11) -> 4 | P11: =O11/$Q$4 -> 0.06896551724 | Q11: =IF(P11=0,0,(P11*((LOG(P11))/LOG(2)))) -> -0.2660676548 | T11: =N11 -> 211 | U11: =COUNTIF(L7:L16,T11) -> 0 | V11: =U11/(W4-U14) -> 0 | W11: =IF(V11=0,0,(V11*((LOG(V11))/LOG(2)))) -> 0 | Y11: =N11 -> 211 | Z11: =COUNTIF(L17:L25,Y11) -> 1 | AA11: =Z11/(AB4-Z14) -> 0.1428571429 | AB11: =IF(AA11=0,0,(AA11*((LOG(AA11))/LOG(2)))) -> -0.4010507032 | AD11: =N11 -> 211 | AE11: =COUNTIF(L26:L35,AD11) -> 3 | AF11: =AE11/(AG4-AE14) -> 0.3333333333 | AG11: =IF(AF11=0,0,(AF11*((LOG(AF11))/LOG(2)))) -> -0.5283208336 | AI11: =N11 -> 211 | AJ11: =COUNTIF(L36:L45,AI11) -> 0 | AK11: =AJ11/(AL4-AJ14) -> 0 | AL11: =IF(AK11=0,0,(AK11*((LOG(AK11))/LOG(2)))) -> 0 | AN11: =N11 -> 211 | AO11: =COUNTIF(L46:L54,AN11) -> 0 | AP11: =AO11/(AQ4-AO14) ->  | AQ11: =IF(AP11=0,0,(AP11*((LOG(AP11))/LOG(2)))) ->  | AS11: =N11 -> 211 | AT11: =COUNTIF(L55:L64,AS11) -> 0 | AU11: =AT11/(AV4-AT14) -> 0 | AV11: =IF(AU11=0,0,(AU11*((LOG(AU11))/LOG(2)))) -> 0
A12: 21 | B12: 707 | C12: 12 | D12: 724 | E12: 23 | F12: 737 | K12: 0 | L12: 212 | N12: 212 | O12: =COUNTIF($L$7:$L$500,N12) -> 5 | P12: =O12/$Q$4 -> 0.08620689655 | Q12: =IF(P12=0,0,(P12*((LOG(P12))/LOG(2)))) -> -0.3048321466 | T12: =N12 -> 212 | U12: =COUNTIF(L7:L16,T12) -> 1 | V12: =U12/(W4-U14) -> 0.25 | W12: =IF(V12=0,0,(V12*((LOG(V12))/LOG(2)))) -> -0.5 | Y12: =N12 -> 212 | Z12: =COUNTIF(L17:L25,Y12) -> 2 | AA12: =Z12/(AB4-Z14) -> 0.2857142857 | AB12: =IF(AA12=0,0,(AA12*((LOG(AA12))/LOG(2)))) -> -0.5163871206 | AD12: =N12 -> 212 | AE12: =COUNTIF(L26:L35,AD12) -> 1 | AF12: =AE12/(AG4-AE14) -> 0.1111111111 | AG12: =IF(AF12=0,0,(AF12*((LOG(AF12))/LOG(2)))) -> -0.352213889 | AI12: =N12 -> 212 | AJ12: =COUNTIF(L36:L45,AI12) -> 0 | AK12: =AJ12/(AL4-AJ14) -> 0 | AL12: =IF(AK12=0,0,(AK12*((LOG(AK12))/LOG(2)))) -> 0 | AN12: =N12 -> 212 | AO12: =COUNTIF(L46:L54,AN12) -> 0 | AP12: =AO12/(AQ4-AO14) ->  | AQ12: =IF(AP12=0,0,(AP12*((LOG(AP12))/LOG(2)))) ->  | AS12: =N12 -> 212 | AT12: =COUNTIF(L55:L64,AS12) -> 1 | AU12: =AT12/(AV4-AT14) -> 1 | AV12: =IF(AU12=0,0,(AU12*((LOG(AU12))/LOG(2)))) -> 0
A13: 21 | B13: 836 | C13: 21 | D13: 838 | E13: 12 | F13: 853 | K13: 0 | L13: 221 | N13: 221 | O13: =COUNTIF($L$7:$L$500,N13) -> 6 | P13: =O13/$Q$4 -> 0.1034482759 | Q13: =IF(P13=0,0,(P13*((LOG(P13))/LOG(2)))) -> -0.3385881201 | T13: =N13 -> 221 | U13: =COUNTIF(L7:L16,T13) -> 3 | V13: =U13/(W4-U14) -> 0.75 | W13: =IF(V13=0,0,(V13*((LOG(V13))/LOG(2)))) -> -0.3112781245 | Y13: =N13 -> 221 | Z13: =COUNTIF(L17:L25,Y13) -> 1 | AA13: =Z13/(AB4-Z14) -> 0.1428571429 | AB13: =IF(AA13=0,0,(AA13*((LOG(AA13))/LOG(2)))) -> -0.4010507032 | AD13: =N13 -> 221 | AE13: =COUNTIF(L26:L35,AD13) -> 2 | AF13: =AE13/(AG4-AE14) -> 0.2222222222 | AG13: =IF(AF13=0,0,(AF13*((LOG(AF13))/LOG(2)))) -> -0.4822055559 | AI13: =N13 -> 221 | AJ13: =COUNTIF(L36:L45,AI13) -> 0 | AK13: =AJ13/(AL4-AJ14) -> 0 | AL13: =IF(AK13=0,0,(AK13*((LOG(AK13))/LOG(2)))) -> 0 | AN13: =N13 -> 221 | AO13: =COUNTIF(L46:L54,AN13) -> 0 | AP13: =AO13/(AQ4-AO14) ->  | AQ13: =IF(AP13=0,0,(AP13*((LOG(AP13))/LOG(2)))) ->  | AS13: =N13 -> 221 | AT13: =COUNTIF(L55:L64,AS13) -> 0 | AU13: =AT13/(AV4-AT14) -> 0 | AV13: =IF(AU13=0,0,(AU13*((LOG(AU13))/LOG(2)))) -> 0
A14: 21 | B14: 950 | C14: 21 | D14: 953 | E14: 21 | F14: 961 | K14: 0 | L14: 222 | N14: 222 | O14: =COUNTIF($L$7:$L$500,N14) -> 36 | P14: =O14/$Q$4 -> 0.6206896552 | Q14: =IF(P14=0,0,(P14*((LOG(P14))/LOG(2)))) -> -0.4270692375 | T14: =N14 -> 222 | U14: =COUNTIF(L7:L16,T14) -> 6 | Y14: =N14 -> 222 | Z14: =COUNTIF(L17:L25,Y14) -> 2 | AD14: =N14 -> 222 | AE14: =COUNTIF(L26:L35,AD14) -> 1 | AI14: =N14 -> 222 | AJ14: =COUNTIF(L36:L45,AI14) -> 9 | AN14: =N14 -> 222 | AO14: =COUNTIF(L46:L54,AN14) -> 9 | AS14: =N14 -> 222 | AT14: =COUNTIF(L55:L64,AS14) -> 9
A15: 21 | B15: 1065 | C15: 21 | D15: 1067 | E15: 21 | F15: 1072 | K15: 0 | L15: 222 | P15: =SUM(P7:P14) -> 1 | Q15: =-SUM(Q7:Q14) -> 1.927091288 | V15: =SUM(V7:V14) -> 1 | W15: =-SUM(W7:W14) -> 0.8112781245 | AA15: =SUM(AA7:AA14) -> 1 | AB15: =-SUM(AB7:AB14) -> 2.235926351 | AF15: =SUM(AF7:AF14) -> 1 | AG15: =-SUM(AG7:AG14) -> 2.419381946 | AK15: =SUM(AK7:AK14) -> 1 | AL15: =-SUM(AL7:AL14) -> 0 | AP15: =SUM(AP7:AP14) ->  | AQ15: =-SUM(AQ7:AQ14) ->  | AU15: =SUM(AU7:AU14) -> 1 | AV15: =-SUM(AV7:AV14) -> 0
A16: 21 | B16: 1201 | C16: 21 | D16: 1208 | E16: 21 | F16: 1212 | K16: 0 | L16: 222 | P16: U= | Q16: =Q15/(LOG(Q4)/LOG(2)) -> 0.3289685114 | V16: U1= | W16: =W15/(LOG(W4)/LOG(2)) -> 0.2442190503 | AA16: U2= | AB16: =AB15/(LOG(AB4)/LOG(2)) -> 0.7053562307 | AF16: U3= | AG16: =AG15/(LOG(AG4)/LOG(2)) -> 0.7283065366 | AK16: U4= | AL16: =AL15/(LOG(AL4)/LOG(2)) -> 0 | AP16: U5= | AQ16: =AQ15/(LOG(AQ4)/LOG(2)) ->  | AU16: U6= | AV16: =AV15/(LOG(AV4)/LOG(2)) -> 0
A17: 21 | B17: 1301 | C17: 21 | D17: 1307 | E17: 12 | F17: 1316 | K17: 0 | L17: 221
A18: 21 | B18: 1419 | C18: 21 | D18: 1421 | E18: 21 | F18: 1426 | K18: 0 | L18: 222
A19: 21 | B19: 1525 | C19: 12 | D19: 1528 | E19: 23 | F19: 1538 | K19: 0 | L19: 212 | N19: Total Target Seq
A20: 12 | B20: 1633 | C20: 23 | D20: 1636 | E20: 23 | F20: 1646 | K20: 0 | L20: 122 | N20: =COUNTIF(L7:L64,G3) -> 36 | P20: 10 | Q20: 9 | R20: 10 | S20: 10 | T20: 9 | U20: 10
A21: 21 | B21: 1740 | C21: 12 | D21: 1744 | E21: 23 | F21: 1751 | K21: 0 | L21: 212 | P21: % of reinforcement given in 6 equal intervals based on number of trials
A22: 21 | B22: 1847 | C22: 12 | D22: 1851 | E22: 14 | F22: 1860 | K22: 0 | L22: 211 | P22: %_1 | Q22: %_2 | R22: %_3 | S22: %_4 | T22: %_5 | U22: %_6
A23: 21 | B23: 1985 | C23: 21 | D23: 1988 | E23: 21 | F23: 1996 | K23: 0 | L23: 222 | O23: target sequence | P23: =$G$3 -> 222 | Q23: =$G$3 -> 222 | R23: =$G$3 -> 222 | S23: =$G$3 -> 222 | T23: =$G$3 -> 222 | U23: =$G$3 -> 222
A24: 12 | B24: 2083 | C24: 23 | D24: 2103 | E24: 23 | F24: 2107 | K24: 0 | L24: 122 | O24: total reinforcement | P24: =U14 -> 6 | Q24: =Z14 -> 2 | R24: =AE14 -> 1 | S24: =AJ14 -> 9 | T24: =AO14 -> 9 | U24: =AT14 -> 9
A25: 12 | B25: 3133 | C25: 14 | D25: 3140 | E25: 23 | F25: 3151 | K25: 0 | L25: 112 | O25: % target
A26: 12 | B26: 3244 | C26: 23 | D26: 3247 | E26: 14 | F26: 3250 | K26: 0 | L26: 121 | O26: CCRF
A27: 21 | B27: 3355 | C27: 21 | D27: 3359 | E27: 12 | F27: 3371 | K27: 0 | L27: 221 | O27: % CCRf
A28: 21 | B28: 5456 | C28: 12 | D28: 9494 | E28: 14 | F28: 9511 | K28: 0 | L28: 211 | O28: average response rate | P28: =F16/P20 -> 121.2 | Q28: =(F25-F16)/Q20 -> 215.4444444 | R28: =(F35-F25)/R20 -> 770.9 | S28: =(F45-F35)/S20 -> 170.3 | T28: =(F54-F45)/T20 -> 196.6666667 | U28: =(F64-F54)/U20 -> 173.4
A29: 21 | B29: 9620 | C29: 21 | D29: 9626 | E29: 12 | F29: 9641 | K29: 0 | L29: 221
A30: 21 | B30: 9745 | C30: 12 | D30: 9748 | E30: 14 | F30: 9757 | K30: 0 | L30: 211
A31: 12 | B31: 9886 | C31: 14 | D31: 9908 | E31: 14 | F31: 9924 | K31: 0 | L31: 111
A32: 21 | B32: 10012 | C32: 21 | D32: 10020 | E32: 21 | F32: 10025 | K32: 0 | L32: 222
A33: 12 | B33: 10117 | C33: 23 | D33: 10122 | E33: 23 | F33: 10134 | K33: 0 | L33: 122
A34: 21 | B34: 10232 | C34: 12 | D34: 10250 | E34: 23 | F34: 10264 | K34: 0 | L34: 212
A35: 21 | B35: 10829 | C35: 12 | D35: 10835 | E35: 14 | F35: 10860 | K35: 0 | L35: 211
A36: 12 | B36: 10955 | C36: 23 | D36: 10972 | E36: 14 | F36: 10976 | K36: 0 | L36: 121
A37: 21 | B37: 11064 | C37: 21 | D37: 11068 | E37: 21 | F37: 11072 | K37: 0 | L37: 222
A38: 21 | B38: 11259 | C38: 21 | D38: 11263 | E38: 21 | F38: 11268 | K38: 0 | L38: 222
A39: 21 | B39: 11436 | C39: 21 | D39: 11442 | E39: 21 | F39: 11446 | K39: 0 | L39: 222
A40: 21 | B40: 11605 | C40: 21 | D40: 11609 | E40: 21 | F40: 11614 | K40: 0 | L40: 222
A41: 21 | B41: 11825 | C41: 21 | D41: 11832 | E41: 21 | F41: 11837 | K41: 0 | L41: 222
A42: 21 | B42: 11949 | C42: 21 | D42: 11955 | E42: 21 | F42: 11960 | K42: 0 | L42: 222
A43: 21 | B43: 12250 | C43: 21 | D43: 12255 | E43: 21 | F43: 12258 | K43: 0 | L43: 222
A44: 21 | B44: 12380 | C44: 21 | D44: 12388 | E44: 21 | F44: 12392 | K44: 0 | L44: 222
A45: 21 | B45: 12548 | C45: 21 | D45: 12555 | E45: 21 | F45: 12563 | K45: 0 | L45: 222
A46: 21 | B46: 12768 | C46: 21 | D46: 12770 | E46: 21 | F46: 12775 | K46: 0 | L46: 222
A47: 21 | B47: 12869 | C47: 21 | D47: 12873 | E47: 21 | F47: 12878 | K47: 0 | L47: 222
A48: 21 | B48: 13056 | C48: 21 | D48: 13061 | E48: 21 | F48: 13067 | K48: 0 | L48: 222
A49: 21 | B49: 13213 | C49: 21 | D49: 13216 | E49: 21 | F49: 13221 | K49: 0 | L49: 222
A50: 21 | B50: 13462 | C50: 21 | D50: 13466 | E50: 21 | F50: 13470 | K50: 0 | L50: 222
A51: 21 | B51: 13762 | C51: 21 | D51: 13766 | E51: 21 | F51: 13800 | K51: 0 | L51: 222
A52: 21 | B52: 13900 | C52: 21 | D52: 13905 | E52: 21 | F52: 13909 | K52: 0 | L52: 222
A53: 21 | B53: 14079 | C53: 21 | D53: 14084 | E53: 21 | F53: 14088 | K53: 0 | L53: 222
A54: 21 | B54: 14282 | C54: 21 | D54: 14287 | E54: 21 | F54: 14333 | K54: 0 | L54: 222
A55: 21 | B55: 14515 | C55: 12 | D55: 14527 | E55: 23 | F55: 14528 | K55: 0 | L55: 212
A56: 21 | B56: 14625 | C56: 21 | D56: 14629 | E56: 21 | F56: 14633 | K56: 0 | L56: 222
A57: 21 | B57: 14769 | C57: 21 | D57: 14772 | E57: 21 | F57: 14776 | K57: 0 | L57: 222
A58: 21 | B58: 14915 | C58: 21 | D58: 14920 | E58: 21 | F58: 14924 | K58: 0 | L58: 222
A59: 21 | B59: 15107 | C59: 21 | D59: 15111 | E59: 21 | F59: 15115 | K59: 0 | L59: 222
A60: 21 | B60: 15264 | C60: 21 | D60: 15269 | E60: 21 | F60: 15273 | K60: 0 | L60: 222
A61: 21 | B61: 15441 | C61: 21 | D61: 15446 | E61: 21 | F61: 15451 | K61: 0 | L61: 222
A62: 21 | B62: 15641 | C62: 21 | D62: 15647 | E62: 21 | F62: 15652 | K62: 0 | L62: 222
A63: 21 | B63: 15785 | C63: 21 | D63: 15790 | E63: 21 | F63: 15796 | K63: 0 | L63: 222
A64: 21 | B64: 16056 | C64: 21 | D64: 16061 | E64: 21 | F64: 16067 | K64: 1 | L64: 222

Sheet !N10583B.AXT
A1: Report for:!N10583B.AXT
A2: Date: | B2: <date>
A3: Hen: | B3: <hen> | F3: Correct Sequence | G3: =Start!J2 -> 222 | P3: Total Sequences in Data | Q3: =4994-COUNTBLANK(L7:L5000) -> 40 | V3: Total Sequences in Block Data | W3: =COUNTA(L7:L13) -> 7 | AA3: Total Sequences in Block Data | AB3: =COUNTA(L14:L19) -> 6 | AF3: Total Sequences in Block Data | AG3: =COUNTA(L20:L26) -> 7 | AK3: Total Sequences in Block Data | AL3: =COUNTA(L27:L33) -> 7 | AP3: Total Sequences in Block Data | AQ3: =COUNTA(L34:L39) -> 6 | AU3: Total Sequences in Block Data | AV3: =COUNTA(L40:L46) -> 7
P4: Total Sequences in Summary | Q4: =SUM(O7:O14) -> 39 | V4: Total Sequences in Block Summary | W4: =SUM(U7:U14) -> 7 | AA4: Total Sequences in Block Summary | AB4: =SUM(Z7:Z14) -> 6 | AF4: Total Sequences in Block Summary | AG4: =SUM(AE7:AE14) -> 7 | AK4: Total Sequences in Block Summary | AL4: =SUM(AJ7:AJ14) -> 7 | AP4: Total Sequences in Block Summary | AQ4: =SUM(AO7:AO14) -> 6 | AU4: Total Sequences in Block Summary | AV4: =SUM(AT7:AT14) -> 6
T5: Block 1 | Y5: Block 2 | AD5: Block 3 | AI5: Block 4 | AN5: Block 5 | AS5: Block 6
A6: Sequence Component 1 | B6: Time 1 | C6: Sequence Component 2 | D6: Time 2 | E6: Sequence Component 3 | F6: Time 3 | G6: Sequence Component 4 | H6: Time 4 | I6: Sequence Component 5 | J6: Time 5 | K6: Correct? 0=No 1=Yes | L6: Sequence | N6: Frequency | P6: Relative Frequency | Q6: Variability | T6: Frequency | V6: Relative Frequency | W6: Variability | Y6: Frequency | AA6: Relative Frequency | AB6: Variability | AD6: Frequency | AF6: Relative Frequency | AG6: Variability | AI6: Frequency | AK6: Relative Frequency | AL6: Variability | AN6: Frequency | AP6: Relative Frequency | AQ6: Variability | AS6: Frequency | AU6: Relative Frequency | AV6: Variability
A7: 21 | B7: 16 | C7: 12 | D7: 29 | E7: 23 | F7: 39 | K7: 0 | L7: 212 | N7: 111 | O7: =COUNTIF($L$7:$L$500,N7) -> 5 | P7: =O7/$Q$4 -> 0.1282051282 | Q7: =IF(P7=0,0,(P7*((LOG(P7))/LOG(2)))) -> -0.37993258 | T7: =N7 -> 111 | U7: =COUNTIF(L7:L13,T7) -> 0 | V7: =U7/(W4-U14) -> 0 | W7: =IF(V7=0,0,(V7*((LOG(V7))/LOG(2)))) -> 0 | Y7: =N7 -> 111 | Z7: =COUNTIF(L14:L19,Y7) -> 0 | AA7: =Z7/(AB4-Z14) -> 0 | AB7: =IF(AA7=0,0,(AA7*((LOG(AA7))/LOG(2)))) -> 0 | AD7: =N7 -> 111 | AE7: =COUNTIF(L20:L26,AD7) -> 2 | AF7: =AE7/(AG4-AE14) -> 0.2857142857 | AG7: =IF(AF7=0,0,(AF7*((LOG(AF7))/LOG(2)))) -> -0.5163871206 | AI7: =N7 -> 111 | AJ7: =COUNTIF(L27:L33,AI7) -> 1 | AK7: =AJ7/(AL4-AJ14) -> 0.1666666667 | AL7: =IF(AK7=0,0,(AK7*((LOG(AK7))/LOG(2)))) -> -0.4308270835 | AN7: =N7 -> 111 | AO7: =COUNTIF(L34:L39,AN7) -> 1 | AP7: =AO7/(AQ4-AO14) -> 0.3333333333 | AQ7: =IF(AP7=0,0,(AP7*((LOG(AP7))/LOG(2)))) -> -0.5283208336 | AS7: =N7 -> 111 | AT7: =COUNTIF(L40:L46,AS7) -> 1 | AU7: =AT7/(AV4-AT14) -> 0.1666666667 | AV7: =IF(AU7=0,0,(AU7*((LOG(AU7))/LOG(2)))) -> -0.4308270835
A8: 12 | B8: 141 | C8: 23 | D8: 148 | E8: 23 | F8: 157 | K8: 0 | L8: 122 | N8: 112 | O8: =COUNTIF($L$7:$L$500,N8) -> 2 | P8: =O8/$Q$4 -> 0.05128205128 | Q8: =IF(P8=0,0,(P8*((LOG(P8))/LOG(2)))) -> -0.2197642164 | T8: =N8 -> 112 | U8: =COUNTIF(L7:L13,T8) -> 1 | V8: =U8/(W4-U14) -> 0.2 | W8: =IF(V8=0,0,(V8*((LOG(V8))/LOG(2)))) -> -0.464385619 | Y8: =N8 -> 112 | Z8: =COUNTIF(L14:L19,Y8) -> 0 | AA8: =Z8/(AB4-Z14) -> 0 | AB8: =IF(AA8=0,0,(AA8*((LOG(AA8))/LOG(2)))) -> 0 | AD8: =N8 -> 112 | AE8: =COUNTIF(L20:L26,AD8) -> 0 | AF8: =AE8/(AG4-AE14) -> 0 | AG8: =IF(AF8=0,0,(AF8*((LOG(AF8))/LOG(2)))) -> 0 | AI8: =N8 -> 112 | AJ8: =COUNTIF(L27:L33,AI8) -> 0 | AK8: =AJ8/(AL4-AJ14) -> 0 | AL8: =IF(AK8=0,0,(AK8*((LOG(AK8))/LOG(2)))) -> 0 | AN8: =N8 -> 112 | AO8: =COUNTIF(L34:L39,AN8) -> 1 | AP8: =AO8/(AQ4-AO14) -> 0.3333333333 | AQ8: =IF(AP8=0,0,(AP8*((LOG(AP8))/LOG(2)))) -> -0.5283208336 | AS8: =N8 -> 112 | AT8: =COUNTIF(L40:L46,AS8) -> 0 | AU8: =AT8/(AV4-AT14) -> 0 | AV8: =IF(AU8=0,0,(AU8*((LOG(AU8))/LOG(2)))) -> 0
A9: 12 | B9: 251 | C9: 23 | D9: 266 | E9: 23 | F9: 273 | K9: 0 | L9: 122 | N9: 121 | O9: =COUNTIF($L$7:$L$500,N9) -> 4 | P9: =O9/$Q$4 -> 0.1025641026 | Q9: =IF(P9=0,0,(P9*((LOG(P9))/LOG(2)))) -> -0.3369643301 | T9: =N9 -> 121 | U9: =COUNTIF(L7:L13,T9) -> 0 | V9: =U9/(W4-U14) -> 0 | W9: =IF(V9=0,0,(V9*((LOG(V9))/LOG(2)))) -> 0 | Y9: =N9 -> 121 | Z9: =COUNTIF(L14:L19,Y9) -> 0 | AA9: =Z9/(AB4-Z14) -> 0 | AB9: =IF(AA9=0,0,(AA9*((LOG(AA9))/LOG(2)))) -> 0 | AD9: =N9 -> 121 | AE9: =COUNTIF(L20:L26,AD9) -> 2 | AF9: =AE9/(AG4-AE14) -> 0.2857142857 | AG9: =IF(AF9=0,0,(AF9*((LOG(AF9))/LOG(2)))) -> -0.5163871206 | AI9: =N9 -> 121 | AJ9: =COUNTIF(L27:L33,AI9) -> 1 | AK9: =AJ9/(AL4-AJ14) -> 0.1666666667 | AL9: =IF(AK9=0,0,(AK9*((LOG(AK9))/LOG(2)))) -> -0.4308270835 | AN9: =N9 -> 121 | AO9: =COUNTIF(L34:L39,AN9) -> 0 | AP9: =AO9/(AQ4-AO14) -> 0 | AQ9: =IF(AP9=0,0,(AP9*((LOG(AP9))/LOG(2)))) -> 0 | AS9: =N9 -> 121 | AT9: =COUNTIF(L40:L46,AS9) -> 1 | AU9: =AT9/(AV4-AT14) -> 0.1666666667 | AV9: =IF(AU9=0,0,(AU9*((LOG(AU9))/LOG(2)))) -> -0.4308270835
A10: 12 | B10: 369 | C10: 23 | D10: 378 | E10: 23 | F10: 386 | K10: 0 | L10: 122 | N10: 122 | O10: =COUNTIF($L$7:$L$500,N10) -> 6 | P10: =O10/$Q$4 -> 0.1538461538 | Q10: =IF(P10=0,0,(P10*((LOG(P10))/LOG(2)))) -> -0.4154522643 | T10: =N10 -> 122 | U10: =COUNTIF(L7:L13,T10) -> 3 | V10: =U10/(W4-U14) -> 0.6 | W10: =IF(V10=0,0,(V10*((LOG(V10))/LOG(2)))) -> -0.4421793565 | Y10: =N10 -> 122 | Z10: =COUNTIF(L14:L19,Y10) -> 1 | AA10: =Z10/(AB4-Z14) -> 0.3333333333 | AB10: =IF(AA10=0,0,(AA10*((LOG(AA10))/LOG(2)))) -> -0.5283208336 | AD10: =N10 -> 122 | AE10: =COUNTIF(L20:L26,AD10) -> 1 | AF10: =AE10/(AG4-AE14) -> 0.1428571429 | AG10: =IF(AF10=0,0,(AF10*((LOG(AF10))/LOG(2)))) -> -0.4010507032 | AI10: =N10 -> 122 | AJ10: =COUNTIF(L27:L33,AI10) -> 0 | AK10: =AJ10/(AL4-AJ14) -> 0 | AL10: =IF(AK10=0,0,(AK10*((LOG(AK10))/LOG(2)))) -> 0 | AN10: =N10 -> 122 | AO10: =COUNTIF(L34:L39,AN10) -> 0 | AP10: =AO10/(AQ4-AO14) -> 0 | AQ10: =IF(AP10=0,0,(AP10*((LOG(AP10))/LOG(2)))) -> 0 | AS10: =N10 -> 122 | AT10: =COUNTIF(L40:L46,AS10) -> 1 | AU10: =AT10/(AV4-AT14) -> 0.1666666667 | AV10: =IF(AU10=0,0,(AU10*((LOG(AU10))/LOG(2)))) -> -0.4308270835
A11: 12 | B11: 507 | C11: 14 | D11: 511 | E11: 23 | F11: 527 | K11: 0 | L11: 112 | N11: 211 | O11: =COUNTIF($L$7:$L$500,N11) -> 2 | P11: =O11/$Q$4 -> 0.05128205128 | Q11: =IF(P11=0,0,(P11*((LOG(P11))/LOG(2)))) -> -0.2197642164 | T11: =N11 -> 211 | U11: =COUNTIF(L7:L13,T11) -> 0 | V11: =U11/(W4-U14) -> 0 | W11: =IF(V11=0,0,(V11*((LOG(V11))/LOG(2)))) -> 0 | Y11: =N11 -> 211 | Z11: =COUNTIF(L14:L19,Y11) -> 0 | AA11: =Z11/(AB4-Z14) -> 0 | AB11: =IF(AA11=0,0,(AA11*((LOG(AA11))/LOG(2)))) -> 0 | AD11: =N11 -> 211 | AE11: =COUNTIF(L20:L26,AD11) -> 1 | AF11: =AE11/(AG4-AE14) -> 0.1428571429 | AG11: =IF(AF11=0,0,(AF11*((LOG(AF11))/LOG(2)))) -> -0.4010507032 | AI11: =N11 -> 211 | AJ11: =COUNTIF(L27:L33,AI11) -> 1 | AK11: =AJ11/(AL4-AJ14) -> 0.1666666667 | AL11: =IF(AK11=0,0,(AK11*((LOG(AK11))/LOG(2)))) -> -0.4308270835 | AN11: =N11 -> 211 | AO11: =COUNTIF(L34:L39,AN11) -> 0 | AP11: =AO11/(AQ4-AO14) -> 0 | AQ11: =IF(AP11=0,0,(AP11*((LOG(AP11))/LOG(2)))) -> 0 | AS11: =N11 -> 211 | AT11: =COUNTIF(L40:L46,AS11) -> 0 | AU11: =AT11/(AV4-AT14) -> 0 | AV11: =IF(AU11=0,0,(AU11*((LOG(AU11))/LOG(2)))) -> 0
A12: 21 | B12: 622 | C12: 21 | D12: 632 | E12: 21 | F12: 642 | K12: 0 | L12: 222 | N12: 212 | O12: =COUNTIF($L$7:$L$500,N12) -> 6 | P12: =O12/$Q$4 -> 0.1538461538 | Q12: =IF(P12=0,0,(P12*((LOG(P12))/LOG(2)))) -> -0.4154522643 | T12: =N12 -> 212 | U12: =COUNTIF(L7:L13,T12) -> 1 | V12: =U12/(W4-U14) -> 0.2 | W12: =IF(V12=0,0,(V12*((LOG(V12))/LOG(2)))) -> -0.464385619 | Y12: =N12 -> 212 | Z12: =COUNTIF(L14:L19,Y12) -> 0 | AA12: =Z12/(AB4-Z14) -> 0 | AB12: =IF(AA12=0,0,(AA12*((LOG(AA12))/LOG(2)))) -> 0 | AD12: =N12 -> 212 | AE12: =COUNTIF(L20:L26,AD12) -> 1 | AF12: =AE12/(AG4-AE14) -> 0.1428571429 | AG12: =IF(AF12=0,0,(AF12*((LOG(AF12))/LOG(2)))) -> -0.4010507032 | AI12: =N12 -> 212 | AJ12: =COUNTIF(L27:L33,AI12) -> 1 | AK12: =AJ12/(AL4-AJ14) -> 0.1666666667 | AL12: =IF(AK12=0,0,(AK12*((LOG(AK12))/LOG(2)))) -> -0.4308270835 | AN12: =N12 -> 212 | AO12: =COUNTIF(L34:L39,AN12) -> 1 | AP12: =AO12/(AQ4-AO14) -> 0.3333333333 | AQ12: =IF(AP12=0,0,(AP12*((LOG(AP12))/LOG(2)))) -> -0.5283208336 | AS12: =N12 -> 212 | AT12: =COUNTIF(L40:L46,AS12) -> 2 | AU12: =AT12/(AV4-AT14) -> 0.3333333333 | AV12: =IF(AU12=0,0,(AU12*((LOG(AU12))/LOG(2)))) -> -0.5283208336
A13: 21 | B13: 743 | C13: 21 | D13: 748 | E13: 21 | F13: 755 | K13: 0 | L13: 222 | N13: 221 | O13: =COUNTIF($L$7:$L$500,N13) -> 5 | P13: =O13/$Q$4 -> 0.1282051282 | Q13: =IF(P13=0,0,(P13*((LOG(P13))/LOG(2)))) -> -0.37993258 | T13: =N13 -> 221 | U13: =COUNTIF(L7:L13,T13) -> 0 | V13: =U13/(W4-U14) -> 0 | W13: =IF(V13=0,0,(V13*((LOG(V13))/LOG(2)))) -> 0 | Y13: =N13 -> 221 | Z13: =COUNTIF(L14:L19,Y13) -> 2 | AA13: =Z13/(AB4-Z14) -> 0.6666666667 | AB13: =IF(AA13=0,0,(AA13*((LOG(AA13))/LOG(2)))) -> -0.3899750005 | AD13: =N13 -> 221 | AE13: =COUNTIF(L20:L26,AD13) -> 0 | AF13: =AE13/(AG4-AE14) -> 0 | AG13: =IF(AF13=0,0,(AF13*((LOG(AF13))/LOG(2)))) -> 0 | AI13: =N13 -> 221 | AJ13: =COUNTIF(L27:L33,AI13) -> 2 | AK13: =AJ13/(AL4-AJ14) -> 0.3333333333 | AL13: =IF(AK13=0,0,(AK13*((LOG(AK13))/LOG(2)))) -> -0.5283208336 | AN13: =N13 -> 221 | AO13: =COUNTIF(L34:L39,AN13) -> 0 | AP13: =AO13/(AQ4-AO14) -> 0 | AQ13: =IF(AP13=0,0,(AP13*((LOG(AP13))/LOG(2)))) -> 0 | AS13: =N13 -> 221 | AT13: =COUNTIF(L40:L46,AS13) -> 1 | AU13: =AT13/(AV4-AT14) -> 0.1666666667 | AV13: =IF(AU13=0,0,(AU13*((LOG(AU13))/LOG(2)))) -> -0.4308270835
A14: 21 | B14: 940 | C14: 21 | D14: 944 | E14: 21 | F14: 946 | K14: 0 | L14: 222 | N14: 222 | O14: =COUNTIF($L$7:$L$500,N14) -> 9 | P14: =O14/$Q$4 -> 0.2307692308 | Q14: =IF(P14=0,0,(P14*((LOG(P14))/LOG(2)))) -> -0.4881870502 | T14: =N14 -> 222 | U14: =COUNTIF(L7:L13,T14) -> 2 | Y14: =N14 -> 222 | Z14: =COUNTIF(L14:L19,Y14) -> 3 | AD14: =N14 -> 222 | AE14: =COUNTIF(L20:L26,AD14) -> 0 | AI14: =N14 -> 222 | AJ14: =COUNTIF(L27:L33,AI14) -> 1 | AN14: =N14 -> 222 | AO14: =COUNTIF(L34:L39,AN14) -> 3 | AS14: =N14 -> 222 | AT14: =COUNTIF(L40:L46,AS14) -> 0
A15: 21 | B15: 1052 | C15: 21 | D15: 1059 | E15: 21 | F15: 1063 | K15: 0 | L15: 222 | P15: =SUM(P7:P14) -> 1 | Q15: =-SUM(Q7:Q14) -> 2.855449502 | V15: =SUM(V7:V14) -> 1 | W15: =-SUM(W7:W14) -> 1.370950594 | AA15: =SUM(AA7:AA14) -> 1 | AB15: =-SUM(AB7:AB14) -> 0.9182958341 | AF15: =SUM(AF7:AF14) -> 1 | AG15: =-SUM(AG7:AG14) -> 2.235926351 | AK15: =SUM(AK7:AK14) -> 1 | AL15: =-SUM(AL7:AL14) -> 2.251629167 | AP15: =SUM(AP7:AP14) -> 1 | AQ15: =-SUM(AQ7:AQ14) -> 1.584962501 | AU15: =SUM(AU7:AU14) -> 1 | AV15: =-SUM(AV7:AV14) -> 2.251629167
A16: 21 | B16: 1153 | C16: 21 | D16: 1158 | E16: 12 | F16: 1186 | K16: 0 | L16: 221 | P16: U= | Q16: =Q15/(LOG(Q4)/LOG(2)) -> 0.5402520723 | V16: U1= | W16: =W15/(LOG(W4)/LOG(2)) -> 0.4883424549 | AA16: U2= | AB16: =AB15/(LOG(AB4)/LOG(2)) -> 0.3552453213 | AF16: U3= | AG16: =AG15/(LOG(AG4)/LOG(2)) -> 0.7964530359 | AK16: U4= | AL16: =AL15/(LOG(AL4)/LOG(2)) -> 0.8020464921 | AP16: U5= | AQ16: =AQ15/(LOG(AQ4)/LOG(2)) -> 0.6131471928 | AU16: U6= | AV16: =AV15/(LOG(AV4)/LOG(2)) -> 0.8710490643
A17: 12 | B17: 1283 | C17: 23 | D17: 1294 | E17: 23 | F17: 1297 | K17: 0 | L17: 122
A18: 21 | B18: 1399 | C18: 21 | D18: 1405 | E18: 21 | F18: 1409 | K18: 0 | L18: 222
A19: 21 | B19: 1519 | C19: 21 | D19: 1523 | E19: 12 | F19: 1550 | K19: 0 | L19: 221 | N19: Total Target Seq
A20: 12 | B20: 1659 | C20: 23 | D20: 1699 | E20: 23 | F20: 1716 | K20: 0 | L20: 122 | N20: =COUNTIF(L7:L46,G3) -> 9 | P20: 7 | Q20: 6 | R20: 7 | S20: 7 | T20: 6 | U20: 7
A21: 12 | B21: 1821 | C21: 23 | D21: 1863 | E21: 14 | F21: 1874 | K21: 0 | L21: 121 | P21: % of reinforcement given in 6 equal intervals based on number of trials
A22: 12 | B22: 2007 | C22: 14 | D22: 2012 | E22: 14 | F22: 2016 | K22: 0 | L22: 111 | P22: %_1 | Q22: %_2 | R22: %_3 | S22: %_4 | T22: %_5 | U22: %_6
A23: 12 | B23: 2122 | C23: 14 | D23: 2133 | E23: 14 | F23: 2152 | K23: 0 | L23: 111 | O23: target sequence | P23: =$G$3 -> 222 | Q23: =$G$3 -> 222 | R23: =$G$3 -> 222 | S23: =$G$3 -> 222 | T23: =$G$3 -> 222 | U23: =$G$3 -> 222
A24: 21 | B24: 2241 | C24: 12 | D24: 2250 | E24: 23 | F24: 2264 | K24: 0 | L24: 212 | O24: total reinforcement | P24: =U14 -> 2 | Q24: =Z14 -> 3 | R24: =AE14 -> 0 | S24: =AJ14 -> 1 | T24: =AO14 -> 3 | U24: =AT14 -> 0
A25: 21 | B25: 2506 | C25: 12 | D25: 2516 | E25: 14 | F25: 2534 | K25: 0 | L25: 211 | O25: % target
A26: 12 | B26: 2630 | C26: 23 | D26: 2638 | E26: 14 | F26: 2658 | K26: 0 | L26: 121 | O26: CCRF
A27: 21 | B27: 2760 | C27: 21 | D27: 2763 | E27: 21 | F27: 2768 | K27: 0 | L27: 222 | O27: % CCRf
A28: 21 | B28: 2855 | C28: 21 | D28: 2881 | E28: 12 | F28: 2884 | K28: 0 | L28: 221 | O28: average response rate | P28: =F13/P20 -> 107.8571429 | Q28: =(F19-F13)/Q20 -> 132.5 | R28: =(F26-F19)/R20 -> 158.2857143 | S28: =(F33-F26)/S20 -> 155 | T28: =(F39-F33)/T20 -> 135.6666667 | U28: =(F46-F39)/U20 -> -651
A29: 12 | B29: 2976 | C29: 23 | D29: 2987 | E29: 14 | F29: 2991 | K29: 0 | L29: 121
A30: 21 | B30: 3361 | C30: 12 | D30: 3373 | E30: 23 | F30: 3389 | K30: 0 | L30: 212
A31: 12 | B31: 3484 | C31: 14 | D31: 3486 | E31: 14 | F31: 3490 | K31: 0 | L31: 111
A32: 21 | B32: 3592 | C32: 12 | D32: 3610 | E32: 14 | F32: 3619 | K32: 0 | L32: 211
A33: 21 | B33: 3722 | C33: 21 | D33: 3725 | E33: 12 | F33: 3743 | K33: 0 | L33: 221
A34: 21 | B34: 3838 | C34: 21 | D34: 3840 | E34: 21 | F34: 3850 | K34: 0 | L34: 222
A35: 21 | B35: 3950 | C35: 21 | D35: 3954 | E35: 21 | F35: 3962 | K35: 0 | L35: 222
A36: 21 | B36: 4095 | C36: 21 | D36: 4099 | E36: 21 | F36: 4104 | K36: 0 | L36: 222
A37: 12 | B37: 4197 | C37: 14 | D37: 4206 | E37: 23 | F37: 4214 | K37: 0 | L37: 112
A38: 12 | B38: 4313 | C38: 14 | D38: 4317 | E38: 14 | F38: 4321 | K38: 0 | L38: 111
A39: 21 | B39: 4540 | C39: 12 | D39: 4547 | E39: 23 | F39: 4557 | K39: 0 | L39: 212
A40: 21 | B40: 4689 | C40: 12 | D40: 4695 | E40: 23 | F40: 4726 | K40: 0 | L40: 212
A41: 21 | B41: 7400 | C41: 21 | D41: 7776 | E41: 12 | F41: 7785 | K41: 0 | L41: 221
A42: 21 | B42: 7871 | C42: 12 | D42: 7878 | E42: 23 | F42: 7880 | K42: 0 | L42: 212
A43: 12 | B43: 7987 | C43: 14 | D43: 7994 | E43: 14 | F43: 8014 | K43: 0 | L43: 111
A44: 12 | B44: 8123 | C44: 23 | D44: 8134 | E44: 14 | F44: 8146 | K44: 0 | L44: 121
A45: 12 | B45: 11465 | C45: 23 | D45: 11490 | E45: 23 | F45: 11505 | K45: 0 | L45: 122
A46: 21 | B46: 22441 | L46: 2

Sheet !N10690B.AXT
A1: Report for:!N10690B.AXT
A2: Date: | B2: <date>
A3: Hen: | B3: <hen> | F3: Correct Sequence | G3: =Start!J2 -> 222 | P3: Total Sequences in Data | Q3: =4994-COUNTBLANK(L7:L5000) -> 66 | V3: Total Sequences in Block Data | W3: =COUNTA(L7:L17) -> 11 | AA3: Total Sequences in Block Data | AB3: =COUNTA(L18:L28) -> 11 | AF3: Total Sequences in Block Data | AG3: =COUNTA(L29:L39) -> 11 | AK3: Total Sequences in Block Data | AL3: =COUNTA(L40:L50) -> 11 | AP3: Total Sequences in Block Data | AQ3: =COUNTA(L51:L61) -> 11 | AU3: Total Sequences in Block Data | AV3: =COUNTA(L62:L72) -> 11
P4: Total Sequences in Summary | Q4: =SUM(O7:O14) -> 66 | V4: Total Sequences in Block Summary | W4: =SUM(U7:U14) -> 11 | AA4: Total Sequences in Block Summary | AB4: =SUM(Z7:Z14) -> 11 | AF4: Total Sequences in Block Summary | AG4: =SUM(AE7:AE14) -> 11 | AK4: Total Sequences in Block Summary | AL4: =SUM(AJ7:AJ14) -> 11 | AP4: Total Sequences in Block Summary | AQ4: =SUM(AO7:AO14) -> 11 | AU4: Total Sequences in Block Summary | AV4: =SUM(AT7:AT14) -> 11
T5: Block 1 | Y5: Block 2 | AD5: Block 3 | AI5: Block 4 | AN5: Block 5 | AS5: Block 6
A6: Sequence Component 1 | B6: Time 1 | C6: Sequence Component 2 | D6: Time 2 | E6: Sequence Component 3 | F6: Time 3 | G6: Sequence Component 4 | H6: Time 4 | I6: Sequence Component 5 | J6: Time 5 | K6: Correct? 0=No 1=Yes | L6: Sequence | N6: Frequency | P6: Relative Frequency | Q6: Variability | T6: Frequency | V6: Relative Frequency | W6: Variability | Y6: Frequency | AA6: Relative Frequency | AB6: Variability | AD6: Frequency | AF6: Relative Frequency | AG6: Variability | AI6: Frequency | AK6: Relative Frequency | AL6: Variability | AN6: Frequency | AP6: Relative Frequency | AQ6: Variability | AS6: Frequency | AU6: Relative Frequency | AV6: Variability
A7: 12 | B7: 20 | C7: 23 | D7: 23 | E7: 23 | F7: 30 | K7: 0 | L7: 122 | N7: 111 | O7: =COUNTIF($L$7:$L$500,N7) -> 3 | P7: =O7/$Q$4 -> 0.04545454545 | Q7: =IF(P7=0,0,(P7*((LOG(P7))/LOG(2)))) -> -0.2027014372 | T7: =N7 -> 111 | U7: =COUNTIF(L7:L17,T7) -> 0 | V7: =U7/(W4-U14) -> 0 | W7: =IF(V7=0,0,(V7*((LOG(V7))/LOG(2)))) -> 0 | Y7: =N7 -> 111 | Z7: =COUNTIF(L18:L28,Y7) -> 1 | AA7: =Z7/(AB4-Z14) -> 0.1666666667 | AB7: =IF(AA7=0,0,(AA7*((LOG(AA7))/LOG(2)))) -> -0.4308270835 | AD7: =N7 -> 111 | AE7: =COUNTIF(L29:L39,AD7) -> 0 | AF7: =AE7/(AG4-AE14) -> 0 | AG7: =IF(AF7=0,0,(AF7*((LOG(AF7))/LOG(2)))) -> 0 | AI7: =N7 -> 111 | AJ7: =COUNTIF(L40:L50,AI7) -> 1 | AK7: =AJ7/(AL4-AJ14) -> 0.1111111111 | AL7: =IF(AK7=0,0,(AK7*((LOG(AK7))/LOG(2)))) -> -0.352213889 | AN7: =N7 -> 111 | AO7: =COUNTIF(L51:L61,AN7) -> 0 | AP7: =AO7/(AQ4-AO14) -> 0 | AQ7: =IF(AP7=0,0,(AP7*((LOG(AP7))/LOG(2)))) -> 0 | AS7: =N7 -> 111 | AT7: =COUNTIF(L62:L72,AS7) -> 1 | AU7: =AT7/(AV4-AT14) -> 0.2 | AV7: =IF(AU7=0,0,(AU7*((LOG(AU7))/LOG(2)))) -> -0.464385619
A8: 21 | B8: 138 | C8: 21 | D8: 143 | E8: 12 | F8: 145 | K8: 0 | L8: 221 | N8: 112 | O8: =COUNTIF($L$7:$L$500,N8) -> 2 | P8: =O8/$Q$4 -> 0.0303030303 | Q8: =IF(P8=0,0,(P8*((LOG(P8))/LOG(2)))) -> -0.1528604279 | T8: =N8 -> 112 | U8: =COUNTIF(L7:L17,T8) -> 0 | V8: =U8/(W4-U14) -> 0 | W8: =IF(V8=0,0,(V8*((LOG(V8))/LOG(2)))) -> 0 | Y8: =N8 -> 112 | Z8: =COUNTIF(L18:L28,Y8) -> 0 | AA8: =Z8/(AB4-Z14) -> 0 | AB8: =IF(AA8=0,0,(AA8*((LOG(AA8))/LOG(2)))) -> 0 | AD8: =N8 -> 112 | AE8: =COUNTIF(L29:L39,AD8) -> 1 | AF8: =AE8/(AG4-AE14) -> 0.25 | AG8: =IF(AF8=0,0,(AF8*((LOG(AF8))/LOG(2)))) -> -0.5 | AI8: =N8 -> 112 | AJ8: =COUNTIF(L40:L50,AI8) -> 0 | AK8: =AJ8/(AL4-AJ14) -> 0 | AL8: =IF(AK8=0,0,(AK8*((LOG(AK8))/LOG(2)))) -> 0 | AN8: =N8 -> 112 | AO8: =COUNTIF(L51:L61,AN8) -> 1 | AP8: =AO8/(AQ4-AO14) -> 1 | AQ8: =IF(AP8=0,0,(AP8*((LOG(AP8))/LOG(2)))) -> 0 | AS8: =N8 -> 112 | AT8: =COUNTIF(L62:L72,AS8) -> 0 | AU8: =AT8/(AV4-AT14) -> 0 | AV8: =IF(AU8=0,0,(AU8*((LOG(AU8))/LOG(2)))) -> 0
A9: 21 | B9: 321 | C9: 21 | D9: 325 | E9: 12 | F9: 348 | K9: 0 | L9: 221 | N9: 121 | O9: =COUNTIF($L$7:$L$500,N9) -> 6 | P9: =O9/$Q$4 -> 0.09090909091 | Q9: =IF(P9=0,0,(P9*((LOG(P9))/LOG(2)))) -> -0.3144937835 | T9: =N9 -> 121 | U9: =COUNTIF(L7:L17,T9) -> 1 | V9: =U9/(W4-U14) -> 0.1428571429 | W9: =IF(V9=0,0,(V9*((LOG(V9))/LOG(2)))) -> -0.4010507032 | Y9: =N9 -> 121 | Z9: =COUNTIF(L18:L28,Y9) -> 0 | AA9: =Z9/(AB4-Z14) -> 0 | AB9: =IF(AA9=0,0,(AA9*((LOG(AA9))/LOG(2)))) -> 0 | AD9: =N9 -> 121 | AE9: =COUNTIF(L29:L39,AD9) -> 1 | AF9: =AE9/(AG4-AE14) -> 0.25 | AG9: =IF(AF9=0,0,(AF9*((LOG(AF9))/LOG(2)))) -> -0.5 | AI9: =N9 -> 121 | AJ9: =COUNTIF(L40:L50,AI9) -> 3 | AK9: =AJ9/(AL4-AJ14) -> 0.3333333333 | AL9: =IF(AK9=0,0,(AK9*((LOG(AK9))/LOG(2)))) -> -0.5283208336 | AN9: =N9 -> 121 | AO9: =COUNTIF(L51:L61,AN9) -> 0 | AP9: =AO9/(AQ4-AO14) -> 0 | AQ9: =IF(AP9=0,0,(AP9*((LOG(AP9))/LOG(2)))) -> 0 | AS9: =N9 -> 121 | AT9: =COUNTIF(L62:L72,AS9) -> 1 | AU9: =AT9/(AV4-AT14) -> 0.2 | AV9: =IF(AU9=0,0,(AU9*((LOG(AU9))/LOG(2)))) -> -0.464385619
A10: 21 | B10: 443 | C10: 21 | D10: 448 | E10: 12 | F10: 455 | K10: 0 | L10: 221 | N10: 122 | O10: =COUNTIF($L$7:$L$500,N10) -> 6 | P10: =O10/$Q$4 -> 0.09090909091 | Q10: =IF(P10=0,0,(P10*((LOG(P10))/LOG(2)))) -> -0.3144937835 | T10: =N10 -> 122 | U10: =COUNTIF(L7:L17,T10) -> 2 | V10: =U10/(W4-U14) -> 0.2857142857 | W10: =IF(V10=0,0,(V10*((LOG(V10))/LOG(2)))) -> -0.5163871206 | Y10: =N10 -> 122 | Z10: =COUNTIF(L18:L28,Y10) -> 3 | AA10: =Z10/(AB4-Z14) -> 0.5 | AB10: =IF(AA10=0,0,(AA10*((LOG(AA10))/LOG(2)))) -> -0.5 | AD10: =N10 -> 122 | AE10: =COUNTIF(L29:L39,AD10) -> 0 | AF10: =AE10/(AG4-AE14) -> 0 | AG10: =IF(AF10=0,0,(AF10*((LOG(AF10))/LOG(2)))) -> 0 | AI10: =N10 -> 122 | AJ10: =COUNTIF(L40:L50,AI10) -> 1 | AK10: =AJ10/(AL4-AJ14) -> 0.1111111111 | AL10: =IF(AK10=0,0,(AK10*((LOG(AK10))/LOG(2)))) -> -0.352213889 | AN10: =N10 -> 122 | AO10: =COUNTIF(L51:L61,AN10) -> 0 | AP10: =AO10/(AQ4-AO14) -> 0 | AQ10: =IF(AP10=0,0,(AP10*((LOG(AP10))/LOG(2)))) -> 0 | AS10: =N10 -> 122 | AT10: =COUNTIF(L62:L72,AS10) -> 0 | AU10: =AT10/(AV4-AT14) -> 0 | AV10: =IF(AU10=0,0,(AU10*((LOG(AU10))/LOG(2)))) -> 0
A11: 21 | B11: 576 | C11: 21 | D11: 581 | E11: 21 | F11: 600 | K11: 0 | L11: 222 | N11: 211 | O11: =COUNTIF($L$7:$L$500,N11) -> 4 | P11: =O11/$Q$4 -> 0.06060606061 | Q11: =IF(P11=0,0,(P11*((LOG(P11))/LOG(2)))) -> -0.2451147951 | T11: =N11 -> 211 | U11: =COUNTIF(L7:L17,T11) -> 0 | V11: =U11/(W4-U14) -> 0 | W11: =IF(V11=0,0,(V11*((LOG(V11))/LOG(2)))) -> 0 | Y11: =N11 -> 211 | Z11: =COUNTIF(L18:L28,Y11) -> 2 | AA11: =Z11/(AB4-Z14) -> 0.3333333333 | AB11: =IF(AA11=0,0,(AA11*((LOG(AA11))/LOG(2)))) -> -0.5283208336 | AD11: =N11 -> 211 | AE11: =COUNTIF(L29:L39,AD11) -> 0 | AF11: =AE11/(AG4-AE14) -> 0 | AG11: =IF(AF11=0,0,(AF11*((LOG(AF11))/LOG(2)))) -> 0 | AI11: =N11 -> 211 | AJ11: =COUNTIF(L40:L50,AI11) -> 0 | AK11: =AJ11/(AL4-AJ14) -> 0 | AL11: =IF(AK11=0,0,(AK11*((LOG(AK11))/LOG(2)))) -> 0 | AN11: =N11 -> 211 | AO11: =COUNTIF(L51:L61,AN11) -> 0 | AP11: =AO11/(AQ4-AO14) -> 0 | AQ11: =IF(AP11=0,0,(AP11*((LOG(AP11))/LOG(2)))) -> 0 | AS11: =N11 -> 211 | AT11: =COUNTIF(L62:L72,AS11) -> 2 | AU11: =AT11/(AV4-AT14) -> 0.4 | AV11: =IF(AU11=0,0,(AU11*((LOG(AU11))/LOG(2)))) -> -0.528771238
A12: 21 | B12: 758 | C12: 21 | D12: 766 | E12: 21 | F12: 769 | K12: 0 | L12: 222 | N12: 212 | O12: =COUNTIF($L$7:$L$500,N12) -> 4 | P12: =O12/$Q$4 -> 0.06060606061 | Q12: =IF(P12=0,0,(P12*((LOG(P12))/LOG(2)))) -> -0.2451147951 | T12: =N12 -> 212 | U12: =COUNTIF(L7:L17,T12) -> 1 | V12: =U12/(W4-U14) -> 0.1428571429 | W12: =IF(V12=0,0,(V12*((LOG(V12))/LOG(2)))) -> -0.4010507032 | Y12: =N12 -> 212 | Z12: =COUNTIF(L18:L28,Y12) -> 0 | AA12: =Z12/(AB4-Z14) -> 0 | AB12: =IF(AA12=0,0,(AA12*((LOG(AA12))/LOG(2)))) -> 0 | AD12: =N12 -> 212 | AE12: =COUNTIF(L29:L39,AD12) -> 1 | AF12: =AE12/(AG4-AE14) -> 0.25 | AG12: =IF(AF12=0,0,(AF12*((LOG(AF12))/LOG(2)))) -> -0.5 | AI12: =N12 -> 212 | AJ12: =COUNTIF(L40:L50,AI12) -> 1 | AK12: =AJ12/(AL4-AJ14) -> 0.1111111111 | AL12: =IF(AK12=0,0,(AK12*((LOG(AK12))/LOG(2)))) -> -0.352213889 | AN12: =N12 -> 212 | AO12: =COUNTIF(L51:L61,AN12) -> 0 | AP12: =AO12/(AQ4-AO14) -> 0 | AQ12: =IF(AP12=0,0,(AP12*((LOG(AP12))/LOG(2)))) -> 0 | AS12: =N12 -> 212 | AT12: =COUNTIF(L62:L72,AS12) -> 1 | AU12: =AT12/(AV4-AT14) -> 0.2 | AV12: =IF(AU12=0,0,(AU12*((LOG(AU12))/LOG(2)))) -> -0.464385619
A13: 21 | B13: 1012 | C13: 21 | D13: 1022 | E13: 21 | F13: 1025 | K13: 0 | L13: 222 | N13: 221 | O13: =COUNTIF($L$7:$L$500,N13) -> 7 | P13: =O13/$Q$4 -> 0.1060606061 | Q13: =IF(P13=0,0,(P13*((LOG(P13))/LOG(2)))) -> -0.3433223391 | T13: =N13 -> 221 | U13: =COUNTIF(L7:L17,T13) -> 3 | V13: =U13/(W4-U14) -> 0.4285714286 | W13: =IF(V13=0,0,(V13*((LOG(V13))/LOG(2)))) -> -0.5238824663 | Y13: =N13 -> 221 | Z13: =COUNTIF(L18:L28,Y13) -> 0 | AA13: =Z13/(AB4-Z14) -> 0 | AB13: =IF(AA13=0,0,(AA13*((LOG(AA13))/LOG(2)))) -> 0 | AD13: =N13 -> 221 | AE13: =COUNTIF(L29:L39,AD13) -> 1 | AF13: =AE13/(AG4-AE14) -> 0.25 | AG13: =IF(AF13=0,0,(AF13*((LOG(AF13))/LOG(2)))) -> -0.5 | AI13: =N13 -> 221 | AJ13: =COUNTIF(L40:L50,AI13) -> 3 | AK13: =AJ13/(AL4-AJ14) -> 0.3333333333 | AL13: =IF(AK13=0,0,(AK13*((LOG(AK13))/LOG(2)))) -> -0.5283208336 | AN13: =N13 -> 221 | AO13: =COUNTIF(L51:L61,AN13) -> 0 | AP13: =AO13/(AQ4-AO14) -> 0 | AQ13: =IF(AP13=0,0,(AP13*((LOG(AP13))/LOG(2)))) -> 0 | AS13: =N13 -> 221 | AT13: =COUNTIF(L62:L72,AS13) -> 0 | AU13: =AT13/(AV4-AT14) -> 0 | AV13: =IF(AU13=0,0,(AU13*((LOG(AU13))/LOG(2)))) -> 0
A14: 21 | B14: 1117 | C14: 21 | D14: 1162 | E14: 21 | F14: 1168 | K14: 0 | L14: 222 | N14: 222 | O14: =COUNTIF($L$7:$L$500,N14) -> 34 | P14: =O14/$Q$4 -> 0.5151515152 | Q14: =IF(P14=0,0,(P14*((LOG(P14))/LOG(2)))) -> -0.4929645978 | T14: =N14 -> 222 | U14: =COUNTIF(L7:L17,T14) -> 4 | Y14: =N14 -> 222 | Z14: =COUNTIF(L18:L28,Y14) -> 5 | AD14: =N14 -> 222 | AE14: =COUNTIF(L29:L39,AD14) -> 7 | AI14: =N14 -> 222 | AJ14: =COUNTIF(L40:L50,AI14) -> 2 | AN14: =N14 -> 222 | AO14: =COUNTIF(L51:L61,AN14) -> 10 | AS14: =N14 -> 222 | AT14: =COUNTIF(L62:L72,AS14) -> 6
A15: 12 | B15: 1282 | C15: 23 | D15: 1291 | E15: 14 | F15: 1304 | K15: 0 | L15: 121 | P15: =SUM(P7:P14) -> 1 | Q15: =-SUM(Q7:Q14) -> 2.311065959 | V15: =SUM(V7:V14) -> 1 | W15: =-SUM(W7:W14) -> 1.842370993 | AA15: =SUM(AA7:AA14) -> 1 | AB15: =-SUM(AB7:AB14) -> 1.459147917 | AF15: =SUM(AF7:AF14) -> 1 | AG15: =-SUM(AG7:AG14) -> 2 | AK15: =SUM(AK7:AK14) -> 1 | AL15: =-SUM(AL7:AL14) -> 2.113283334 | AP15: =SUM(AP7:AP14) -> 1 | AQ15: =-SUM(AQ7:AQ14) -> 0 | AU15: =SUM(AU7:AU14) -> 1 | AV15: =-SUM(AV7:AV14) -> 1.921928095
A16: 12 | B16: 1413 | C16: 23 | D16: 1421 | E16: 23 | F16: 1435 | K16: 0 | L16: 122 | P16: U= | Q16: =Q15/(LOG(Q4)/LOG(2)) -> 0.3823486546 | V16: U1= | W16: =W15/(LOG(W4)/LOG(2)) -> 0.5325646512 | AA16: U2= | AB16: =AB15/(LOG(AB4)/LOG(2)) -> 0.4217883392 | AF16: U3= | AG16: =AG15/(LOG(AG4)/LOG(2)) -> 0.5781296526 | AK16: U4= | AL16: =AL15/(LOG(AL4)/LOG(2)) -> 0.61087588 | AP16: U5= | AQ16: =AQ15/(LOG(AQ4)/LOG(2)) -> 0 | AU16: U6= | AV16: =AV15/(LOG(AV4)/LOG(2)) -> 0.5555618109
A17: 21 | B17: 1540 | C17: 12 | D17: 1542 | E17: 23 | F17: 1551 | K17: 0 | L17: 212
A18: 21 | B18: 1741 | C18: 21 | D18: 1749 | E18: 21 | F18: 1752 | K18: 0 | L18: 222
A19: 21 | B19: 1846 | C19: 12 | D19: 1855 | E19: 14 | F19: 1858 | K19: 0 | L19: 211 | N19: Total Target Seq
A20: 12 | B20: 1969 | C20: 23 | D20: 1975 | E20: 23 | F20: 1982 | K20: 0 | L20: 122 | N20: =COUNTIF(L7:L72,G3) -> 34 | P20: 11 | Q20: 11 | R20: 11 | S20: 11 | T20: 11 | U20: 11
A21: 21 | B21: 2143 | C21: 21 | D21: 2147 | E21: 21 | F21: 2150 | K21: 0 | L21: 222 | P21: % of reinforcement given in 6 equal intervals based on number of trials
A22: 12 | B22: 2256 | C22: 14 | D22: 2273 | E22: 14 | F22: 2283 | K22: 0 | L22: 111 | P22: %_1 | Q22: %_2 | R22: %_3 | S22: %_4 | T22: %_5 | U22: %_6
A23: 21 | B23: 2389 | C23: 12 | D23: 2397 | E23: 14 | F23: 2407 | K23: 0 | L23: 211 | O23: target sequence | P23: =$G$3 -> 222 | Q23: =$G$3 -> 222 | R23: =$G$3 -> 222 | S23: =$G$3 -> 222 | T23: =$G$3 -> 222 | U23: =$G$3 -> 222
A24: 21 | B24: 3444 | C24: 21 | D24: 3447 | E24: 21 | F24: 3456 | K24: 0 | L24: 222 | O24: total reinforcement | P24: =U14 -> 4 | Q24: =Z14 -> 5 | R24: =AE14 -> 7 | S24: =AJ14 -> 2 | T24: =AO14 -> 10 | U24: =AT14 -> 6
A25: 12 | B25: 3545 | C25: 23 | D25: 3549 | E25: 23 | F25: 3554 | K25: 0 | L25: 122 | O25: % target
A26: 21 | B26: 3666 | C26: 21 | D26: 3677 | E26: 21 | F26: 3683 | K26: 0 | L26: 222 | O26: CCRF
A27: 21 | B27: 4036 | C27: 21 | D27: 4041 | E27: 21 | F27: 4094 | K27: 0 | L27: 222 | O27: % CCRf
A28: 12 | B28: 4253 | C28: 23 | D28: 4257 | E28: 23 | F28: 4262 | K28: 0 | L28: 122 | O28: average response rate | P28: =F17/P20 -> 141 | Q28: =(F28-F17)/Q20 -> 246.4545455 | R28: =(F39-F28)/R20 -> 183.4545455 | S28: =(F50-F39)/S20 -> 186.6363636 | T28: =(F61-F50)/T20 -> 163.8181818 | U28: =(F72-F61)/U20 -> 176
A29: 12 | B29: 4361 | C29: 14 | D29: 4368 | E29: 23 | F29: 4382 | K29: 0 | L29: 112
A30: 12 | B30: 4478 | C30: 23 | D30: 4488 | E30: 14 | F30: 4491 | K30: 0 | L30: 121
A31: 21 | B31: 4582 | C31: 21 | D31: 4609 | E31: 12 | F31: 4621 | K31: 0 | L31: 221
A32: 21 | B32: 4717 | C32: 21 | D32: 4727 | E32: 21 | F32: 4735 | K32: 0 | L32: 222
A33: 21 | B33: 4934 | C33: 21 | D33: 4937 | E33: 21 | F33: 4941 | K33: 0 | L33: 222
A34: 21 | B34: 5048 | C34: 21 | D34: 5053 | E34: 21 | F34: 5092 | K34: 0 | L34: 222
A35: 21 | B35: 5233 | C35: 21 | D35: 5239 | E35: 21 | F35: 5248 | K35: 0 | L35: 222
A36: 21 | B36: 5388 | C36: 21 | D36: 5488 | E36: 21 | F36: 5533 | K36: 0 | L36: 222
A37: 21 | B37: 5768 | C37: 21 | D37: 5781 | E37: 21 | F37: 5784 | K37: 0 | L37: 222
A38: 21 | B38: 5895 | C38: 21 | D38: 5899 | E38: 21 | F38: 5906 | K38: 0 | L38: 222
A39: 21 | B39: 6260 | C39: 12 | D39: 6276 | E39: 23 | F39: 6280 | K39: 0 | L39: 212
A40: 21 | B40: 6402 | C40: 21 | D40: 6406 | E40: 21 | F40: 6422 | K40: 0 | L40: 222
A41: 12 | B41: 6514 | C41: 23 | D41: 6526 | E41: 14 | F41: 6540 | K41: 0 | L41: 121
A42: 21 | B42: 6641 | C42: 21 | D42: 6644 | E42: 21 | F42: 6651 | K42: 0 | L42: 222
A43: 21 | B43: 6741 | C43: 21 | D43: 6745 | E43: 12 | F43: 6757 | K43: 0 | L43: 221
A44: 21 | B44: 6854 | C44: 12 | D44: 6861 | E44: 23 | F44: 6883 | K44: 0 | L44: 212
A45: 12 | B45: 6994 | C45: 23 | D45: 7021 | E45: 14 | F45: 7032 | K45: 0 | L45: 121
A46: 12 | B46: 7146 | C46: 23 | D46: 7167 | E46: 14 | F46: 7171 | K46: 0 | L46: 121
A47: 21 | B47: 7950 | C47: 21 | D47: 7965 | E47: 12 | F47: 7981 | K47: 0 | L47: 221
A48: 12 | B48: 8083 | C48: 14 | D48: 8090 | E48: 14 | F48: 8103 | K48: 0 | L48: 111
A49: 12 | B49: 8196 | C49: 23 | D49: 8210 | E49: 23 | F49: 8215 | K49: 0 | L49: 122
A50: 21 | B50: 8311 | C50: 21 | D50: 8314 | E50: 12 | F50: 8333 | K50: 0 | L50: 221
A51: 21 | B51: 8438 | C51: 21 | D51: 8441 | E51: 21 | F51: 8449 | K51: 0 | L51: 222
A52: 21 | B52: 8560 | C52: 21 | D52: 8565 | E52: 21 | F52: 8603 | K52: 0 | L52: 222
A53: 21 | B53: 8828 | C53: 21 | D53: 8831 | E53: 21 | F53: 8889 | K53: 0 | L53: 222
A54: 21 | B54: 8976 | C54: 21 | D54: 8980 | E54: 21 | F54: 8984 | K54: 0 | L54: 222
A55: 21 | B55: 9134 | C55: 21 | D55: 9146 | E55: 21 | F55: 9152 | K55: 0 | L55: 222
A56: 12 | B56: 9239 | C56: 14 | D56: 9246 | E56: 23 | F56: 9258 | K56: 0 | L56: 112
A57: 21 | B57: 9363 | C57: 21 | D57: 9369 | E57: 21 | F57: 9378 | K57: 0 | L57: 222
A58: 21 | B58: 9485 | C58: 21 | D58: 9489 | E58: 21 | F58: 9493 | K58: 0 | L58: 222
A59: 21 | B59: 9664 | C59: 21 | D59: 9674 | E59: 21 | F59: 9677 | K59: 0 | L59: 222
A60: 21 | B60: 9841 | C60: 21 | D60: 9847 | E60: 21 | F60: 9854 | K60: 0 | L60: 222
A61: 21 | B61: 10125 | C61: 21 | D61: 10131 | E61: 21 | F61: 10135 | K61: 0 | L61: 222
A62: 21 | B62: 10365 | C62: 21 | D62: 10371 | E62: 21 | F62: 10377 | K62: 0 | L62: 222
A63: 21 | B63: 10761 | C63: 21 | D63: 10766 | E63: 21 | F63: 10769 | K63: 0 | L63: 222
A64: 21 | B64: 10864 | C64: 21 | D64: 10870 | E64: 21 | F64: 10874 | K64: 0 | L64: 222
A65: 21 | B65: 11019 | C65: 21 | D65: 11026 | E65: 21 | F65: 11030 | K65: 0 | L65: 222
A66: 21 | B66: 11321 | C66: 21 | D66: 11323 | E66: 21 | F66: 11329 | K66: 0 | L66: 222
A67: 21 | B67: 11420 | C67: 12 | D67: 11436 | E67: 23 | F67: 11438 | K67: 0 | L67: 212
A68: 12 | B68: 11531 | C68: 23 | D68: 11544 | E68: 14 | F68: 11550 | K68: 0 | L68: 121
A69: 21 | B69: 11645 | C69: 12 | D69: 11650 | E69: 14 | F69: 11658 | K69: 0 | L69: 211
A70: 12 | B70: 11786 | C70: 14 | D70: 11813 | E70: 14 | F70: 11821 | K70: 0 | L70: 111
A71: 21 | B71: 11959 | C71: 21 | D71: 11961 | E71: 21 | F71: 11966 | K71: 0 | L71: 222
A72: 21 | B72: 12061 | C72: 12 | D72: 12067 | E72: 14 | F72: 12071 | K72: 0 | L72: 211

Sheet !N10795B.AXT
A1: Report for:!N10795B.AXT
A2: Date: | B2: <date>
A3: Hen: | B3: <hen> | F3: Correct Sequence | G3: =Start!J2 -> 222 | P3: Total Sequences in Data | Q3: =4994-COUNTBLANK(L7:L5000) -> 34 | V3: Total Sequences in Block Data | W3: =COUNTA(L7:L12) -> 6 | AA3: Total Sequences in Block Data | AB3: =COUNTA(L13:L17) -> 5 | AF3: Total Sequences in Block Data | AG3: =COUNTA(L18:L23) -> 6 | AK3: Total Sequences in Block Data | AL3: =COUNTA(L24:L29) -> 6 | AP3: Total Sequences in Block Data | AQ3: =COUNTA(L30:L34) -> 5 | AU3: Total Sequences in Block Data | AV3: =COUNTA(L35:L40) -> 6
P4: Total Sequences in Summary | Q4: =SUM(O7:O14) -> 34 | V4: Total Sequences in Block Summary | W4: =SUM(U7:U14) -> 6 | AA4: Total Sequences in Block Summary | AB4: =SUM(Z7:Z14) -> 5 | AF4: Total Sequences in Block Summary | AG4: =SUM(AE7:AE14) -> 6 | AK4: Total Sequences in Block Summary | AL4: =SUM(AJ7:AJ14) -> 6 | AP4: Total Sequences in Block Summary | AQ4: =SUM(AO7:AO14) -> 5 | AU4: Total Sequences in Block Summary | AV4: =SUM(AT7:AT14) -> 6
T5: Block 1 | Y5: Block 2 | AD5: Block 3 | AI5: Block 4 | AN5: Block 5 | AS5: Block 6
A6: Sequence Component 1 | B6: Time 1 | C6: Sequence Component 2 | D6: Time 2 | E6: Sequence Component 3 | F6: Time 3 | G6: Sequence Component 4 | H6: Time 4 | I6: Sequence Component 5 | J6: Time 5 | K6: Correct? 0=No 1=Yes | L6: Sequence | N6: Frequency | P6: Relative Frequency | Q6: Variability | T6: Frequency | V6: Relative Frequency | W6: Variability | Y6: Frequency | AA6: Relative Frequency | AB6: Variability | AD6: Frequency | AF6: Relative Frequency | AG6: Variability | AI6: Frequency | AK6: Relative Frequency | AL6: Variability | AN6: Frequency | AP6: Relative Frequency | AQ6: Variability | AS6: Frequency | AU6: Relative Frequency | AV6: Variability
A7: 21 | B7: 6 | C7: 12 | D7: 9 | E7: 14 | F7: 20 | K7: 0 | L7: 211 | N7: 111 | O7: =COUNTIF($L$7:$L$500,N7) -> 2 | P7: =O7/$Q$4 -> 0.05882352941 | Q7: =IF(P7=0,0,(P7*((LOG(P7))/LOG(2)))) -> -0.2404389907 | T7: =N7 -> 111 | U7: =COUNTIF(L7:L12,T7) -> 0 | V7: =U7/(W4-U14) -> 0 | W7: =IF(V7=0,0,(V7*((LOG(V7))/LOG(2)))) -> 0 | Y7: =N7 -> 111 | Z7: =COUNTIF(L13:L17,Y7) -> 0 | AA7: =Z7/(AB4-Z14) -> 0 | AB7: =IF(AA7=0,0,(AA7*((LOG(AA7))/LOG(2)))) -> 0 | AD7: =N7 -> 111 | AE7: =COUNTIF(L18:L23,AD7) -> 2 | AF7: =AE7/(AG4-AE14) -> 0.4 | AG7: =IF(AF7=0,0,(AF7*((LOG(AF7))/LOG(2)))) -> -0.528771238 | AI7: =N7 -> 111 | AJ7: =COUNTIF(L24:L29,AI7) -> 0 | AK7: =AJ7/(AL4-AJ14) -> 0 | AL7: =IF(AK7=0,0,(AK7*((LOG(AK7))/LOG(2)))) -> 0 | AN7: =N7 -> 111 | AO7: =COUNTIF(L30:L34,AN7) -> 0 | AP7: =AO7/(AQ4-AO14) -> 0 | AQ7: =IF(AP7=0,0,(AP7*((LOG(AP7))/LOG(2)))) -> 0 | AS7: =N7 -> 111 | AT7: =COUNTIF(L35:L40,AS7) -> 0 | AU7: =AT7/(AV4-AT14) -> 0 | AV7: =IF(AU7=0,0,(AU7*((LOG(AU7))/LOG(2)))) -> 0
A8: 12 | B8: 116 | C8: 23 | D8: 132 | E8: 23 | F8: 141 | K8: 0 | L8: 122 | N8: 112 | O8: =COUNTIF($L$7:$L$500,N8) -> 5 | P8: =O8/$Q$4 -> 0.1470588235 | Q8: =IF(P8=0,0,(P8*((LOG(P8))/LOG(2)))) -> -0.4066962862 | T8: =N8 -> 112 | U8: =COUNTIF(L7:L12,T8) -> 2 | V8: =U8/(W4-U14) -> 0.3333333333 | W8: =IF(V8=0,0,(V8*((LOG(V8))/LOG(2)))) -> -0.5283208336 | Y8: =N8 -> 112 | Z8: =COUNTIF(L13:L17,Y8) -> 1 | AA8: =Z8/(AB4-Z14) -> 0.2 | AB8: =IF(AA8=0,0,(AA8*((LOG(AA8))/LOG(2)))) -> -0.464385619 | AD8: =N8 -> 112 | AE8: =COUNTIF(L18:L23,AD8) -> 0 | AF8: =AE8/(AG4-AE14) -> 0 | AG8: =IF(AF8=0,0,(AF8*((LOG(AF8))/LOG(2)))) -> 0 | AI8: =N8 -> 112 | AJ8: =COUNTIF(L24:L29,AI8) -> 2 | AK8: =AJ8/(AL4-AJ14) -> 0.3333333333 | AL8: =IF(AK8=0,0,(AK8*((LOG(AK8))/LOG(2)))) -> -0.5283208336 | AN8: =N8 -> 112 | AO8: =COUNTIF(L30:L34,AN8) -> 0 | AP8: =AO8/(AQ4-AO14) -> 0 | AQ8: =IF(AP8=0,0,(AP8*((LOG(AP8))/LOG(2)))) -> 0 | AS8: =N8 -> 112 | AT8: =COUNTIF(L35:L40,AS8) -> 0 | AU8: =AT8/(AV4-AT14) -> 0 | AV8: =IF(AU8=0,0,(AU8*((LOG(AU8))/LOG(2)))) -> 0
A9: 12 | B9: 245 | C9: 14 | D9: 247 | E9: 23 | F9: 262 | K9: 0 | L9: 112 | N9: 121 | O9: =COUNTIF($L$7:$L$500,N9) -> 4 | P9: =O9/$Q$4 -> 0.1176470588 | Q9: =IF(P9=0,0,(P9*((LOG(P9))/LOG(2)))) -> -0.3632309225 | T9: =N9 -> 121 | U9: =COUNTIF(L7:L12,T9) -> 0 | V9: =U9/(W4-U14) -> 0 | W9: =IF(V9=0,0,(V9*((LOG(V9))/LOG(2)))) -> 0 | Y9: =N9 -> 121 | Z9: =COUNTIF(L13:L17,Y9) -> 1 | AA9: =Z9/(AB4-Z14) -> 0.2 | AB9: =IF(AA9=0,0,(AA9*((LOG(AA9))/LOG(2)))) -> -0.464385619 | AD9: =N9 -> 121 | AE9: =COUNTIF(L18:L23,AD9) -> 1 | AF9: =AE9/(AG4-AE14) -> 0.2 | AG9: =IF(AF9=0,0,(AF9*((LOG(AF9))/LOG(2)))) -> -0.464385619 | AI9: =N9 -> 121 | AJ9: =COUNTIF(L24:L29,AI9) -> 0 | AK9: =AJ9/(AL4-AJ14) -> 0 | AL9: =IF(AK9=0,0,(AK9*((LOG(AK9))/LOG(2)))) -> 0 | AN9: =N9 -> 121 | AO9: =COUNTIF(L30:L34,AN9) -> 1 | AP9: =AO9/(AQ4-AO14) -> 0.5 | AQ9: =IF(AP9=0,0,(AP9*((LOG(AP9))/LOG(2)))) -> -0.5 | AS9: =N9 -> 121 | AT9: =COUNTIF(L35:L40,AS9) -> 1 | AU9: =AT9/(AV4-AT14) -> 0.25 | AV9: =IF(AU9=0,0,(AU9*((LOG(AU9))/LOG(2)))) -> -0.5
A10: 12 | B10: 419 | C10: 14 | D10: 433 | E10: 23 | F10: 435 | K10: 0 | L10: 112 | N10: 122 | O10: =COUNTIF($L$7:$L$500,N10) -> 3 | P10: =O10/$Q$4 -> 0.08823529412 | Q10: =IF(P10=0,0,(P10*((LOG(P10))/LOG(2)))) -> -0.3090441477 | T10: =N10 -> 122 | U10: =COUNTIF(L7:L12,T10) -> 1 | V10: =U10/(W4-U14) -> 0.1666666667 | W10: =IF(V10=0,0,(V10*((LOG(V10))/LOG(2)))) -> -0.4308270835 | Y10: =N10 -> 122 | Z10: =COUNTIF(L13:L17,Y10) -> 0 | AA10: =Z10/(AB4-Z14) -> 0 | AB10: =IF(AA10=0,0,(AA10*((LOG(AA10))/LOG(2)))) -> 0 | AD10: =N10 -> 122 | AE10: =COUNTIF(L18:L23,AD10) -> 0 | AF10: =AE10/(AG4-AE14) -> 0 | AG10: =IF(AF10=0,0,(AF10*((LOG(AF10))/LOG(2)))) -> 0 | AI10: =N10 -> 122 | AJ10: =COUNTIF(L24:L29,AI10) -> 1 | AK10: =AJ10/(AL4-AJ14) -> 0.1666666667 | AL10: =IF(AK10=0,0,(AK10*((LOG(AK10))/LOG(2)))) -> -0.4308270835 | AN10: =N10 -> 122 | AO10: =COUNTIF(L30:L34,AN10) -> 0 | AP10: =AO10/(AQ4-AO14) -> 0 | AQ10: =IF(AP10=0,0,(AP10*((LOG(AP10))/LOG(2)))) -> 0 | AS10: =N10 -> 122 | AT10: =COUNTIF(L35:L40,AS10) -> 1 | AU10: =AT10/(AV4-AT14) -> 0.25 | AV10: =IF(AU10=0,0,(AU10*((LOG(AU10))/LOG(2)))) -> -0.5
A11: 21 | B11: 879 | C11: 12 | D11: 889 | E11: 14 | F11: 904 | K11: 0 | L11: 211 | N11: 211 | O11: =COUNTIF($L$7:$L$500,N11) -> 9 | P11: =O11/$Q$4 -> 0.2647058824 | Q11: =IF(P11=0,0,(P11*((LOG(P11))/LOG(2)))) -> -0.5075835458 | T11: =N11 -> 211 | U11: =COUNTIF(L7:L12,T11) -> 2 | V11: =U11/(W4-U14) -> 0.3333333333 | W11: =IF(V11=0,0,(V11*((LOG(V11))/LOG(2)))) -> -0.5283208336 | Y11: =N11 -> 211 | Z11: =COUNTIF(L13:L17,Y11) -> 0 | AA11: =Z11/(AB4-Z14) -> 0 | AB11: =IF(AA11=0,0,(AA11*((LOG(AA11))/LOG(2)))) -> 0 | AD11: =N11 -> 211 | AE11: =COUNTIF(L18:L23,AD11) -> 2 | AF11: =AE11/(AG4-AE14) -> 0.4 | AG11: =IF(AF11=0,0,(AF11*((LOG(AF11))/LOG(2)))) -> -0.528771238 | AI11: =N11 -> 211 | AJ11: =COUNTIF(L24:L29,AI11) -> 2 | AK11: =AJ11/(AL4-AJ14) -> 0.3333333333 | AL11: =IF(AK11=0,0,(AK11*((LOG(AK11))/LOG(2)))) -> -0.5283208336 | AN11: =N11 -> 211 | AO11: =COUNTIF(L30:L34,AN11) -> 1 | AP11: =AO11/(AQ4-AO14) -> 0.5 | AQ11: =IF(AP11=0,0,(AP11*((LOG(AP11))/LOG(2)))) -> -0.5 | AS11: =N11 -> 211 | AT11: =COUNTIF(L35:L40,AS11) -> 2 | AU11: =AT11/(AV4-AT14) -> 0.5 | AV11: =IF(AU11=0,0,(AU11*((LOG(AU11))/LOG(2)))) -> -0.5
A12: 21 | B12: 1039 | C12: 12 | D12: 1045 | E12: 23 | F12: 1062 | K12: 0 | L12: 212 | N12: 212 | O12: =COUNTIF($L$7:$L$500,N12) -> 1 | P12: =O12/$Q$4 -> 0.02941176471 | Q12: =IF(P12=0,0,(P12*((LOG(P12))/LOG(2)))) -> -0.14963126 | T12: =N12 -> 212 | U12: =COUNTIF(L7:L12,T12) -> 1 | V12: =U12/(W4-U14) -> 0.1666666667 | W12: =IF(V12=0,0,(V12*((LOG(V12))/LOG(2)))) -> -0.4308270835 | Y12: =N12 -> 212 | Z12: =COUNTIF(L13:L17,Y12) -> 0 | AA12: =Z12/(AB4-Z14) -> 0 | AB12: =IF(AA12=0,0,(AA12*((LOG(AA12))/LOG(2)))) -> 0 | AD12: =N12 -> 212 | AE12: =COUNTIF(L18:L23,AD12) -> 0 | AF12: =AE12/(AG4-AE14) -> 0 | AG12: =IF(AF12=0,0,(AF12*((LOG(AF12))/LOG(2)))) -> 0 | AI12: =N12 -> 212 | AJ12: =COUNTIF(L24:L29,AI12) -> 0 | AK12: =AJ12/(AL4-AJ14) -> 0 | AL12: =IF(AK12=0,0,(AK12*((LOG(AK12))/LOG(2)))) -> 0 | AN12: =N12 -> 212 | AO12: =COUNTIF(L30:L34,AN12) -> 0 | AP12: =AO12/(AQ4-AO14) -> 0 | AQ12: =IF(AP12=0,0,(AP12*((LOG(AP12))/LOG(2)))) -> 0 | AS12: =N12 -> 212 | AT12: =COUNTIF(L35:L40,AS12) -> 0 | AU12: =AT12/(AV4-AT14) -> 0 | AV12: =IF(AU12=0,0,(AU12*((LOG(AU12))/LOG(2)))) -> 0
A13: 21 | B13: 1500 | C13: 21 | D13: 1504 | E13: 12 | F13: 1525 | K13: 0 | L13: 221 | N13: 221 | O13: =COUNTIF($L$7:$L$500,N13) -> 4 | P13: =O13/$Q$4 -> 0.1176470588 | Q13: =IF(P13=0,0,(P13*((LOG(P13))/LOG(2)))) -> -0.3632309225 | T13: =N13 -> 221 | U13: =COUNTIF(L7:L12,T13) -> 0 | V13: =U13/(W4-U14) -> 0 | W13: =IF(V13=0,0,(V13*((LOG(V13))/LOG(2)))) -> 0 | Y13: =N13 -> 221 | Z13: =COUNTIF(L13:L17,Y13) -> 3 | AA13: =Z13/(AB4-Z14) -> 0.6 | AB13: =IF(AA13=0,0,(AA13*((LOG(AA13))/LOG(2)))) -> -0.4421793565 | AD13: =N13 -> 221 | AE13: =COUNTIF(L18:L23,AD13) -> 0 | AF13: =AE13/(AG4-AE14) -> 0 | AG13: =IF(AF13=0,0,(AF13*((LOG(AF13))/LOG(2)))) -> 0 | AI13: =N13 -> 221 | AJ13: =COUNTIF(L24:L29,AI13) -> 1 | AK13: =AJ13/(AL4-AJ14) -> 0.1666666667 | AL13: =IF(AK13=0,0,(AK13*((LOG(AK13))/LOG(2)))) -> -0.4308270835 | AN13: =N13 -> 221 | AO13: =COUNTIF(L30:L34,AN13) -> 0 | AP13: =AO13/(AQ4-AO14) -> 0 | AQ13: =IF(AP13=0,0,(AP13*((LOG(AP13))/LOG(2)))) -> 0 | AS13: =N13 -> 221 | AT13: =COUNTIF(L35:L40,AS13) -> 0 | AU13: =AT13/(AV4-AT14) -> 0 | AV13: =IF(AU13=0,0,(AU13*((LOG(AU13))/LOG(2)))) -> 0
A14: 12 | B14: 1639 | C14: 23 | D14: 1646 | E14: 14 | F14: 1652 | K14: 0 | L14: 121 | N14: 222 | O14: =COUNTIF($L$7:$L$500,N14) -> 6 | P14: =O14/$Q$4 -> 0.1764705882 | Q14: =IF(P14=0,0,(P14*((LOG(P14))/LOG(2)))) -> -0.4416177072 | T14: =N14 -> 222 | U14: =COUNTIF(L7:L12,T14) -> 0 | Y14: =N14 -> 222 | Z14: =COUNTIF(L13:L17,Y14) -> 0 | AD14: =N14 -> 222 | AE14: =COUNTIF(L18:L23,AD14) -> 1 | AI14: =N14 -> 222 | AJ14: =COUNTIF(L24:L29,AI14) -> 0 | AN14: =N14 -> 222 | AO14: =COUNTIF(L30:L34,AN14) -> 3 | AS14: =N14 -> 222 | AT14: =COUNTIF(L35:L40,AS14) -> 2
A15: 12 | B15: 1752 | C15: 14 | D15: 1755 | E15: 23 | F15: 1762 | K15: 0 | L15: 112 | P15: =SUM(P7:P14) -> 1 | Q15: =-SUM(Q7:Q14) -> 2.781473783 | V15: =SUM(V7:V14) -> 1 | W15: =-SUM(W7:W14) -> 1.918295834 | AA15: =SUM(AA7:AA14) -> 1 | AB15: =-SUM(AB7:AB14) -> 1.370950594 | AF15: =SUM(AF7:AF14) -> 1 | AG15: =-SUM(AG7:AG14) -> 1.521928095 | AK15: =SUM(AK7:AK14) -> 1 | AL15: =-SUM(AL7:AL14) -> 1.918295834 | AP15: =SUM(AP7:AP14) -> 1 | AQ15: =-SUM(AQ7:AQ14) -> 1 | AU15: =SUM(AU7:AU14) -> 1 | AV15: =-SUM(AV7:AV14) -> 1.5
A16: 21 | B16: 1913 | C16: 21 | D16: 1918 | E16: 12 | F16: 1934 | K16: 0 | L16: 221 | P16: U= | Q16: =Q15/(LOG(Q4)/LOG(2)) -> 0.5467310267 | V16: U1= | W16: =W15/(LOG(W4)/LOG(2)) -> 0.7420981285 | AA16: U2= | AB16: =AB15/(LOG(AB4)/LOG(2)) -> 0.5904362833 | AF16: U3= | AG16: =AG15/(LOG(AG4)/LOG(2)) -> 0.5887621559 | AK16: U4= | AL16: =AL15/(LOG(AL4)/LOG(2)) -> 0.7420981285 | AP16: U5= | AQ16: =AQ15/(LOG(AQ4)/LOG(2)) -> 0.4306765581 | AU16: U6= | AV16: =AV15/(LOG(AV4)/LOG(2)) -> 0.5802792109
A17: 21 | B17: 2036 | C17: 21 | D17: 2045 | E17: 12 | F17: 2069 | K17: 0 | L17: 221
A18: 21 | B18: 2181 | C18: 21 | D18: 2198 | E18: 21 | F18: 2201 | K18: 0 | L18: 222
A19: 21 | B19: 2289 | C19: 12 | D19: 2294 | E19: 14 | F19: 2304 | K19: 0 | L19: 211 | N19: Total Target Seq
A20: 12 | B20: 2400 | C20: 23 | D20: 2417 | E20: 14 | F20: 2421 | K20: 0 | L20: 121 | N20: =COUNTIF(L7:L40,G3) -> 6 | P20: 6 | Q20: 5 | R20: 6 | S20: 6 | T20: 5 | U20: 6
A21: 12 | B21: 2696 | C21: 14 | D21: 2703 | E21: 14 | F21: 2715 | K21: 0 | L21: 111 | P21: % of reinforcement given in 6 equal intervals based on number of trials
A22: 12 | B22: 2815 | C22: 14 | D22: 2840 | E22: 14 | F22: 2847 | K22: 0 | L22: 111 | P22: %_1 | Q22: %_2 | R22: %_3 | S22: %_4 | T22: %_5 | U22: %_6
A23: 21 | B23: 3118 | C23: 12 | D23: 3122 | E23: 14 | F23: 3136 | K23: 0 | L23: 211 | O23: target sequence | P23: =$G$3 -> 222 | Q23: =$G$3 -> 222 | R23: =$G$3 -> 222 | S23: =$G$3 -> 222 | T23: =$G$3 -> 222 | U23: =$G$3 -> 222
A24: 21 | B24: 3241 | C24: 12 | D24: 3244 | E24: 14 | F24: 3252 | K24: 0 | L24: 211 | O24: total reinforcement | P24: =U14 -> 0 | Q24: =Z14 -> 0 | R24: =AE14 -> 1 | S24: =AJ14 -> 0 | T24: =AO14 -> 3 | U24: =AT14 -> 2
A25: 12 | B25: 3377 | C25: 14 | D25: 3387 | E25: 23 | F25: 3406 | K25: 0 | L25: 112 | O25: % target
A26: 21 | B26: 3500 | C26: 21 | D26: 3517 | E26: 12 | F26: 3529 | K26: 0 | L26: 221 | O26: CCRF
A27: 12 | B27: 3629 | C27: 14 | D27: 3633 | E27: 23 | F27: 3643 | K27: 0 | L27: 112 | O27: % CCRf
A28: 21 | B28: 3737 | C28: 12 | D28: 3751 | E28: 14 | F28: 3760 | K28: 0 | L28: 211 | O28: average response rate | P28: =F12/P20 -> 177 | Q28: =(F17-F12)/Q20 -> 201.4 | R28: =(F23-F17)/R20 -> 177.8333333 | S28: =(F29-F23)/S20 -> 176 | T28: =(F34-F29)/T20 -> 502.8 | U28: =(F40-F34)/U20 -> 563.3333333
A29: 12 | B29: 4170 | C29: 23 | D29: 4181 | E29: 23 | F29: 4192 | K29: 0 | L29: 122
A30: 21 | B30: 6095 | C30: 12 | D30: 6102 | E30: 14 | F30: 6121 | K30: 0 | L30: 211
A31: 21 | B31: 6284 | C31: 21 | D31: 6286 | E31: 21 | F31: 6292 | K31: 0 | L31: 222
A32: 12 | B32: 6396 | C32: 23 | D32: 6415 | E32: 14 | F32: 6419 | K32: 0 | L32: 121
A33: 21 | B33: 6514 | C33: 21 | D33: 6521 | E33: 21 | F33: 6523 | K33: 0 | L33: 222
A34: 21 | B34: 6692 | C34: 21 | D34: 6696 | E34: 21 | F34: 6706 | K34: 0 | L34: 222
A35: 21 | B35: 6793 | C35: 12 | D35: 6797 | E35: 14 | F35: 6804 | K35: 0 | L35: 211
A36: 21 | B36: 6908 | C36: 21 | D36: 6913 | E36: 21 | F36: 6918 | K36: 0 | L36: 222
A37: 21 | B37: 7914 | C37: 12 | D37: 7938 | E37: 14 | F37: 7952 | K37: 0 | L37: 211
A38: 12 | B38: 9797 | C38: 23 | D38: 9814 | E38: 23 | F38: 9821 | K38: 0 | L38: 122
A39: 21 | B39: 9934 | C39: 21 | D39: 9936 | E39: 21 | F39: 9941 | K39: 0 | L39: 222
A40: 12 | B40: 10064 | C40: 23 | D40: 10078 | E40: 14 | F40: 10086 | K40: 0 | L40: 121

Sheet !N10894B.AXT
A1: Report for:!N10894B.AXT
A2: Date: | B2: <date>
A3: Hen: | B3: <hen> | F3: Correct Sequence | G3: =Start!J2 -> 222 | P3: Total Sequences in Data | Q3: =4994-COUNTBLANK(L7:L5000) -> 54 | V3: Total Sequences in Block Data | W3: =COUNTA(L7:L15) -> 9 | AA3: Total Sequences in Block Data | AB3: =COUNTA(L16:L24) -> 9 | AF3: Total Sequences in Block Data | AG3: =COUNTA(L25:L33) -> 9 | AK3: Total Sequences in Block Data | AL3: =COUNTA(L34:L42) -> 9 | AP3: Total Sequences in Block Data | AQ3: =COUNTA(L43:L51) -> 9 | AU3: Total Sequences in Block Data | AV3: =COUNTA(L52:L60) -> 9
P4: Total Sequences in Summary | Q4: =SUM(O7:O14) -> 54 | V4: Total Sequences in Block Summary | W4: =SUM(U7:U14) -> 9 | AA4: Total Sequences in Block Summary | AB4: =SUM(Z7:Z14) -> 9 | AF4: Total Sequences in Block Summary | AG4: =SUM(AE7:AE14) -> 9 | AK4: Total Sequences in Block Summary | AL4: =SUM(AJ7:AJ14) -> 9 | AP4: Total Sequences in Block Summary | AQ4: =SUM(AO7:AO14) -> 9 | AU4: Total Sequences in Block Summary | AV4: =SUM(AT7:AT14) -> 9
T5: Block 1 | Y5: Block 2 | AD5: Block 3 | AI5: Block 4 | AN5: Block 5 | AS5: Block 6
A6: Sequence Component 1 | B6: Time 1 | C6: Sequence Component 2 | D6: Time 2 | E6: Sequence Component 3 | F6: Time 3 | G6: Sequence Component 4 | H6: Time 4 | I6: Sequence Component 5 | J6: Time 5 | K6: Correct? 0=No 1=Yes | L6: Sequence | N6: Frequency | P6: Relative Frequency | Q6: Variability | T6: Frequency | V6: Relative Frequency | W6: Variability | Y6: Frequency | AA6: Relative Frequency | AB6: Variability | AD6: Frequency | AF6: Relative Frequency | AG6: Variability | AI6: Frequency | AK6: Relative Frequency | AL6: Variability | AN6: Frequency | AP6: Relative Frequency | AQ6: Variability | AS6: Frequency | AU6: Relative Frequency | AV6: Variability
A7: 21 | B7: 8 | C7: 12 | D7: 14 | E7: 23 | F7: 34 | K7: 0 | L7: 212 | N7: 111 | O7: =COUNTIF($L$7:$L$500,N7) -> 1 | P7: =O7/$Q$4 -> 0.01851851852 | Q7: =IF(P7=0,0,(P7*((LOG(P7))/LOG(2)))) -> -0.1065719908 | T7: =N7 -> 111 | U7: =COUNTIF(L7:L15,T7) -> 0 | V7: =U7/(W4-U14) -> 0 | W7: =IF(V7=0,0,(V7*((LOG(V7))/LOG(2)))) -> 0 | Y7: =N7 -> 111 | Z7: =COUNTIF(L16:L24,Y7) -> 1 | AA7: =Z7/(AB4-Z14) -> 0.3333333333 | AB7: =IF(AA7=0,0,(AA7*((LOG(AA7))/LOG(2)))) -> -0.5283208336 | AD7: =N7 -> 111 | AE7: =COUNTIF(L25:L33,AD7) -> 0 | AF7: =AE7/(AG4-AE14) -> 0 | AG7: =IF(AF7=0,0,(AF7*((LOG(AF7))/LOG(2)))) -> 0 | AI7: =N7 -> 111 | AJ7: =COUNTIF(L34:L42,AI7) -> 0 | AK7: =AJ7/(AL4-AJ14) -> 0 | AL7: =IF(AK7=0,0,(AK7*((LOG(AK7))/LOG(2)))) -> 0 | AN7: =N7 -> 111 | AO7: =COUNTIF(L43:L51,AN7) -> 0 | AP7: =AO7/(AQ4-AO14) -> 0 | AQ7: =IF(AP7=0,0,(AP7*((LOG(AP7))/LOG(2)))) -> 0 | AS7: =N7 -> 111 | AT7: =COUNTIF(L52:L60,AS7) -> 0 | AU7: =AT7/(AV4-AT14) ->  | AV7: =IF(AU7=0,0,(AU7*((LOG(AU7))/LOG(2)))) -> 
A8: 12 | B8: 127 | C8: 23 | D8: 147 | E8: 23 | F8: 153 | K8: 0 | L8: 122 | N8: 112 | O8: =COUNTIF($L$7:$L$500,N8) -> 0 | P8: =O8/$Q$4 -> 0 | Q8: =IF(P8=0,0,(P8*((LOG(P8))/LOG(2)))) -> 0 | T8: =N8 -> 112 | U8: =COUNTIF(L7:L15,T8) -> 0 | V8: =U8/(W4-U14) -> 0 | W8: =IF(V8=0,0,(V8*((LOG(V8))/LOG(2)))) -> 0 | Y8: =N8 -> 112 | Z8: =COUNTIF(L16:L24,Y8) -> 0 | AA8: =Z8/(AB4-Z14) -> 0 | AB8: =IF(AA8=0,0,(AA8*((LOG(AA8))/LOG(2)))) -> 0 | AD8: =N8 -> 112 | AE8: =COUNTIF(L25:L33,AD8) -> 0 | AF8: =AE8/(AG4-AE14) -> 0 | AG8: =IF(AF8=0,0,(AF8*((LOG(AF8))/LOG(2)))) -> 0 | AI8: =N8 -> 112 | AJ8: =COUNTIF(L34:L42,AI8) -> 0 | AK8: =AJ8/(AL4-AJ14) -> 0 | AL8: =IF(AK8=0,0,(AK8*((LOG(AK8))/LOG(2)))) -> 0 | AN8: =N8 -> 112 | AO8: =COUNTIF(L43:L51,AN8) -> 0 | AP8: =AO8/(AQ4-AO14) -> 0 | AQ8: =IF(AP8=0,0,(AP8*((LOG(AP8))/LOG(2)))) -> 0 | AS8: =N8 -> 112 | AT8: =COUNTIF(L52:L60,AS8) -> 0 | AU8: =AT8/(AV4-AT14) ->  | AV8: =IF(AU8=0,0,(AU8*((LOG(AU8))/LOG(2)))) -> 
A9: 21 | B9: 246 | C9: 21 | D9: 251 | E9: 12 | F9: 269 | K9: 0 | L9: 221 | N9: 121 | O9: =COUNTIF($L$7:$L$500,N9) -> 0 | P9: =O9/$Q$4 -> 0 | Q9: =IF(P9=0,0,(P9*((LOG(P9))/LOG(2)))) -> 0 | T9: =N9 -> 121 | U9: =COUNTIF(L7:L15,T9) -> 0 | V9: =U9/(W4-U14) -> 0 | W9: =IF(V9=0,0,(V9*((LOG(V9))/LOG(2)))) -> 0 | Y9: =N9 -> 121 | Z9: =COUNTIF(L16:L24,Y9) -> 0 | AA9: =Z9/(AB4-Z14) -> 0 | AB9: =IF(AA9=0,0,(AA9*((LOG(AA9))/LOG(2)))) -> 0 | AD9: =N9 -> 121 | AE9: =COUNTIF(L25:L33,AD9) -> 0 | AF9: =AE9/(AG4-AE14) -> 0 | AG9: =IF(AF9=0,0,(AF9*((LOG(AF9))/LOG(2)))) -> 0 | AI9: =N9 -> 121 | AJ9: =COUNTIF(L34:L42,AI9) -> 0 | AK9: =AJ9/(AL4-AJ14) -> 0 | AL9: =IF(AK9=0,0,(AK9*((LOG(AK9))/LOG(2)))) -> 0 | AN9: =N9 -> 121 | AO9: =COUNTIF(L43:L51,AN9) -> 0 | AP9: =AO9/(AQ4-AO14) -> 0 | AQ9: =IF(AP9=0,0,(AP9*((LOG(AP9))/LOG(2)))) -> 0 | AS9: =N9 -> 121 | AT9: =COUNTIF(L52:L60,AS9) -> 0 | AU9: =AT9/(AV4-AT14) ->  | AV9: =IF(AU9=0,0,(AU9*((LOG(AU9))/LOG(2)))) -> 
A10: 21 | B10: 466 | C10: 21 | D10: 471 | E10: 12 | F10: 486 | K10: 0 | L10: 221 | N10: 122 | O10: =COUNTIF($L$7:$L$500,N10) -> 2 | P10: =O10/$Q$4 -> 0.03703703704 | Q10: =IF(P10=0,0,(P10*((LOG(P10))/LOG(2)))) -> -0.1761069445 | T10: =N10 -> 122 | U10: =COUNTIF(L7:L15,T10) -> 1 | V10: =U10/(W4-U14) -> 0.25 | W10: =IF(V10=0,0,(V10*((LOG(V10))/LOG(2)))) -> -0.5 | Y10: =N10 -> 122 | Z10: =COUNTIF(L16:L24,Y10) -> 0 | AA10: =Z10/(AB4-Z14) -> 0 | AB10: =IF(AA10=0,0,(AA10*((LOG(AA10))/LOG(2)))) -> 0 | AD10: =N10 -> 122 | AE10: =COUNTIF(L25:L33,AD10) -> 1 | AF10: =AE10/(AG4-AE14) -> 0.25 | AG10: =IF(AF10=0,0,(AF10*((LOG(AF10))/LOG(2)))) -> -0.5 | AI10: =N10 -> 122 | AJ10: =COUNTIF(L34:L42,AI10) -> 0 | AK10: =AJ10/(AL4-AJ14) -> 0 | AL10: =IF(AK10=0,0,(AK10*((LOG(AK10))/LOG(2)))) -> 0 | AN10: =N10 -> 122 | AO10: =COUNTIF(L43:L51,AN10) -> 0 | AP10: =AO10/(AQ4-AO14) -> 0 | AQ10: =IF(AP10=0,0,(AP10*((LOG(AP10))/LOG(2)))) -> 0 | AS10: =N10 -> 122 | AT10: =COUNTIF(L52:L60,AS10) -> 0 | AU10: =AT10/(AV4-AT14) ->  | AV10: =IF(AU10=0,0,(AU10*((LOG(AU10))/LOG(2)))) -> 
A11: 21 | B11: 590 | C11: 21 | D11: 598 | E11: 21 | F11: 604 | K11: 0 | L11: 222 | N11: 211 | O11: =COUNTIF($L$7:$L$500,N11) -> 1 | P11: =O11/$Q$4 -> 0.01851851852 | Q11: =IF(P11=0,0,(P11*((LOG(P11))/LOG(2)))) -> -0.1065719908 | T11: =N11 -> 211 | U11: =COUNTIF(L7:L15,T11) -> 0 | V11: =U11/(W4-U14) -> 0 | W11: =IF(V11=0,0,(V11*((LOG(V11))/LOG(2)))) -> 0 | Y11: =N11 -> 211 | Z11: =COUNTIF(L16:L24,Y11) -> 1 | AA11: =Z11/(AB4-Z14) -> 0.3333333333 | AB11: =IF(AA11=0,0,(AA11*((LOG(AA11))/LOG(2)))) -> -0.5283208336 | AD11: =N11 -> 211 | AE11: =COUNTIF(L25:L33,AD11) -> 0 | AF11: =AE11/(AG4-AE14) -> 0 | AG11: =IF(AF11=0,0,(AF11*((LOG(AF11))/LOG(2)))) -> 0 | AI11: =N11 -> 211 | AJ11: =COUNTIF(L34:L42,AI11) -> 0 | AK11: =AJ11/(AL4-AJ14) -> 0 | AL11: =IF(AK11=0,0,(AK11*((LOG(AK11))/LOG(2)))) -> 0 | AN11: =N11 -> 211 | AO11: =COUNTIF(L43:L51,AN11) -> 0 | AP11: =AO11/(AQ4-AO14) -> 0 | AQ11: =IF(AP11=0,0,(AP11*((LOG(AP11))/LOG(2)))) -> 0 | AS11: =N11 -> 211 | AT11: =COUNTIF(L52:L60,AS11) -> 0 | AU11: =AT11/(AV4-AT14) ->  | AV11: =IF(AU11=0,0,(AU11*((LOG(AU11))/LOG(2)))) -> 
A12: 21 | B12: 698 | C12: 21 | D12: 701 | E12: 21 | F12: 708 | K12: 0 | L12: 222 | N12: 212 | O12: =COUNTIF($L$7:$L$500,N12) -> 6 | P12: =O12/$Q$4 -> 0.1111111111 | Q12: =IF(P12=0,0,(P12*((LOG(P12))/LOG(2)))) -> -0.352213889 | T12: =N12 -> 212 | U12: =COUNTIF(L7:L15,T12) -> 1 | V12: =U12/(W4-U14) -> 0.25 | W12: =IF(V12=0,0,(V12*((LOG(V12))/LOG(2)))) -> -0.5 | Y12: =N12 -> 212 | Z12: =COUNTIF(L16:L24,Y12) -> 1 | AA12: =Z12/(AB4-Z14) -> 0.3333333333 | AB12: =IF(AA12=0,0,(AA12*((LOG(AA12))/LOG(2)))) -> -0.5283208336 | AD12: =N12 -> 212 | AE12: =COUNTIF(L25:L33,AD12) -> 1 | AF12: =AE12/(AG4-AE14) -> 0.25 | AG12: =IF(AF12=0,0,(AF12*((LOG(AF12))/LOG(2)))) -> -0.5 | AI12: =N12 -> 212 | AJ12: =COUNTIF(L34:L42,AI12) -> 1 | AK12: =AJ12/(AL4-AJ14) -> 1 | AL12: =IF(AK12=0,0,(AK12*((LOG(AK12))/LOG(2)))) -> 0 | AN12: =N12 -> 212 | AO12: =COUNTIF(L43:L51,AN12) -> 2 | AP12: =AO12/(AQ4-AO14) -> 0.6666666667 | AQ12: =IF(AP12=0,0,(AP12*((LOG(AP12))/LOG(2)))) -> -0.3899750005 | AS12: =N12 -> 212 | AT12: =COUNTIF(L52:L60,AS12) -> 0 | AU12: =AT12/(AV4-AT14) ->  | AV12: =IF(AU12=0,0,(AU12*((LOG(AU12))/LOG(2)))) -> 
A13: 21 | B13: 829 | C13: 21 | D13: 832 | E13: 21 | F13: 841 | K13: 0 | L13: 222 | N13: 221 | O13: =COUNTIF($L$7:$L$500,N13) -> 5 | P13: =O13/$Q$4 -> 0.09259259259 | Q13: =IF(P13=0,0,(P13*((LOG(P13))/LOG(2)))) -> -0.3178666118 | T13: =N13 -> 221 | U13: =COUNTIF(L7:L15,T13) -> 2 | V13: =U13/(W4-U14) -> 0.5 | W13: =IF(V13=0,0,(V13*((LOG(V13))/LOG(2)))) -> -0.5 | Y13: =N13 -> 221 | Z13: =COUNTIF(L16:L24,Y13) -> 0 | AA13: =Z13/(AB4-Z14) -> 0 | AB13: =IF(AA13=0,0,(AA13*((LOG(AA13))/LOG(2)))) -> 0 | AD13: =N13 -> 221 | AE13: =COUNTIF(L25:L33,AD13) -> 2 | AF13: =AE13/(AG4-AE14) -> 0.5 | AG13: =IF(AF13=0,0,(AF13*((LOG(AF13))/LOG(2)))) -> -0.5 | AI13: =N13 -> 221 | AJ13: =COUNTIF(L34:L42,AI13) -> 0 | AK13: =AJ13/(AL4-AJ14) -> 0 | AL13: =IF(AK13=0,0,(AK13*((LOG(AK13))/LOG(2)))) -> 0 | AN13: =N13 -> 221 | AO13: =COUNTIF(L43:L51,AN13) -> 1 | AP13: =AO13/(AQ4-AO14) -> 0.3333333333 | AQ13: =IF(AP13=0,0,(AP13*((LOG(AP13))/LOG(2)))) -> -0.5283208336 | AS13: =N13 -> 221 | AT13: =COUNTIF(L52:L60,AS13) -> 0 | AU13: =AT13/(AV4-AT14) ->  | AV13: =IF(AU13=0,0,(AU13*((LOG(AU13))/LOG(2)))) -> 
A14: 21 | B14: 987 | C14: 21 | D14: 994 | E14: 21 | F14: 1001 | K14: 0 | L14: 222 | N14: 222 | O14: =COUNTIF($L$7:$L$500,N14) -> 39 | P14: =O14/$Q$4 -> 0.7222222222 | Q14: =IF(P14=0,0,(P14*((LOG(P14))/LOG(2)))) -> -0.3390727046 | T14: =N14 -> 222 | U14: =COUNTIF(L7:L15,T14) -> 5 | Y14: =N14 -> 222 | Z14: =COUNTIF(L16:L24,Y14) -> 6 | AD14: =N14 -> 222 | AE14: =COUNTIF(L25:L33,AD14) -> 5 | AI14: =N14 -> 222 | AJ14: =COUNTIF(L34:L42,AI14) -> 8 | AN14: =N14 -> 222 | AO14: =COUNTIF(L43:L51,AN14) -> 6 | AS14: =N14 -> 222 | AT14: =COUNTIF(L52:L60,AS14) -> 9
A15: 21 | B15: 1155 | C15: 21 | D15: 1162 | E15: 21 | F15: 1169 | K15: 0 | L15: 222 | P15: =SUM(P7:P14) -> 1 | Q15: =-SUM(Q7:Q14) -> 1.398404132 | V15: =SUM(V7:V14) -> 1 | W15: =-SUM(W7:W14) -> 1.5 | AA15: =SUM(AA7:AA14) -> 1 | AB15: =-SUM(AB7:AB14) -> 1.584962501 | AF15: =SUM(AF7:AF14) -> 1 | AG15: =-SUM(AG7:AG14) -> 1.5 | AK15: =SUM(AK7:AK14) -> 1 | AL15: =-SUM(AL7:AL14) -> 0 | AP15: =SUM(AP7:AP14) -> 1 | AQ15: =-SUM(AQ7:AQ14) -> 0.9182958341 | AU15: =SUM(AU7:AU14) ->  | AV15: =-SUM(AV7:AV14) -> 
A16: 21 | B16: 1280 | C16: 21 | D16: 1286 | E16: 21 | F16: 1290 | K16: 0 | L16: 222 | P16: U= | Q16: =Q15/(LOG(Q4)/LOG(2)) -> 0.2429941734 | V16: U1= | W16: =W15/(LOG(W4)/LOG(2)) -> 0.4731973152 | AA16: U2= | AB16: =AB15/(LOG(AB4)/LOG(2)) -> 0.5 | AF16: U3= | AG16: =AG15/(LOG(AG4)/LOG(2)) -> 0.4731973152 | AK16: U4= | AL16: =AL15/(LOG(AL4)/LOG(2)) -> 0 | AP16: U5= | AQ16: =AQ15/(LOG(AQ4)/LOG(2)) -> 0.2896900821 | AU16: U6= | AV16: =AV15/(LOG(AV4)/LOG(2)) -> 
A17: 21 | B17: 1474 | C17: 12 | D17: 1481 | E17: 14 | F17: 1491 | K17: 0 | L17: 211
A18: 12 | B18: 1602 | C18: 14 | D18: 1628 | E18: 14 | F18: 1632 | K18: 0 | L18: 111
A19: 21 | B19: 1724 | C19: 21 | D19: 1734 | E19: 21 | F19: 1756 | K19: 0 | L19: 222 | N19: Total Target Seq
A20: 21 | B20: 2168 | C20: 21 | D20: 2173 | E20: 21 | F20: 2180 | K20: 0 | L20: 222 | N20: =COUNTIF(L7:L60,G3) -> 39 | P20: 9 | Q20: 9 | R20: 9 | S20: 9 | T20: 9 | U20: 9
A21: 21 | B21: 2285 | C21: 21 | D21: 2290 | E21: 21 | F21: 2297 | K21: 0 | L21: 222 | P21: % of reinforcement given in 6 equal intervals based on number of trials
A22: 21 | B22: 2573 | C22: 21 | D22: 2582 | E22: 21 | F22: 2588 | K22: 0 | L22: 222 | P22: %_1 | Q22: %_2 | R22: %_3 | S22: %_4 | T22: %_5 | U22: %_6
A23: 21 | B23: 2773 | C23: 12 | D23: 2794 | E23: 23 | F23: 2796 | K23: 0 | L23: 212 | O23: target sequence | P23: =$G$3 -> 222 | Q23: =$G$3 -> 222 | R23: =$G$3 -> 222 | S23: =$G$3 -> 222 | T23: =$G$3 -> 222 | U23: =$G$3 -> 222
A24: 21 | B24: 2935 | C24: 21 | D24: 2941 | E24: 21 | F24: 2945 | K24: 0 | L24: 222 | O24: total reinforcement | P24: =U14 -> 5 | Q24: =Z14 -> 6 | R24: =AE14 -> 5 | S24: =AJ14 -> 8 | T24: =AO14 -> 6 | U24: =AT14 -> 9
A25: 21 | B25: 3181 | C25: 21 | D25: 3239 | E25: 12 | F25: 3241 | K25: 0 | L25: 221 | O25: % target
A26: 21 | B26: 3334 | C26: 21 | D26: 3350 | E26: 12 | F26: 3362 | K26: 0 | L26: 221 | O26: CCRF
A27: 21 | B27: 3455 | C27: 21 | D27: 3458 | E27: 21 | F27: 3465 | K27: 0 | L27: 222 | O27: % CCRf
A28: 21 | B28: 3575 | C28: 12 | D28: 3592 | E28: 23 | F28: 3600 | K28: 0 | L28: 212 | O28: average response rate | P28: =F15/P20 -> 129.8888889 | Q28: =(F24-F15)/Q20 -> 197.3333333 | R28: =(F33-F24)/R20 -> 194.7777778 | S28: =(F42-F33)/S20 -> 261 | T28: =(F51-F42)/T20 -> 156.7777778 | U28: =(F60-F51)/U20 -> 133.2222222
A29: 12 | B29: 3746 | C29: 23 | D29: 3765 | E29: 23 | F29: 3773 | K29: 0 | L29: 122
A30: 21 | B30: 3868 | C30: 21 | D30: 3874 | E30: 21 | F30: 3878 | K30: 0 | L30: 222
A31: 21 | B31: 3974 | C31: 21 | D31: 3977 | E31: 21 | F31: 3982 | K31: 0 | L31: 222
A32: 21 | B32: 4368 | C32: 21 | D32: 4374 | E32: 21 | F32: 4378 | K32: 0 | L32: 222
A33: 21 | B33: 4689 | C33: 21 | D33: 4694 | E33: 21 | F33: 4698 | K33: 0 | L33: 222
A34: 21 | B34: 4915 | C34: 21 | D34: 4919 | E34: 21 | F34: 4921 | K34: 0 | L34: 222
A35: 21 | B35: 5132 | C35: 21 | D35: 5136 | E35: 21 | F35: 5192 | K35: 0 | L35: 222
A36: 21 | B36: 5369 | C36: 21 | D36: 5374 | E36: 21 | F36: 5380 | K36: 0 | L36: 222
A37: 21 | B37: 5701 | C37: 21 | D37: 5706 | E37: 21 | F37: 5710 | K37: 0 | L37: 222
A38: 21 | B38: 6039 | C38: 21 | D38: 6045 | E38: 21 | F38: 6087 | K38: 0 | L38: 222
A39: 21 | B39: 6255 | C39: 21 | D39: 6260 | E39: 21 | F39: 6309 | K39: 0 | L39: 222
A40: 21 | B40: 6608 | C40: 21 | D40: 6616 | E40: 21 | F40: 6620 | K40: 0 | L40: 222
A41: 21 | B41: 6742 | C41: 21 | D41: 6746 | E41: 21 | F41: 6756 | K41: 0 | L41: 222
A42: 21 | B42: 7007 | C42: 12 | D42: 7042 | E42: 23 | F42: 7047 | K42: 0 | L42: 212
A43: 21 | B43: 7147 | C43: 21 | D43: 7155 | E43: 21 | F43: 7188 | K43: 0 | L43: 222
A44: 21 | B44: 7390 | C44: 21 | D44: 7392 | E44: 12 | F44: 7423 | K44: 0 | L44: 221
A45: 21 | B45: 7527 | C45: 12 | D45: 7542 | E45: 23 | F45: 7551 | K45: 0 | L45: 212
A46: 21 | B46: 7645 | C46: 21 | D46: 7648 | E46: 21 | F46: 7657 | K46: 0 | L46: 222
A47: 21 | B47: 7847 | C47: 21 | D47: 7850 | E47: 21 | F47: 7873 | K47: 0 | L47: 222
A48: 21 | B48: 8059 | C48: 12 | D48: 8060 | E48: 23 | F48: 8063 | K48: 0 | L48: 212
A49: 21 | B49: 8160 | C49: 21 | D49: 8165 | E49: 21 | F49: 8168 | K49: 0 | L49: 222
A50: 21 | B50: 8347 | C50: 21 | D50: 8353 | E50: 21 | F50: 8356 | K50: 0 | L50: 222
A51: 21 | B51: 8443 | C51: 21 | D51: 8454 | E51: 21 | F51: 8458 | K51: 0 | L51: 222
A52: 21 | B52: 8562 | C52: 21 | D52: 8574 | E52: 21 | F52: 8582 | K52: 0 | L52: 222
A53: 21 | B53: 8671 | C53: 21 | D53: 8675 | E53: 21 | F53: 8679 | K53: 0 | L53: 222
A54: 21 | B54: 8769 | C54: 21 | D54: 8777 | E54: 21 | F54: 8781 | K54: 0 | L54: 222
A55: 21 | B55: 8959 | C55: 21 | D55: 8961 | E55: 21 | F55: 8968 | K55: 0 | L55: 222
A56: 21 | B56: 9061 | C56: 21 | D56: 9067 | E56: 21 | F56: 9072 | K56: 0 | L56: 222
A57: 21 | B57: 9170 | C57: 21 | D57: 9195 | E57: 21 | F57: 9198 | K57: 0 | L57: 222
A58: 21 | B58: 9408 | C58: 21 | D58: 9414 | E58: 21 | F58: 9420 | K58: 0 | L58: 222
A59: 21 | B59: 9544 | C59: 21 | D59: 9551 | E59: 21 | F59: 9555 | K59: 0 | L59: 222
A60: 21 | B60: 9646 | C60: 21 | D60: 9650 | E60: 21 | F60: 9657 | K60: 1 | L60: 222

Sheet !N10995B.AXT
A1: Report for:!N10995B.AXT
A2: Date: | B2: <date>
A3: Hen: | B3: <hen> | F3: Correct Sequence | G3: =Start!J2 -> 222 | P3: Total Sequences in Data | Q3: =4994-COUNTBLANK(L7:L5000) -> 58 | V3: Total Sequences in Block Data | W3: =COUNTA(L7:L16) -> 10 | AA3: Total Sequences in Block Data | AB3: =COUNTA(L17:L25) -> 9 | AF3: Total Sequences in Block Data | AG3: =COUNTA(L26:L35) -> 10 | AK3: Total Sequences in Block Data | AL3: =COUNTA(L36:L45) -> 10 | AP3: Total Sequences in Block Data | AQ3: =COUNTA(L46:L54) -> 9 | AU3: Total Sequences in Block Data | AV3: =COUNTA(L55:L64) -> 10
P4: Total Sequences in Summary | Q4: =SUM(O7:O14) -> 58 | V4: Total Sequences in Block Summary | W4: =SUM(U7:U14) -> 10 | AA4: Total Sequences in Block Summary | AB4: =SUM(Z7:Z14) -> 9 | AF4: Total Sequences in Block Summary | AG4: =SUM(AE7:AE14) -> 10 | AK4: Total Sequences in Block Summary | AL4: =SUM(AJ7:AJ14) -> 10 | AP4: Total Sequences in Block Summary | AQ4: =SUM(AO7:AO14) -> 9 | AU4: Total Sequences in Block Summary | AV4: =SUM(AT7:AT14) -> 10
T5: Block 1 | Y5: Block 2 | AD5: Block 3 | AI5: Block 4 | AN5: Block 5 | AS5: Block 6
A6: Sequence Component 1 | B6: Time 1 | C6: Sequence Component 2 | D6: Time 2 | E6: Sequence Component 3 | F6: Time 3 | G6: Sequence Component 4 | H6: Time 4 | I6: Sequence Component 5 | J6: Time 5 | K6: Correct? 0=No 1=Yes | L6: Sequence | N6: Frequency | P6: Relative Frequency | Q6: Variability | T6: Frequency | V6: Relative Frequency | W6: Variability | Y6: Frequency | AA6: Relative Frequency | AB6: Variability | AD6: Frequency | AF6: Relative Frequency | AG6: Variability | AI6: Frequency | AK6: Relative Frequency | AL6: Variability | AN6: Frequency | AP6: Relative Frequency | AQ6: Variability | AS6: Frequency | AU6: Relative Frequency | AV6: Variability
A7: 21 | B7: 134 | C7: 21 | D7: 156 | E7: 21 | F7: 160 | K7: 0 | L7: 222 | N7: 111 | O7: =COUNTIF($L$7:$L$500,N7) -> 2 | P7: =O7/$Q$4 -> 0.03448275862 | Q7: =IF(P7=0,0,(P7*((LOG(P7))/LOG(2)))) -> -0.167516586 | T7: =N7 -> 111 | U7: =COUNTIF(L7:L16,T7) -> 0 | V7: =U7/(W4-U14) -> 0 | W7: =IF(V7=0,0,(V7*((LOG(V7))/LOG(2)))) -> 0 | Y7: =N7 -> 111 | Z7: =COUNTIF(L17:L25,Y7) -> 0 | AA7: =Z7/(AB4-Z14) -> 0 | AB7: =IF(AA7=0,0,(AA7*((LOG(AA7))/LOG(2)))) -> 0 | AD7: =N7 -> 111 | AE7: =COUNTIF(L26:L35,AD7) -> 0 | AF7: =AE7/(AG4-AE14) -> 0 | AG7: =IF(AF7=0,0,(AF7*((LOG(AF7))/LOG(2)))) -> 0 | AI7: =N7 -> 111 | AJ7: =COUNTIF(L36:L45,AI7) -> 2 | AK7: =AJ7/(AL4-AJ14) -> 0.3333333333 | AL7: =IF(AK7=0,0,(AK7*((LOG(AK7))/LOG(2)))) -> -0.5283208336 | AN7: =N7 -> 111 | AO7: =COUNTIF(L46:L54,AN7) -> 0 | AP7: =AO7/(AQ4-AO14) -> 0 | AQ7: =IF(AP7=0,0,(AP7*((LOG(AP7))/LOG(2)))) -> 0 | AS7: =N7 -> 111 | AT7: =COUNTIF(L55:L64,AS7) -> 0 | AU7: =AT7/(AV4-AT14) -> 0 | AV7: =IF(AU7=0,0,(AU7*((LOG(AU7))/LOG(2)))) -> 0
A8: 21 | B8: 383 | C8: 21 | D8: 396 | E8: 21 | F8: 398 | K8: 0 | L8: 222 | N8: 112 | O8: =COUNTIF($L$7:$L$500,N8) -> 0 | P8: =O8/$Q$4 -> 0 | Q8: =IF(P8=0,0,(P8*((LOG(P8))/LOG(2)))) -> 0 | T8: =N8 -> 112 | U8: =COUNTIF(L7:L16,T8) -> 0 | V8: =U8/(W4-U14) -> 0 | W8: =IF(V8=0,0,(V8*((LOG(V8))/LOG(2)))) -> 0 | Y8: =N8 -> 112 | Z8: =COUNTIF(L17:L25,Y8) -> 0 | AA8: =Z8/(AB4-Z14) -> 0 | AB8: =IF(AA8=0,0,(AA8*((LOG(AA8))/LOG(2)))) -> 0 | AD8: =N8 -> 112 | AE8: =COUNTIF(L26:L35,AD8) -> 0 | AF8: =AE8/(AG4-AE14) -> 0 | AG8: =IF(AF8=0,0,(AF8*((LOG(AF8))/LOG(2)))) -> 0 | AI8: =N8 -> 112 | AJ8: =COUNTIF(L36:L45,AI8) -> 0 | AK8: =AJ8/(AL4-AJ14) -> 0 | AL8: =IF(AK8=0,0,(AK8*((LOG(AK8))/LOG(2)))) -> 0 | AN8: =N8 -> 112 | AO8: =COUNTIF(L46:L54,AN8) -> 0 | AP8: =AO8/(AQ4-AO14) -> 0 | AQ8: =IF(AP8=0,0,(AP8*((LOG(AP8))/LOG(2)))) -> 0 | AS8: =N8 -> 112 | AT8: =COUNTIF(L55:L64,AS8) -> 0 | AU8: =AT8/(AV4-AT14) -> 0 | AV8: =IF(AU8=0,0,(AU8*((LOG(AU8))/LOG(2)))) -> 0
A9: 21 | B9: 579 | C9: 21 | D9: 588 | E9: 21 | F9: 591 | K9: 0 | L9: 222 | N9: 121 | O9: =COUNTIF($L$7:$L$500,N9) -> 4 | P9: =O9/$Q$4 -> 0.06896551724 | Q9: =IF(P9=0,0,(P9*((LOG(P9))/LOG(2)))) -> -0.2660676548 | T9: =N9 -> 121 | U9: =COUNTIF(L7:L16,T9) -> 0 | V9: =U9/(W4-U14) -> 0 | W9: =IF(V9=0,0,(V9*((LOG(V9))/LOG(2)))) -> 0 | Y9: =N9 -> 121 | Z9: =COUNTIF(L17:L25,Y9) -> 3 | AA9: =Z9/(AB4-Z14) -> 0.75 | AB9: =IF(AA9=0,0,(AA9*((LOG(AA9))/LOG(2)))) -> -0.3112781245 | AD9: =N9 -> 121 | AE9: =COUNTIF(L26:L35,AD9) -> 0 | AF9: =AE9/(AG4-AE14) -> 0 | AG9: =IF(AF9=0,0,(AF9*((LOG(AF9))/LOG(2)))) -> 0 | AI9: =N9 -> 121 | AJ9: =COUNTIF(L36:L45,AI9) -> 1 | AK9: =AJ9/(AL4-AJ14) -> 0.1666666667 | AL9: =IF(AK9=0,0,(AK9*((LOG(AK9))/LOG(2)))) -> -0.4308270835 | AN9: =N9 -> 121 | AO9: =COUNTIF(L46:L54,AN9) -> 0 | AP9: =AO9/(AQ4-AO14) -> 0 | AQ9: =IF(AP9=0,0,(AP9*((LOG(AP9))/LOG(2)))) -> 0 | AS9: =N9 -> 121 | AT9: =COUNTIF(L55:L64,AS9) -> 0 | AU9: =AT9/(AV4-AT14) -> 0 | AV9: =IF(AU9=0,0,(AU9*((LOG(AU9))/LOG(2)))) -> 0
A10: 21 | B10: 691 | C10: 21 | D10: 695 | E10: 12 | F10: 723 | K10: 0 | L10: 221 | N10: 122 | O10: =COUNTIF($L$7:$L$500,N10) -> 2 | P10: =O10/$Q$4 -> 0.03448275862 | Q10: =IF(P10=0,0,(P10*((LOG(P10))/LOG(2)))) -> -0.167516586 | T10: =N10 -> 122 | U10: =COUNTIF(L7:L16,T10) -> 1 | V10: =U10/(W4-U14) -> 0.5 | W10: =IF(V10=0,0,(V10*((LOG(V10))/LOG(2)))) -> -0.5 | Y10: =N10 -> 122 | Z10: =COUNTIF(L17:L25,Y10) -> 0 | AA10: =Z10/(AB4-Z14) -> 0 | AB10: =IF(AA10=0,0,(AA10*((LOG(AA10))/LOG(2)))) -> 0 | AD10: =N10 -> 122 | AE10: =COUNTIF(L26:L35,AD10) -> 1 | AF10: =AE10/(AG4-AE14) -> 0.25 | AG10: =IF(AF10=0,0,(AF10*((LOG(AF10))/LOG(2)))) -> -0.5 | AI10: =N10 -> 122 | AJ10: =COUNTIF(L36:L45,AI10) -> 0 | AK10: =AJ10/(AL4-AJ14) -> 0 | AL10: =IF(AK10=0,0,(AK10*((LOG(AK10))/LOG(2)))) -> 0 | AN10: =N10 -> 122 | AO10: =COUNTIF(L46:L54,AN10) -> 0 | AP10: =AO10/(AQ4-AO14) -> 0 | AQ10: =IF(AP10=0,0,(AP10*((LOG(AP10))/LOG(2)))) -> 0 | AS10: =N10 -> 122 | AT10: =COUNTIF(L55:L64,AS10) -> 0 | AU10: =AT10/(AV4-AT14) -> 0 | AV10: =IF(AU10=0,0,(AU10*((LOG(AU10))/LOG(2)))) -> 0
A11: 21 | B11: 872 | C11: 21 | D11: 879 | E11: 21 | F11: 889 | K11: 0 | L11: 222 | N11: 211 | O11: =COUNTIF($L$7:$L$500,N11) -> 1 | P11: =O11/$Q$4 -> 0.01724137931 | Q11: =IF(P11=0,0,(P11*((LOG(P11))/LOG(2)))) -> -0.1009996723 | T11: =N11 -> 211 | U11: =COUNTIF(L7:L16,T11) -> 0 | V11: =U11/(W4-U14) -> 0 | W11: =IF(V11=0,0,(V11*((LOG(V11))/LOG(2)))) -> 0 | Y11: =N11 -> 211 | Z11: =COUNTIF(L17:L25,Y11) -> 0 | AA11: =Z11/(AB4-Z14) -> 0 | AB11: =IF(AA11=0,0,(AA11*((LOG(AA11))/LOG(2)))) -> 0 | AD11: =N11 -> 211 | AE11: =COUNTIF(L26:L35,AD11) -> 0 | AF11: =AE11/(AG4-AE14) -> 0 | AG11: =IF(AF11=0,0,(AF11*((LOG(AF11))/LOG(2)))) -> 0 | AI11: =N11 -> 211 | AJ11: =COUNTIF(L36:L45,AI11) -> 1 | AK11: =AJ11/(AL4-AJ14) -> 0.1666666667 | AL11: =IF(AK11=0,0,(AK11*((LOG(AK11))/LOG(2)))) -> -0.4308270835 | AN11: =N11 -> 211 | AO11: =COUNTIF(L46:L54,AN11) -> 0 | AP11: =AO11/(AQ4-AO14) -> 0 | AQ11: =IF(AP11=0,0,(AP11*((LOG(AP11))/LOG(2)))) -> 0 | AS11: =N11 -> 211 | AT11: =COUNTIF(L55:L64,AS11) -> 0 | AU11: =AT11/(AV4-AT14) -> 0 | AV11: =IF(AU11=0,0,(AU11*((LOG(AU11))/LOG(2)))) -> 0
A12: 21 | B12: 1159 | C12: 21 | D12: 1163 | E12: 21 | F12: 1167 | K12: 0 | L12: 222 | N12: 212 | O12: =COUNTIF($L$7:$L$500,N12) -> 6 | P12: =O12/$Q$4 -> 0.1034482759 | Q12: =IF(P12=0,0,(P12*((LOG(P12))/LOG(2)))) -> -0.3385881201 | T12: =N12 -> 212 | U12: =COUNTIF(L7:L16,T12) -> 0 | V12: =U12/(W4-U14) -> 0 | W12: =IF(V12=0,0,(V12*((LOG(V12))/LOG(2)))) -> 0 | Y12: =N12 -> 212 | Z12: =COUNTIF(L17:L25,Y12) -> 0 | AA12: =Z12/(AB4-Z14) -> 0 | AB12: =IF(AA12=0,0,(AA12*((LOG(AA12))/LOG(2)))) -> 0 | AD12: =N12 -> 212 | AE12: =COUNTIF(L26:L35,AD12) -> 1 | AF12: =AE12/(AG4-AE14) -> 0.25 | AG12: =IF(AF12=0,0,(AF12*((LOG(AF12))/LOG(2)))) -> -0.5 | AI12: =N12 -> 212 | AJ12: =COUNTIF(L36:L45,AI12) -> 2 | AK12: =AJ12/(AL4-AJ14) -> 0.3333333333 | AL12: =IF(AK12=0,0,(AK12*((LOG(AK12))/LOG(2)))) -> -0.5283208336 | AN12: =N12 -> 212 | AO12: =COUNTIF(L46:L54,AN12) -> 1 | AP12: =AO12/(AQ4-AO14) -> 1 | AQ12: =IF(AP12=0,0,(AP12*((LOG(AP12))/LOG(2)))) -> 0 | AS12: =N12 -> 212 | AT12: =COUNTIF(L55:L64,AS12) -> 2 | AU12: =AT12/(AV4-AT14) -> 1 | AV12: =IF(AU12=0,0,(AU12*((LOG(AU12))/LOG(2)))) -> 0
A13: 12 | B13: 1255 | C13: 23 | D13: 1264 | E13: 23 | F13: 1275 | K13: 0 | L13: 122 | N13: 221 | O13: =COUNTIF($L$7:$L$500,N13) -> 4 | P13: =O13/$Q$4 -> 0.06896551724 | Q13: =IF(P13=0,0,(P13*((LOG(P13))/LOG(2)))) -> -0.2660676548 | T13: =N13 -> 221 | U13: =COUNTIF(L7:L16,T13) -> 1 | V13: =U13/(W4-U14) -> 0.5 | W13: =IF(V13=0,0,(V13*((LOG(V13))/LOG(2)))) -> -0.5 | Y13: =N13 -> 221 | Z13: =COUNTIF(L17:L25,Y13) -> 1 | AA13: =Z13/(AB4-Z14) -> 0.25 | AB13: =IF(AA13=0,0,(AA13*((LOG(AA13))/LOG(2)))) -> -0.5 | AD13: =N13 -> 221 | AE13: =COUNTIF(L26:L35,AD13) -> 2 | AF13: =AE13/(AG4-AE14) -> 0.5 | AG13: =IF(AF13=0,0,(AF13*((LOG(AF13))/LOG(2)))) -> -0.5 | AI13: =N13 -> 221 | AJ13: =COUNTIF(L36:L45,AI13) -> 0 | AK13: =AJ13/(AL4-AJ14) -> 0 | AL13: =IF(AK13=0,0,(AK13*((LOG(AK13))/LOG(2)))) -> 0 | AN13: =N13 -> 221 | AO13: =COUNTIF(L46:L54,AN13) -> 0 | AP13: =AO13/(AQ4-AO14) -> 0 | AQ13: =IF(AP13=0,0,(AP13*((LOG(AP13))/LOG(2)))) -> 0 | AS13: =N13 -> 221 | AT13: =COUNTIF(L55:L64,AS13) -> 0 | AU13: =AT13/(AV4-AT14) -> 0 | AV13: =IF(AU13=0,0,(AU13*((LOG(AU13))/LOG(2)))) -> 0
A14: 21 | B14: 1374 | C14: 21 | D14: 1380 | E14: 21 | F14: 1400 | K14: 0 | L14: 222 | N14: 222 | O14: =COUNTIF($L$7:$L$500,N14) -> 39 | P14: =O14/$Q$4 -> 0.6724137931 | Q14: =IF(P14=0,0,(P14*((LOG(P14))/LOG(2)))) -> -0.3850098668 | T14: =N14 -> 222 | U14: =COUNTIF(L7:L16,T14) -> 8 | Y14: =N14 -> 222 | Z14: =COUNTIF(L17:L25,Y14) -> 5 | AD14: =N14 -> 222 | AE14: =COUNTIF(L26:L35,AD14) -> 6 | AI14: =N14 -> 222 | AJ14: =COUNTIF(L36:L45,AI14) -> 4 | AN14: =N14 -> 222 | AO14: =COUNTIF(L46:L54,AN14) -> 8 | AS14: =N14 -> 222 | AT14: =COUNTIF(L55:L64,AS14) -> 8
A15: 21 | B15: 1679 | C15: 21 | D15: 1685 | E15: 21 | F15: 1687 | K15: 0 | L15: 222 | P15: =SUM(P7:P14) -> 1 | Q15: =-SUM(Q7:Q14) -> 1.691766141 | V15: =SUM(V7:V14) -> 1 | W15: =-SUM(W7:W14) -> 1 | AA15: =SUM(AA7:AA14) -> 1 | AB15: =-SUM(AB7:AB14) -> 0.8112781245 | AF15: =SUM(AF7:AF14) -> 1 | AG15: =-SUM(AG7:AG14) -> 1.5 | AK15: =SUM(AK7:AK14) -> 1 | AL15: =-SUM(AL7:AL14) -> 1.918295834 | AP15: =SUM(AP7:AP14) -> 1 | AQ15: =-SUM(AQ7:AQ14) -> 0 | AU15: =SUM(AU7:AU14) -> 1 | AV15: =-SUM(AV7:AV14) -> 0
A16: 21 | B16: 1795 | C16: 21 | D16: 1803 | E16: 21 | F16: 1806 | K16: 0 | L16: 222 | P16: U= | Q16: =Q15/(LOG(Q4)/LOG(2)) -> 0.2887967958 | V16: U1= | W16: =W15/(LOG(W4)/LOG(2)) -> 0.3010299957 | AA16: U2= | AB16: =AB15/(LOG(AB4)/LOG(2)) -> 0.2559297536 | AF16: U3= | AG16: =AG15/(LOG(AG4)/LOG(2)) -> 0.4515449935 | AK16: U4= | AL16: =AL15/(LOG(AL4)/LOG(2)) -> 0.5774645866 | AP16: U5= | AQ16: =AQ15/(LOG(AQ4)/LOG(2)) -> 0 | AU16: U6= | AV16: =AV15/(LOG(AV4)/LOG(2)) -> 0
A17: 21 | B17: 1975 | C17: 21 | D17: 1981 | E17: 12 | F17: 2041 | K17: 0 | L17: 221
A18: 12 | B18: 2141 | C18: 23 | D18: 2149 | E18: 14 | F18: 2156 | K18: 0 | L18: 121
A19: 21 | B19: 2385 | C19: 21 | D19: 2388 | E19: 21 | F19: 2392 | K19: 0 | L19: 222 | N19: Total Target Seq
A20: 21 | B20: 2505 | C20: 21 | D20: 2511 | E20: 21 | F20: 2540 | K20: 0 | L20: 222 | N20: =COUNTIF(L7:L64,G3) -> 39 | P20: 10 | Q20: 9 | R20: 10 | S20: 10 | T20: 9 | U20: 10
A21: 12 | B21: 2642 | C21: 23 | D21: 2654 | E21: 14 | F21: 2660 | K21: 0 | L21: 121 | P21: % of reinforcement given in 6 equal intervals based on number of trials
A22: 21 | B22: 2818 | C22: 21 | D22: 2822 | E22: 21 | F22: 2843 | K22: 0 | L22: 222 | P22: %_1 | Q22: %_2 | R22: %_3 | S22: %_4 | T22: %_5 | U22: %_6
A23: 21 | B23: 2950 | C23: 21 | D23: 2954 | E23: 21 | F23: 2958 | K23: 0 | L23: 222 | O23: target sequence | P23: =$G$3 -> 222 | Q23: =$G$3 -> 222 | R23: =$G$3 -> 222 | S23: =$G$3 -> 222 | T23: =$G$3 -> 222 | U23: =$G$3 -> 222
A24: 21 | B24: 3158 | C24: 21 | D24: 3164 | E24: 21 | F24: 3168 | K24: 0 | L24: 222 | O24: total reinforcement | P24: =U14 -> 8 | Q24: =Z14 -> 5 | R24: =AE14 -> 6 | S24: =AJ14 -> 4 | T24: =AO14 -> 8 | U24: =AT14 -> 8
A25: 12 | B25: 3512 | C25: 23 | D25: 3524 | E25: 14 | F25: 3528 | K25: 0 | L25: 121 | O25: % target
A26: 21 | B26: 3644 | C26: 21 | D26: 3648 | E26: 21 | F26: 3654 | K26: 0 | L26: 222 | O26: CCRF
A27: 21 | B27: 3747 | C27: 12 | D27: 3756 | E27: 23 | F27: 3773 | K27: 0 | L27: 212 | O27: % CCRf
A28: 21 | B28: 3972 | C28: 21 | D28: 3978 | E28: 12 | F28: 3984 | K28: 0 | L28: 221 | O28: average response rate | P28: =F16/P20 -> 180.6 | Q28: =(F25-F16)/Q20 -> 191.3333333 | R28: =(F35-F25)/R20 -> 167 | S28: =(F45-F35)/S20 -> 162.7 | T28: =(F54-F45)/T20 -> 153.8888889 | U28: =(F64-F54)/U20 -> 144.5
A29: 21 | B29: 4083 | C29: 21 | D29: 4091 | E29: 21 | F29: 4096 | K29: 0 | L29: 222
A30: 21 | B30: 4324 | C30: 21 | D30: 4327 | E30: 21 | F30: 4331 | K30: 0 | L30: 222
A31: 21 | B31: 4424 | C31: 21 | D31: 4431 | E31: 21 | F31: 4442 | K31: 0 | L31: 222
A32: 21 | B32: 4640 | C32: 21 | D32: 4644 | E32: 21 | F32: 4650 | K32: 0 | L32: 222
A33: 21 | B33: 4831 | C33: 21 | D33: 4848 | E33: 21 | F33: 4852 | K33: 0 | L33: 222
A34: 21 | B34: 5058 | C34: 21 | D34: 5074 | E34: 12 | F34: 5078 | K34: 0 | L34: 221
A35: 12 | B35: 5172 | C35: 23 | D35: 5181 | E35: 23 | F35: 5198 | K35: 0 | L35: 122
A36: 21 | B36: 5309 | C36: 12 | D36: 5310 | E36: 23 | F36: 5325 | K36: 0 | L36: 212
A37: 12 | B37: 5427 | C37: 23 | D37: 5430 | E37: 14 | F37: 5441 | K37: 0 | L37: 121
A38: 21 | B38: 5692 | C38: 12 | D38: 5696 | E38: 14 | F38: 5704 | K38: 0 | L38: 211
A39: 21 | B39: 5799 | C39: 21 | D39: 5812 | E39: 21 | F39: 5820 | K39: 0 | L39: 222
A40: 21 | B40: 5914 | C40: 12 | D40: 5935 | E40: 23 | F40: 5949 | K40: 0 | L40: 212
A41: 12 | B41: 6041 | C41: 14 | D41: 6051 | E41: 14 | F41: 6066 | K41: 0 | L41: 111
A42: 12 | B42: 6256 | C42: 14 | D42: 6268 | E42: 14 | F42: 6273 | K42: 0 | L42: 111
A43: 21 | B43: 6375 | C43: 21 | D43: 6383 | E43: 21 | F43: 6389 | K43: 0 | L43: 222
A44: 21 | B44: 6587 | C44: 21 | D44: 6591 | E44: 21 | F44: 6639 | K44: 0 | L44: 222
A45: 21 | B45: 6795 | C45: 21 | D45: 6819 | E45: 21 | F45: 6825 | K45: 0 | L45: 222
A46: 21 | B46: 6947 | C46: 21 | D46: 6954 | E46: 21 | F46: 6995 | K46: 0 | L46: 222
A47: 21 | B47: 7142 | C47: 21 | D47: 7147 | E47: 21 | F47: 7155 | K47: 0 | L47: 222
A48: 21 | B48: 7376 | C48: 21 | D48: 7383 | E48: 21 | F48: 7389 | K48: 0 | L48: 222
A49: 21 | B49: 7493 | C49: 21 | D49: 7500 | E49: 21 | F49: 7507 | K49: 0 | L49: 222
A50: 21 | B50: 7708 | C50: 21 | D50: 7712 | E50: 21 | F50: 7716 | K50: 0 | L50: 222
A51: 21 | B51: 7814 | C51: 21 | D51: 7821 | E51: 21 | F51: 7824 | K51: 0 | L51: 222
A52: 21 | B52: 7915 | C52: 12 | D52: 7917 | E52: 23 | F52: 7930 | K52: 0 | L52: 212
A53: 21 | B53: 8024 | C53: 21 | D53: 8028 | E53: 21 | F53: 8032 | K53: 0 | L53: 222
A54: 21 | B54: 8188 | C54: 21 | D54: 8207 | E54: 21 | F54: 8210 | K54: 0 | L54: 222
A55: 21 | B55: 8316 | C55: 12 | D55: 8331 | E55: 23 | F55: 8336 | K55: 0 | L55: 212
A56: 21 | B56: 8468 | C56: 21 | D56: 8471 | E56: 21 | F56: 8476 | K56: 0 | L56: 222
A57: 21 | B57: 8617 | C57: 21 | D57: 8624 | E57: 21 | F57: 8629 | K57: 0 | L57: 222
A58: 21 | B58: 8821 | C58: 21 | D58: 8826 | E58: 21 | F58: 8832 | K58: 0 | L58: 222
A59: 21 | B59: 8940 | C59: 12 | D59: 8949 | E59: 23 | F59: 8954 | K59: 0 | L59: 212
A60: 21 | B60: 9119 | C60: 21 | D60: 9126 | E60: 21 | F60: 9133 | K60: 0 | L60: 222
A61: 21 | B61: 9220 | C61: 21 | D61: 9229 | E61: 21 | F61: 9247 | K61: 0 | L61: 222
A62: 21 | B62: 9394 | C62: 21 | D62: 9399 | E62: 21 | F62: 9406 | K62: 0 | L62: 222
A63: 21 | B63: 9499 | C63: 21 | D63: 9513 | E63: 21 | F63: 9516 | K63: 0 | L63: 222
A64: 21 | B64: 9609 | C64: 21 | D64: 9642 | E64: 21 | F64: 9655 | K64: 1 | L64: 222

Sheet !N110A1B.AXT
A1: Report for:!N110A1B.AXT
A2: Date: | B2: <date>
A3: Hen: | B3: <hen> | F3: Correct Sequence | G3: =Start!J2 -> 222 | P3: Total Sequences in Data | Q3: =4994-COUNTBLANK(L7:L5000) -> 42 | V3: Total Sequences in Block Data | W3: =COUNTA(L7:L13) -> 7 | AA3: Total Sequences in Block Data | AB3: =COUNTA(L14:L20) -> 7 | AF3: Total Sequences in Block Data | AG3: =COUNTA(L21:L27) -> 7 | AK3: Total Sequences in Block Data | AL3: =COUNTA(L28:L34) -> 7 | AP3: Total Sequences in Block Data | AQ3: =COUNTA(L35:L41) -> 7 | AU3: Total Sequences in Block Data | AV3: =COUNTA(L42:L48) -> 7
P4: Total Sequences in Summary | Q4: =SUM(O7:O14) -> 42 | V4: Total Sequences in Block Summary | W4: =SUM(U7:U14) -> 7 | AA4: Total Sequences in Block Summary | AB4: =SUM(Z7:Z14) -> 7 | AF4: Total Sequences in Block Summary | AG4: =SUM(AE7:AE14) -> 7 | AK4: Total Sequences in Block Summary | AL4: =SUM(AJ7:AJ14) -> 7 | AP4: Total Sequences in Block Summary | AQ4: =SUM(AO7:AO14) -> 7 | AU4: Total Sequences in Block Summary | AV4: =SUM(AT7:AT14) -> 7
T5: Block 1 | Y5: Block 2 | AD5: Block 3 | AI5: Block 4 | AN5: Block 5 | AS5: Block 6
A6: Sequence Component 1 | B6: Time 1 | C6: Sequence Component 2 | D6: Time 2 | E6: Sequence Component 3 | F6: Time 3 | G6: Sequence Component 4 | H6: Time 4 | I6: Sequence Component 5 | J6: Time 5 | K6: Correct? 0=No 1=Yes | L6: Sequence | N6: Frequency | P6: Relative Frequency | Q6: Variability | T6: Frequency | V6: Relative Frequency | W6: Variability | Y6: Frequency | AA6: Relative Frequency | AB6: Variability | AD6: Frequency | AF6: Relative Frequency | AG6: Variability | AI6: Frequency | AK6: Relative Frequency | AL6: Variability | AN6: Frequency | AP6: Relative Frequency | AQ6: Variability | AS6: Frequency | AU6: Relative Frequency | AV6: Variability
A7: 21 | B7: 18 | C7: 21 | D7: 22 | E7: 21 | F7: 26 | K7: 0 | L7: 222 | N7: 111 | O7: =COUNTIF($L$7:$L$500,N7) -> 0 | P7: =O7/$Q$4 -> 0 | Q7: =IF(P7=0,0,(P7*((LOG(P7))/LOG(2)))) -> 0 | T7: =N7 -> 111 | U7: =COUNTIF(L7:L13,T7) -> 0 | V7: =U7/(W4-U14) ->  | W7: =IF(V7=0,0,(V7*((LOG(V7))/LOG(2)))) ->  | Y7: =N7 -> 111 | Z7: =COUNTIF(L14:L20,Y7) -> 0 | AA7: =Z7/(AB4-Z14) -> 0 | AB7: =IF(AA7=0,0,(AA7*((LOG(AA7))/LOG(2)))) -> 0 | AD7: =N7 -> 111 | AE7: =COUNTIF(L21:L27,AD7) -> 0 | AF7: =AE7/(AG4-AE14) -> 0 | AG7: =IF(AF7=0,0,(AF7*((LOG(AF7))/LOG(2)))) -> 0 | AI7: =N7 -> 111 | AJ7: =COUNTIF(L28:L34,AI7) -> 0 | AK7: =AJ7/(AL4-AJ14) ->  | AL7: =IF(AK7=0,0,(AK7*((LOG(AK7))/LOG(2)))) ->  | AN7: =N7 -> 111 | AO7: =COUNTIF(L35:L41,AN7) -> 0 | AP7: =AO7/(AQ4-AO14) ->  | AQ7: =IF(AP7=0,0,(AP7*((LOG(AP7))/LOG(2)))) ->  | AS7: =N7 -> 111 | AT7: =COUNTIF(L42:L48,AS7) -> 0 | AU7: =AT7/(AV4-AT14) -> 0 | AV7: =IF(AU7=0,0,(AU7*((LOG(AU7))/LOG(2)))) -> 0
A8: 21 | B8: 120 | C8: 21 | D8: 127 | E8: 21 | F8: 133 | K8: 0 | L8: 222 | N8: 112 | O8: =COUNTIF($L$7:$L$500,N8) -> 0 | P8: =O8/$Q$4 -> 0 | Q8: =IF(P8=0,0,(P8*((LOG(P8))/LOG(2)))) -> 0 | T8: =N8 -> 112 | U8: =COUNTIF(L7:L13,T8) -> 0 | V8: =U8/(W4-U14) ->  | W8: =IF(V8=0,0,(V8*((LOG(V8))/LOG(2)))) ->  | Y8: =N8 -> 112 | Z8: =COUNTIF(L14:L20,Y8) -> 0 | AA8: =Z8/(AB4-Z14) -> 0 | AB8: =IF(AA8=0,0,(AA8*((LOG(AA8))/LOG(2)))) -> 0 | AD8: =N8 -> 112 | AE8: =COUNTIF(L21:L27,AD8) -> 0 | AF8: =AE8/(AG4-AE14) -> 0 | AG8: =IF(AF8=0,0,(AF8*((LOG(AF8))/LOG(2)))) -> 0 | AI8: =N8 -> 112 | AJ8: =COUNTIF(L28:L34,AI8) -> 0 | AK8: =AJ8/(AL4-AJ14) ->  | AL8: =IF(AK8=0,0,(AK8*((LOG(AK8))/LOG(2)))) ->  | AN8: =N8 -> 112 | AO8: =COUNTIF(L35:L41,AN8) -> 0 | AP8: =AO8/(AQ4-AO14) ->  | AQ8: =IF(AP8=0,0,(AP8*((LOG(AP8))/LOG(2)))) ->  | AS8: =N8 -> 112 | AT8: =COUNTIF(L42:L48,AS8) -> 0 | AU8: =AT8/(AV4-AT14) -> 0 | AV8: =IF(AU8=0,0,(AU8*((LOG(AU8))/LOG(2)))) -> 0
A9: 21 | B9: 249 | C9: 21 | D9: 255 | E9: 21 | F9: 277 | K9: 0 | L9: 222 | N9: 121 | O9: =COUNTIF($L$7:$L$500,N9) -> 0 | P9: =O9/$Q$4 -> 0 | Q9: =IF(P9=0,0,(P9*((LOG(P9))/LOG(2)))) -> 0 | T9: =N9 -> 121 | U9: =COUNTIF(L7:L13,T9) -> 0 | V9: =U9/(W4-U14) ->  | W9: =IF(V9=0,0,(V9*((LOG(V9))/LOG(2)))) ->  | Y9: =N9 -> 121 | Z9: =COUNTIF(L14:L20,Y9) -> 0 | AA9: =Z9/(AB4-Z14) -> 0 | AB9: =IF(AA9=0,0,(AA9*((LOG(AA9))/LOG(2)))) -> 0 | AD9: =N9 -> 121 | AE9: =COUNTIF(L21:L27,AD9) -> 0 | AF9: =AE9/(AG4-AE14) -> 0 | AG9: =IF(AF9=0,0,(AF9*((LOG(AF9))/LOG(2)))) -> 0 | AI9: =N9 -> 121 | AJ9: =COUNTIF(L28:L34,AI9) -> 0 | AK9: =AJ9/(AL4-AJ14) ->  | AL9: =IF(AK9=0,0,(AK9*((LOG(AK9))/LOG(2)))) ->  | AN9: =N9 -> 121 | AO9: =COUNTIF(L35:L41,AN9) -> 0 | AP9: =AO9/(AQ4-AO14) ->  | AQ9: =IF(AP9=0,0,(AP9*((LOG(AP9))/LOG(2)))) ->  | AS9: =N9 -> 121 | AT9: =COUNTIF(L42:L48,AS9) -> 0 | AU9: =AT9/(AV4-AT14) -> 0 | AV9: =IF(AU9=0,0,(AU9*((LOG(AU9))/LOG(2)))) -> 0
A10: 21 | B10: 370 | C10: 21 | D10: 375 | E10: 21 | F10: 409 | K10: 0 | L10: 222 | N10: 122 | O10: =COUNTIF($L$7:$L$500,N10) -> 1 | P10: =O10/$Q$4 -> 0.02380952381 | Q10: =IF(P10=0,0,(P10*((LOG(P10))/LOG(2)))) -> -0.1283885101 | T10: =N10 -> 122 | U10: =COUNTIF(L7:L13,T10) -> 0 | V10: =U10/(W4-U14) ->  | W10: =IF(V10=0,0,(V10*((LOG(V10))/LOG(2)))) ->  | Y10: =N10 -> 122 | Z10: =COUNTIF(L14:L20,Y10) -> 1 | AA10: =Z10/(AB4-Z14) -> 1 | AB10: =IF(AA10=0,0,(AA10*((LOG(AA10))/LOG(2)))) -> 0 | AD10: =N10 -> 122 | AE10: =COUNTIF(L21:L27,AD10) -> 0 | AF10: =AE10/(AG4-AE14) -> 0 | AG10: =IF(AF10=0,0,(AF10*((LOG(AF10))/LOG(2)))) -> 0 | AI10: =N10 -> 122 | AJ10: =COUNTIF(L28:L34,AI10) -> 0 | AK10: =AJ10/(AL4-AJ14) ->  | AL10: =IF(AK10=0,0,(AK10*((LOG(AK10))/LOG(2)))) ->  | AN10: =N10 -> 122 | AO10: =COUNTIF(L35:L41,AN10) -> 0 | AP10: =AO10/(AQ4-AO14) ->  | AQ10: =IF(AP10=0,0,(AP10*((LOG(AP10))/LOG(2)))) ->  | AS10: =N10 -> 122 | AT10: =COUNTIF(L42:L48,AS10) -> 0 | AU10: =AT10/(AV4-AT14) -> 0 | AV10: =IF(AU10=0,0,(AU10*((LOG(AU10))/LOG(2)))) -> 0
A11: 21 | B11: 503 | C11: 21 | D11: 508 | E11: 21 | F11: 510 | K11: 0 | L11: 222 | N11: 211 | O11: =COUNTIF($L$7:$L$500,N11) -> 1 | P11: =O11/$Q$4 -> 0.02380952381 | Q11: =IF(P11=0,0,(P11*((LOG(P11))/LOG(2)))) -> -0.1283885101 | T11: =N11 -> 211 | U11: =COUNTIF(L7:L13,T11) -> 0 | V11: =U11/(W4-U14) ->  | W11: =IF(V11=0,0,(V11*((LOG(V11))/LOG(2)))) ->  | Y11: =N11 -> 211 | Z11: =COUNTIF(L14:L20,Y11) -> 0 | AA11: =Z11/(AB4-Z14) -> 0 | AB11: =IF(AA11=0,0,(AA11*((LOG(AA11))/LOG(2)))) -> 0 | AD11: =N11 -> 211 | AE11: =COUNTIF(L21:L27,AD11) -> 0 | AF11: =AE11/(AG4-AE14) -> 0 | AG11: =IF(AF11=0,0,(AF11*((LOG(AF11))/LOG(2)))) -> 0 | AI11: =N11 -> 211 | AJ11: =COUNTIF(L28:L34,AI11) -> 0 | AK11: =AJ11/(AL4-AJ14) ->  | AL11: =IF(AK11=0,0,(AK11*((LOG(AK11))/LOG(2)))) ->  | AN11: =N11 -> 211 | AO11: =COUNTIF(L35:L41,AN11) -> 0 | AP11: =AO11/(AQ4-AO14) ->  | AQ11: =IF(AP11=0,0,(AP11*((LOG(AP11))/LOG(2)))) ->  | AS11: =N11 -> 211 | AT11: =COUNTIF(L42:L48,AS11) -> 1 | AU11: =AT11/(AV4-AT14) -> 1 | AV11: =IF(AU11=0,0,(AU11*((LOG(AU11))/LOG(2)))) -> 0
A12: 21 | B12: 666 | C12: 21 | D12: 684 | E12: 21 | F12: 687 | K12: 0 | L12: 222 | N12: 212 | O12: =COUNTIF($L$7:$L$500,N12) -> 1 | P12: =O12/$Q$4 -> 0.02380952381 | Q12: =IF(P12=0,0,(P12*((LOG(P12))/LOG(2)))) -> -0.1283885101 | T12: =N12 -> 212 | U12: =COUNTIF(L7:L13,T12) -> 0 | V12: =U12/(W4-U14) ->  | W12: =IF(V12=0,0,(V12*((LOG(V12))/LOG(2)))) ->  | Y12: =N12 -> 212 | Z12: =COUNTIF(L14:L20,Y12) -> 0 | AA12: =Z12/(AB4-Z14) -> 0 | AB12: =IF(AA12=0,0,(AA12*((LOG(AA12))/LOG(2)))) -> 0 | AD12: =N12 -> 212 | AE12: =COUNTIF(L21:L27,AD12) -> 1 | AF12: =AE12/(AG4-AE14) -> 1 | AG12: =IF(AF12=0,0,(AF12*((LOG(AF12))/LOG(2)))) -> 0 | AI12: =N12 -> 212 | AJ12: =COUNTIF(L28:L34,AI12) -> 0 | AK12: =AJ12/(AL4-AJ14) ->  | AL12: =IF(AK12=0,0,(AK12*((LOG(AK12))/LOG(2)))) ->  | AN12: =N12 -> 212 | AO12: =COUNTIF(L35:L41,AN12) -> 0 | AP12: =AO12/(AQ4-AO14) ->  | AQ12: =IF(AP12=0,0,(AP12*((LOG(AP12))/LOG(2)))) ->  | AS12: =N12 -> 212 | AT12: =COUNTIF(L42:L48,AS12) -> 0 | AU12: =AT12/(AV4-AT14) -> 0 | AV12: =IF(AU12=0,0,(AU12*((LOG(AU12))/LOG(2)))) -> 0
A13: 21 | B13: 816 | C13: 21 | D13: 818 | E13: 21 | F13: 823 | K13: 0 | L13: 222 | N13: 221 | O13: =COUNTIF($L$7:$L$500,N13) -> 0 | P13: =O13/$Q$4 -> 0 | Q13: =IF(P13=0,0,(P13*((LOG(P13))/LOG(2)))) -> 0 | T13: =N13 -> 221 | U13: =COUNTIF(L7:L13,T13) -> 0 | V13: =U13/(W4-U14) ->  | W13: =IF(V13=0,0,(V13*((LOG(V13))/LOG(2)))) ->  | Y13: =N13 -> 221 | Z13: =COUNTIF(L14:L20,Y13) -> 0 | AA13: =Z13/(AB4-Z14) -> 0 | AB13: =IF(AA13=0,0,(AA13*((LOG(AA13))/LOG(2)))) -> 0 | AD13: =N13 -> 221 | AE13: =COUNTIF(L21:L27,AD13) -> 0 | AF13: =AE13/(AG4-AE14) -> 0 | AG13: =IF(AF13=0,0,(AF13*((LOG(AF13))/LOG(2)))) -> 0 | AI13: =N13 -> 221 | AJ13: =COUNTIF(L28:L34,AI13) -> 0 | AK13: =AJ13/(AL4-AJ14) ->  | AL13: =IF(AK13=0,0,(AK13*((LOG(AK13))/LOG(2)))) ->  | AN13: =N13 -> 221 | AO13: =COUNTIF(L35:L41,AN13) -> 0 | AP13: =AO13/(AQ4-AO14) ->  | AQ13: =IF(AP13=0,0,(AP13*((LOG(AP13))/LOG(2)))) ->  | AS13: =N13 -> 221 | AT13: =COUNTIF(L42:L48,AS13) -> 0 | AU13: =AT13/(AV4-AT14) -> 0 | AV13: =IF(AU13=0,0,(AU13*((LOG(AU13))/LOG(2)))) -> 0
A14: 21 | B14: 922 | C14: 21 | D14: 932 | E14: 21 | F14: 936 | K14: 0 | L14: 222 | N14: 222 | O14: =COUNTIF($L$7:$L$500,N14) -> 39 | P14: =O14/$Q$4 -> 0.9285714286 | Q14: =IF(P14=0,0,(P14*((LOG(P14))/LOG(2)))) -> -0.09927840364 | T14: =N14 -> 222 | U14: =COUNTIF(L7:L13,T14) -> 7 | Y14: =N14 -> 222 | Z14: =COUNTIF(L14:L20,Y14) -> 6 | AD14: =N14 -> 222 | AE14: =COUNTIF(L21:L27,AD14) -> 6 | AI14: =N14 -> 222 | AJ14: =COUNTIF(L28:L34,AI14) -> 7 | AN14: =N14 -> 222 | AO14: =COUNTIF(L35:L41,AN14) -> 7 | AS14: =N14 -> 222 | AT14: =COUNTIF(L42:L48,AS14) -> 6
A15: 12 | B15: 1038 | C15: 23 | D15: 1077 | E15: 23 | F15: 1092 | K15: 0 | L15: 122 | P15: =SUM(P7:P14) -> 1 | Q15: =-SUM(Q7:Q14) -> 0.4844439338 | V15: =SUM(V7:V14) ->  | W15: =-SUM(W7:W14) ->  | AA15: =SUM(AA7:AA14) -> 1 | AB15: =-SUM(AB7:AB14) -> 0 | AF15: =SUM(AF7:AF14) -> 1 | AG15: =-SUM(AG7:AG14) -> 0 | AK15: =SUM(AK7:AK14) ->  | AL15: =-SUM(AL7:AL14) ->  | AP15: =SUM(AP7:AP14) ->  | AQ15: =-SUM(AQ7:AQ14) ->  | AU15: =SUM(AU7:AU14) -> 1 | AV15: =-SUM(AV7:AV14) -> 0
A16: 21 | B16: 1318 | C16: 21 | D16: 1328 | E16: 21 | F16: 1333 | K16: 0 | L16: 222 | P16: U= | Q16: =Q15/(LOG(Q4)/LOG(2)) -> 0.08983965443 | V16: U1= | W16: =W15/(LOG(W4)/LOG(2)) ->  | AA16: U2= | AB16: =AB15/(LOG(AB4)/LOG(2)) -> 0 | AF16: U3= | AG16: =AG15/(LOG(AG4)/LOG(2)) -> 0 | AK16: U4= | AL16: =AL15/(LOG(AL4)/LOG(2)) ->  | AP16: U5= | AQ16: =AQ15/(LOG(AQ4)/LOG(2)) ->  | AU16: U6= | AV16: =AV15/(LOG(AV4)/LOG(2)) -> 0
A17: 21 | B17: 1457 | C17: 21 | D17: 1465 | E17: 21 | F17: 1470 | K17: 0 | L17: 222
A18: 21 | B18: 1657 | C18: 21 | D18: 1665 | E18: 21 | F18: 1671 | K18: 0 | L18: 222
A19: 21 | B19: 1791 | C19: 21 | D19: 1801 | E19: 21 | F19: 1808 | K19: 0 | L19: 222 | N19: Total Target Seq
A20: 21 | B20: 1937 | C20: 21 | D20: 1946 | E20: 21 | F20: 1953 | K20: 0 | L20: 222 | N20: =COUNTIF(L7:L48,G3) -> 39 | P20: 7 | Q20: 7 | R20: 7 | S20: 7 | T20: 7 | U20: 7
A21: 21 | B21: 2164 | C21: 21 | D21: 2171 | E21: 21 | F21: 2174 | K21: 0 | L21: 222 | P21: % of reinforcement given in 6 equal intervals based on number of trials
A22: 21 | B22: 2277 | C22: 12 | D22: 2283 | E22: 23 | F22: 2319 | K22: 0 | L22: 212 | P22: %_1 | Q22: %_2 | R22: %_3 | S22: %_4 | T22: %_5 | U22: %_6
A23: 21 | B23: 2418 | C23: 21 | D23: 2420 | E23: 21 | F23: 2429 | K23: 0 | L23: 222 | O23: target sequence | P23: =$G$3 -> 222 | Q23: =$G$3 -> 222 | R23: =$G$3 -> 222 | S23: =$G$3 -> 222 | T23: =$G$3 -> 222 | U23: =$G$3 -> 222
A24: 21 | B24: 2520 | C24: 21 | D24: 2523 | E24: 21 | F24: 2530 | K24: 0 | L24: 222 | O24: total reinforcement | P24: =U14 -> 7 | Q24: =Z14 -> 6 | R24: =AE14 -> 6 | S24: =AJ14 -> 7 | T24: =AO14 -> 7 | U24: =AT14 -> 6
A25: 21 | B25: 2748 | C25: 21 | D25: 2754 | E25: 21 | F25: 2763 | K25: 0 | L25: 222 | O25: % target
A26: 21 | B26: 2905 | C26: 21 | D26: 2912 | E26: 21 | F26: 2921 | K26: 0 | L26: 222 | O26: CCRF
A27: 21 | B27: 3036 | C27: 21 | D27: 3042 | E27: 21 | F27: 3051 | K27: 0 | L27: 222 | O27: % CCRf
A28: 21 | B28: 3153 | C28: 21 | D28: 3160 | E28: 21 | F28: 3168 | K28: 0 | L28: 222 | O28: average response rate | P28: =F13/P20 -> 117.5714286 | Q28: =(F20-F13)/Q20 -> 161.4285714 | R28: =(F27-F20)/R20 -> 156.8571429 | S28: =(F34-F27)/S20 -> 165.4285714 | T28: =(F41-F34)/T20 -> 143.2857143 | U28: =(F48-F41)/U20 -> 149.5714286
A29: 21 | B29: 3296 | C29: 21 | D29: 3303 | E29: 21 | F29: 3308 | K29: 0 | L29: 222
A30: 21 | B30: 3495 | C30: 21 | D30: 3508 | E30: 21 | F30: 3517 | K30: 0 | L30: 222
A31: 21 | B31: 3606 | C31: 21 | D31: 3609 | E31: 21 | F31: 3613 | K31: 0 | L31: 222
A32: 21 | B32: 3786 | C32: 21 | D32: 3791 | E32: 21 | F32: 3816 | K32: 0 | L32: 222
A33: 21 | B33: 4004 | C33: 21 | D33: 4012 | E33: 21 | F33: 4065 | K33: 0 | L33: 222
A34: 21 | B34: 4182 | C34: 21 | D34: 4191 | E34: 21 | F34: 4209 | K34: 0 | L34: 222
A35: 21 | B35: 4378 | C35: 21 | D35: 4384 | E35: 21 | F35: 4392 | K35: 0 | L35: 222
A36: 21 | B36: 4519 | C36: 21 | D36: 4528 | E36: 21 | F36: 4540 | K36: 0 | L36: 222
A37: 21 | B37: 4634 | C37: 21 | D37: 4649 | E37: 21 | F37: 4660 | K37: 0 | L37: 222
A38: 21 | B38: 4768 | C38: 21 | D38: 4774 | E38: 21 | F38: 4778 | K38: 0 | L38: 222
A39: 21 | B39: 4957 | C39: 21 | D39: 4963 | E39: 21 | F39: 5015 | K39: 0 | L39: 222
A40: 21 | B40: 5102 | C40: 21 | D40: 5107 | E40: 21 | F40: 5111 | K40: 0 | L40: 222
A41: 21 | B41: 5198 | C41: 21 | D41: 5208 | E41: 21 | F41: 5212 | K41: 0 | L41: 222
A42: 21 | B42: 5312 | C42: 21 | D42: 5316 | E42: 21 | F42: 5319 | K42: 0 | L42: 222
A43: 21 | B43: 5417 | C43: 21 | D43: 5422 | E43: 21 | F43: 5433 | K43: 0 | L43: 222
A44: 21 | B44: 5522 | C44: 21 | D44: 5526 | E44: 21 | F44: 5530 | K44: 0 | L44: 222
A45: 21 | B45: 5624 | C45: 21 | D45: 5632 | E45: 21 | F45: 5636 | K45: 0 | L45: 222
A46: 21 | B46: 5730 | C46: 12 | D46: 5736 | E46: 14 | F46: 5748 | K46: 0 | L46: 211
A47: 21 | B47: 6126 | C47: 21 | D47: 6130 | E47: 21 | F47: 6136 | K47: 0 | L47: 222
A48: 21 | B48: 6249 | C48: 21 | D48: 6254 | E48: 21 | F48: 6259 | K48: 1 | L48: 222

Sheet !N111A2B.AXT
A1: Report for:!N111A2B.AXT
A2: Date: | B2: <date>
A3: Hen: | B3: <hen> | F3: Correct Sequence | G3: =Start!J2 -> 222 | P3: Total Sequences in Data | Q3: =4994-COUNTBLANK(L7:L5000) -> 53 | V3: Total Sequences in Block Data | W3: =COUNTA(L7:L15) -> 9 | AA3: Total Sequences in Block Data | AB3: =COUNTA(L16:L24) -> 9 | AF3: Total Sequences in Block Data | AG3: =COUNTA(L25:L32) -> 8 | AK3: Total Sequences in Block Data | AL3: =COUNTA(L33:L41) -> 9 | AP3: Total Sequences in Block Data | AQ3: =COUNTA(L42:L50) -> 9 | AU3: Total Sequences in Block Data | AV3: =COUNTA(L51:L59) -> 9
P4: Total Sequences in Summary | Q4: =SUM(O7:O14) -> 53 | V4: Total Sequences in Block Summary | W4: =SUM(U7:U14) -> 9 | AA4: Total Sequences in Block Summary | AB4: =SUM(Z7:Z14) -> 9 | AF4: Total Sequences in Block Summary | AG4: =SUM(AE7:AE14) -> 8 | AK4: Total Sequences in Block Summary | AL4: =SUM(AJ7:AJ14) -> 9 | AP4: Total Sequences in Block Summary | AQ4: =SUM(AO7:AO14) -> 9 | AU4: Total Sequences in Block Summary | AV4: =SUM(AT7:AT14) -> 9
T5: Block 1 | Y5: Block 2 | AD5: Block 3 | AI5: Block 4 | AN5: Block 5 | AS5: Block 6
A6: Sequence Component 1 | B6: Time 1 | C6: Sequence Component 2 | D6: Time 2 | E6: Sequence Component 3 | F6: Time 3 | G6: Sequence Component 4 | H6: Time 4 | I6: Sequence Component 5 | J6: Time 5 | K6: Correct? 0=No 1=Yes | L6: Sequence | N6: Frequency | P6: Relative Frequency | Q6: Variability | T6: Frequency | V6: Relative Frequency | W6: Variability | Y6: Frequency | AA6: Relative Frequency | AB6: Variability | AD6: Frequency | AF6: Relative Frequency | AG6: Variability | AI6: Frequency | AK6: Relative Frequency | AL6: Variability | AN6: Frequency | AP6: Relative Frequency | AQ6: Variability | AS6: Frequency | AU6: Relative Frequency | AV6: Variability
A7: 21 | B7: 21 | C7: 12 | D7: 24 | E7: 14 | F7: 34 | K7: 0 | L7: 211 | N7: 111 | O7: =COUNTIF($L$7:$L$500,N7) -> 2 | P7: =O7/$Q$4 -> 0.03773584906 | Q7: =IF(P7=0,0,(P7*((LOG(P7))/LOG(2)))) -> -0.1784120926 | T7: =N7 -> 111 | U7: =COUNTIF(L7:L15,T7) -> 1 | V7: =U7/(W4-U14) -> 0.2 | W7: =IF(V7=0,0,(V7*((LOG(V7))/LOG(2)))) -> -0.464385619 | Y7: =N7 -> 111 | Z7: =COUNTIF(L16:L24,Y7) -> 0 | AA7: =Z7/(AB4-Z14) ->  | AB7: =IF(AA7=0,0,(AA7*((LOG(AA7))/LOG(2)))) ->  | AD7: =N7 -> 111 | AE7: =COUNTIF(L25:L32,AD7) -> 0 | AF7: =AE7/(AG4-AE14) ->  | AG7: =IF(AF7=0,0,(AF7*((LOG(AF7))/LOG(2)))) ->  | AI7: =N7 -> 111 | AJ7: =COUNTIF(L33:L41,AI7) -> 1 | AK7: =AJ7/(AL4-AJ14) -> 0.5 | AL7: =IF(AK7=0,0,(AK7*((LOG(AK7))/LOG(2)))) -> -0.5 | AN7: =N7 -> 111 | AO7: =COUNTIF(L42:L50,AN7) -> 0 | AP7: =AO7/(AQ4-AO14) -> 0 | AQ7: =IF(AP7=0,0,(AP7*((LOG(AP7))/LOG(2)))) -> 0 | AS7: =N7 -> 111 | AT7: =COUNTIF(L51:L59,AS7) -> 0 | AU7: =AT7/(AV4-AT14) -> 0 | AV7: =IF(AU7=0,0,(AU7*((LOG(AU7))/LOG(2)))) -> 0
A8: 12 | B8: 128 | C8: 23 | D8: 153 | E8: 14 | F8: 159 | K8: 0 | L8: 121 | N8: 112 | O8: =COUNTIF($L$7:$L$500,N8) -> 2 | P8: =O8/$Q$4 -> 0.03773584906 | Q8: =IF(P8=0,0,(P8*((LOG(P8))/LOG(2)))) -> -0.1784120926 | T8: =N8 -> 112 | U8: =COUNTIF(L7:L15,T8) -> 1 | V8: =U8/(W4-U14) -> 0.2 | W8: =IF(V8=0,0,(V8*((LOG(V8))/LOG(2)))) -> -0.464385619 | Y8: =N8 -> 112 | Z8: =COUNTIF(L16:L24,Y8) -> 0 | AA8: =Z8/(AB4-Z14) ->  | AB8: =IF(AA8=0,0,(AA8*((LOG(AA8))/LOG(2)))) ->  | AD8: =N8 -> 112 | AE8: =COUNTIF(L25:L32,AD8) -> 0 | AF8: =AE8/(AG4-AE14) ->  | AG8: =IF(AF8=0,0,(AF8*((LOG(AF8))/LOG(2)))) ->  | AI8: =N8 -> 112 | AJ8: =COUNTIF(L33:L41,AI8) -> 0 | AK8: =AJ8/(AL4-AJ14) -> 0 | AL8: =IF(AK8=0,0,(AK8*((LOG(AK8))/LOG(2)))) -> 0 | AN8: =N8 -> 112 | AO8: =COUNTIF(L42:L50,AN8) -> 0 | AP8: =AO8/(AQ4-AO14) -> 0 | AQ8: =IF(AP8=0,0,(AP8*((LOG(AP8))/LOG(2)))) -> 0 | AS8: =N8 -> 112 | AT8: =COUNTIF(L51:L59,AS8) -> 1 | AU8: =AT8/(AV4-AT14) -> 0.2 | AV8: =IF(AU8=0,0,(AU8*((LOG(AU8))/LOG(2)))) -> -0.464385619
A9: 12 | B9: 252 | C9: 14 | D9: 263 | E9: 23 | F9: 283 | K9: 0 | L9: 112 | N9: 121 | O9: =COUNTIF($L$7:$L$500,N9) -> 2 | P9: =O9/$Q$4 -> 0.03773584906 | Q9: =IF(P9=0,0,(P9*((LOG(P9))/LOG(2)))) -> -0.1784120926 | T9: =N9 -> 121 | U9: =COUNTIF(L7:L15,T9) -> 1 | V9: =U9/(W4-U14) -> 0.2 | W9: =IF(V9=0,0,(V9*((LOG(V9))/LOG(2)))) -> -0.464385619 | Y9: =N9 -> 121 | Z9: =COUNTIF(L16:L24,Y9) -> 0 | AA9: =Z9/(AB4-Z14) ->  | AB9: =IF(AA9=0,0,(AA9*((LOG(AA9))/LOG(2)))) ->  | AD9: =N9 -> 121 | AE9: =COUNTIF(L25:L32,AD9) -> 0 | AF9: =AE9/(AG4-AE14) ->  | AG9: =IF(AF9=0,0,(AF9*((LOG(AF9))/LOG(2)))) ->  | AI9: =N9 -> 121 | AJ9: =COUNTIF(L33:L41,AI9) -> 0 | AK9: =AJ9/(AL4-AJ14) -> 0 | AL9: =IF(AK9=0,0,(AK9*((LOG(AK9))/LOG(2)))) -> 0 | AN9: =N9 -> 121 | AO9: =COUNTIF(L42:L50,AN9) -> 0 | AP9: =AO9/(AQ4-AO14) -> 0 | AQ9: =IF(AP9=0,0,(AP9*((LOG(AP9))/LOG(2)))) -> 0 | AS9: =N9 -> 121 | AT9: =COUNTIF(L51:L59,AS9) -> 1 | AU9: =AT9/(AV4-AT14) -> 0.2 | AV9: =IF(AU9=0,0,(AU9*((LOG(AU9))/LOG(2)))) -> -0.464385619
A10: 21 | B10: 408 | C10: 21 | D10: 417 | E10: 21 | F10: 424 | K10: 0 | L10: 222 | N10: 122 | O10: =COUNTIF($L$7:$L$500,N10) -> 1 | P10: =O10/$Q$4 -> 0.01886792453 | Q10: =IF(P10=0,0,(P10*((LOG(P10))/LOG(2)))) -> -0.1080739708 | T10: =N10 -> 122 | U10: =COUNTIF(L7:L15,T10) -> 0 | V10: =U10/(W4-U14) -> 0 | W10: =IF(V10=0,0,(V10*((LOG(V10))/LOG(2)))) -> 0 | Y10: =N10 -> 122 | Z10: =COUNTIF(L16:L24,Y10) -> 0 | AA10: =Z10/(AB4-Z14) ->  | AB10: =IF(AA10=0,0,(AA10*((LOG(AA10))/LOG(2)))) ->  | AD10: =N10 -> 122 | AE10: =COUNTIF(L25:L32,AD10) -> 0 | AF10: =AE10/(AG4-AE14) ->  | AG10: =IF(AF10=0,0,(AF10*((LOG(AF10))/LOG(2)))) ->  | AI10: =N10 -> 122 | AJ10: =COUNTIF(L33:L41,AI10) -> 1 | AK10: =AJ10/(AL4-AJ14) -> 0.5 | AL10: =IF(AK10=0,0,(AK10*((LOG(AK10))/LOG(2)))) -> -0.5 | AN10: =N10 -> 122 | AO10: =COUNTIF(L42:L50,AN10) -> 0 | AP10: =AO10/(AQ4-AO14) -> 0 | AQ10: =IF(AP10=0,0,(AP10*((LOG(AP10))/LOG(2)))) -> 0 | AS10: =N10 -> 122 | AT10: =COUNTIF(L51:L59,AS10) -> 0 | AU10: =AT10/(AV4-AT14) -> 0 | AV10: =IF(AU10=0,0,(AU10*((LOG(AU10))/LOG(2)))) -> 0
A11: 21 | B11: 519 | C11: 21 | D11: 533 | E11: 12 | F11: 541 | K11: 0 | L11: 221 | N11: 211 | O11: =COUNTIF($L$7:$L$500,N11) -> 1 | P11: =O11/$Q$4 -> 0.01886792453 | Q11: =IF(P11=0,0,(P11*((LOG(P11))/LOG(2)))) -> -0.1080739708 | T11: =N11 -> 211 | U11: =COUNTIF(L7:L15,T11) -> 1 | V11: =U11/(W4-U14) -> 0.2 | W11: =IF(V11=0,0,(V11*((LOG(V11))/LOG(2)))) -> -0.464385619 | Y11: =N11 -> 211 | Z11: =COUNTIF(L16:L24,Y11) -> 0 | AA11: =Z11/(AB4-Z14) ->  | AB11: =IF(AA11=0,0,(AA11*((LOG(AA11))/LOG(2)))) ->  | AD11: =N11 -> 211 | AE11: =COUNTIF(L25:L32,AD11) -> 0 | AF11: =AE11/(AG4-AE14) ->  | AG11: =IF(AF11=0,0,(AF11*((LOG(AF11))/LOG(2)))) ->  | AI11: =N11 -> 211 | AJ11: =COUNTIF(L33:L41,AI11) -> 0 | AK11: =AJ11/(AL4-AJ14) -> 0 | AL11: =IF(AK11=0,0,(AK11*((LOG(AK11))/LOG(2)))) -> 0 | AN11: =N11 -> 211 | AO11: =COUNTIF(L42:L50,AN11) -> 0 | AP11: =AO11/(AQ4-AO14) -> 0 | AQ11: =IF(AP11=0,0,(AP11*((LOG(AP11))/LOG(2)))) -> 0 | AS11: =N11 -> 211 | AT11: =COUNTIF(L51:L59,AS11) -> 0 | AU11: =AT11/(AV4-AT14) -> 0 | AV11: =IF(AU11=0,0,(AU11*((LOG(AU11))/LOG(2)))) -> 0
A12: 12 | B12: 636 | C12: 14 | D12: 649 | E12: 14 | F12: 660 | K12: 0 | L12: 111 | N12: 212 | O12: =COUNTIF($L$7:$L$500,N12) -> 2 | P12: =O12/$Q$4 -> 0.03773584906 | Q12: =IF(P12=0,0,(P12*((LOG(P12))/LOG(2)))) -> -0.1784120926 | T12: =N12 -> 212 | U12: =COUNTIF(L7:L15,T12) -> 0 | V12: =U12/(W4-U14) -> 0 | W12: =IF(V12=0,0,(V12*((LOG(V12))/LOG(2)))) -> 0 | Y12: =N12 -> 212 | Z12: =COUNTIF(L16:L24,Y12) -> 0 | AA12: =Z12/(AB4-Z14) ->  | AB12: =IF(AA12=0,0,(AA12*((LOG(AA12))/LOG(2)))) ->  | AD12: =N12 -> 212 | AE12: =COUNTIF(L25:L32,AD12) -> 0 | AF12: =AE12/(AG4-AE14) ->  | AG12: =IF(AF12=0,0,(AF12*((LOG(AF12))/LOG(2)))) ->  | AI12: =N12 -> 212 | AJ12: =COUNTIF(L33:L41,AI12) -> 0 | AK12: =AJ12/(AL4-AJ14) -> 0 | AL12: =IF(AK12=0,0,(AK12*((LOG(AK12))/LOG(2)))) -> 0 | AN12: =N12 -> 212 | AO12: =COUNTIF(L42:L50,AN12) -> 1 | AP12: =AO12/(AQ4-AO14) -> 0.3333333333 | AQ12: =IF(AP12=0,0,(AP12*((LOG(AP12))/LOG(2)))) -> -0.5283208336 | AS12: =N12 -> 212 | AT12: =COUNTIF(L51:L59,AS12) -> 1 | AU12: =AT12/(AV4-AT14) -> 0.2 | AV12: =IF(AU12=0,0,(AU12*((LOG(AU12))/LOG(2)))) -> -0.464385619
A13: 21 | B13: 758 | C13: 21 | D13: 762 | E13: 21 | F13: 771 | K13: 0 | L13: 222 | N13: 221 | O13: =COUNTIF($L$7:$L$500,N13) -> 5 | P13: =O13/$Q$4 -> 0.09433962264 | Q13: =IF(P13=0,0,(P13*((LOG(P13))/LOG(2)))) -> -0.3213200339 | T13: =N13 -> 221 | U13: =COUNTIF(L7:L15,T13) -> 1 | V13: =U13/(W4-U14) -> 0.2 | W13: =IF(V13=0,0,(V13*((LOG(V13))/LOG(2)))) -> -0.464385619 | Y13: =N13 -> 221 | Z13: =COUNTIF(L16:L24,Y13) -> 0 | AA13: =Z13/(AB4-Z14) ->  | AB13: =IF(AA13=0,0,(AA13*((LOG(AA13))/LOG(2)))) ->  | AD13: =N13 -> 221 | AE13: =COUNTIF(L25:L32,AD13) -> 0 | AF13: =AE13/(AG4-AE14) ->  | AG13: =IF(AF13=0,0,(AF13*((LOG(AF13))/LOG(2)))) ->  | AI13: =N13 -> 221 | AJ13: =COUNTIF(L33:L41,AI13) -> 0 | AK13: =AJ13/(AL4-AJ14) -> 0 | AL13: =IF(AK13=0,0,(AK13*((LOG(AK13))/LOG(2)))) -> 0 | AN13: =N13 -> 221 | AO13: =COUNTIF(L42:L50,AN13) -> 2 | AP13: =AO13/(AQ4-AO14) -> 0.6666666667 | AQ13: =IF(AP13=0,0,(AP13*((LOG(AP13))/LOG(2)))) -> -0.3899750005 | AS13: =N13 -> 221 | AT13: =COUNTIF(L51:L59,AS13) -> 2 | AU13: =AT13/(AV4-AT14) -> 0.4 | AV13: =IF(AU13=0,0,(AU13*((LOG(AU13))/LOG(2)))) -> -0.528771238
A14: 21 | B14: 862 | C14: 21 | D14: 868 | E14: 21 | F14: 882 | K14: 0 | L14: 222 | N14: 222 | O14: =COUNTIF($L$7:$L$500,N14) -> 38 | P14: =O14/$Q$4 -> 0.7169811321 | Q14: =IF(P14=0,0,(P14*((LOG(P14))/LOG(2)))) -> -0.3441458823 | T14: =N14 -> 222 | U14: =COUNTIF(L7:L15,T14) -> 4 | Y14: =N14 -> 222 | Z14: =COUNTIF(L16:L24,Y14) -> 9 | AD14: =N14 -> 222 | AE14: =COUNTIF(L25:L32,AD14) -> 8 | AI14: =N14 -> 222 | AJ14: =COUNTIF(L33:L41,AI14) -> 7 | AN14: =N14 -> 222 | AO14: =COUNTIF(L42:L50,AN14) -> 6 | AS14: =N14 -> 222 | AT14: =COUNTIF(L51:L59,AS14) -> 4
A15: 21 | B15: 1019 | C15: 21 | D15: 1023 | E15: 21 | F15: 1030 | K15: 0 | L15: 222 | P15: =SUM(P7:P14) -> 1 | Q15: =-SUM(Q7:Q14) -> 1.595262228 | V15: =SUM(V7:V14) -> 1 | W15: =-SUM(W7:W14) -> 2.321928095 | AA15: =SUM(AA7:AA14) ->  | AB15: =-SUM(AB7:AB14) ->  | AF15: =SUM(AF7:AF14) ->  | AG15: =-SUM(AG7:AG14) ->  | AK15: =SUM(AK7:AK14) -> 1 | AL15: =-SUM(AL7:AL14) -> 1 | AP15: =SUM(AP7:AP14) -> 1 | AQ15: =-SUM(AQ7:AQ14) -> 0.9182958341 | AU15: =SUM(AU7:AU14) -> 1 | AV15: =-SUM(AV7:AV14) -> 1.921928095
A16: 21 | B16: 1171 | C16: 21 | D16: 1175 | E16: 21 | F16: 1179 | K16: 0 | L16: 222 | P16: U= | Q16: =Q15/(LOG(Q4)/LOG(2)) -> 0.2785063517 | V16: U1= | W16: =W15/(LOG(W4)/LOG(2)) -> 0.7324867604 | AA16: U2= | AB16: =AB15/(LOG(AB4)/LOG(2)) ->  | AF16: U3= | AG16: =AG15/(LOG(AG4)/LOG(2)) ->  | AK16: U4= | AL16: =AL15/(LOG(AL4)/LOG(2)) -> 0.3154648768 | AP16: U5= | AQ16: =AQ15/(LOG(AQ4)/LOG(2)) -> 0.2896900821 | AU16: U6= | AV16: =AV15/(LOG(AV4)/LOG(2)) -> 0.6063008096
A17: 21 | B17: 1283 | C17: 21 | D17: 1287 | E17: 21 | F17: 1291 | K17: 0 | L17: 222
A18: 21 | B18: 1382 | C18: 21 | D18: 1394 | E18: 21 | F18: 1398 | K18: 0 | L18: 222
A19: 21 | B19: 1549 | C19: 21 | D19: 1552 | E19: 21 | F19: 1555 | K19: 0 | L19: 222 | N19: Total Target Seq
A20: 21 | B20: 1767 | C20: 21 | D20: 1772 | E20: 21 | F20: 1815 | K20: 0 | L20: 222 | N20: =COUNTIF(L7:L59,G3) -> 38 | P20: 9 | Q20: 9 | R20: 8 | S20: 9 | T20: 9 | U20: 9
A21: 21 | B21: 1948 | C21: 21 | D21: 1955 | E21: 21 | F21: 2025 | K21: 0 | L21: 222 | P21: % of reinforcement given in 6 equal intervals based on number of trials
A22: 21 | B22: 2155 | C22: 21 | D22: 2159 | E22: 21 | F22: 2171 | K22: 0 | L22: 222 | P22: %_1 | Q22: %_2 | R22: %_3 | S22: %_4 | T22: %_5 | U22: %_6
A23: 21 | B23: 2313 | C23: 21 | D23: 2319 | E23: 21 | F23: 2325 | K23: 0 | L23: 222 | O23: target sequence | P23: =$G$3 -> 222 | Q23: =$G$3 -> 222 | R23: =$G$3 -> 222 | S23: =$G$3 -> 222 | T23: =$G$3 -> 222 | U23: =$G$3 -> 222
A24: 21 | B24: 2554 | C24: 21 | D24: 2562 | E24: 21 | F24: 2564 | K24: 0 | L24: 222 | O24: total reinforcement | P24: =U14 -> 4 | Q24: =Z14 -> 9 | R24: =AE14 -> 8 | S24: =AJ14 -> 7 | T24: =AO14 -> 6 | U24: =AT14 -> 4
A25: 21 | B25: 2669 | C25: 21 | D25: 2675 | E25: 21 | F25: 2680 | K25: 0 | L25: 222 | O25: % target
A26: 21 | B26: 2809 | C26: 21 | D26: 2813 | E26: 21 | F26: 2821 | K26: 0 | L26: 222 | O26: CCRF
A27: 21 | B27: 3033 | C27: 21 | D27: 3046 | E27: 21 | F27: 3048 | K27: 0 | L27: 222 | O27: % CCRf
A28: 21 | B28: 3299 | C28: 21 | D28: 3307 | E28: 21 | F28: 3315 | K28: 0 | L28: 222 | O28: average response rate | P28: =F15/P20 -> 114.4444444 | Q28: =(F24-F15)/Q20 -> 170.4444444 | R28: =(F32-F24)/R20 -> 179.25 | S28: =(F41-F32)/S20 -> 169 | T28: =(F50-F41)/T20 -> 137.5555556 | U28: =(F59-F50)/U20 -> 181.1111111
A29: 21 | B29: 3535 | C29: 21 | D29: 3546 | E29: 21 | F29: 3553 | K29: 0 | L29: 222
A30: 21 | B30: 3668 | C30: 21 | D30: 3673 | E30: 21 | F30: 3678 | K30: 0 | L30: 222
A31: 21 | B31: 3837 | C31: 21 | D31: 3845 | E31: 21 | F31: 3848 | K31: 0 | L31: 222
A32: 21 | B32: 3941 | C32: 21 | D32: 3946 | E32: 21 | F32: 3998 | K32: 0 | L32: 222
A33: 21 | B33: 4292 | C33: 21 | D33: 4298 | E33: 21 | F33: 4301 | K33: 0 | L33: 222
A34: 12 | B34: 4406 | C34: 23 | D34: 4415 | E34: 23 | F34: 4433 | K34: 0 | L34: 122
A35: 12 | B35: 4525 | C35: 14 | D35: 4532 | E35: 14 | F35: 4549 | K35: 0 | L35: 111
A36: 21 | B36: 4689 | C36: 21 | D36: 4694 | E36: 21 | F36: 4696 | K36: 0 | L36: 222
A37: 21 | B37: 4944 | C37: 21 | D37: 4950 | E37: 21 | F37: 4955 | K37: 0 | L37: 222
A38: 21 | B38: 5108 | C38: 21 | D38: 5123 | E38: 21 | F38: 5126 | K38: 0 | L38: 222
A39: 21 | B39: 5218 | C39: 21 | D39: 5226 | E39: 21 | F39: 5233 | K39: 0 | L39: 222
A40: 21 | B40: 5385 | C40: 21 | D40: 5403 | E40: 21 | F40: 5406 | K40: 0 | L40: 222
A41: 21 | B41: 5502 | C41: 21 | D41: 5516 | E41: 21 | F41: 5519 | K41: 0 | L41: 222
A42: 21 | B42: 5632 | C42: 21 | D42: 5642 | E42: 12 | F42: 5678 | K42: 0 | L42: 221
A43: 21 | B43: 5813 | C43: 21 | D43: 5816 | E43: 21 | F43: 5820 | K43: 0 | L43: 222
A44: 21 | B44: 5938 | C44: 21 | D44: 5945 | E44: 21 | F44: 5950 | K44: 0 | L44: 222
A45: 21 | B45: 6113 | C45: 21 | D45: 6121 | E45: 21 | F45: 6128 | K45: 0 | L45: 222
A46: 21 | B46: 6259 | C46: 21 | D46: 6266 | E46: 21 | F46: 6311 | K46: 0 | L46: 222
A47: 21 | B47: 6400 | C47: 21 | D47: 6408 | E47: 21 | F47: 6410 | K47: 0 | L47: 222
A48: 21 | B48: 6507 | C48: 21 | D48: 6520 | E48: 12 | F48: 6536 | K48: 0 | L48: 221
A49: 21 | B49: 6636 | C49: 12 | D49: 6638 | E49: 23 | F49: 6644 | K49: 0 | L49: 212
A50: 21 | B50: 6745 | C50: 21 | D50: 6749 | E50: 21 | F50: 6757 | K50: 0 | L50: 222
A51: 21 | B51: 6954 | C51: 21 | D51: 6958 | E51: 21 | F51: 6992 | K51: 0 | L51: 222
A52: 21 | B52: 7140 | C52: 21 | D52: 7145 | E52: 21 | F52: 7151 | K52: 0 | L52: 222
A53: 21 | B53: 7385 | C53: 21 | D53: 7399 | E53: 12 | F53: 7418 | K53: 0 | L53: 221
A54: 12 | B54: 7516 | C54: 14 | D54: 7520 | E54: 23 | F54: 7535 | K54: 0 | L54: 112
A55: 21 | B55: 7636 | C55: 12 | D55: 7639 | E55: 23 | F55: 7659 | K55: 0 | L55: 212
A56: 21 | B56: 7756 | C56: 21 | D56: 7808 | E56: 12 | F56: 7825 | K56: 0 | L56: 221
A57: 21 | B57: 7917 | C57: 21 | D57: 7938 | E57: 21 | F57: 7954 | K57: 0 | L57: 222
A58: 12 | B58: 8044 | C58: 23 | D58: 8058 | E58: 14 | F58: 8064 | K58: 0 | L58: 121
A59: 21 | B59: 8369 | C59: 21 | D59: 8384 | E59: 21 | F59: 8387 | K59: 1 | L59: 222

Sheet !N11292B.AXT
A1: Report for:!N11292B.AXT
A2: Date: | B2: <date>
A3: Hen: | B3: <hen> | F3: Correct Sequence | G3: =Start!J2 -> 222 | P3: Total Sequences in Data | Q3: =4994-COUNTBLANK(L7:L5000) -> 43 | V3: Total Sequences in Block Data | W3: =COUNTA(L7:L13) -> 7 | AA3: Total Sequences in Block Data | AB3: =COUNTA(L14:L20) -> 7 | AF3: Total Sequences in Block Data | AG3: =COUNTA(L21:L28) -> 8 | AK3: Total Sequences in Block Data | AL3: =COUNTA(L29:L35) -> 7 | AP3: Total Sequences in Block Data | AQ3: =COUNTA(L36:L42) -> 7 | AU3: Total Sequences in Block Data | AV3: =COUNTA(L43:L49) -> 7
P4: Total Sequences in Summary | Q4: =SUM(O7:O14) -> 43 | V4: Total Sequences in Block Summary | W4: =SUM(U7:U14) -> 7 | AA4: Total Sequences in Block Summary | AB4: =SUM(Z7:Z14) -> 7 | AF4: Total Sequences in Block Summary | AG4: =SUM(AE7:AE14) -> 8 | AK4: Total Sequences in Block Summary | AL4: =SUM(AJ7:AJ14) -> 7 | AP4: Total Sequences in Block Summary | AQ4: =SUM(AO7:AO14) -> 7 | AU4: Total Sequences in Block Summary | AV4: =SUM(AT7:AT14) -> 7
T5: Block 1 | Y5: Block 2 | AD5: Block 3 | AI5: Block 4 | AN5: Block 5 | AS5: Block 6
A6: Sequence Component 1 | B6: Time 1 | C6: Sequence Component 2 | D6: Time 2 | E6: Sequence Component 3 | F6: Time 3 | G6: Sequence Component 4 | H6: Time 4 | I6: Sequence Component 5 | J6: Time 5 | K6: Correct? 0=No 1=Yes | L6: Sequence | N6: Frequency | P6: Relative Frequency | Q6: Variability | T6: Frequency | V6: Relative Frequency | W6: Variability | Y6: Frequency | AA6: Relative Frequency | AB6: Variability | AD6: Frequency | AF6: Relative Frequency | AG6: Variability | AI6: Frequency | AK6: Relative Frequency | AL6: Variability | AN6: Frequency | AP6: Relative Frequency | AQ6: Variability | AS6: Frequency | AU6: Relative Frequency | AV6: Variability
A7: 21 | B7: 110 | C7: 21 | D7: 116 | E7: 12 | F7: 132 | K7: 0 | L7: 221 | N7: 111 | O7: =COUNTIF($L$7:$L$500,N7) -> 0 | P7: =O7/$Q$4 -> 0 | Q7: =IF(P7=0,0,(P7*((LOG(P7))/LOG(2)))) -> 0 | T7: =N7 -> 111 | U7: =COUNTIF(L7:L13,T7) -> 0 | V7: =U7/(W4-U14) -> 0 | W7: =IF(V7=0,0,(V7*((LOG(V7))/LOG(2)))) -> 0 | Y7: =N7 -> 111 | Z7: =COUNTIF(L14:L20,Y7) -> 0 | AA7: =Z7/(AB4-Z14) ->  | AB7: =IF(AA7=0,0,(AA7*((LOG(AA7))/LOG(2)))) ->  | AD7: =N7 -> 111 | AE7: =COUNTIF(L21:L28,AD7) -> 0 | AF7: =AE7/(AG4-AE14) -> 0 | AG7: =IF(AF7=0,0,(AF7*((LOG(AF7))/LOG(2)))) -> 0 | AI7: =N7 -> 111 | AJ7: =COUNTIF(L29:L35,AI7) -> 0 | AK7: =AJ7/(AL4-AJ14) -> 0 | AL7: =IF(AK7=0,0,(AK7*((LOG(AK7))/LOG(2)))) -> 0 | AN7: =N7 -> 111 | AO7: =COUNTIF(L36:L42,AN7) -> 0 | AP7: =AO7/(AQ4-AO14) -> 0 | AQ7: =IF(AP7=0,0,(AP7*((LOG(AP7))/LOG(2)))) -> 0 | AS7: =N7 -> 111 | AT7: =COUNTIF(L43:L49,AS7) -> 0 | AU7: =AT7/(AV4-AT14) ->  | AV7: =IF(AU7=0,0,(AU7*((LOG(AU7))/LOG(2)))) -> 
